{"text_format":"1","workbook":"xlsx","n_sheets":15,"sheets":["info_perso","annexe avantages","annexe classe","annexe désavantage","caractéritiques","compétences","équipement","sorts","annexe dépense occulte","pouvoirs","annexe pouvoirs","annexe équipement","évolution","annexe Fétiches","récap perso"],"not_rendered":{"charts":1,"images":8,"macros":1,"external_links":0,"defined_names":0,"comments":1,"pivot_tables":0},"unopened":[],"bounds":{"document_bytes":16777216,"sheet_cells":100000,"rows_first":2000,"rows_last":500,"rows_between":2000,"halvings":0,"cell_chars":16384,"cell_head_chars":4096},"cells_cut":0,"cells_raw":0,"read":"whole","date_system":"1900"}

{"sheet":"info_perso","index":0,"n_rows":28,"n_cols":15,"rows_kept":28,"cut":false,"hidden":false,"merged":[[0,3,0,5],[1,3,1,5],[0,13,0,14],[1,13,1,14],[14,7,14,9],[0,11,0,12],[1,11,1,12],[15,7,15,9],[13,1,13,4],[9,7,9,9],[10,7,10,9],[11,7,11,9],[12,7,12,9],[13,7,13,9],[15,1,15,4],[16,1,16,4],[14,1,14,4],[23,1,23,4],[24,1,24,4],[17,1,17,4],[20,1,20,4],[21,1,21,4],[21,7,21,8],[22,7,22,8],[24,7,24,8],[23,7,23,8],[27,1,27,4],[22,1,22,4],[25,1,25,4],[26,1,26,4]]}
["nom",null,null,"passé et formation",null,null,null,null,null,null,null,{"$f":"IF(D2=\"klobto\",\"max naturel PV\",\"max naturel PV/San\")","v":"max naturel PV/San"},null,{"$f":"IF(D2=\"klobto\",\"max naturel San\",\" \")","v":" "}]
["prénom",null,null," ",null,null,null,null,null,null,null,{"$f":"IF(D2=\"klobto\",210,165)","v":165},null,{"$f":"IF(D2=\"klobto\",165,\" \")","v":" "}]
[]
[null,null,"valeur d20","base carac","bonus","évo naturelle","base naturelle","base occulte","occulte","base parapsy","parapsy","bonus parapsy","max","en cours"]
[null,"P.V.",null,{"$f":"CEILING((caractéritiques!C9+caractéritiques!D9)/5,1)","v":0},{"$f":"IF(OR(info_perso!$B$15=\"Gros sac\",info_perso!$B$16=\"Gros sac\",info_perso!$B$17=\"Gros sac\",info_perso!$B$18=\"Gros sac\"),20,0)","v":0},null,{"$f":"MIN(L2, 50+C5+D5+F5+E5)","v":50},{"$f":"CEILING((caractéritiques!$C$10+caractéritiques!$DD10)/5,1)","v":0},null,{"$f":"CEILING((caractéritiques!$C$11+caractéritiques!$DD11)/5,1)","v":0},null,{"$f":"IF(pouvoirs!X21=\"marteau de Thor\",-40,IF(pouvoirs!X37=\"lame secrète\",-20,IF(pouvoirs!X37=\"sangsue\",-30,IF(pouvoirs!X45=\"puissance de l'éclair\",-10,))))","v":0},{"$f":"SUM(G5:L5)","v":50},{"$f":"M5","v":50}]
[null,"Santé mentale",null,{"$f":"CEILING((caractéritiques!E9+caractéritiques!F9)/5,1)","v":0},{"$f":"IF(OR(info_perso!$B$15=\"Stabilité mentale\",info_perso!$B$16=\"Stabilité mentale\",info_perso!$B$17=\"Stabilité mentale\",info_perso!$B$18=\"Stabilité mentale\"),20,0)+IF(info_perso!$D$2=\"Cobaye\",-20,0)","v":0},null,{"$f":"IF(D2=\"klobto\",MIN(N2, 50+C6+D6+F6+E6),MIN(L2, 50+C6+D6+F6+E6))","v":50},{"$f":"CEILING((caractéritiques!$C$10+caractéritiques!$DD11)/5,1)","v":0},null,{"$f":"CEILING((caractéritiques!$C$11+caractéritiques!$DD13)/5,1)","v":0},null,null,{"$f":"SUM(G6:L6)","v":50},{"$f":"M6","v":50}]
[]
[]
[null,null,null,null,null,null,null,null,null,null,null,"PV/San","évolution","coût"]
[null,"résistance spéciale","base","bonus","évolution","total",null,"pathologies",null,null,null,null,"normal",2]
[null,"score",{"$f":"CEILING(caractéritiques!F13/2,1)","v":0},{"$f":"IF(OR(info_perso!$B$15=\"Sang froid\",info_perso!$B$16=\"Sang froid\",info_perso!$B$17=\"Sang froid\",info_perso!$B$18=\"Sang froid\"),20,0)+IF(info_perso!$D$2=\"Cobaye\",20,0)","v":0},null,{"$f":"IF(C11+D11+E11>100,100,C11+D11+E11)","v":0},null," ",null,null,null,null,"occulte",6]
[null,null,null,null,null,null,null,null,null,null,null,null,"parapsy",8]
[]
[null,"avantages",null,null,null,"Coût",null,null,null,null,null,"dés","formules","dés","formules"]
[null," ",null,null,null,{"$f":"VLOOKUP(info_perso!$B$15,Table1[#All],3,FALSE)","v":0},null,null,null,null,null,"d2",{"$f":"CEILING(MOD((RAND()*10000),2),1)","v":1},"d10",{"$f":"CEILING(MOD((RAND()*10000),10),1)","v":8}]
[null," ",null,null,null,{"$f":"VLOOKUP(info_perso!$B$16,Table1[#All],3,FALSE)","v":0},null,null,null,null,null,"d3",{"$f":"CEILING(MOD((RAND()*10000),3),1)","v":3},"d20",{"$f":"CEILING(MOD((RAND()*10000),20),1)","v":8}]
[null," ",null,null,null,{"$f":"VLOOKUP(info_perso!$B$17,Table1[#All],3,FALSE)","v":0},null,null,null,null,null,"d4",{"$f":"CEILING(MOD((RAND()*10000),4),1)","v":1},"d50",{"$f":"CEILING(MOD((RAND()*10000),50),1)","v":8}]
[null," ",null,null,null,{"$f":"VLOOKUP(info_perso!$B$18,Table1[#All],3,FALSE)","v":0},null,null,null,null,null,"d6",{"$f":"CEILING(MOD((RAND()*10000),6),1)","v":5},"d100",{"$f":"CEILING(MOD((RAND()*10000),100),1)","v":65}]
[null,null,null,null,"total",{"$f":"SUM(F15:F18)","v":0},null,null,null,null,null,"d8",{"$f":"CEILING(MOD((RAND()*10000),8),1)","v":1}]
[]
[null,"désavantages",null,null,null,null,null,"addictions",null,"niveau"]
[]
[]
[]
[]
[]
[null,{"$f":"IF(info_perso!D2=\"pirate céfrite\",\"troubles bipolaires\",\" \")","v":" "},null,null,null,null,"dégâts totaux","P.A.","dégâts armure ","dégâts PV"]
[null,{"$f":"IF(info_perso!$D$2=\"Cobaye\",\"Recherché par l’armé\",IF(info_perso!D2=\"pirate céfrite\",\"cruel\",\" \"))","v":" "},null,null,null,null,null,null,{"$f":"MIN(équipement!G22,info_perso!G28+info_perso!H28)","v":0},{"$f":"MAX(0,G28-(MAX(0,équipement!G22-info_perso!H28)))","v":0}]

{"sheet":"annexe avantages","index":1,"n_rows":31,"n_cols":8,"rows_kept":31,"cut":false,"hidden":true,"merged":[]}
[]
[null,"Avantage","Description","Coût","Effet 1 ","Effet 2","Effet 3","Effet 4"]
[null," "," ",null,"  "," "," "," "]
[null,"A l’écoute de son corps (naturel)","Le P.J. est à l’écoute de son corps et est très sensible à tous les changements qu’ils s’y passent.",-20,"XP parapsy x2","XP naturel /2"]
[null,"A l’écoute de son corps (occulte)","Le P.J. est à l’écoute de son corps et est très sensible à tous les changements qu’ils s’y passent.",-20,"XP parapsy x3","XP occulte /2"]
[null,"Abîmé","Le P.J. a subi de nombreuses difficultés physiques, maladies, drogues, etc. ; cela lui a donné des prédispositions à l’utilisation de pouvoir parapsychique.",-30,"+40 en parapsy"]
[null,"Affinité avec l’occulte (naturel)","Le personnage ressent une forte affinité avec l’occulte et en maîtrise rapidement les composantes.",-20,"XP naturel x2","XP naturel /2"]
[null,"Affinité avec l’occulte (parapsy)","Le personnage ressent une forte affinité avec l’occulte et en maîtrise rapidement les composantes.",-20,"XP naturel x2","XP parapsy /2"]
[null,"Agile comme un chat",null,-20,"+10 Agilité"]
[null,"Apprentissage rapide (occulte)","Le P.J. apprend vite.",-20,"XP naturel x2","XP occulte /2"]
[null,"Apprentissage rapide (parapsy)","Le P.J. apprend vite.",-20,"XP naturel x2","XP parapsy /2"]
[null,"Entraînement occulte","Le P.J. s’est déjà intéressé à l’occultisme ou a déjà subi un entraînement dans cette discipline.",-30,"+40 en occultisme"]
[null,"Expérimenté","Le P.J. est déjà expérimenté, il a déjà vécu des épreuves et en a tiré des enseignements.",-30,"+40 points de création"]
[null,"Fort comme un boeuf",null,-20,"+10 Force"]
[null,"Gros sac","Le personnage sait encaisser les coups.",-20,"+20 P.V."]
[null,"L’acteur",null,-10,"+5 baratin","+5 représentation","+5 danse"]
[null,"Le baroudeur",null,-10,"+5 discrétion","+5 crochetage","+5 débrouillardise"]
[null,"Le champion d'EPS",null,-10,"+5 lancé","+10 athlétisme"]
[null,"Le garde",null,-10,"+5 vigilance","+5 recherche","+5 C. à C."]
[null,"Le mécano",null,-10,"+5 conduite","+5 ingénierie","+5 informatique"]
[null,"Le passionné du treillis","Le personnage a toujours été intéressée au métier de militaire. Peut-être en est-il un ou en-était il un.",-10,"+5 tir","+5 déguisement","+5 pilotage"]
[null,"Le petit chimiste",null,-10,"+5 addiction","+5 chimie","+5 médecine"]
[null,"Le stratego",null,-10,"+5 négociation","+5 étiquette","+5 commandement"]
[null,"Le street fighter","Le personnage est un combattant des rues aguerri.",-10,"+5 C. à C.","+5 mêlée","+5 esquive"]
[null,"Le voleur",null,-10,"+5 larcin","+5 discrétion","+5 athlétisme"]
[null,"Malin comme un singe",null,-20,"+10 Intelligence"]
[null,"OEil de lynx",null,-20,"+10 Perception"]
[null,"Sang froid","Le PJ a déjà vécu des horreurs et en est déjà légèrement désensibilisé.",-20,"+20 résistance spéciale"]
[null,"Stabilité mentale",null,-20,"+20 San"]
[null,"Têtu comme une mule",null,-20,"+10 Volonté"]
[null,"Tisseur de toile",null,-20,"+10 Influence"]

{"sheet":"annexe classe","index":2,"n_rows":26,"n_cols":5,"rows_kept":26,"cut":false,"hidden":true,"merged":[[0,1,0,4]]}
[null,"Les classes"]
[null,"Nom","Description","Bonus","Malus"]
[null," "," "," "," "]
[null,"Chien blanc de Papa","Le P.J. est un agent de Papa","Un rachis au choix parmi les V.0.2.X\n+150 xp parapsy"]
[null,"Clown","Le P.J. est ou était un membre du plus grand et influent gang de Néotokyo, les clowns. Il est habitué à se battre, à produire et à vendre de la drogue, cependant les bonnes manières ne sont pas son fort.","+20 conduite, C. à C. et mêlée\n+30 chimie et addiction","-30 étiquette, pathos, charme et style"]
[null,"Cobaye","Le P.J. est un cobaye des expériences militaires. Il a vu des horreurs et a su s’en échappé.","+20 résistance spéciale\n+150 parapsy\n+1 pouvoir Mx aléatoire","-20 San\n-30 addiction\n+niveau d’addiction =2\n+recherché par l’armé"]
[null,"cultiste des docks","Le P.J. est un des membre du peuple souterrain des docks"," +400 xp occulte\nObtention du sort double vue à la stance 1 et à 0 % de maîtrise\nPossibilité d’achat des sorts suivants à la stance 1 et à 0 % de maîtrise :\n-augmentation mystique (30)\n-création d'énergie (10)\n-réanimation obscure (40)\n-convocation (50)\n-contrôle d'énergie (20)","Les limites naturelles des compétences du PJ est à 80"]
[null,"Enfant des rues","C’est un orphelin, mineur et pauvre. Il a plus de mal à obtenir un travail, mais les gens lui cède plus facilement leur aide ou des biens matériels, comme le gîte ou le couvert. Il est par ailleurs, nourri, logé, blanchi à l’orphelinat, mais il doit y rendre des comptes. S’il découche plus de deux nuits consécutives, la police se lancera à leur recherche afin de le ramener. Sans cette dernière recherche, les policiers seront plus enclin à le libérer qu’à l’accoutumé","+20 baratin, représentation, pathos, esquive, discrétion, larcin et ride.","-10 C. à C.\n-20 intimidation, négociation et savoir historiques\n-30 commandement\nl’argent de départ est divisé par 2"]
[null,"Foot","Le P.J. est un docker de l'assemblé des Foot"," +30 négociation, représentation, pathos, persuasion & investigation"," -40 larcin, chimie & savoir occulte"]
[null,"Hacker","Le P.J. est un informaticien doué pour les activités interlopes. Il sait être discret et a conscience que la force ne fait pas la réussite d'une mission."," +30 informatique, discrétion, crochetage, ingéniérie & débrouillardise"," -30 C. à C., mêlée, charme, résistence aux chocs, résistence à la douleur"]
[null,"Homme de main","Le P.J. un personnage baraqué et habitué au combat rapproché. Il est ou était sous les ordres du parrain de la mafia actuel et donc en connaît les code.","+30 intimidation, conduite et connaissances sociales\n+20 C. à C. et mêlée\n"," -30 étiquette, loi, ingénierie\n -20 pathos"]
[null,"Humain augmenté","Le P.J. est un humain augmenté par des prothèses.","3 prothèses au choix hors rachis\n+150 xp parapsy"]
[null,"Klobto","Le P.J. est l'une des créatures guerrières de l'Alliance "," -max PV 210\n -max carac. et comp 200\n -2x apprentissage rapide en défaveur de l'occulte (xp naturel x4 et occulte /4)\n -Acquisition de la compétence Artisanat\n -Accès à l'équipement Klobto\n -Acquisition d'un fétiche"," -le PJ n'a plus accès à l'équipement humain à la création\n -impossibilité d'obtenir de l'xp parapsy\n -impossibilité de pose de prothèse ou de thérapie génique"]
[null,"Kubo","Le P.J. est un membre du peuple souterrain de l'Outremonde"," -Obtension 3 fois de l'avantage affinité avec l'occulte en défaveur de l'xp naturel\n +500 xp occulte à dépenser dans les compétences\n +300 xp occulte\n Obtention du sort double vue à la stance 1 et à 0 % de maîtrise\nPossibilité d’achat des sorts suivants à la stance 1 et à 0 % de maîtrise :\n -appel des anciens (30)\n -création d'énergie (10)\n -folie obscure (40)\n -réanimation obscure (50)\n -contrôle d'énergie (20)\n -ombre fatale (30)"," -le PJ ne gagne aucun point de création naturel lors de l'étape des compétences pendant la création\n -impossibilité d'obtenir de l'xp parapsy et ne peut porter d'armure humaine par la suite\n -impossibilité de pose de prothèse ou de thérapie génique\n -Le PJ commence la partie sans équipement"]
[null,"membre de la Toile","Le P.J. est un docker aux ordres de l'Aspic"," +30 connaissances sociales, larcin, crochetage & discrétion"," -40 loi, médecine, savoir historique & savoir occulte"]
[null,"Militaire","Le P.J. est ou était un militaire en garnison dans les quartiers riches.","+30 commandement, intimidation, tir et pistage","-30 pathos, baratin et représentation"]
[null,"Mutant","En partie normale il est très rare d’en croiser mais cela est tout de même possible, mais attire souvent la haine ou les fantasme des P.N.J.. Le personnage fait parti du peuple souterrain et ne vit qu’en masquant ses attributs. Toutes les mixités humain-animaux sont possibles. Il suffit, pour sélectionner cette classe de choisir un animal. Le personnage est affublé de caractéristique physique en rapport avec cet animal ; ensuite, le joueur doit choisir avec cohérence jusqu’à 120 points dans ses caractéristiques à soustraire avant de les redistribuer. Ici, exceptionnellement, les limites humaines ne s’applique pas et ne s’appliqueront plus dans les caractéristiques bonifiées."]
[null,"Nabéloki","Le P.J. est l'une des créatures maîtresses des arcanes magiques de l'Alliance "," limites naturelles des carac à 110 sauf pour volonté qui est à 250\n limites naturelles des compétances à 110\n Obtention de l'avantage Affinité avec l'occulte en défaveur de l'xp naturel\nObtention de la compétence sentir le flux\n Obtention de l'avantage Affinité avec l'occulte en défaveur de l'xp parapsy\n +300 xp occulte\n Obtention du sort enchantement à la stance 1 et à 0 % de maîtrise\nPossibilité d’achat des sorts suivants à la stance 1 et à 0 % de maîtrise :\n -lecture de l'âme (30)\n -lévitation (10)\n -contrôle climatique (40)\n -alignement phytique (50)\n -rupture de sort (20)\n -scellé d'immobilisme (30)"," -impossibilité d'obtenir de l'xp parapsy\n -impossibilité de pose de prothèse ou de thérapie génique\n -le PJ commence la partie sans aucun équipement"]
[null,"Occultiste","C’est un membre du culte présent au casino."," +300 xp occulte\nObtention du sort double vue à la stance 1 et à 0 % de maîtrise\nPossibilité d’achat des sorts suivants à la stance 1 et à 0 % de maîtrise :\n-augmentation mystique (30)\n-transmutation (10)\n-rayon d’énergie mystique (40)\n-entrave (50)\n-soin (20)"]
[null,"Occultiste de l'Ordre de la dissidence","Le P.J. est un occultiste aux ordres de Lilith"," +300 xp occulte\nObtention du sort double vue à la stance 1 et à 0 % de maîtrise\nPossibilité d’achat des sorts suivants à la stance 1 et à 0 % de maîtrise :\n-parangon du sang (30)\n-barrière mystique (10)\n-vitesse divine (40)\n-ronces de ténèbres (50)\n-soin (20)"]
[null,"Orphelin de Maman","Le P.J. est une des expériences de Maman qui s'est échappée","Un rachis au choix parmi les V.0.1.X\n+150 xp parapsy"]
[null,"Pirate de Magi","Le P.J. est un membre du peuple nomade des mers"," +300 xp occulte\nObtention du sort double vue à la stance 1 et à 0 % de maîtrise\nPossibilité d’achat des sorts suivants à la stance 1 et à 0 % de maîtrise :\n-nazar (30)\n-bénédiction (10)\n-réserve mystique (40)\n-hurlement des dieux (50)\n-vue lointaine (20)"]
[null,"Policier","C’est un membre du corps policier.","+30 loi, persuasion, recherche et pistage","-20 baratin, négociation, représentation, larcin, ride et savoir occulte."]
[null,"Pirate Céfrite","Le P.J. est un membre du peuple dégénéré du désert."," +20 Force (la limite naturelle du PJ en Force passe à 110)\n +30 C. à C., mêlée, tir, lancer, esquive"," -50 Intelligence\n -Désavantages : cruel & troubles bipolaires"]
[null,"Prostitué","Le personnage a décider de vendre son corps. Il est sous contrat avec un proxénète, qui en échange de sa protection, du gîte et du couvert prélève une partie des revenu du personnage.","+30 baratin, représentation et charme\n+20 athlétisme, étiquette et danse","-30 loi, savoir historique\n-20 tir, lancé, pilotage et navigation"]
[null,"Tueur à gage","Le personnage était jusque là un indépendant, il ne roulait que pour lui. C’est un personnage discret et dangereux, mais plutôt inadapté socialement dû à l’enfance qu’il n’a pas eu.","+20 tir, C. à C., mêlée, esquive, discrétion, vigilance et recherche","-30 étiquette, loi, ride et chimie"]

{"sheet":"annexe désavantage","index":3,"n_rows":185,"n_cols":4,"rows_kept":185,"cut":false,"hidden":true,"merged":[]}
[]
[null,"N°","Pathologie","Description"]
[null,"26.28","Acarophobie (acariens)"]
[null,"26.17","Achlurophobie (obscurité)"]
[null,"26.19","Acrophobie (hauteurs)"]
[null,52,"Addiction (alcool)"]
[null,62,"Addiction (cendreuse)"]
[null,61,"Addiction (champignons)"]
[null,53,"Addiction (cigarette)"]
[null,54,"Addiction (coaïne)"]
[null,63,"Addiction (GBL)"]
[null,59,"Addiction (héroïne)"]
[null,60,"Addiction (LSD)"]
[null,56,"Addiction (morphine)"]
[null,57,"Addiction (opium)"]
[null,55,"Addiction (speed)"]
[null,58,"Addiction (THC)"]
[null,"26.20","Aérophobie (vent)"]
[null,"26.33","Agoraphobie (grands espaces)"]
[null,"26.57","Algophobie (douleur)"]
[null,"26.34","Alophobie (chauves)"]
[null,"26.29","Amatophobie (poussières)"]
[null,"26.56","Amaxophobie (vitesse)"]
[null,40,"Amputation"]
[null,"26.94","Anatidaephobie (canard caché observateur)"]
[null,"26.30","Anatophobie (fleurs)"]
[null,"26.97","Andocybernophobie (prothèses et robots)"]
[null,"26.42","Angrophobie (être en colère)"]
[null,"26.43","Anuptaphobie (célibat)"]
[null,"26.15","Apéirophobie (infini)"]
[null,"26.44","Aphrophobie (désir sexuel)"]
[null,"26.31","Apiphobie (insectes piquants)"]
[null,"26.58","Apopathodiaphulatophobie (constipation)"]
[null,"26.16","Aquaphobie (eau)"]
[null,"26.73","Arithmophobie (nombres)"]
[null,"26.66","Ascensumophobie (ascenseurs)"]
[null,"26.86","Asmodéophobie (jeux)"]
[null,"26.21","Astraphobie (tonnerre)"]
[null,"26.45","Athazagoraphobie (être oublié/oublier)"]
[null,"26.95","Atychiphobie (échec)"]
[null,39,"Automutilation"]
[null,"26.46","Automyzophobie (sentir mauvais)"]
[null,"26.47","Autophobie (solitude)"]
[null,"26.22","Bacillophobie (bactéries)"]
[null,"26.51","Basophobie (tomber en marchant)"]
[null,"26.99","Bellusophobie (choses mignonnes)"]
[null,42,"Blessure ouverte"]
[null,45,"Cancer"]
[null,"26.60","Cancerophobie (cancer)"]
[null,"26.83","Capillophobie (poils)"]
[null,"26.32","Carpophobie (fruits)"]
[null,"26.52","Catapédaphobie (sauter)"]
[null,"26.48","Chaophobie (chaos)"]
[null,"26.53","Chérophobie (joie)"]
[null,"26.74","Chrométophobie (argent)"]
[null,"26.67","Claustrophobie (espaces confinés)"]
[null,18,"Cleptomanie","le P.J. vole des objets sans réellement le vouloir. Chaque vol nécessitera un jet en larcin. l’intensité de ce désavantage évolue en fonction de la santé mentale du personnage."]
[null,28,"Cleptomanie"]
[null,"26.68","Climacophobie (escaliers)"]
[null,46,"Commotion"]
[null,"26.35","Coulrophobie (clowns)"]
[null,14,"Cruauté","Le P.J. est cruel ; le fait de faire du mal, faire souffrir, démantibuler, démembrer, etc. lui procure un certain plaisir. L’intensité de ce désavantage évolue en fonction de la santé mentale du personnage."]
[null,"26.93","Cruciatophobie (travail)"]
[null,"26.98","Cupocapulusophobie (mugs et tasses)"]
[null,13,"Débilité","… No comment… -20 Intelligence."]
[null,"26.36","Dentophobie (dentistes)"]
[null,30,"Dépression"]
[null,"26.2","Dextrophobie (tourner à droite)"]
[null,17,"Drug addict","Le personnage commence son aventure au stade de l’addiction de la drogue de son choix."]
[null,19,"Dyslexie","Le P.J. fait des fautes d’orthographe même à l’orale. Il ne peut pas lire, dans sa sa tête toutes les lettres se mélangent sans aucune logique. Le personnage subit -20 Influence."]
[null,"26.54","Emétophobie (vomir)"]
[null,15,"Empathique","Le personnage a beaucoup d’empathie et souffre pour les autres."]
[null,51,"Empoisonnement "]
[null,"26.59","Entomobutyrophobie (nourriture collée au palais)"]
[null,"26.5","Entomorphie (insectes)"]
[null,"26.37","Ereutophobie (rougir en public)"]
[null,"26.23","Faméophobie (faim)"]
[null,25,"Fétichisme"]
[null,"26.89","Fictophobie (fiction)"]
[null,41,"forteresse mentale"]
[null,43,"Fracture"]
[null,"26.69","Géphyrophobie (ponts et passerelles)"]
[null,"26.61","Gérascophobie (vieillir)"]
[null,"26.62","Germophobie (germes)"]
[null,"26.38","Glossophobie (parler en public)"]
[null,16,"Gourmandise","Le P.J. ne cesse de vouloir manger et fait référence à la nourriture sans arrêt."]
[null,"26.82","Haberepuerophobie (avoir des enfants)"]
[null,38,"Handiphilie extrême"]
[null,"26.39","Haptophobie (être touché)"]
[null,"26.24","Héliophobie (soleil)"]
[null,"26.63","Hématophobie (sang)"]
[null,"26.75","Hexakosioihexekontahexaphobie (666)"]
[null,"26.76","Hippopotomonstrosesquippedaliophobie (mots trop long)"]
[null,"26.25","Hylophobie (forêts)"]
[null,"26.55","Hypéglaphobie (responsabilités)"]
[null,1,"Hypocondrie","Le P.J. ne cesse de croire qu’il est malade et multiplie les examen médicaux inutiles. Tous les frais médicaux que paie le personnage sont multiplié par deux."]
[null,"26.92","Indumantofficiodigniatiphobie (corstumes)"]
[null,"26.3","Indutolateremophobie (habits à carreaux)"]
[null,47,"Infection"]
[null,11,"Insomnie","Le personnage est insomniaque. Ses nuits sont courtes et de mauvaise qualité. Se reposant mal, toute ses récupérations sont divisée par deux."]
[null,44,"Irradiation"]
[null,"26.40","Ithyphalophobie (pénis en érection)"]
[null,10,"Jambe de bois","Le P.J. est handicapé, il lui manque un membre choisi par le joueur et détient une prothèse pour le remplacer. Le personnage subit -20 Agilité."]
[null,"26.49","Junkophobie (ordures)"]
[null,3,"L’achluophobie","Le P.J. est achluophobe (il a peur du noir). L’intensité de ce désavantage augmente en fonction de la santé mentale du personnage. La présence de l’obscurité lui procure : horreur 0/1d4."]
[null,9,"L’amaxophobie","Le P.J. est amaxophobe (peur de la vitesse en conduite). Ce désavantage évolue en fonction de la santé mentale du personnage. La vitesse procure au joueur une horreur 0/1d3."]
[null,2,"L’obsession parentale","Le P.J. est obsédé par son père. Il ne cesse d’y faire référence en toutes circonstances."]
[null,8,"L’obsession sexuelle","La sexualité du personnage doit être choisie par le joueur à la création. Ce désavantage rend le P.J. esclave de ses pulsions sexuelles et il sera plus dur pour lui que pour le reste de la population de les refréner. L’intensité de ce désavantage évolue en fonction de la santé mentale du personnage."]
[null,4,"La nanopabulophobie","Le P.J. est nanopabulophobe (il a peur des nains de jardin à brouette). L’intensité de ce désavantage augmente en fonction de la santé mentale du personnage. Le sentiment de présence ou la vision d’un nain de jardin à brouette lui procure : horreur 0/1d6."]
[null,7,"La personnalité multiple","Le P.J. change de personnalité dans certaines conditions. Les personnalités et les conditions sont désignés à l’obtention de ce désavantage."]
[null,5,"La phobie des habits à carreaux","L’intensité de ce désavantage augmente en fonction de la santé mentale du personnage. La vision de ces vêtements provoque une horreur 0/1d4 et leur port provoque : horreur 0/1d8."]
[null,6,"La schizophrénie","Le P.J. entend les discussion H.R.P. que font les joueurs entre eux dans sa tête depuis toujours sans savoir d’où elles proviennent. L’intensité de ce désavantage évolue en fonction de la santé mentale du personnage."]
[null,"26.26","Lilapsophobie (tornades)"]
[null,31,"Manies"]
[null,"36.2","Mégalomanie (invincible)"]
[null,"36.1","Mégalomanie (seigneur)"]
[null,"26.87","Mickaelophobie (vengeance)"]
[null,64,"mort"]
[null,"26.65","Motophobie (conduite de véhicules)"]
[null,12,"Muet","Le personnage est affublé d’un puissant défaut de langage. Le personnage subit -20 Influence."]
[null,"26.81","Murmuratophobie (murmures)"]
[null,"26.27","Mycophobie (champignons)"]
[null,27,"Mythomanie"]
[null,"26.70","Nanopabulophobie (nais de jardin à brouette)"]
[null,35,"Narcissisme "]
[null,"26.64","Nécrophobie (cadavres)"]
[null,"26.18","Néophobie (nouveautés)"]
[null,"26.71","Nomophobie (séparé de son téléphone)"]
[null,"26.72","Nosocoméphobie (hôpital)"]
[null,"26.13","Nosophobie (maladie)"]
[null,"26.14","Nudophobie (nudité)"]
[null,"26.77","Occuliophobie (atteintes aux yeux)"]
[null,"26.100","Occultarumorphobie (occulte et magie)"]
[null,"26.12","Ochlophobie (foule)"]
[null,"26.80","Operuitophobie (couverts)"]
[null,50,"Paralysie"]
[null,"23.6","Paranoïa (canard caché)"]
[null,"23.2","Paranoïa (humains remplacés)"]
[null,"23.5","Paranoïa (matrix)"]
[null,"23.1","Paranoïa (meurtier caché)"]
[null,"23.4","Paranoïa (vol)"]
[null,"26.96","Paraphylophobie (pratiques sexuelles différentes)"]
[null,"26.90","Pharmacophobie (drogues)"]
[null,"26.11","Philophobie (relations amoureuses)"]
[null,"26.10","Phobophobie (peur d'avoir peur)"]
[null,20,"Pingre","Le P.J. est radin et essayera d’arnaquer tout le monde et n’aime pas partager."]
[null,"26.78","Puerphobie (enfants)"]
[null,"26.88","Pulchritudophobie (beauté)"]
[null,"26.85","Quodstultusophobie (être stupide)"]
[null,"26.84","Riderephobie (sourires)"]
[null,"26.79","Rosophobie (rose)"]
[null,"26.50","Salutatiophobie (salutations)"]
[null,21,"Schizophrénie"]
[null,49,"SIDA"]
[null,"26.1","Sinistrophobie (tourner à gauche)"]
[null,24,"Sociopathie"]
[null,"26.9","Spélaionophobie (cavernes)"]
[null,22,"SPT"]
[null,"26.8","Stasophobie (d'avoir à rester debout)"]
[null,"26.91","Sumumophobie (chefs)"]
[null,"29.4","Syndrome de Cotard (goule)"]
[null,"29.6","Syndrome de Cotard (organe externe)"]
[null,"29.5","Syndrome de Cotard (organe interne)"]
[null,"29.3","Syndrome de Cotard (spectre)"]
[null,"29.1","Syndrome de Cotard (vampire)"]
[null,"29.2","Syndrome de Cotard (zombie)"]
[null,48,"Syphilis"]
[null,"26.4","Technologie (composants informatiques)"]
[null,"26.7","Téléphonophobie (téléconications vocales)"]
[null,32,"Troubles Bipolaires"]
[null,33,"Troubles dissociatifs de la personnalité"]
[null,"34.1","Troubles du comportement alimentaire (anorexie)"]
[null,"34.2","Troubles du comportement alimentaire (boulimie)"]
[null,"34.5","Troubles du comportement alimentaire (cannibalisme compulsif)"]
[null,"34.4","Troubles du comportement alimentaire (obsession alimentaire)"]
[null,"34.3","Troubles du comportement alimentaire (pica)"]
[null,"37.7","Troubles du sommeil (cauchemars récurrents)"]
[null,"37.2","Troubles du sommeil (hypersomnie)"]
[null,"37.1","Troubles du sommeil (insomnie)"]
[null,"37.6","Troubles du sommeil (narcolepsie)"]
[null,"37.3","Troubles du sommeil (paralysie du sommeil)"]
[null,"37.8","Troubles du sommeil (rêves lointains)"]
[null,"37.5","Troubles du sommeil (somnambulisme)"]
[null,"37.4","Troubles du sommeil (terreurs nocturnes)"]
[null,"26.41","Victoriaphobie (succès)"]

{"sheet":"caractéritiques","index":4,"n_rows":24,"n_cols":14,"rows_kept":24,"cut":false,"hidden":false,"merged":[[4,9,4,10],[5,9,5,10],[13,1,14,7],[18,1,18,7],[20,1,21,7]]}
[]
[]
[]
[]
[null,"Caractéristiques","Force","Agilité","Perception","Volonté","Intelligence","Influence",null,"valeur naturelle max",null,{"$f":"IF(info_perso!D2=\"pirate céfrite\",\"Force max\",\" \")","v":" "}]
[null,"base créa",null,null,null,null,null,null,null,{"$f":"IF(info_perso!D2=\"klobto\",200,95)","v":95},null,{"$f":"IF(info_perso!D2=\"pirate céfrite\",110,\" \")","v":" "},"type xp","coût évolution"]
[null,"bonus",{"$f":"IF(OR(info_perso!$B$15=\"Fort comme un boeuf\",info_perso!$B$16=\"Fort comme un boeuf\",info_perso!$B$17=\"Fort comme un boeuf\",info_perso!$B$18=\"Fort comme un boeuf\"),10,0)+IF(info_perso!D2=\"pirate céfrite\",20,0)","v":0},{"$f":"équipement!J22+IF(OR(info_perso!$B$15=\"Agile comme un chat\",info_perso!$B$16=\"Agile comme un chat\",info_perso!$B$17=\"Agile comme un chat\",info_perso!$B$18=\"Agile comme un chat\"),10,0)+IF(OR(info_perso!$H$11=\"Jambe de bois\",info_perso!$H$12=\"Jambe de bois\",info_perso!$H$13=\"Jambe de bois\",info_perso!$H$14=\"Jambe de bois\",info_perso!$H$15=\"Jambe de bois\",info_perso!$H$16=\"Jambe de bois\"),-20,0)","v":0},{"$f":"IF(OR(info_perso!$B$15=\"OEil de lynx\",info_perso!$B$16=\"OEil de lynx\",info_perso!$B$17=\"OEil de lynx\",info_perso!$B$18=\"OEil de lynx\"),10,0)","v":0},{"$f":"IF(OR(info_perso!$B$15=\"Têtu comme une mule\",info_perso!$B$16=\"Têtu comme une mule\",info_perso!$B$17=\"Têtu comme une mule\",info_perso!$B$18=\"Têtu comme une mule\"),10,0)","v":0},{"$f":"IF(OR(info_perso!$B$15=\"Malin comme un singe\",info_perso!$B$16=\"Malin comme un singe\",info_perso!$B$17=\"Malin comme un singe\",info_perso!$B$18=\"Malin comme un singe\"),10,0)+IF(OR(info_perso!$H$11=\"Débilité\",info_perso!$H$12=\"Débilité\",info_perso!$H$13=\"Débilité\",info_perso!$H$14=\"Débilité\",info_perso!$H$15=\"Débilité\",info_perso!$H$16=\"Débilité\"),-20,0)+IF(info_perso!D2=\"pirate céfrite\",-50,0)","v":0},{"$f":"IF(OR(info_perso!$B$15=\"Tisseur de toile\",info_perso!$B$16=\"Tisseur de toile\",info_perso!$B$17=\"Tisseur de toile\",info_perso!$B$18=\"Tisseur de toile\"),10,0)+IF(OR(info_perso!$H$11=\"Muet\",info_perso!$H$12=\"Muet\",info_perso!$H$13=\"Muet\",info_perso!$H$14=\"Muet\",info_perso!$H$15=\"Muet\",info_perso!$H$16=\"Muet\"),-20,0)","v":0},null,null,null,null,"xp normal",2]
[null,"évo normale",null,null,null,null,null,null,null,null,null,null,"xp occulte",6]
[null,"total naturel",{"$f":"IF(info_perso!D2=\"pirate céfrite\",MIN(L6,SUM(C6:C8)),MIN($J6, SUM(C6:C8)))","v":0},{"$f":"MIN($J6, SUM(D6:D8))","v":0},0,0,0,0,null,null,null,null,"xp parapsy",8]
[null,"occulte"]
[null,"parapsy"]
[null,"bonus parapsy",{"$f":"IF(pouvoirs!X37=\"membre rétractable\",-10,IF(pouvoirs!X45=\"pince du crabe\",-10,))","v":0},{"$f":"IF(pouvoirs!X21=\"marteau de Thor\",-30,IF(pouvoirs!X37=\"lame secrète\",-30,IF(pouvoirs!X37=\"lame de sang\",-10,)))","v":0},{"$f":"(IF(pouvoirs!X11=\"vision d'insecte\",20,IF(pouvoirs!X11=\"vision ultime\",-20,0)))+SUMIF(pouvoirs!C11:C79,\"*pestillence*\",pouvoirs!K11:K79)+SUMIF(pouvoirs!X10:X57,\"*pestillence*\",pouvoirs!AF10:AF57)+(IF(pouvoirs!X11=\"vision ultime\",IF(pouvoirs!AG11=\"oui\",pouvoirs!AF11,0),0))","v":0},null,null,{"$f":"IF(pouvoirs!X37=\"sangsue\",-10,)","v":0}]
[null,"total",{"$f":"SUM(C9:C12)","v":0},{"$f":"SUM(D9:D12)","v":0},0,0,0,0]
[]
[]
[null,"efforts","Force","Agilité","Perception","Volonté","Intelligence","Influence"]
[null,"max",{"$f":"C13","v":0},{"$f":"D13","v":0},0,0,0,0]
[null,"en cours"]
[]
[null,"Récup / jour",{"$f":"CEILING(C17*0.75, 1)","v":0},{"$f":"CEILING(D17*0.75, 1)","v":0},0,0,0,0]
[]
[]
[null,"demi",{"$f":"CEILING(C17/2, 1)","v":0},{"$f":"CEILING(D17/2, 1)","v":0},0,0,0,0]
[null,"cinquième",{"$f":"CEILING(C17/5, 1)","v":0},{"$f":"CEILING(D17/5, 1)","v":0},0,0,0,0]

{"sheet":"compétences","index":5,"n_rows":65,"n_cols":21,"rows_kept":65,"cut":false,"hidden":false,"merged":[[1,19,1,20],[2,19,2,20],[0,15,5,16],[0,17,5,17]]}
[null,null,null,null,null,null,null,null,null,null,null,null,null,null,null,{"$f":"IF(R1=1,2,IF(R1=2,1,IF(R1=3,0.5,IF(R1=4,0.2,1))))","v":1},null,2]
[null,null,null,null,null,null,null,null,null,null,null,null,null,"Jet",{"$f":"info_perso!O18","v":65},null,null,null,null,"max compétence naturel"]
[null,"Influence","base carac","xp naturel","bonus","valeur naturelle","base carac occulte","occulte","base carac parapsy","parapsy","bonus parapsy","total","demi","cinquième","MR",null,null,null,null,{"$f":"IF(info_perso!D2=\"cultiste des docks\",80,IF(info_perso!D2=\"klobto\",200,90))","v":90}]
[null,"baratin",{"$f":"CEILING((caractéritiques!$H$9/2),1)","v":0},null,{"$f":"IF(OR(info_perso!$B$15=\"L’acteur\",info_perso!$B$16=\"L’acteur\",info_perso!$B$17=\"L’acteur\",info_perso!$B$18=\"L’acteur\"),5,0)+IF(info_perso!$D$2=\"Enfant des rues\",20,0)+IF(info_perso!$D$2=\"Policier\",-20,0)+IF(info_perso!$D$2=\"Prostitué\",30,0)+IF(info_perso!$D$2=\"Militaire\",-30,0)","v":0},{"$f":"MIN($T$3, C4+D4+E4)","v":0},{"$f":"CEILING((caractéritiques!$H$10/2),1)","v":0},null,{"$f":"CEILING(((caractéritiques!$H$11+caractéritiques!$H$12)/2),1)","v":0},null,null,{"$f":"SUM(F4:K4)","v":0},{"$f":"CEILING(L4/2, 1)","v":0},{"$f":"CEILING(L4/5, 1)","v":0},{"$f":"IF(caractéritiques!$H$18<caractéritiques!$H$24,IF(CEILING(compétences!N4*$P$1,1)<compétences!$O$2,\"Echec \"&CEILING(compétences!N4*$P$1,1)-compétences!$O$2,CEILING(compétences!N4*$P$1,1)-compétences!$O$2),IF(caractéritiques!$H$18<caractéritiques!$H$23,IF(CEILING(compétences!M4*$P$1,1)<compétences!$O$2,\"Echec \"&CEILING(compétences!M4*$P$1,1)-compétences!$O$2,CEILING(compétences!M4*$P$1,1)-compétences!$O$2),IF(CEILING(compétences!L4*$P$1,1)<compétences!$O$2,\"Echec \"&CEILING(compétences!L4*$P$1,1)-compétences!$O$2,CEILING(compétences!L4*$P$1,1)-compétences!$O$2)))","v":"Echec -65"}]
[null,"négociation",{"$f":"CEILING((caractéritiques!$H$9/2),1)","v":0},null,{"$f":"IF(OR(info_perso!$B$15=\"Le stratego\",info_perso!$B$16=\"Le stratego\",info_perso!$B$17=\"Le stratego\",info_perso!$B$18=\"Le stratego\"),5,0)+IF(info_perso!$D$2=\"Enfant des rues\",-20,0)+IF(info_perso!$D$2=\"Policier\",-20,0)+IF(info_perso!D2=\"foot\",30,0)","v":0},0,{"$f":"CEILING((caractéritiques!$H$10/2),1)","v":0},null,{"$f":"CEILING(((caractéritiques!$H$11+caractéritiques!$H$12)/2),1)","v":0},null,null,{"$f":"SUM(F5:K5)","v":0},{"$f":"CEILING(L5/2, 1)","v":0},{"$f":"CEILING(L5/5, 1)","v":0},{"$f":"IF(caractéritiques!$H$18<caractéritiques!$H$24,IF(CEILING(compétences!N5*$P$1,1)<compétences!$O$2,\"Echec \"&CEILING(compétences!N5*$P$1,1)-compétences!$O$2,CEILING(compétences!N5*$P$1,1)-compétences!$O$2),IF(caractéritiques!$H$18<caractéritiques!$H$23,IF(CEILING(compétences!M5*$P$1,1)<compétences!$O$2,\"Echec \"&CEILING(compétences!M5*$P$1,1)-compétences!$O$2,CEILING(compétences!M5*$P$1,1)-compétences!$O$2),IF(CEILING(compétences!L5*$P$1,1)<compétences!$O$2,\"Echec \"&CEILING(compétences!L5*$P$1,1)-compétences!$O$2,CEILING(compétences!L5*$P$1,1)-compétences!$O$2)))","v":"Echec -65"}]
[null,"représentation",{"$f":"CEILING((caractéritiques!$H$9/2),1)","v":0},null,{"$f":"IF(OR(info_perso!$B$15=\"L’acteur\",info_perso!$B$16=\"L’acteur\",info_perso!$B$17=\"L’acteur\",info_perso!$B$18=\"L’acteur\"),5,0)+IF(info_perso!$D$2=\"Enfant des rues\",20,0)+IF(info_perso!$D$2=\"Policier\",-20,0)+IF(info_perso!$D$2=\"Prostitué\",30,0)+IF(info_perso!$D$2=\"Militaire\",-30,0)+IF(info_perso!D2=\"foot\",30,0)","v":0},0,{"$f":"CEILING((caractéritiques!$H$10/2),1)","v":0},null,{"$f":"CEILING(((caractéritiques!$H$11+caractéritiques!$H$12)/2),1)","v":0},null,null,0,0,0,{"$f":"IF(caractéritiques!$H$18<caractéritiques!$H$24,IF(CEILING(compétences!N6*$P$1,1)<compétences!$O$2,\"Echec \"&CEILING(compétences!N6*$P$1,1)-compétences!$O$2,CEILING(compétences!N6*$P$1,1)-compétences!$O$2),IF(caractéritiques!$H$18<caractéritiques!$H$23,IF(CEILING(compétences!M6*$P$1,1)<compétences!$O$2,\"Echec \"&CEILING(compétences!M6*$P$1,1)-compétences!$O$2,CEILING(compétences!M6*$P$1,1)-compétences!$O$2),IF(CEILING(compétences!L6*$P$1,1)<compétences!$O$2,\"Echec \"&CEILING(compétences!L6*$P$1,1)-compétences!$O$2,CEILING(compétences!L6*$P$1,1)-compétences!$O$2)))","v":"Echec -65"},null,null,null,null,"type xp","coût évolution"]
[null,"étiquette",{"$f":"CEILING((caractéritiques!$H$9/2),1)","v":0},null,{"$f":"IF(OR(info_perso!$B$15=\"Le stratego\",info_perso!$B$16=\"Le stratego\",info_perso!$B$17=\"Le stratego\",info_perso!$B$18=\"Le stratego\"),5,0)+IF(info_perso!$D$2=\"Homme de main\",-30,0)+IF(info_perso!$D$2=\"Clown\",-30,0)+IF(info_perso!$D$2=\"Prostitué\",20,0)+IF(info_perso!$D$2=\"Tueur à gage\",-30,0)","v":0},0,{"$f":"CEILING((caractéritiques!$H$10/2),1)","v":0},null,{"$f":"CEILING(((caractéritiques!$H$11+caractéritiques!$H$12)/2),1)","v":0},null,null,0,0,0,{"$f":"IF(caractéritiques!$H$18<caractéritiques!$H$24,IF(CEILING(compétences!N7*$P$1,1)<compétences!$O$2,\"Echec \"&CEILING(compétences!N7*$P$1,1)-compétences!$O$2,CEILING(compétences!N7*$P$1,1)-compétences!$O$2),IF(caractéritiques!$H$18<caractéritiques!$H$23,IF(CEILING(compétences!M7*$P$1,1)<compétences!$O$2,\"Echec \"&CEILING(compétences!M7*$P$1,1)-compétences!$O$2,CEILING(compétences!M7*$P$1,1)-compétences!$O$2),IF(CEILING(compétences!L7*$P$1,1)<compétences!$O$2,\"Echec \"&CEILING(compétences!L7*$P$1,1)-compétences!$O$2,CEILING(compétences!L7*$P$1,1)-compétences!$O$2)))","v":"Echec -65"},null," ",null,null,"normal",1]
[null,"connaissances sociales",{"$f":"CEILING((caractéritiques!$H$9/2),1)","v":0},null,{"$f":"IF(OR(info_perso!$D$2=\"Homme de main\",info_perso!D2=\"membre de la toile\"),30,0)","v":0},0,{"$f":"CEILING((caractéritiques!$H$10/2),1)","v":0},null,{"$f":"CEILING(((caractéritiques!$H$11+caractéritiques!$H$12)/2),1)","v":0},null,null,0,0,0,{"$f":"IF(caractéritiques!$H$18<caractéritiques!$H$24,IF(CEILING(compétences!N8*$P$1,1)<compétences!$O$2,\"Echec \"&CEILING(compétences!N8*$P$1,1)-compétences!$O$2,CEILING(compétences!N8*$P$1,1)-compétences!$O$2),IF(caractéritiques!$H$18<caractéritiques!$H$23,IF(CEILING(compétences!M8*$P$1,1)<compétences!$O$2,\"Echec \"&CEILING(compétences!M8*$P$1,1)-compétences!$O$2,CEILING(compétences!M8*$P$1,1)-compétences!$O$2),IF(CEILING(compétences!L8*$P$1,1)<compétences!$O$2,\"Echec \"&CEILING(compétences!L8*$P$1,1)-compétences!$O$2,CEILING(compétences!L8*$P$1,1)-compétences!$O$2)))","v":"Echec -65"},null,null,null,null,"occulte",3]
[null,"commandement",{"$f":"CEILING((caractéritiques!$H$9/2),1)","v":0},null,{"$f":"IF(OR(info_perso!$B$15=\"Le stratego\",info_perso!$B$16=\"Le stratego\",info_perso!$B$17=\"Le stratego\",info_perso!$B$18=\"Le stratego\"),5,0)+IF(info_perso!$D$2=\"Enfant des rues\",-30,0)+IF(info_perso!$D$2=\"Militaire\",30,0)","v":0},0,{"$f":"CEILING((caractéritiques!$H$10/2),1)","v":0},null,{"$f":"CEILING(((caractéritiques!$H$11+caractéritiques!$H$12)/2),1)","v":0},null,null,0,0,0,{"$f":"IF(caractéritiques!$H$18<caractéritiques!$H$24,IF(CEILING(compétences!N9*$P$1,1)<compétences!$O$2,\"Echec \"&CEILING(compétences!N9*$P$1,1)-compétences!$O$2,CEILING(compétences!N9*$P$1,1)-compétences!$O$2),IF(caractéritiques!$H$18<caractéritiques!$H$23,IF(CEILING(compétences!M9*$P$1,1)<compétences!$O$2,\"Echec \"&CEILING(compétences!M9*$P$1,1)-compétences!$O$2,CEILING(compétences!M9*$P$1,1)-compétences!$O$2),IF(CEILING(compétences!L9*$P$1,1)<compétences!$O$2,\"Echec \"&CEILING(compétences!L9*$P$1,1)-compétences!$O$2,CEILING(compétences!L9*$P$1,1)-compétences!$O$2)))","v":"Echec -65"},null,null,null,null,"parapsy",4]
[null,"intimidation",{"$f":"CEILING((caractéritiques!$H$9/2),1)","v":0},null,{"$f":"IF(info_perso!$D$2=\"Enfant des rues\",-20,0)+IF(info_perso!$D$2=\"Homme de main\",30,0)+IF(info_perso!$D$2=\"Militaire\",30,0)","v":0},0,{"$f":"CEILING((caractéritiques!$H$10/2),1)","v":0},null,{"$f":"CEILING(((caractéritiques!$H$11+caractéritiques!$H$12)/2),1)","v":0},null,null,0,0,0,{"$f":"IF(caractéritiques!$H$18<caractéritiques!$H$24,IF(CEILING(compétences!N10*$P$1,1)<compétences!$O$2,\"Echec \"&CEILING(compétences!N10*$P$1,1)-compétences!$O$2,CEILING(compétences!N10*$P$1,1)-compétences!$O$2),IF(caractéritiques!$H$18<caractéritiques!$H$23,IF(CEILING(compétences!M10*$P$1,1)<compétences!$O$2,\"Echec \"&CEILING(compétences!M10*$P$1,1)-compétences!$O$2,CEILING(compétences!M10*$P$1,1)-compétences!$O$2),IF(CEILING(compétences!L10*$P$1,1)<compétences!$O$2,\"Echec \"&CEILING(compétences!L10*$P$1,1)-compétences!$O$2,CEILING(compétences!L10*$P$1,1)-compétences!$O$2)))","v":"Echec -65"}]
[null,"pathos",{"$f":"CEILING((caractéritiques!$H$9/2),1)","v":0},null,{"$f":"IF(info_perso!$D$2=\"Enfant des rues\",20,0)+IF(info_perso!$D$2=\"Homme de main\",-20,0)+IF(info_perso!$D$2=\"Clown\",-30,0)+IF(info_perso!$D$2=\"Militaire\",-30,0)+IF(info_perso!D2=\"foot\",30,0)","v":0},0,{"$f":"CEILING((caractéritiques!$H$10/2),1)","v":0},null,{"$f":"CEILING(((caractéritiques!$H$11+caractéritiques!$H$12)/2),1)","v":0},null,null,0,0,0,{"$f":"IF(caractéritiques!$H$18<caractéritiques!$H$24,IF(CEILING(compétences!N11*$P$1,1)<compétences!$O$2,\"Echec \"&CEILING(compétences!N11*$P$1,1)-compétences!$O$2,CEILING(compétences!N11*$P$1,1)-compétences!$O$2),IF(caractéritiques!$H$18<caractéritiques!$H$23,IF(CEILING(compétences!M11*$P$1,1)<compétences!$O$2,\"Echec \"&CEILING(compétences!M11*$P$1,1)-compétences!$O$2,CEILING(compétences!M11*$P$1,1)-compétences!$O$2),IF(CEILING(compétences!L11*$P$1,1)<compétences!$O$2,\"Echec \"&CEILING(compétences!L11*$P$1,1)-compétences!$O$2,CEILING(compétences!L11*$P$1,1)-compétences!$O$2)))","v":"Echec -65"}]
[null,"persuasion",{"$f":"CEILING((caractéritiques!$H$9/2),1)","v":0},null,{"$f":"IF(info_perso!$D$2=\"Policier\",30,0)+IF(info_perso!D2=\"foot\",30,0)","v":0},0,{"$f":"CEILING((caractéritiques!$H$10/2),1)","v":0},null,{"$f":"CEILING(((caractéritiques!$H$11+caractéritiques!$H$12)/2),1)","v":0},null,null,0,0,0,{"$f":"IF(caractéritiques!$H$18<caractéritiques!$H$24,IF(CEILING(compétences!N12*$P$1,1)<compétences!$O$2,\"Echec \"&CEILING(compétences!N12*$P$1,1)-compétences!$O$2,CEILING(compétences!N12*$P$1,1)-compétences!$O$2),IF(caractéritiques!$H$18<caractéritiques!$H$23,IF(CEILING(compétences!M12*$P$1,1)<compétences!$O$2,\"Echec \"&CEILING(compétences!M12*$P$1,1)-compétences!$O$2,CEILING(compétences!M12*$P$1,1)-compétences!$O$2),IF(CEILING(compétences!L12*$P$1,1)<compétences!$O$2,\"Echec \"&CEILING(compétences!L12*$P$1,1)-compétences!$O$2,CEILING(compétences!L12*$P$1,1)-compétences!$O$2)))","v":"Echec -65"}]
[null,"déguisement",{"$f":"CEILING((caractéritiques!$H$9/2),1)","v":0},null,{"$f":"IF(OR(info_perso!$B$15=\"Le passionné du treillis\",info_perso!$B$16=\"Le passionné du treillis\",info_perso!$B$17=\"Le passionné du treillis\",info_perso!$B$18=\"Le passionné du treillis\"),5,0)","v":0},0,{"$f":"CEILING((caractéritiques!$H$10/2),1)","v":0},null,{"$f":"CEILING(((caractéritiques!$H$11+caractéritiques!$H$12)/2),1)","v":0},null,null,0,0,0,{"$f":"IF(caractéritiques!$H$18<caractéritiques!$H$24,IF(CEILING(compétences!N13*$P$1,1)<compétences!$O$2,\"Echec \"&CEILING(compétences!N13*$P$1,1)-compétences!$O$2,CEILING(compétences!N13*$P$1,1)-compétences!$O$2),IF(caractéritiques!$H$18<caractéritiques!$H$23,IF(CEILING(compétences!M13*$P$1,1)<compétences!$O$2,\"Echec \"&CEILING(compétences!M13*$P$1,1)-compétences!$O$2,CEILING(compétences!M13*$P$1,1)-compétences!$O$2),IF(CEILING(compétences!L13*$P$1,1)<compétences!$O$2,\"Echec \"&CEILING(compétences!L13*$P$1,1)-compétences!$O$2,CEILING(compétences!L13*$P$1,1)-compétences!$O$2)))","v":"Echec -65"}]
[null,"charme",{"$f":"CEILING((caractéritiques!$H$9/2),1)","v":0},null,{"$f":"IF(info_perso!$D$2=\"Clown\",-30,0)+IF(info_perso!$D$2=\"Prostitué\",30,0)+IF(info_perso!D2=\"hacker\",-30,0)","v":0},0,{"$f":"CEILING((caractéritiques!$H$10/2),1)","v":0},null,{"$f":"CEILING(((caractéritiques!$H$11+caractéritiques!$H$12)/2),1)","v":0},null,null,0,0,0,{"$f":"IF(caractéritiques!$H$18<caractéritiques!$H$24,IF(CEILING(compétences!N14*$P$1,1)<compétences!$O$2,\"Echec \"&CEILING(compétences!N14*$P$1,1)-compétences!$O$2,CEILING(compétences!N14*$P$1,1)-compétences!$O$2),IF(caractéritiques!$H$18<caractéritiques!$H$23,IF(CEILING(compétences!M14*$P$1,1)<compétences!$O$2,\"Echec \"&CEILING(compétences!M14*$P$1,1)-compétences!$O$2,CEILING(compétences!M14*$P$1,1)-compétences!$O$2),IF(CEILING(compétences!L14*$P$1,1)<compétences!$O$2,\"Echec \"&CEILING(compétences!L14*$P$1,1)-compétences!$O$2,CEILING(compétences!L14*$P$1,1)-compétences!$O$2)))","v":"Echec -65"}]
[null,"style",{"$f":"CEILING((caractéritiques!$H$9/2),1)","v":0},null,{"$f":"IF(info_perso!$D$2=\"Clown\",-30,0)","v":0},0,{"$f":"CEILING((caractéritiques!$H$10/2),1)","v":0},null,{"$f":"CEILING(((caractéritiques!$H$11+caractéritiques!$H$12)/2),1)","v":0},null,null,0,0,0,{"$f":"IF(caractéritiques!$H$18<caractéritiques!$H$24,IF(CEILING(compétences!N15*$P$1,1)<compétences!$O$2,\"Echec \"&CEILING(compétences!N15*$P$1,1)-compétences!$O$2,CEILING(compétences!N15*$P$1,1)-compétences!$O$2),IF(caractéritiques!$H$18<caractéritiques!$H$23,IF(CEILING(compétences!M15*$P$1,1)<compétences!$O$2,\"Echec \"&CEILING(compétences!M15*$P$1,1)-compétences!$O$2,CEILING(compétences!M15*$P$1,1)-compétences!$O$2),IF(CEILING(compétences!L15*$P$1,1)<compétences!$O$2,\"Echec \"&CEILING(compétences!L15*$P$1,1)-compétences!$O$2,CEILING(compétences!L15*$P$1,1)-compétences!$O$2)))","v":"Echec -65"}]
[]
[]
[null,"Agilité","base carac","xp naturel","bonus","valeur naturelle","base carac occulte","occulte","base carac parapsy","parapsy","bonus parapsy","total","demi","cinquième","MR"]
[null,"athlétisme",{"$f":"CEILING((caractéritiques!$D$9/2),1)","v":0},null,{"$f":"IF(OR(info_perso!$B$15=\"Le champion d'EPS\",info_perso!$B$16=\"Le champion d'EPS\",info_perso!$B$17=\"Le champion d'EPS\",info_perso!$B$18=\"Le champion d'EPS\"),10,IF(OR(info_perso!$B$15=\"Le voleur\",info_perso!$B$16=\"Le voleur\",info_perso!$B$17=\"Le voleur\",info_perso!$B$18=\"Le voleur\"),5,0))+IF(info_perso!$D$2=\"Prostitué\",20,0)","v":0},{"$f":"MIN($T$3, C19+D19+E19)","v":0},{"$f":"CEILING((caractéritiques!$D$10/2),1)","v":0},null,{"$f":"CEILING(((caractéritiques!$D$11+caractéritiques!$D$12)/2),1)","v":0},null,null,{"$f":"SUM(F19:K19)","v":0},0,0,{"$f":"IF(caractéritiques!$D$18<caractéritiques!$D$24,IF(CEILING(compétences!N19*$P$1,1)<compétences!$O$2,\"Echec \"&CEILING(compétences!N19*$P$1,1)-compétences!$O$2,CEILING(compétences!N19*$P$1,1)-compétences!$O$2),IF(caractéritiques!$D$18<caractéritiques!$D$23,IF(CEILING(compétences!M19*$P$1,1)<compétences!$O$2,\"Echec \"&CEILING(compétences!M19*$P$1,1)-compétences!$O$2,CEILING(compétences!M19*$P$1,1)-compétences!$O$2),IF(CEILING(compétences!L19*$P$1,1)<compétences!$O$2,\"Echec \"&CEILING(compétences!L19*$P$1,1)-compétences!$O$2,CEILING(compétences!L19*$P$1,1)-compétences!$O$2)))","v":"Echec -65"}]
[null,"esquive",{"$f":"CEILING((caractéritiques!$D$9/2),1)","v":0},null,{"$f":"IF(OR(info_perso!$B$15=\"Le street fighter\",info_perso!$B$16=\"Le street fighter\",info_perso!$B$17=\"Le street fighter\",info_perso!$B$18=\"Le street fighter\"),5,0)+IF(info_perso!$D$2=\"Enfant des rues\",20,0)+IF(info_perso!$D$2=\"Tueur à gage\",20,0)+IF(info_perso!D2=\"pirate céfrite\",30,0)","v":0},0,{"$f":"CEILING((caractéritiques!$D$10/2),1)","v":0},null,{"$f":"CEILING(((caractéritiques!$D$11+caractéritiques!$D$12)/2),1)","v":0},null,null,{"$f":"SUM(F20:K20)","v":0},0,0,{"$f":"IF(caractéritiques!$D$18<caractéritiques!$D$24,IF(CEILING(compétences!N20*$P$1,1)<compétences!$O$2,\"Echec \"&CEILING(compétences!N20*$P$1,1)-compétences!$O$2,CEILING(compétences!N20*$P$1,1)-compétences!$O$2),IF(caractéritiques!$D$18<caractéritiques!$D$23,IF(CEILING(compétences!M20*$P$1,1)<compétences!$O$2,\"Echec \"&CEILING(compétences!M20*$P$1,1)-compétences!$O$2,CEILING(compétences!M20*$P$1,1)-compétences!$O$2),IF(CEILING(compétences!L20*$P$1,1)<compétences!$O$2,\"Echec \"&CEILING(compétences!L20*$P$1,1)-compétences!$O$2,CEILING(compétences!L20*$P$1,1)-compétences!$O$2)))","v":"Echec -65"}]
[null,"escalade",{"$f":"CEILING((caractéritiques!$D$9/2),1)","v":0},null,null,0,{"$f":"CEILING((caractéritiques!$D$10/2),1)","v":0},null,{"$f":"CEILING(((caractéritiques!$D$11+caractéritiques!$D$12)/2),1)","v":0},null,null,0,0,0,{"$f":"IF(caractéritiques!$D$18<caractéritiques!$D$24,IF(CEILING(compétences!N21*$P$1,1)<compétences!$O$2,\"Echec \"&CEILING(compétences!N21*$P$1,1)-compétences!$O$2,CEILING(compétences!N21*$P$1,1)-compétences!$O$2),IF(caractéritiques!$D$18<caractéritiques!$D$23,IF(CEILING(compétences!M21*$P$1,1)<compétences!$O$2,\"Echec \"&CEILING(compétences!M21*$P$1,1)-compétences!$O$2,CEILING(compétences!M21*$P$1,1)-compétences!$O$2),IF(CEILING(compétences!L21*$P$1,1)<compétences!$O$2,\"Echec \"&CEILING(compétences!L21*$P$1,1)-compétences!$O$2,CEILING(compétences!L21*$P$1,1)-compétences!$O$2)))","v":"Echec -65"}]
[null,"natation",{"$f":"CEILING((caractéritiques!$D$9/2),1)","v":0},null,null,0,{"$f":"CEILING((caractéritiques!$D$10/2),1)","v":0},null,{"$f":"CEILING(((caractéritiques!$D$11+caractéritiques!$D$12)/2),1)","v":0},null,null,0,0,0,{"$f":"IF(caractéritiques!$D$18<caractéritiques!$D$24,IF(CEILING(compétences!N22*$P$1,1)<compétences!$O$2,\"Echec \"&CEILING(compétences!N22*$P$1,1)-compétences!$O$2,CEILING(compétences!N22*$P$1,1)-compétences!$O$2),IF(caractéritiques!$D$18<caractéritiques!$D$23,IF(CEILING(compétences!M22*$P$1,1)<compétences!$O$2,\"Echec \"&CEILING(compétences!M22*$P$1,1)-compétences!$O$2,CEILING(compétences!M22*$P$1,1)-compétences!$O$2),IF(CEILING(compétences!L22*$P$1,1)<compétences!$O$2,\"Echec \"&CEILING(compétences!L22*$P$1,1)-compétences!$O$2,CEILING(compétences!L22*$P$1,1)-compétences!$O$2)))","v":"Echec -65"}]
[null,"discrétion",{"$f":"CEILING((caractéritiques!$D$9/2),1)","v":0},null,{"$f":"IF(OR(info_perso!$B$15=\"Le baroudeur\",info_perso!$B$16=\"Le baroudeur\",info_perso!$B$17=\"Le baroudeur\",info_perso!$B$18=\"Le baroudeur\",info_perso!$B$15=\"Le voleur\",info_perso!$B$16=\"Le voleur\",info_perso!$B$17=\"Le voleur\",info_perso!$B$18=\"Le voleur\"),5,0)+IF(info_perso!$D$2=\"Enfant des rues\",20,0)+IF(info_perso!$D$2=\"Tueur à gage\",20,0)+IF(OR(info_perso!D2=\"membre de la toile\",info_perso!D2=\"hacker\"),30,0)","v":0},0,{"$f":"CEILING((caractéritiques!$D$10/2),1)","v":0},null,{"$f":"CEILING(((caractéritiques!$D$11+caractéritiques!$D$12)/2),1)","v":0},null,null,0,0,0,{"$f":"IF(caractéritiques!$D$18<caractéritiques!$D$24,IF(CEILING(compétences!N23*$P$1,1)<compétences!$O$2,\"Echec \"&CEILING(compétences!N23*$P$1,1)-compétences!$O$2,CEILING(compétences!N23*$P$1,1)-compétences!$O$2),IF(caractéritiques!$D$18<caractéritiques!$D$23,IF(CEILING(compétences!M23*$P$1,1)<compétences!$O$2,\"Echec \"&CEILING(compétences!M23*$P$1,1)-compétences!$O$2,CEILING(compétences!M23*$P$1,1)-compétences!$O$2),IF(CEILING(compétences!L23*$P$1,1)<compétences!$O$2,\"Echec \"&CEILING(compétences!L23*$P$1,1)-compétences!$O$2,CEILING(compétences!L23*$P$1,1)-compétences!$O$2)))","v":"Echec -65"}]
[null,"larcin",{"$f":"CEILING((caractéritiques!$D$9/2),1)","v":0},null,{"$f":"IF(OR(info_perso!$B$15=\"Le voleur\",info_perso!$B$16=\"Le voleur\",info_perso!$B$17=\"Le voleur\",info_perso!$B$18=\"Le voleur\"),5,0)+IF(info_perso!$D$2=\"Enfant des rues\",20,0)+IF(info_perso!$D$2=\"Policier\",-20,0)+IF(info_perso!D2=\"foot\",-40,0)+IF(info_perso!D2=\"membre de la toile\",30,0)","v":0},0,{"$f":"CEILING((caractéritiques!$D$10/2),1)","v":0},null,{"$f":"CEILING(((caractéritiques!$D$11+caractéritiques!$D$12)/2),1)","v":0},null,null,0,0,0,{"$f":"IF(caractéritiques!$D$18<caractéritiques!$D$24,IF(CEILING(compétences!N24*$P$1,1)<compétences!$O$2,\"Echec \"&CEILING(compétences!N24*$P$1,1)-compétences!$O$2,CEILING(compétences!N24*$P$1,1)-compétences!$O$2),IF(caractéritiques!$D$18<caractéritiques!$D$23,IF(CEILING(compétences!M24*$P$1,1)<compétences!$O$2,\"Echec \"&CEILING(compétences!M24*$P$1,1)-compétences!$O$2,CEILING(compétences!M24*$P$1,1)-compétences!$O$2),IF(CEILING(compétences!L24*$P$1,1)<compétences!$O$2,\"Echec \"&CEILING(compétences!L24*$P$1,1)-compétences!$O$2,CEILING(compétences!L24*$P$1,1)-compétences!$O$2)))","v":"Echec -65"}]
[null,"danse",{"$f":"CEILING((caractéritiques!$D$9/2),1)","v":0},null,{"$f":"IF(OR(info_perso!$B$15=\"L’acteur\",info_perso!$B$16=\"L’acteur\",info_perso!$B$17=\"L’acteur\",info_perso!$B$18=\"L’acteur\"),5,0)+IF(info_perso!$D$2=\"Prostitué\",20,0)","v":0},0,{"$f":"CEILING((caractéritiques!$D$10/2),1)","v":0},null,{"$f":"CEILING(((caractéritiques!$D$11+caractéritiques!$D$12)/2),1)","v":0},null,null,0,0,0,{"$f":"IF(caractéritiques!$D$18<caractéritiques!$D$24,IF(CEILING(compétences!N25*$P$1,1)<compétences!$O$2,\"Echec \"&CEILING(compétences!N25*$P$1,1)-compétences!$O$2,CEILING(compétences!N25*$P$1,1)-compétences!$O$2),IF(caractéritiques!$D$18<caractéritiques!$D$23,IF(CEILING(compétences!M25*$P$1,1)<compétences!$O$2,\"Echec \"&CEILING(compétences!M25*$P$1,1)-compétences!$O$2,CEILING(compétences!M25*$P$1,1)-compétences!$O$2),IF(CEILING(compétences!L25*$P$1,1)<compétences!$O$2,\"Echec \"&CEILING(compétences!L25*$P$1,1)-compétences!$O$2,CEILING(compétences!L25*$P$1,1)-compétences!$O$2)))","v":"Echec -65"}]
[null,"ride",{"$f":"CEILING((caractéritiques!$D$9/2),1)","v":0},null,{"$f":"IF(info_perso!$D$2=\"Enfant des rues\",20,0)+IF(info_perso!$D$2=\"Policier\",-20,0)+IF(info_perso!$D$2=\"Tueur à gage\",-30,0)","v":0},0,{"$f":"CEILING((caractéritiques!$D$10/2),1)","v":0},null,{"$f":"CEILING(((caractéritiques!$D$11+caractéritiques!$D$12)/2),1)","v":0},null,null,0,0,0,{"$f":"IF(caractéritiques!$D$18<caractéritiques!$D$24,IF(CEILING(compétences!N26*$P$1,1)<compétences!$O$2,\"Echec \"&CEILING(compétences!N26*$P$1,1)-compétences!$O$2,CEILING(compétences!N26*$P$1,1)-compétences!$O$2),IF(caractéritiques!$D$18<caractéritiques!$D$23,IF(CEILING(compétences!M26*$P$1,1)<compétences!$O$2,\"Echec \"&CEILING(compétences!M26*$P$1,1)-compétences!$O$2,CEILING(compétences!M26*$P$1,1)-compétences!$O$2),IF(CEILING(compétences!L26*$P$1,1)<compétences!$O$2,\"Echec \"&CEILING(compétences!L26*$P$1,1)-compétences!$O$2,CEILING(compétences!L26*$P$1,1)-compétences!$O$2)))","v":"Echec -65"}]
[]
[]
[null,"Force","base carac","xp naturel","bonus","valeur naturelle","base carac occulte","occulte","base carac parapsy","parapsy","bonus parapsy ","total","demi","cinquième","MR"]
[null,"Corps à Corps",{"$f":"CEILING((caractéritiques!$C$9/2),1)","v":0},null,{"$f":"IF(OR(info_perso!$B$15=\"Le street fighter\",info_perso!$B$16=\"Le street fighter\",info_perso!$B$17=\"Le street fighter\",info_perso!$B$18=\"Le street fighter\",info_perso!$B$15=\"Le garde\",info_perso!$B$16=\"Le garde\",info_perso!$B$17=\"Le garde\",info_perso!$B$18=\"Le garde\"),5,0)+IF(info_perso!$D$2=\"Enfant des rues\",-10,0)+IF(info_perso!$D$2=\"Homme de main\",20,0)+IF(info_perso!$D$2=\"Clown\",20,0)+IF(info_perso!$D$2=\"Tueur à gage\",20,0)+IF(info_perso!D2=\"hacker\",-30,0)+IF(info_perso!D2=\"pirate céfrite\",30,0)","v":0},{"$f":"MIN($T$3, C30+D30+E30)","v":0},{"$f":"CEILING((caractéritiques!$C$10/2),1)","v":0},null,{"$f":"CEILING(((caractéritiques!$C$11+caractéritiques!$C$12)/2),1)","v":0},null,{"$f":"IF(pouvoirs!X37=\"membre rétractable\",-20,IF(pouvoirs!X45=\"puissance de l'éclair\",20,IF(pouvoirs!X45=\"pince du crabe\",-20,)))","v":0},{"$f":"SUM(F30:K30)","v":0},0,0,{"$f":"IF(caractéritiques!$C$18<caractéritiques!$C$24,IF(CEILING(compétences!N30*$P$1,1)<compétences!$O$2,\"Echec \"&CEILING(compétences!N30*$P$1,1)-compétences!$O$2,CEILING(compétences!N30*$P$1,1)-compétences!$O$2),IF(caractéritiques!$C$18<caractéritiques!$C$23,IF(CEILING(compétences!M30*$P$1,1)<compétences!$O$2,\"Echec \"&CEILING(compétences!M30*$P$1,1)-compétences!$O$2,CEILING(compétences!M30*$P$1,1)-compétences!$O$2),IF(CEILING(compétences!L30*$P$1,1)<compétences!$O$2,\"Echec \"&CEILING(compétences!L30*$P$1,1)-compétences!$O$2,CEILING(compétences!L30*$P$1,1)-compétences!$O$2)))","v":"Echec -65"}]
[null,"mêlée",{"$f":"CEILING((caractéritiques!$C$9/2),1)","v":0},null,{"$f":"IF(OR(info_perso!$B$15=\"Le street fighter\",info_perso!$B$16=\"Le street fighter\",info_perso!$B$17=\"Le street fighter\",info_perso!$B$18=\"Le street fighter\"),5,0)+IF(info_perso!$D$2=\"Homme de main\",20,0)+IF(info_perso!$D$2=\"Clown\",20,0)+IF(info_perso!$D$2=\"Tueur à gage\",20,0)+IF(info_perso!D2=\"hacker\",-30,0)+IF(info_perso!D2=\"pirate céfrite\",30,0)","v":0},{"$f":"MIN($T$3, C31+D31+E31)","v":0},{"$f":"CEILING((caractéritiques!$C$10/2),1)","v":0},null,{"$f":"CEILING(((caractéritiques!$C$11+caractéritiques!$C$12)/2),1)","v":0},null,{"$f":"IF(pouvoirs!X45=\"mille et une pattes\",-70,)+IF(pouvoirs!X45=\"mille et une pattes\",IF(pouvoirs!AG45=\"oui\",pouvoirs!AI45,))","v":0},{"$f":"SUM(F31:K31)","v":0},0,0,{"$f":"IF(caractéritiques!$C$18<caractéritiques!$C$24,IF(CEILING(compétences!N31*$P$1,1)<compétences!$O$2,\"Echec \"&CEILING(compétences!N31*$P$1,1)-compétences!$O$2,CEILING(compétences!N31*$P$1,1)-compétences!$O$2),IF(caractéritiques!$C$18<caractéritiques!$C$23,IF(CEILING(compétences!M31*$P$1,1)<compétences!$O$2,\"Echec \"&CEILING(compétences!M31*$P$1,1)-compétences!$O$2,CEILING(compétences!M31*$P$1,1)-compétences!$O$2),IF(CEILING(compétences!L31*$P$1,1)<compétences!$O$2,\"Echec \"&CEILING(compétences!L31*$P$1,1)-compétences!$O$2,CEILING(compétences!L31*$P$1,1)-compétences!$O$2)))","v":"Echec -65"}]
[null,"sauter",{"$f":"CEILING((caractéritiques!$C$9/2),1)","v":0},null,null,{"$f":"MIN($T$3, C32+D32+E32)","v":0},{"$f":"CEILING((caractéritiques!$C$10/2),1)","v":0},null,{"$f":"CEILING(((caractéritiques!$C$11+caractéritiques!$C$12)/2),1)","v":0},null,null,0,0,0,{"$f":"IF(caractéritiques!$C$18<caractéritiques!$C$24,IF(CEILING(compétences!N32*$P$1,1)<compétences!$O$2,\"Echec \"&CEILING(compétences!N32*$P$1,1)-compétences!$O$2,CEILING(compétences!N32*$P$1,1)-compétences!$O$2),IF(caractéritiques!$C$18<caractéritiques!$C$23,IF(CEILING(compétences!M32*$P$1,1)<compétences!$O$2,\"Echec \"&CEILING(compétences!M32*$P$1,1)-compétences!$O$2,CEILING(compétences!M32*$P$1,1)-compétences!$O$2),IF(CEILING(compétences!L32*$P$1,1)<compétences!$O$2,\"Echec \"&CEILING(compétences!L32*$P$1,1)-compétences!$O$2,CEILING(compétences!L32*$P$1,1)-compétences!$O$2)))","v":"Echec -65"}]
[null,"résistance à la douleur",{"$f":"CEILING((caractéritiques!$C$9/2),1)","v":0},null,{"$f":"IF(info_perso!D2=\"hacker\",-30,0)","v":0},{"$f":"MIN($T$3, C33+D33+E33)","v":0},{"$f":"CEILING((caractéritiques!$C$10/2),1)","v":0},null,{"$f":"CEILING(((caractéritiques!$C$11+caractéritiques!$C$12)/2),1)","v":0},null,null,0,0,0,{"$f":"IF(caractéritiques!$C$18<caractéritiques!$C$24,IF(CEILING(compétences!N33*$P$1,1)<compétences!$O$2,\"Echec \"&CEILING(compétences!N33*$P$1,1)-compétences!$O$2,CEILING(compétences!N33*$P$1,1)-compétences!$O$2),IF(caractéritiques!$C$18<caractéritiques!$C$23,IF(CEILING(compétences!M33*$P$1,1)<compétences!$O$2,\"Echec \"&CEILING(compétences!M33*$P$1,1)-compétences!$O$2,CEILING(compétences!M33*$P$1,1)-compétences!$O$2),IF(CEILING(compétences!L33*$P$1,1)<compétences!$O$2,\"Echec \"&CEILING(compétences!L33*$P$1,1)-compétences!$O$2,CEILING(compétences!L33*$P$1,1)-compétences!$O$2)))","v":"Echec -65"}]
[null,"résistance au choc",{"$f":"CEILING((caractéritiques!$C$9/2),1)","v":0},null,{"$f":"IF(info_perso!D2=\"hacker\",-30,0)","v":0},{"$f":"MIN($T$3, C34+D34+E34)","v":0},{"$f":"CEILING((caractéritiques!$C$10/2),1)","v":0},null,{"$f":"CEILING(((caractéritiques!$C$11+caractéritiques!$C$12)/2),1)","v":0},null,null,0,0,0,{"$f":"IF(caractéritiques!$C$18<caractéritiques!$C$24,IF(CEILING(compétences!N34*$P$1,1)<compétences!$O$2,\"Echec \"&CEILING(compétences!N34*$P$1,1)-compétences!$O$2,CEILING(compétences!N34*$P$1,1)-compétences!$O$2),IF(caractéritiques!$C$18<caractéritiques!$C$23,IF(CEILING(compétences!M34*$P$1,1)<compétences!$O$2,\"Echec \"&CEILING(compétences!M34*$P$1,1)-compétences!$O$2,CEILING(compétences!M34*$P$1,1)-compétences!$O$2),IF(CEILING(compétences!L34*$P$1,1)<compétences!$O$2,\"Echec \"&CEILING(compétences!L34*$P$1,1)-compétences!$O$2,CEILING(compétences!L34*$P$1,1)-compétences!$O$2)))","v":"Echec -65"}]
[]
[]
[null,"Intelligence","base carac","xp naturel","bonus","valeur naturelle","base occulte","occulte","base carac parapsy","parapsy","bonus parapsy","total","demi","cinquième","MR"]
[null,"loi",{"$f":"CEILING((caractéritiques!$G$9/2),1)","v":0},null,{"$f":"IF(info_perso!$D$2=\"Homme de main\",-30,0)+IF(info_perso!$D$2=\"Policier\",30,0)+IF(info_perso!$D$2=\"Prostitué\",-30,0)+IF(info_perso!$D$2=\"Tueur à gage\",-30,0)+IF(info_perso!D2=\"membre de la toile\",-40,0)","v":0},{"$f":"MIN($T$3, C38+D38+E38)","v":0},{"$f":"CEILING((caractéritiques!$G$10/2),1)","v":0},null,{"$f":"CEILING(((caractéritiques!$G$11+caractéritiques!$G$12)/2),1)","v":0},null,null,{"$f":"SUM(F38:K38)","v":0},0,0,{"$f":"IF(caractéritiques!$G$18<caractéritiques!$G$24,IF(CEILING(compétences!N38*$P$1,1)<compétences!$O$2,\"Echec \"&CEILING(compétences!N38*$P$1,1)-compétences!$O$2,CEILING(compétences!N38*$P$1,1)-compétences!$O$2),IF(caractéritiques!$G$18<caractéritiques!$G$23,IF(CEILING(compétences!M38*$P$1,1)<compétences!$O$2,\"Echec \"&CEILING(compétences!M38*$P$1,1)-compétences!$O$2,CEILING(compétences!M38*$P$1,1)-compétences!$O$2),IF(CEILING(compétences!L38*$P$1,1)<compétences!$O$2,\"Echec \"&CEILING(compétences!L38*$P$1,1)-compétences!$O$2,CEILING(compétences!L38*$P$1,1)-compétences!$O$2)))","v":"Echec -65"}]
[null,"médecine",{"$f":"CEILING((caractéritiques!$G$9/2),1)","v":0},null,{"$f":"IF(OR(info_perso!$B$15=\"Le petit chimiste\",info_perso!$B$16=\"Le petit chimiste\",info_perso!$B$17=\"Le petit chimiste\",info_perso!$B$18=\"Le petit chimiste\"),5,0)+IF(info_perso!D2=\"membre de la toile\",-40,0)","v":0},0,{"$f":"CEILING((caractéritiques!$G$10/2),1)","v":0},null,{"$f":"CEILING(((caractéritiques!$G$11+caractéritiques!$G$12)/2),1)","v":0},null,null,{"$f":"SUM(F39:K39)","v":0},0,0,{"$f":"IF(caractéritiques!$G$18<caractéritiques!$G$24,IF(CEILING(compétences!N39*$P$1,1)<compétences!$O$2,\"Echec \"&CEILING(compétences!N39*$P$1,1)-compétences!$O$2,CEILING(compétences!N39*$P$1,1)-compétences!$O$2),IF(caractéritiques!$G$18<caractéritiques!$G$23,IF(CEILING(compétences!M39*$P$1,1)<compétences!$O$2,\"Echec \"&CEILING(compétences!M39*$P$1,1)-compétences!$O$2,CEILING(compétences!M39*$P$1,1)-compétences!$O$2),IF(CEILING(compétences!L39*$P$1,1)<compétences!$O$2,\"Echec \"&CEILING(compétences!L39*$P$1,1)-compétences!$O$2,CEILING(compétences!L39*$P$1,1)-compétences!$O$2)))","v":"Echec -65"}]
[null,"savoir historique",{"$f":"CEILING((caractéritiques!$G$9/2),1)","v":0},null,{"$f":"IF(info_perso!$D$2=\"Enfant des rues\",-20,0)+IF(info_perso!$D$2=\"Prostitué\",-30,0)+IF(info_perso!D2=\"membre de la toile\",-40,0)","v":0},0,{"$f":"CEILING((caractéritiques!$G$10/2),1)","v":0},null,{"$f":"CEILING(((caractéritiques!$G$11+caractéritiques!$G$12)/2),1)","v":0},null,null,0,0,0,{"$f":"IF(caractéritiques!$G$18<caractéritiques!$G$24,IF(CEILING(compétences!N40*$P$1,1)<compétences!$O$2,\"Echec \"&CEILING(compétences!N40*$P$1,1)-compétences!$O$2,CEILING(compétences!N40*$P$1,1)-compétences!$O$2),IF(caractéritiques!$G$18<caractéritiques!$G$23,IF(CEILING(compétences!M40*$P$1,1)<compétences!$O$2,\"Echec \"&CEILING(compétences!M40*$P$1,1)-compétences!$O$2,CEILING(compétences!M40*$P$1,1)-compétences!$O$2),IF(CEILING(compétences!L40*$P$1,1)<compétences!$O$2,\"Echec \"&CEILING(compétences!L40*$P$1,1)-compétences!$O$2,CEILING(compétences!L40*$P$1,1)-compétences!$O$2)))","v":"Echec -65"}]
[null,"savoir occulte",{"$f":"CEILING((caractéritiques!$G$9/2),1)","v":0},null,{"$f":"IF(info_perso!$D$2=\"Policier\",-20,0)+IF(OR(info_perso!D2=\"membre de la toile\",info_perso!D2=\"foot\"),-40,0)","v":0},0,{"$f":"CEILING((caractéritiques!$G$10/2),1)","v":0},null,{"$f":"CEILING(((caractéritiques!$G$11+caractéritiques!$G$12)/2),1)","v":0},null,null,0,0,0,{"$f":"IF(caractéritiques!$G$18<caractéritiques!$G$24,IF(CEILING(compétences!N41*$P$1,1)<compétences!$O$2,\"Echec \"&CEILING(compétences!N41*$P$1,1)-compétences!$O$2,CEILING(compétences!N41*$P$1,1)-compétences!$O$2),IF(caractéritiques!$G$18<caractéritiques!$G$23,IF(CEILING(compétences!M41*$P$1,1)<compétences!$O$2,\"Echec \"&CEILING(compétences!M41*$P$1,1)-compétences!$O$2,CEILING(compétences!M41*$P$1,1)-compétences!$O$2),IF(CEILING(compétences!L41*$P$1,1)<compétences!$O$2,\"Echec \"&CEILING(compétences!L41*$P$1,1)-compétences!$O$2,CEILING(compétences!L41*$P$1,1)-compétences!$O$2)))","v":"Echec -65"}]
[null,"ingénierie",{"$f":"CEILING((caractéritiques!$G$9/2),1)","v":0},null,{"$f":"IF(OR(info_perso!$B$15=\"Le mécano\",info_perso!$B$16=\"Le mécano\",info_perso!$B$17=\"Le mécano\",info_perso!$B$18=\"Le mécano\"),5,0)+IF(info_perso!$D$2=\"Homme de main\",-30,0)+IF(info_perso!D2=\"hacker\",30,0)","v":0},0,{"$f":"CEILING((caractéritiques!$G$10/2),1)","v":0},null,{"$f":"CEILING(((caractéritiques!$G$11+caractéritiques!$G$12)/2),1)","v":0},null,null,0,0,0,{"$f":"IF(caractéritiques!$G$18<caractéritiques!$G$24,IF(CEILING(compétences!N42*$P$1,1)<compétences!$O$2,\"Echec \"&CEILING(compétences!N42*$P$1,1)-compétences!$O$2,CEILING(compétences!N42*$P$1,1)-compétences!$O$2),IF(caractéritiques!$G$18<caractéritiques!$G$23,IF(CEILING(compétences!M42*$P$1,1)<compétences!$O$2,\"Echec \"&CEILING(compétences!M42*$P$1,1)-compétences!$O$2,CEILING(compétences!M42*$P$1,1)-compétences!$O$2),IF(CEILING(compétences!L42*$P$1,1)<compétences!$O$2,\"Echec \"&CEILING(compétences!L42*$P$1,1)-compétences!$O$2,CEILING(compétences!L42*$P$1,1)-compétences!$O$2)))","v":"Echec -65"}]
[null,"débrouillardise",{"$f":"CEILING((caractéritiques!$G$9/2),1)","v":0},null,{"$f":"IF(OR(info_perso!$B$15=\"Le baroudeur\",info_perso!$B$16=\"Le baroudeur\",info_perso!$B$17=\"Le baroudeur\",info_perso!$B$18=\"Le baroudeur\"),5,0)+IF(info_perso!D2=\"hacker\",30,0)","v":0},0,{"$f":"CEILING((caractéritiques!$G$10/2),1)","v":0},null,{"$f":"CEILING(((caractéritiques!$G$11+caractéritiques!$G$12)/2),1)","v":0},null,null,0,0,0,{"$f":"IF(caractéritiques!$G$18<caractéritiques!$G$24,IF(CEILING(compétences!N43*$P$1,1)<compétences!$O$2,\"Echec \"&CEILING(compétences!N43*$P$1,1)-compétences!$O$2,CEILING(compétences!N43*$P$1,1)-compétences!$O$2),IF(caractéritiques!$G$18<caractéritiques!$G$23,IF(CEILING(compétences!M43*$P$1,1)<compétences!$O$2,\"Echec \"&CEILING(compétences!M43*$P$1,1)-compétences!$O$2,CEILING(compétences!M43*$P$1,1)-compétences!$O$2),IF(CEILING(compétences!L43*$P$1,1)<compétences!$O$2,\"Echec \"&CEILING(compétences!L43*$P$1,1)-compétences!$O$2,CEILING(compétences!L43*$P$1,1)-compétences!$O$2)))","v":"Echec -65"}]
[null,"chimie",{"$f":"CEILING((caractéritiques!$G$9/2),1)","v":0},null,{"$f":"IF(OR(info_perso!$B$15=\"Le petit chimiste\",info_perso!$B$16=\"Le petit chimiste\",info_perso!$B$17=\"Le petit chimiste\",info_perso!$B$18=\"Le petit chimiste\"),5,0)+IF(info_perso!$D$2=\"Clown\",30,0)+IF(info_perso!$D$2=\"Tueur à gage\",-30,0)+IF(info_perso!D2=\"foot\",-40,0)","v":0},0,{"$f":"CEILING((caractéritiques!$G$10/2),1)","v":0},null,{"$f":"CEILING(((caractéritiques!$G$11+caractéritiques!$G$12)/2),1)","v":0},null,null,0,0,0,{"$f":"IF(caractéritiques!$G$18<caractéritiques!$G$24,IF(CEILING(compétences!N44*$P$1,1)<compétences!$O$2,\"Echec \"&CEILING(compétences!N44*$P$1,1)-compétences!$O$2,CEILING(compétences!N44*$P$1,1)-compétences!$O$2),IF(caractéritiques!$G$18<caractéritiques!$G$23,IF(CEILING(compétences!M44*$P$1,1)<compétences!$O$2,\"Echec \"&CEILING(compétences!M44*$P$1,1)-compétences!$O$2,CEILING(compétences!M44*$P$1,1)-compétences!$O$2),IF(CEILING(compétences!L44*$P$1,1)<compétences!$O$2,\"Echec \"&CEILING(compétences!L44*$P$1,1)-compétences!$O$2,CEILING(compétences!L44*$P$1,1)-compétences!$O$2)))","v":"Echec -65"}]
[null,"investigation",{"$f":"CEILING((caractéritiques!$G$9/2),1)","v":0},null,{"$f":"IF(info_perso!D2=\"foot\",30,0)","v":0},0,{"$f":"CEILING((caractéritiques!$G$10/2),1)","v":0},null,{"$f":"CEILING(((caractéritiques!$G$11+caractéritiques!$G$12)/2),1)","v":0},null,null,0,0,0,{"$f":"IF(caractéritiques!$G$18<caractéritiques!$G$24,IF(CEILING(compétences!N45*$P$1,1)<compétences!$O$2,\"Echec \"&CEILING(compétences!N45*$P$1,1)-compétences!$O$2,CEILING(compétences!N45*$P$1,1)-compétences!$O$2),IF(caractéritiques!$G$18<caractéritiques!$G$23,IF(CEILING(compétences!M45*$P$1,1)<compétences!$O$2,\"Echec \"&CEILING(compétences!M45*$P$1,1)-compétences!$O$2,CEILING(compétences!M45*$P$1,1)-compétences!$O$2),IF(CEILING(compétences!L45*$P$1,1)<compétences!$O$2,\"Echec \"&CEILING(compétences!L45*$P$1,1)-compétences!$O$2,CEILING(compétences!L45*$P$1,1)-compétences!$O$2)))","v":"Echec -65"}]
[null,"langues",{"$f":"CEILING((caractéritiques!$G$9/2),1)","v":0},null,null,0,{"$f":"CEILING((caractéritiques!$G$10/2),1)","v":0},null,{"$f":"CEILING(((caractéritiques!$G$11+caractéritiques!$G$12)/2),1)","v":0},null,null,0,0,0,{"$f":"IF(caractéritiques!$G$18<caractéritiques!$G$24,IF(CEILING(compétences!N46*$P$1,1)<compétences!$O$2,\"Echec \"&CEILING(compétences!N46*$P$1,1)-compétences!$O$2,CEILING(compétences!N46*$P$1,1)-compétences!$O$2),IF(caractéritiques!$G$18<caractéritiques!$G$23,IF(CEILING(compétences!M46*$P$1,1)<compétences!$O$2,\"Echec \"&CEILING(compétences!M46*$P$1,1)-compétences!$O$2,CEILING(compétences!M46*$P$1,1)-compétences!$O$2),IF(CEILING(compétences!L46*$P$1,1)<compétences!$O$2,\"Echec \"&CEILING(compétences!L46*$P$1,1)-compétences!$O$2,CEILING(compétences!L46*$P$1,1)-compétences!$O$2)))","v":"Echec -65"}]
[null,"cryptographie",{"$f":"CEILING((caractéritiques!$G$9/2),1)","v":0},null,null,0,{"$f":"CEILING((caractéritiques!$G$10/2),1)","v":0},null,{"$f":"CEILING(((caractéritiques!$G$11+caractéritiques!$G$12)/2),1)","v":0},null,null,0,0,0,{"$f":"IF(caractéritiques!$G$18<caractéritiques!$G$24,IF(CEILING(compétences!N47*$P$1,1)<compétences!$O$2,\"Echec \"&CEILING(compétences!N47*$P$1,1)-compétences!$O$2,CEILING(compétences!N47*$P$1,1)-compétences!$O$2),IF(caractéritiques!$G$18<caractéritiques!$G$23,IF(CEILING(compétences!M47*$P$1,1)<compétences!$O$2,\"Echec \"&CEILING(compétences!M47*$P$1,1)-compétences!$O$2,CEILING(compétences!M47*$P$1,1)-compétences!$O$2),IF(CEILING(compétences!L47*$P$1,1)<compétences!$O$2,\"Echec \"&CEILING(compétences!L47*$P$1,1)-compétences!$O$2,CEILING(compétences!L47*$P$1,1)-compétences!$O$2)))","v":"Echec -65"}]
[null,"crochetage",{"$f":"CEILING((caractéritiques!$G$9/2),1)","v":0},null,{"$f":"IF(OR(info_perso!$B$15=\"Le baroudeur\",info_perso!$B$16=\"Le baroudeur\",info_perso!$B$17=\"Le baroudeur\",info_perso!$B$18=\"Le baroudeur\"),5,0)+IF(OR(info_perso!D2=\"hacker\",info_perso!D2=\"membre de la toile\"),30,0)","v":0},0,{"$f":"CEILING((caractéritiques!$G$10/2),1)","v":0},null,{"$f":"CEILING(((caractéritiques!$G$11+caractéritiques!$G$12)/2),1)","v":0},null,null,0,0,0,{"$f":"IF(caractéritiques!$G$18<caractéritiques!$G$24,IF(CEILING(compétences!N48*$P$1,1)<compétences!$O$2,\"Echec \"&CEILING(compétences!N48*$P$1,1)-compétences!$O$2,CEILING(compétences!N48*$P$1,1)-compétences!$O$2),IF(caractéritiques!$G$18<caractéritiques!$G$23,IF(CEILING(compétences!M48*$P$1,1)<compétences!$O$2,\"Echec \"&CEILING(compétences!M48*$P$1,1)-compétences!$O$2,CEILING(compétences!M48*$P$1,1)-compétences!$O$2),IF(CEILING(compétences!L48*$P$1,1)<compétences!$O$2,\"Echec \"&CEILING(compétences!L48*$P$1,1)-compétences!$O$2,CEILING(compétences!L48*$P$1,1)-compétences!$O$2)))","v":"Echec -65"}]
[null,"informatique",{"$f":"CEILING((caractéritiques!$G$9/2),1)","v":0},null,{"$f":"IF(OR(info_perso!$B$15=\"Le mécano\",info_perso!$B$16=\"Le mécano\",info_perso!$B$17=\"Le mécano\",info_perso!$B$18=\"Le mécano\"),5,0)+IF(info_perso!D2=\"hacker\",30,0)","v":0},0,{"$f":"CEILING((caractéritiques!$G$10/2),1)","v":0},null,{"$f":"CEILING(((caractéritiques!$G$11+caractéritiques!$G$12)/2),1)","v":0},null,{"$f":"IF(pouvoirs!X45=\"mille et une pattes\",-70,IF(pouvoirs!X45=\"puissance de l'éclair\",-10,IF(pouvoirs!X45=\"pince du crabe\",-20,IF(pouvoirs!X45=\"paume explosive\",-20,))))+IF(pouvoirs!X45=\"mille et une pattes\",IF(pouvoirs!AG45=\"oui\",pouvoirs!AI45,))","v":0},0,0,0,{"$f":"IF(caractéritiques!$G$18<caractéritiques!$G$24,IF(CEILING(compétences!N49*$P$1,1)<compétences!$O$2,\"Echec \"&CEILING(compétences!N49*$P$1,1)-compétences!$O$2,CEILING(compétences!N49*$P$1,1)-compétences!$O$2),IF(caractéritiques!$G$18<caractéritiques!$G$23,IF(CEILING(compétences!M49*$P$1,1)<compétences!$O$2,\"Echec \"&CEILING(compétences!M49*$P$1,1)-compétences!$O$2,CEILING(compétences!M49*$P$1,1)-compétences!$O$2),IF(CEILING(compétences!L49*$P$1,1)<compétences!$O$2,\"Echec \"&CEILING(compétences!L49*$P$1,1)-compétences!$O$2,CEILING(compétences!L49*$P$1,1)-compétences!$O$2)))","v":"Echec -65"}]
[]
[]
[null,"Perception","base carac","xp naturel","bonus","valeur naturelle","base carac occulte","occulte","base carac parapsy","parapsy","bonus parapsy","total","demi","cinquième","MR"]
[null,"vigilance",{"$f":"CEILING((caractéritiques!$E$9/2),1)","v":0},null,{"$f":"IF(OR(info_perso!$B$15=\"Le garde\",info_perso!$B$16=\"Le garde\",info_perso!$B$17=\"Le garde\",info_perso!$B$18=\"Le garde\"),5,0)+IF(info_perso!$D$2=\"Tueur à gage\",20,0)","v":0},{"$f":"MIN($T$3, C53+D53+E53)","v":0},{"$f":"CEILING((caractéritiques!$E$10/2),1)","v":0},null,{"$f":"CEILING(((caractéritiques!$E$11+caractéritiques!$E$12)/2),1)","v":0},null,{"$f":"SUMIF(pouvoirs!C11:C79,\"*pestillence*\",pouvoirs!K11:K79)+SUMIF(pouvoirs!X10:X57,\"*pestillence*\",pouvoirs!AF10:AF57)","v":0},{"$f":"SUM(F53:K53)","v":0},0,0,{"$f":"IF(caractéritiques!$E$18<caractéritiques!$E$24,IF(CEILING(compétences!N53*$P$1,1)<compétences!$O$2,\"Echec \"&CEILING(compétences!N53*$P$1,1)-compétences!$O$2,CEILING(compétences!N53*$P$1,1)-compétences!$O$2),IF(caractéritiques!$E$18<caractéritiques!$E$23,IF(CEILING(compétences!M53*$P$1,1)<compétences!$O$2,\"Echec \"&CEILING(compétences!M53*$P$1,1)-compétences!$O$2,CEILING(compétences!M53*$P$1,1)-compétences!$O$2),IF(CEILING(compétences!L53*$P$1,1)<compétences!$O$2,\"Echec \"&CEILING(compétences!L53*$P$1,1)-compétences!$O$2,CEILING(compétences!L53*$P$1,1)-compétences!$O$2)))","v":"Echec -65"}]
[null,"recherche",{"$f":"CEILING((caractéritiques!$E$9/2),1)","v":0},null,{"$f":"IF(OR(info_perso!$B$15=\"Le garde\",info_perso!$B$16=\"Le garde\",info_perso!$B$17=\"Le garde\",info_perso!$B$18=\"Le garde\"),5,0)+IF(info_perso!$D$2=\"Policier\",30,0)+IF(info_perso!$D$2=\"Tueur à gage\",20,0)","v":0},0,{"$f":"CEILING((caractéritiques!$E$10/2),1)","v":0},null,{"$f":"CEILING(((caractéritiques!$E$11+caractéritiques!$E$12)/2),1)","v":0},null,null,{"$f":"SUM(F54:K54)","v":0},0,0,{"$f":"IF(caractéritiques!$E$18<caractéritiques!$E$24,IF(CEILING(compétences!N54*$P$1,1)<compétences!$O$2,\"Echec \"&CEILING(compétences!N54*$P$1,1)-compétences!$O$2,CEILING(compétences!N54*$P$1,1)-compétences!$O$2),IF(caractéritiques!$E$18<caractéritiques!$E$23,IF(CEILING(compétences!M54*$P$1,1)<compétences!$O$2,\"Echec \"&CEILING(compétences!M54*$P$1,1)-compétences!$O$2,CEILING(compétences!M54*$P$1,1)-compétences!$O$2),IF(CEILING(compétences!L54*$P$1,1)<compétences!$O$2,\"Echec \"&CEILING(compétences!L54*$P$1,1)-compétences!$O$2,CEILING(compétences!L54*$P$1,1)-compétences!$O$2)))","v":"Echec -65"}]
[null,"pilotage",{"$f":"CEILING((caractéritiques!$E$9/2),1)","v":0},null,{"$f":"IF(OR(info_perso!$B$15=\"Le passionné du treillis\",info_perso!$B$16=\"Le passionné du treillis\",info_perso!$B$17=\"Le passionné du treillis\",info_perso!$B$18=\"Le passionné du treillis\"),5,0)+IF(info_perso!$D$2=\"Prostitué\",-20,0)","v":0},0,{"$f":"CEILING((caractéritiques!$E$10/2),1)","v":0},null,{"$f":"CEILING(((caractéritiques!$E$11+caractéritiques!$E$12)/2),1)","v":0},null,{"$f":"IF(pouvoirs!X45=\"paume explosive\",-20,)","v":0},0,0,0,{"$f":"IF(caractéritiques!$E$18<caractéritiques!$E$24,IF(CEILING(compétences!N55*$P$1,1)<compétences!$O$2,\"Echec \"&CEILING(compétences!N55*$P$1,1)-compétences!$O$2,CEILING(compétences!N55*$P$1,1)-compétences!$O$2),IF(caractéritiques!$E$18<caractéritiques!$E$23,IF(CEILING(compétences!M55*$P$1,1)<compétences!$O$2,\"Echec \"&CEILING(compétences!M55*$P$1,1)-compétences!$O$2,CEILING(compétences!M55*$P$1,1)-compétences!$O$2),IF(CEILING(compétences!L55*$P$1,1)<compétences!$O$2,\"Echec \"&CEILING(compétences!L55*$P$1,1)-compétences!$O$2,CEILING(compétences!L55*$P$1,1)-compétences!$O$2)))","v":"Echec -65"}]
[null,"tir",{"$f":"CEILING((caractéritiques!$E$9/2),1)","v":0},null,{"$f":"IF(OR(info_perso!$B$15=\"Le passionné du treillis\",info_perso!$B$16=\"Le passionné du treillis\",info_perso!$B$17=\"Le passionné du treillis\",info_perso!$B$18=\"Le passionné du treillis\"),5,0)+IF(info_perso!$D$2=\"Prostitué\",-20,0)+IF(info_perso!$D$2=\"Tueur à gage\",20,0)+IF(info_perso!$D$2=\"Militaire\",30,0)+IF(info_perso!D2=\"pirate céfrite\",30,0)","v":0},0,{"$f":"CEILING((caractéritiques!$E$10/2),1)","v":0},null,{"$f":"CEILING(((caractéritiques!$E$11+caractéritiques!$E$12)/2),1)","v":0},null,{"$f":"IF(pouvoirs!X45=\"mille et une pattes\",-70,IF(pouvoirs!X45=\"puissance de l'éclair\",-10,IF(pouvoirs!X45=\"pince du crabe\",-20,IF(pouvoirs!X45=\"paume explosive\",-20,))))+IF(pouvoirs!X45=\"mille et une pattes\",IF(pouvoirs!AG45=\"oui\",pouvoirs!AI45,))","v":0},0,0,0,{"$f":"IF(caractéritiques!$E$18<caractéritiques!$E$24,IF(CEILING(compétences!N56*$P$1,1)<compétences!$O$2,\"Echec \"&CEILING(compétences!N56*$P$1,1)-compétences!$O$2,CEILING(compétences!N56*$P$1,1)-compétences!$O$2),IF(caractéritiques!$E$18<caractéritiques!$E$23,IF(CEILING(compétences!M56*$P$1,1)<compétences!$O$2,\"Echec \"&CEILING(compétences!M56*$P$1,1)-compétences!$O$2,CEILING(compétences!M56*$P$1,1)-compétences!$O$2),IF(CEILING(compétences!L56*$P$1,1)<compétences!$O$2,\"Echec \"&CEILING(compétences!L56*$P$1,1)-compétences!$O$2,CEILING(compétences!L56*$P$1,1)-compétences!$O$2)))","v":"Echec -65"}]
[null,"lancer",{"$f":"CEILING((caractéritiques!$E$9/2),1)","v":0},null,{"$f":"IF(OR(info_perso!$B$15=\"Le champion d'EPS\",info_perso!$B$16=\"Le champion d'EPS\",info_perso!$B$17=\"Le champion d'EPS\",info_perso!$B$18=\"Le champion d'EPS\"),5,0)+IF(info_perso!$D$2=\"Prostitué\",-20,0)+IF(info_perso!D2=\"pirate céfrite\",30,0)","v":0},0,{"$f":"CEILING((caractéritiques!$E$10/2),1)","v":0},null,{"$f":"CEILING(((caractéritiques!$E$11+caractéritiques!$E$12)/2),1)","v":0},null,null,0,0,0,{"$f":"IF(caractéritiques!$E$18<caractéritiques!$E$24,IF(CEILING(compétences!N57*$P$1,1)<compétences!$O$2,\"Echec \"&CEILING(compétences!N57*$P$1,1)-compétences!$O$2,CEILING(compétences!N57*$P$1,1)-compétences!$O$2),IF(caractéritiques!$E$18<caractéritiques!$E$23,IF(CEILING(compétences!M57*$P$1,1)<compétences!$O$2,\"Echec \"&CEILING(compétences!M57*$P$1,1)-compétences!$O$2,CEILING(compétences!M57*$P$1,1)-compétences!$O$2),IF(CEILING(compétences!L57*$P$1,1)<compétences!$O$2,\"Echec \"&CEILING(compétences!L57*$P$1,1)-compétences!$O$2,CEILING(compétences!L57*$P$1,1)-compétences!$O$2)))","v":"Echec -65"}]
[null,"conduite",{"$f":"CEILING((caractéritiques!$E$9/2),1)","v":0},null,{"$f":"IF(OR(info_perso!$B$15=\"Le mécano\",info_perso!$B$16=\"Le mécano\",info_perso!$B$17=\"Le mécano\",info_perso!$B$18=\"Le mécano\"),5,0)+IF(info_perso!$D$2=\"Homme de main\",30,0)+IF(info_perso!$D$2=\"Clown\",20,0)","v":0},0,{"$f":"CEILING((caractéritiques!$E$10/2),1)","v":0},null,{"$f":"CEILING(((caractéritiques!$E$11+caractéritiques!$E$12)/2),1)","v":0},null,{"$f":"IF(pouvoirs!X45=\"paume explosive\",-20,)","v":0},0,0,0,{"$f":"IF(caractéritiques!$E$18<caractéritiques!$E$24,IF(CEILING(compétences!N58*$P$1,1)<compétences!$O$2,\"Echec \"&CEILING(compétences!N58*$P$1,1)-compétences!$O$2,CEILING(compétences!N58*$P$1,1)-compétences!$O$2),IF(caractéritiques!$E$18<caractéritiques!$E$23,IF(CEILING(compétences!M58*$P$1,1)<compétences!$O$2,\"Echec \"&CEILING(compétences!M58*$P$1,1)-compétences!$O$2,CEILING(compétences!M58*$P$1,1)-compétences!$O$2),IF(CEILING(compétences!L58*$P$1,1)<compétences!$O$2,\"Echec \"&CEILING(compétences!L58*$P$1,1)-compétences!$O$2,CEILING(compétences!L58*$P$1,1)-compétences!$O$2)))","v":"Echec -65"}]
[null,"pistage",{"$f":"CEILING((caractéritiques!$E$9/2),1)","v":0},null,{"$f":"IF(info_perso!$D$2=\"Policier\",30,0)+IF(info_perso!$D$2=\"Militaire\",30,0)","v":0},0,{"$f":"CEILING((caractéritiques!$E$10/2),1)","v":0},null,{"$f":"CEILING(((caractéritiques!$E$11+caractéritiques!$E$12)/2),1)","v":0},null,null,0,0,0,{"$f":"IF(caractéritiques!$E$18<caractéritiques!$E$24,IF(CEILING(compétences!N59*$P$1,1)<compétences!$O$2,\"Echec \"&CEILING(compétences!N59*$P$1,1)-compétences!$O$2,CEILING(compétences!N59*$P$1,1)-compétences!$O$2),IF(caractéritiques!$E$18<caractéritiques!$E$23,IF(CEILING(compétences!M59*$P$1,1)<compétences!$O$2,\"Echec \"&CEILING(compétences!M59*$P$1,1)-compétences!$O$2,CEILING(compétences!M59*$P$1,1)-compétences!$O$2),IF(CEILING(compétences!L59*$P$1,1)<compétences!$O$2,\"Echec \"&CEILING(compétences!L59*$P$1,1)-compétences!$O$2,CEILING(compétences!L59*$P$1,1)-compétences!$O$2)))","v":"Echec -65"}]
[null,"navigation",{"$f":"CEILING((caractéritiques!$E$9/2),1)","v":0},null,{"$f":"IF(info_perso!$D$2=\"Prostitué\",-20,0)","v":0},0,{"$f":"CEILING((caractéritiques!$E$10/2),1)","v":0},null,{"$f":"CEILING(((caractéritiques!$E$11+caractéritiques!$E$12)/2),1)","v":0},null,{"$f":"IF(pouvoirs!X45=\"paume explosive\",-20,)","v":0},0,0,0,{"$f":"IF(caractéritiques!$E$18<caractéritiques!$E$24,IF(CEILING(compétences!N60*$P$1,1)<compétences!$O$2,\"Echec \"&CEILING(compétences!N60*$P$1,1)-compétences!$O$2,CEILING(compétences!N60*$P$1,1)-compétences!$O$2),IF(caractéritiques!$E$18<caractéritiques!$E$23,IF(CEILING(compétences!M60*$P$1,1)<compétences!$O$2,\"Echec \"&CEILING(compétences!M60*$P$1,1)-compétences!$O$2,CEILING(compétences!M60*$P$1,1)-compétences!$O$2),IF(CEILING(compétences!L60*$P$1,1)<compétences!$O$2,\"Echec \"&CEILING(compétences!L60*$P$1,1)-compétences!$O$2,CEILING(compétences!L60*$P$1,1)-compétences!$O$2)))","v":"Echec -65"}]
[]
[]
[null,"volonté","base carac","xp naturel","bonus","valeur naturelle","base carac occulte","occulte","base carac parapsy","parapsy","bonus parapsy","total","demi","cinquième","MR"]
[null,"addiction",{"$f":"CEILING((caractéritiques!$F$9/2),1)","v":0},null,{"$f":"IF(OR(info_perso!$B$15=\"Le petit chimiste\",info_perso!$B$16=\"Le petit chimiste\",info_perso!$B$17=\"Le petit chimiste\",info_perso!$B$18=\"Le petit chimiste\"),5,0)+IF(info_perso!$D$2=\"Clown\",30,0)+IF(info_perso!$D$2=\"Cobaye\",-30,0)","v":0},{"$f":"MIN($T$3, C64+D64+E64)","v":0},{"$f":"CEILING((caractéritiques!$F$10/2),1)","v":0},null,{"$f":"CEILING(((caractéritiques!$F$11+caractéritiques!F12)/2),1)","v":0},null,null,{"$f":"SUM(F64:K64)","v":0},0,0,{"$f":"IF(caractéritiques!$F$18<caractéritiques!$F$24,IF(CEILING(compétences!N64*$P$1,1)<compétences!$O$2,\"Echec \"&CEILING(compétences!N64*$P$1,1)-compétences!$O$2,CEILING(compétences!N64*$P$1,1)-compétences!$O$2),IF(caractéritiques!$F$18<caractéritiques!$F$23,IF(CEILING(compétences!M64*$P$1,1)<compétences!$O$2,\"Echec \"&CEILING(compétences!M64*$P$1,1)-compétences!$O$2,CEILING(compétences!M64*$P$1,1)-compétences!$O$2),IF(CEILING(compétences!L64*$P$1,1)<compétences!$O$2,\"Echec \"&CEILING(compétences!L64*$P$1,1)-compétences!$O$2,CEILING(compétences!L64*$P$1,1)-compétences!$O$2)))","v":"Echec -65"}]
[null,{"$f":"IF(info_perso!D2=\"klobto\",\"artisanat\",IF(info_perso!D2=\"nabéloki\",\"sentir le flux\",\" \"))","v":" "},{"$f":"IF(OR(info_perso!D2=\"nabéloki\",info_perso!D2=\"klobto\"),CEILING((caractéritiques!$F$9/2),1),\" \")","v":" "},null,{"$f":"IF(OR(info_perso!D2=\"nabéloki\",info_perso!D2=\"klobto\"),0,\" \")","v":" "},{"$f":"IF(OR(info_perso!D2=\"nabéloki\",info_perso!D2=\"klobto\"),MIN($T$3, C65+D65+E65),\" \")","v":" "},{"$f":"IF(OR(info_perso!D2=\"nabéloki\",info_perso!D2=\"klobto\"),CEILING((caractéritiques!$F$10/2),1),\" \")","v":" "},null,{"$f":"IF(OR(info_perso!D2=\"nabéloki\",info_perso!D2=\"klobto\"),CEILING(((caractéritiques!$F$11+caractéritiques!F12)/2),1),\" \")","v":" "},null,null,{"$f":"SUM(F65:K65)","v":0},{"$f":"CEILING(L65/2, 1)","v":0},{"$f":"CEILING(L65/5, 1)","v":0},{"$f":"IF(caractéritiques!$F$18<caractéritiques!$F$24,IF(CEILING(compétences!N65*$P$1,1)<compétences!$O$2,\"Echec \"&CEILING(compétences!N65*$P$1,1)-compétences!$O$2,CEILING(compétences!N65*$P$1,1)-compétences!$O$2),IF(caractéritiques!$F$18<caractéritiques!$F$23,IF(CEILING(compétences!M65*$P$1,1)<compétences!$O$2,\"Echec \"&CEILING(compétences!M65*$P$1,1)-compétences!$O$2,CEILING(compétences!M65*$P$1,1)-compétences!$O$2),IF(CEILING(compétences!L65*$P$1,1)<compétences!$O$2,\"Echec \"&CEILING(compétences!L65*$P$1,1)-compétences!$O$2,CEILING(compétences!L65*$P$1,1)-compétences!$O$2)))","v":"Echec -65"}]

{"sheet":"équipement","index":6,"n_rows":25,"n_cols":18,"rows_kept":25,"cut":false,"hidden":false,"merged":[[38,2,38,8],[27,2,27,8],[28,2,28,8],[29,2,29,8],[30,2,30,8],[31,2,31,8],[32,2,32,8],[33,2,33,8],[34,2,34,8],[35,2,35,8],[36,2,36,8],[37,2,37,8],[26,2,26,8],[23,10,23,12],[24,2,24,8],[24,10,24,12],[25,2,25,8],[25,10,25,12]]}
[]
[]
[]
[null,null,"armes","rareté","marque","portée","effet","type de munition","chargeur","P.A.","fragilité","dégâts"]
[]
[]
[]
[]
[]
[]
[]
[null,null,"munitions","en stock",null,"protection","IP","PV max","pv en cours","malus Agi",null,"Néodollars"]
[null,null,"5,45 mm"]
[null,null,"5,56 mm"]
[null,null,"7,62 mm",null,null,null,null,null,null,null,null,"véhicules","marque","nb passagers","accessoire","vitesse","I.P.","fragilité"]
[null,null,"9 mm"]
[null,null,"12,7 mm"]
[null,null,"20 mm"]
[null,null,"cartouche"]
[null,null,"roquette"]
[null,null,"nanobatterie"]
[null,null,"fusée",null,null,"Total",{"$f":"SUM(G13:G21)","v":0},{"$f":"SUM(H13:H21)","v":0},null,{"$f":"SUM(J13:J21)","v":0}]
[]
[null,null,null,null,null,null,null,null,null,null,"habitattion",null,null,"surface","cap couchage","loyer"]
[null,null,"autres"]

{"sheet":"sorts","index":7,"n_rows":387,"n_cols":24,"rows_kept":387,"cut":false,"hidden":true,"merged":[[385,1,385,2],[385,7,385,8],[385,13,385,14],[385,19,385,20],[386,2,386,5],[386,8,386,11],[386,14,386,17],[386,20,386,23],[1,11,1,14],[9,1,9,2],[15,1,15,2],[384,19,384,20],[383,1,383,2],[383,7,383,8],[383,13,383,14],[383,19,383,20],[384,1,384,2],[384,7,384,8],[384,13,384,14],[380,2,380,5],[380,8,380,11],[380,14,380,17],[380,20,380,23],[382,1,382,5],[382,7,382,11],[382,13,382,17],[382,19,382,23],[378,19,378,20],[377,1,377,2],[377,7,377,8],[377,13,377,14],[377,19,377,20],[378,1,378,2],[378,7,378,8],[378,13,378,14],[374,2,374,5],[374,8,374,11],[374,14,374,17],[374,20,374,23],[376,1,376,5],[376,7,376,11],[376,13,376,17],[376,19,376,23],[379,1,379,2],[379,7,379,8],[379,13,379,14],[379,19,379,20],[372,19,372,20],[371,1,371,2],[371,7,371,8],[371,13,371,14],[371,19,371,20],[372,1,372,2],[372,7,372,8],[372,13,372,14],[368,2,368,5],[368,8,368,11],[368,14,368,17],[368,20,368,23],[370,1,370,5],[370,7,370,11],[370,13,370,17],[370,19,370,23],[373,1,373,2],[373,7,373,8],[373,13,373,14],[373,19,373,20],[366,19,366,20],[366,1,366,2],[366,7,366,8],[366,13,366,14],[364,1,364,5],[364,7,364,11],[364,13,364,17],[364,19,364,23],[365,1,365,2],[365,7,365,8],[365,13,365,14],[365,19,365,20],[367,1,367,2],[367,7,367,8],[367,13,367,14],[367,19,367,20],[362,2,362,5],[362,8,362,11],[362,14,362,17],[362,20,362,23],[359,1,359,2],[359,7,359,8],[359,13,359,14],[359,19,359,20],[360,1,360,2],[360,7,360,8],[360,13,360,14],[360,19,360,20],[357,19,357,20],[358,1,358,5],[358,7,358,11],[358,13,358,17],[358,19,358,23],[361,1,361,2],[361,7,361,8],[361,13,361,14],[361,19,361,20],[354,2,354,5],[354,8,354,11],[354,14,354,17],[354,20,354,23],[357,1,357,2],[357,7,357,8],[357,13,357,14],[352,19,352,20],[351,1,351,2],[351,7,351,8],[351,13,351,14],[351,19,351,20],[352,1,352,2],[352,7,352,8],[352,13,352,14],[353,1,353,2],[353,7,353,8],[353,13,353,14],[353,19,353,20],[348,2,348,5],[348,8,348,11],[348,14,348,17],[348,20,348,23],[350,1,350,5],[350,7,350,11],[350,13,350,17],[350,19,350,23],[346,19,346,20],[345,1,345,2],[345,7,345,8],[345,13,345,14],[345,19,345,20],[346,1,346,2],[346,7,346,8],[346,13,346,14],[347,1,347,2],[347,7,347,8],[347,13,347,14],[347,19,347,20],[342,2,342,5],[342,8,342,11],[342,14,342,17],[342,20,342,23],[344,1,344,5],[344,7,344,11],[344,13,344,17],[344,19,344,23],[340,19,340,20],[339,1,339,2],[339,7,339,8],[339,13,339,14],[339,19,339,20],[340,1,340,2],[340,7,340,8],[340,13,340,14],[341,1,341,2],[341,7,341,8],[341,13,341,14],[341,19,341,20],[336,2,336,5],[336,8,336,11],[336,14,336,17],[336,20,336,23],[338,1,338,5],[338,7,338,11],[338,13,338,17],[338,19,338,23],[334,19,334,20],[334,1,334,2],[334,7,334,8],[334,13,334,14],[335,1,335,2],[335,7,335,8],[335,13,335,14],[335,19,335,20],[332,1,332,5],[332,7,332,11],[332,13,332,17],[332,19,332,23],[333,1,333,2],[333,7,333,8],[333,13,333,14],[333,19,333,20],[330,2,330,5],[330,8,330,11],[330,14,330,17],[330,20,330,23],[327,1,327,2],[327,7,327,8],[327,13,327,14],[327,19,327,20],[328,1,328,2],[328,7,328,8],[328,13,328,14],[328,19,328,20],[329,1,329,2],[329,7,329,8],[329,13,329,14],[329,19,329,20],[325,19,325,20],[326,1,326,5],[326,7,326,11],[326,13,326,17],[326,19,326,23],[322,2,322,5],[322,8,322,11],[322,14,322,17],[322,20,322,23],[325,1,325,2],[325,7,325,8],[325,13,325,14],[320,19,320,20],[321,1,321,2],[321,7,321,8],[321,13,321,14],[321,19,321,20],[319,1,319,2],[319,7,319,8],[319,13,319,14],[319,19,319,20],[320,1,320,2],[320,7,320,8],[320,13,320,14],[316,2,316,5],[316,8,316,11],[316,14,316,17],[316,20,316,23],[318,1,318,5],[318,7,318,11],[318,13,318,17],[318,19,318,23],[314,19,314,20],[313,1,313,2],[313,7,313,8],[313,13,313,14],[313,19,313,20],[314,1,314,2],[314,7,314,8],[314,13,314,14],[310,2,310,5],[310,8,310,11],[310,14,310,17],[310,20,310,23],[312,1,312,5],[312,7,312,11],[312,13,312,17],[312,19,312,23],[315,1,315,2],[315,7,315,8],[315,13,315,14],[315,19,315,20],[308,19,308,20],[307,1,307,2],[307,7,307,8],[307,13,307,14],[307,19,307,20],[308,1,308,2],[308,7,308,8],[308,13,308,14],[304,2,304,5],[304,8,304,11],[304,14,304,17],[304,20,304,23],[306,1,306,5],[306,7,306,11],[306,13,306,17],[306,19,306,23],[309,1,309,2],[309,7,309,8],[309,13,309,14],[309,19,309,20],[302,19,302,20],[302,1,302,2],[302,7,302,8],[302,13,302,14],[300,1,300,5],[300,7,300,11],[300,13,300,17],[300,19,300,23],[301,1,301,2],[301,7,301,8],[301,13,301,14],[301,19,301,20],[303,1,303,2],[303,7,303,8],[303,13,303,14],[303,19,303,20],[298,2,298,5],[298,8,298,11],[298,14,298,17],[298,20,298,23],[295,1,295,2],[295,7,295,8],[295,13,295,14],[295,19,295,20],[296,1,296,2],[296,7,296,8],[296,13,296,14],[296,19,296,20],[293,19,293,20],[294,1,294,5],[294,7,294,11],[294,13,294,17],[294,19,294,23],[297,1,297,2],[297,7,297,8],[297,13,297,14],[297,19,297,20],[290,2,290,5],[290,8,290,11],[290,14,290,17],[290,20,290,23],[293,1,293,2],[293,7,293,8],[293,13,293,14],[288,19,288,20],[287,1,287,2],[287,7,287,8],[287,13,287,14],[287,19,287,20],[288,1,288,2],[288,7,288,8],[288,13,288,14],[289,1,289,2],[289,7,289,8],[289,13,289,14],[289,19,289,20],[284,2,284,5],[284,8,284,11],[284,14,284,17],[284,20,284,23],[286,1,286,5],[286,7,286,11],[286,13,286,17],[286,19,286,23],[282,19,282,20],[281,1,281,2],[281,7,281,8],[281,13,281,14],[281,19,281,20],[282,1,282,2],[282,7,282,8],[282,13,282,14],[283,1,283,2],[283,7,283,8],[283,13,283,14],[283,19,283,20],[278,2,278,5],[278,8,278,11],[278,14,278,17],[278,20,278,23],[280,1,280,5],[280,7,280,11],[280,13,280,17],[280,19,280,23],[276,19,276,20],[275,1,275,2],[275,7,275,8],[275,13,275,14],[275,19,275,20],[276,1,276,2],[276,7,276,8],[276,13,276,14],[277,1,277,2],[277,7,277,8],[277,13,277,14],[277,19,277,20],[272,2,272,5],[272,8,272,11],[272,14,272,17],[272,20,272,23],[274,1,274,5],[274,7,274,11],[274,13,274,17],[274,19,274,23],[270,19,270,20],[270,1,270,2],[270,7,270,8],[270,13,270,14],[271,1,271,2],[271,7,271,8],[271,13,271,14],[271,19,271,20],[268,1,268,5],[268,7,268,11],[268,13,268,17],[268,19,268,23],[269,1,269,2],[269,7,269,8],[269,13,269,14],[269,19,269,20],[266,2,266,5],[266,8,266,11],[266,14,266,17],[266,20,266,23],[263,1,263,2],[263,7,263,8],[263,13,263,14],[263,19,263,20],[264,1,264,2],[264,7,264,8],[264,13,264,14],[264,19,264,20],[265,1,265,2],[265,7,265,8],[265,13,265,14],[265,19,265,20],[261,19,261,20],[262,1,262,5],[262,7,262,11],[262,13,262,17],[262,19,262,23],[258,2,258,5],[258,8,258,11],[258,14,258,17],[258,20,258,23],[261,1,261,2],[261,7,261,8],[261,13,261,14],[256,19,256,20],[257,1,257,2],[257,7,257,8],[257,13,257,14],[257,19,257,20],[255,1,255,2],[255,7,255,8],[255,13,255,14],[255,19,255,20],[256,1,256,2],[256,7,256,8],[256,13,256,14],[252,2,252,5],[252,8,252,11],[252,14,252,17],[252,20,252,23],[254,1,254,5],[254,7,254,11],[254,13,254,17],[254,19,254,23],[250,19,250,20],[249,1,249,2],[249,7,249,8],[249,13,249,14],[249,19,249,20],[250,1,250,2],[250,7,250,8],[250,13,250,14],[246,2,246,5],[246,8,246,11],[246,14,246,17],[246,20,246,23],[248,1,248,5],[248,7,248,11],[248,13,248,17],[248,19,248,23],[251,1,251,2],[251,7,251,8],[251,13,251,14],[251,19,251,20],[244,19,244,20],[243,1,243,2],[243,7,243,8],[243,13,243,14],[243,19,243,20],[244,1,244,2],[244,7,244,8],[244,13,244,14],[240,2,240,5],[240,8,240,11],[240,14,240,17],[240,20,240,23],[242,1,242,5],[242,7,242,11],[242,13,242,17],[242,19,242,23],[245,1,245,2],[245,7,245,8],[245,13,245,14],[245,19,245,20],[238,19,238,20],[238,1,238,2],[238,7,238,8],[238,13,238,14],[236,1,236,5],[236,7,236,11],[236,13,236,17],[236,19,236,23],[237,1,237,2],[237,7,237,8],[237,13,237,14],[237,19,237,20],[239,1,239,2],[239,7,239,8],[239,13,239,14],[239,19,239,20],[234,2,234,5],[234,8,234,11],[234,14,234,17],[234,20,234,23],[231,1,231,2],[231,7,231,8],[231,13,231,14],[231,19,231,20],[232,1,232,2],[232,7,232,8],[232,13,232,14],[232,19,232,20],[229,19,229,20],[230,1,230,5],[230,7,230,11],[230,13,230,17],[230,19,230,23],[233,1,233,2],[233,7,233,8],[233,13,233,14],[233,19,233,20],[226,2,226,5],[226,8,226,11],[226,14,226,17],[226,20,226,23],[229,1,229,2],[229,7,229,8],[229,13,229,14],[224,19,224,20],[223,1,223,2],[223,7,223,8],[223,13,223,14],[223,19,223,20],[224,1,224,2],[224,7,224,8],[224,13,224,14],[225,1,225,2],[225,7,225,8],[225,13,225,14],[225,19,225,20],[220,2,220,5],[220,8,220,11],[220,14,220,17],[220,20,220,23],[222,1,222,5],[222,7,222,11],[222,13,222,17],[222,19,222,23],[218,19,218,20],[217,1,217,2],[217,7,217,8],[217,13,217,14],[217,19,217,20],[218,1,218,2],[218,7,218,8],[218,13,218,14],[219,1,219,2],[219,7,219,8],[219,13,219,14],[219,19,219,20],[214,2,214,5],[214,8,214,11],[214,14,214,17],[214,20,214,23],[216,1,216,5],[216,7,216,11],[216,13,216,17],[216,19,216,23],[212,19,212,20],[211,1,211,2],[211,7,211,8],[211,13,211,14],[211,19,211,20],[212,1,212,2],[212,7,212,8],[212,13,212,14],[213,1,213,2],[213,7,213,8],[213,13,213,14],[213,19,213,20],[208,2,208,5],[208,8,208,11],[208,14,208,17],[208,20,208,23],[210,1,210,5],[210,7,210,11],[210,13,210,17],[210,19,210,23],[206,19,206,20],[206,1,206,2],[206,7,206,8],[206,13,206,14],[207,1,207,2],[207,7,207,8],[207,13,207,14],[207,19,207,20],[204,1,204,5],[204,7,204,11],[204,13,204,17],[204,19,204,23],[205,1,205,2],[205,7,205,8],[205,13,205,14],[205,19,205,20],[202,2,202,5],[202,8,202,11],[202,14,202,17],[202,20,202,23],[199,1,199,2],[199,7,199,8],[199,13,199,14],[199,19,199,20],[200,1,200,2],[200,7,200,8],[200,13,200,14],[200,19,200,20],[201,1,201,2],[201,7,201,8],[201,13,201,14],[201,19,201,20],[197,19,197,20],[198,1,198,5],[198,7,198,11],[198,13,198,17],[198,19,198,23],[194,2,194,5],[194,8,194,11],[194,14,194,17],[194,20,194,23],[197,1,197,2],[197,7,197,8],[197,13,197,14],[192,19,192,20],[193,1,193,2],[193,7,193,8],[193,13,193,14],[193,19,193,20],[191,1,191,2],[191,7,191,8],[191,13,191,14],[191,19,191,20],[192,1,192,2],[192,7,192,8],[192,13,192,14],[188,2,188,5],[188,8,188,11],[188,14,188,17],[188,20,188,23],[190,1,190,5],[190,7,190,11],[190,13,190,17],[190,19,190,23],[186,19,186,20],[185,1,185,2],[185,7,185,8],[185,13,185,14],[185,19,185,20],[186,1,186,2],[186,7,186,8],[186,13,186,14],[182,2,182,5],[182,8,182,11],[182,14,182,17],[182,20,182,23],[184,1,184,5],[184,7,184,11],[184,13,184,17],[184,19,184,23],[187,1,187,2],[187,7,187,8],[187,13,187,14],[187,19,187,20],[180,19,180,20],[179,1,179,2],[179,7,179,8],[179,13,179,14],[179,19,179,20],[180,1,180,2],[180,7,180,8],[180,13,180,14],[176,2,176,5],[176,8,176,11],[176,14,176,17],[176,20,176,23],[178,1,178,5],[178,7,178,11],[178,13,178,17],[178,19,178,23],[181,1,181,2],[181,7,181,8],[181,13,181,14],[181,19,181,20],[174,19,174,20],[174,1,174,2],[174,7,174,8],[174,13,174,14],[172,1,172,5],[172,7,172,11],[172,13,172,17],[172,19,172,23],[173,1,173,2],[173,7,173,8],[173,13,173,14],[173,19,173,20],[175,1,175,2],[175,7,175,8],[175,13,175,14],[175,19,175,20],[170,2,170,5],[170,8,170,11],[170,14,170,17],[170,20,170,23],[167,1,167,2],[167,7,167,8],[167,13,167,14],[167,19,167,20],[168,1,168,2],[168,7,168,8],[168,13,168,14],[168,19,168,20],[165,19,165,20],[166,1,166,5],[166,7,166,11],[166,13,166,17],[166,19,166,23],[169,1,169,2],[169,7,169,8],[169,13,169,14],[169,19,169,20],[162,2,162,5],[162,8,162,11],[162,14,162,17],[162,20,162,23],[165,1,165,2],[165,7,165,8],[165,13,165,14],[160,19,160,20],[159,1,159,2],[159,7,159,8],[159,13,159,14],[159,19,159,20],[160,1,160,2],[160,7,160,8],[160,13,160,14],[161,1,161,2],[161,7,161,8],[161,13,161,14],[161,19,161,20],[156,2,156,5],[156,8,156,11],[156,14,156,17],[156,20,156,23],[158,1,158,5],[158,7,158,11],[158,13,158,17],[158,19,158,23],[154,19,154,20],[153,1,153,2],[153,7,153,8],[153,13,153,14],[153,19,153,20],[154,1,154,2],[154,7,154,8],[154,13,154,14],[155,1,155,2],[155,7,155,8],[155,13,155,14],[155,19,155,20],[150,2,150,5],[150,8,150,11],[150,14,150,17],[150,20,150,23],[152,1,152,5],[152,7,152,11],[152,13,152,17],[152,19,152,23],[148,19,148,20],[147,1,147,2],[147,7,147,8],[147,13,147,14],[147,19,147,20],[148,1,148,2],[148,7,148,8],[148,13,148,14],[149,1,149,2],[149,7,149,8],[149,13,149,14],[149,19,149,20],[144,2,144,5],[144,8,144,11],[144,14,144,17],[144,20,144,23],[146,1,146,5],[146,7,146,11],[146,13,146,17],[146,19,146,23],[142,19,142,20],[142,1,142,2],[142,7,142,8],[142,13,142,14],[143,1,143,2],[143,7,143,8],[143,13,143,14],[143,19,143,20],[140,1,140,5],[140,7,140,11],[140,13,140,17],[140,19,140,23],[141,1,141,2],[141,7,141,8],[141,13,141,14],[141,19,141,20],[138,2,138,5],[138,8,138,11],[138,14,138,17],[138,20,138,23],[135,1,135,2],[135,7,135,8],[135,13,135,14],[135,19,135,20],[136,1,136,2],[136,7,136,8],[136,13,136,14],[136,19,136,20],[137,1,137,2],[137,7,137,8],[137,13,137,14],[137,19,137,20],[133,19,133,20],[134,1,134,5],[134,7,134,11],[134,13,134,17],[134,19,134,23],[130,2,130,5],[130,8,130,11],[130,14,130,17],[130,20,130,23],[133,1,133,2],[133,7,133,8],[133,13,133,14],[128,19,128,20],[129,1,129,2],[129,7,129,8],[129,13,129,14],[129,19,129,20],[127,1,127,2],[127,7,127,8],[127,13,127,14],[127,19,127,20],[128,1,128,2],[128,7,128,8],[128,13,128,14],[124,2,124,5],[124,8,124,11],[124,14,124,17],[124,20,124,23],[126,1,126,5],[126,7,126,11],[126,13,126,17],[126,19,126,23],[122,19,122,20],[121,1,121,2],[121,7,121,8],[121,13,121,14],[121,19,121,20],[122,1,122,2],[122,7,122,8],[122,13,122,14],[118,2,118,5],[118,8,118,11],[118,14,118,17],[118,20,118,23],[120,1,120,5],[120,7,120,11],[120,13,120,17],[120,19,120,23],[123,1,123,2],[123,7,123,8],[123,13,123,14],[123,19,123,20],[116,19,116,20],[115,1,115,2],[115,7,115,8],[115,13,115,14],[115,19,115,20],[116,1,116,2],[116,7,116,8],[116,13,116,14],[112,2,112,5],[112,8,112,11],[112,14,112,17],[112,20,112,23],[114,1,114,5],[114,7,114,11],[114,13,114,17],[114,19,114,23],[117,1,117,2],[117,7,117,8],[117,13,117,14],[117,19,117,20],[110,19,110,20],[110,1,110,2],[110,7,110,8],[110,13,110,14],[108,1,108,5],[108,7,108,11],[108,13,108,17],[108,19,108,23],[109,1,109,2],[109,7,109,8],[109,13,109,14],[109,19,109,20],[111,1,111,2],[111,7,111,8],[111,13,111,14],[111,19,111,20],[106,2,106,5],[106,8,106,11],[106,14,106,17],[106,20,106,23],[103,1,103,2],[103,7,103,8],[103,13,103,14],[103,19,103,20],[104,1,104,2],[104,7,104,8],[104,13,104,14],[104,19,104,20],[101,19,101,20],[102,1,102,5],[102,7,102,11],[102,13,102,17],[102,19,102,23],[105,1,105,2],[105,7,105,8],[105,13,105,14],[105,19,105,20],[98,2,98,5],[98,8,98,11],[98,14,98,17],[98,20,98,23],[101,1,101,2],[101,7,101,8],[101,13,101,14],[96,19,96,20],[95,1,95,2],[95,7,95,8],[95,13,95,14],[95,19,95,20],[96,1,96,2],[96,7,96,8],[96,13,96,14],[97,1,97,2],[97,7,97,8],[97,13,97,14],[97,19,97,20],[92,2,92,5],[92,8,92,11],[92,14,92,17],[92,20,92,23],[94,1,94,5],[94,7,94,11],[94,13,94,17],[94,19,94,23],[90,19,90,20],[89,1,89,2],[89,7,89,8],[89,13,89,14],[89,19,89,20],[90,1,90,2],[90,7,90,8],[90,13,90,14],[91,1,91,2],[91,7,91,8],[91,13,91,14],[91,19,91,20],[86,2,86,5],[86,8,86,11],[86,14,86,17],[86,20,86,23],[88,1,88,5],[88,7,88,11],[88,13,88,17],[88,19,88,23],[84,19,84,20],[83,1,83,2],[83,7,83,8],[83,13,83,14],[83,19,83,20],[84,1,84,2],[84,7,84,8],[84,13,84,14],[85,1,85,2],[85,7,85,8],[85,13,85,14],[85,19,85,20],[80,2,80,5],[80,8,80,11],[80,14,80,17],[80,20,80,23],[82,1,82,5]],"merged_total":1145,"flags":["merged_cut"]}
[]
[null,"occultisme","base","évolution","max","effort occulte en cours","Niv",null,"évolution","coût xp occulte",null,"Apprentissage de sort"]
[null,null,{"$f":"CEILING(5*(caractéritiques!E13+caractéritiques!F13)/2, 1)","v":0},null,{"$f":"C3+D3","v":0},null,{"$f":"IF(E3>1999,4,IF(E3>1499,3,IF(E3>999,2,IF(E3>499,1,0))))","v":0},null,"maîtrise",1,null,"Dépensé",{"$f":"IFERROR(SUMIF(F8:F387,\"*oui*\",F9:F388)+SUMIF(L8:L387,\"*oui*\",L9:L388)+SUMIF(R8:R387,\"*oui*\",R9:R388)+SUMIF(X8:X387,\"*oui*\",X9:X388),0)","v":0},"maîtrise",{"$f":"SUMIF(D:D,\"*\"&N3&\"*\",E:E)+SUMIF(J:J,\"*\"&N3&\"*\",K:K)+SUMIF(P:P,\"*\"&N3&\"*\",Q:Q)+SUMIF(V:V,\"*\"&N3&\"*\",W:W)","v":0}]
[null,null,null,null,null,null,null,null,"occultisme",2]
[]
[null,"double vue",null,"maîtrise",null,{"$f":"IF(AND($G$3>3,E6>399),4,IF(AND($G$3>2,E6>299),3,IF(AND($G$3>1,E6>199),2,IF(AND($G$3>0,E6>0),1,0))))","v":0},null,null,null,"maîtrise",0,{"$f":"IF(AND($G$3>3,K6>399),4,IF(AND($G$3>2,K6>299),3,IF(AND($G$3>1,K6>199),2,IF(AND($G$3>0,K6>0),1,0))))","v":0}]
[null,"Stance 1",null,null,null,null,null,"Stance 1"]
[null,"difficulté",null,{"$f":"IFERROR(VLOOKUP(B6,'annexe dépense occulte'!$R$2:$BQ$132,3,FALSE),\"\")","v":20},"création","oui",null,"difficulté",null,{"$f":"IFERROR(VLOOKUP(H6,'annexe dépense occulte'!$R$2:$BQ$132,3,FALSE),\"\")","v":""},"création","non"]
[null,"coût occultisme",null,{"$f":"IFERROR(VLOOKUP(B6,'annexe dépense occulte'!$R$2:$BQ$133,4,FALSE),\"\")","v":50},"coût apprentissage",{"$f":"IFERROR(VLOOKUP(B6,'annexe dépense occulte'!$R$2:$BQ$133,27,FALSE),\"\")","v":0},null,"coût occultisme",null,{"$f":"IFERROR(VLOOKUP(H6,'annexe dépense occulte'!$R$2:$BQ$133,4,FALSE),\"\")","v":""},"coût apprentissage",{"$f":"IFERROR(VLOOKUP(H6,'annexe dépense occulte'!$R$2:$BQ$133,27,FALSE),\"\")","v":""}]
[null,"maintien",null,{"$f":"IFERROR(VLOOKUP(B6,'annexe dépense occulte'!$R$2:$BQ$133,5,FALSE),\"\")","v":"50 quotidien"},"coût action",{"$f":"IFERROR(VLOOKUP(B6,'annexe dépense occulte'!$R$2:$BQ$133,2,FALSE),\"\")","v":"tour complet"},null,"maintien",null,{"$f":"IFERROR(VLOOKUP(H6,'annexe dépense occulte'!$R$2:$BQ$133,5,FALSE),\"\")","v":""},"coût action",{"$f":"IFERROR(VLOOKUP(H6,'annexe dépense occulte'!$R$2:$BQ$133,2,FALSE),\"\")","v":""}]
[null,"effet",{"$f":"IFERROR(VLOOKUP(B6,'annexe dépense occulte'!$R$2:$BQ$133,6,FALSE),\"\")","v":"permet au joueur de voir ou d’exister dans l’Outremonde."},null,null,null,null,"effet",{"$f":"IFERROR(VLOOKUP(H6,'annexe dépense occulte'!$R$2:$BQ$133,6,FALSE),\"\")","v":""}]
[]
[null,"Stance 2",null,null,null,null,null,"Stance 2"]
[null,"difficulté",null,{"$f":"IFERROR(VLOOKUP(B6,'annexe dépense occulte'!$R$2:$BQ$132,8,FALSE),\"\")","v":30},"débloquée","non",null,"difficulté",null,{"$f":"IFERROR(VLOOKUP(H6,'annexe dépense occulte'!$R$2:$BQ$132,8,FALSE),\"\")","v":""},"débloquée","non"]
[null,"coût occultisme",null,{"$f":"IFERROR(VLOOKUP(B6,'annexe dépense occulte'!$R$2:$BQ$132,9,FALSE),\"\")","v":100},"coût appren",{"$f":"IFERROR(VLOOKUP(B6,'annexe dépense occulte'!$R$2:$BQ$133,7,FALSE),\"\")","v":10},null,"coût occultisme",null,{"$f":"IFERROR(VLOOKUP(H6,'annexe dépense occulte'!$R$2:$BQ$132,9,FALSE),\"\")","v":""},"coût appren",{"$f":"IFERROR(VLOOKUP(H6,'annexe dépense occulte'!$R$2:$BQ$133,7,FALSE),\"\")","v":""}]
[null,"maintien",null,{"$f":"IFERROR(VLOOKUP(B6,'annexe dépense occulte'!$R$2:$BQ$132,10,FALSE),\"\")","v":"100 quotidien"},"coût action",{"$f":"IFERROR(VLOOKUP(B6,'annexe dépense occulte'!$R$2:$BQ$133,2,FALSE),\"\")","v":"tour complet"},null,"maintien",null,{"$f":"IFERROR(VLOOKUP(H6,'annexe dépense occulte'!$R$2:$BQ$132,10,FALSE),\"\")","v":""},"coût action",{"$f":"IFERROR(VLOOKUP(H6,'annexe dépense occulte'!$R$2:$BQ$133,2,FALSE),\"\")","v":""}]
[null,"effet",{"$f":"IFERROR(VLOOKUP(B6,'annexe dépense occulte'!$R$2:$BQ$132,11,FALSE),\"\")","v":"permet au lanceur de sort de voir ou d'exister dans une superposition de l'Outremonde et du monde humain."},null,null,null,null,"effet",{"$f":"IFERROR(VLOOKUP(H6,'annexe dépense occulte'!$R$2:$BQ$132,11,FALSE),\"\")","v":""}]
[]
[null,"Stance 3",null,null,null,null,null,"Stance 3"]
[null,"difficulté",null,{"$f":"IFERROR(VLOOKUP(B6,'annexe dépense occulte'!$R$2:$BQ$132,13,FALSE),\"\")","v":40},"débloquée","non",null,"difficulté",null,{"$f":"IFERROR(VLOOKUP(H6,'annexe dépense occulte'!$R$2:$BQ$132,13,FALSE),\"\")","v":""},"débloquée","non"]
[null,"coût occultisme",null,{"$f":"IFERROR(VLOOKUP(B6,'annexe dépense occulte'!$R$2:$BQ$132,14,FALSE),\"\")","v":150},"coût appren",{"$f":"IFERROR(VLOOKUP(B6,'annexe dépense occulte'!$R$2:$BQ$133,12,FALSE),\"\")","v":15},null,"coût occultisme",null,{"$f":"IFERROR(VLOOKUP(H6,'annexe dépense occulte'!$R$2:$BQ$132,14,FALSE),\"\")","v":""},"coût appren",{"$f":"IFERROR(VLOOKUP(H6,'annexe dépense occulte'!$R$2:$BQ$133,12,FALSE),\"\")","v":""}]
[null,"maintien",null,{"$f":"IFERROR(VLOOKUP(B6,'annexe dépense occulte'!$R$2:$BQ$132,15,FALSE),\"\")","v":"150 quotidien"},"coût action",{"$f":"IFERROR(VLOOKUP(B6,'annexe dépense occulte'!$R$2:$BQ$133,2,FALSE),\"\")","v":"tour complet"},null,"maintien",null,{"$f":"IFERROR(VLOOKUP(H6,'annexe dépense occulte'!$R$2:$BQ$132,15,FALSE),\"\")","v":""},"coût action",{"$f":"IFERROR(VLOOKUP(H6,'annexe dépense occulte'!$R$2:$BQ$133,2,FALSE),\"\")","v":""}]
[null,"effet",{"$f":"IFERROR(VLOOKUP(B6,'annexe dépense occulte'!$R$2:$BQ$132,16,FALSE),\"\")","v":" - stance 1\n - stance 2\n - +30 vigilance et recherche"},null,null,null,null,"effet",{"$f":"IFERROR(VLOOKUP(H6,'annexe dépense occulte'!$R$2:$BQ$132,16,FALSE),\"\")","v":""}]
[]
[null,"Stance 4",null,null,null,null,null,"Stance 4"]
[null,"difficulté",null,{"$f":"IFERROR(VLOOKUP(B6,'annexe dépense occulte'!$R$2:$BQ$132,18,FALSE),\"\")","v":50},"débloquée","non",null,"difficulté",null,{"$f":"IFERROR(VLOOKUP(H6,'annexe dépense occulte'!$R$2:$BQ$132,18,FALSE),\"\")","v":""},"débloquée","non"]
[null,"coût occultisme",null,{"$f":"IFERROR(VLOOKUP(B6,'annexe dépense occulte'!$R$2:$BQ$132,19,FALSE),\"\")","v":250},"coût appren",{"$f":"IFERROR(VLOOKUP(B6,'annexe dépense occulte'!$R$2:$BQ$133,17,FALSE),\"\")","v":25},null,"coût occultisme",null,{"$f":"IFERROR(VLOOKUP(H6,'annexe dépense occulte'!$R$2:$BQ$132,19,FALSE),\"\")","v":""},"coût appren",{"$f":"IFERROR(VLOOKUP(H6,'annexe dépense occulte'!$R$2:$BQ$133,17,FALSE),\"\")","v":""}]
[null,"maintien",null,{"$f":"IFERROR(VLOOKUP(B6,'annexe dépense occulte'!$R$2:$BQ$132,20,FALSE),\"\")","v":"250 quotidien"},"coût action",{"$f":"IFERROR(VLOOKUP(B6,'annexe dépense occulte'!$R$2:$BQ$133,2,FALSE),\"\")","v":"tour complet"},null,"maintien",null,{"$f":"IFERROR(VLOOKUP(H6,'annexe dépense occulte'!$R$2:$BQ$132,20,FALSE),\"\")","v":""},"coût action",{"$f":"IFERROR(VLOOKUP(H6,'annexe dépense occulte'!$R$2:$BQ$133,2,FALSE),\"\")","v":""}]
[null,"effet",{"$f":"IFERROR(VLOOKUP(B6,'annexe dépense occulte'!$R$2:$BQ$132,21,FALSE),\"\")","v":" -stance 3\n -le lanceur de sort peut voir l’aura occulte des créature, ainsi il peut détecter les créatures de l’Outremonde ainsi que les créature de notre monde capable de lancer des sorts. \n -+15 tir"},null,null,null,null,"effet",{"$f":"IFERROR(VLOOKUP(H6,'annexe dépense occulte'!$R$2:$BQ$132,21,FALSE),\"\")","v":""}]
[]
[null,"Stance 5",null,null,null,null,null,"Stance 5"]
[null,"difficulté",null,{"$f":"IFERROR(VLOOKUP(B6,'annexe dépense occulte'!$R$2:$BQ$132,23,FALSE),\"\")","v":70},"débloquée","non",null,"difficulté",null,{"$f":"IFERROR(VLOOKUP(H6,'annexe dépense occulte'!$R$2:$BQ$132,23,FALSE),\"\")","v":""},"débloquée","non"]
[null,"coût occultisme",null,{"$f":"IFERROR(VLOOKUP(B6,'annexe dépense occulte'!$R$2:$BQ$132,24,FALSE),\"\")","v":350},"coût appren",{"$f":"IFERROR(VLOOKUP(B6,'annexe dépense occulte'!$R$2:$BQ$133,22,FALSE),\"\")","v":45},null,"coût occultisme",null,{"$f":"IFERROR(VLOOKUP(H6,'annexe dépense occulte'!$R$2:$BQ$132,24,FALSE),\"\")","v":""},"coût appren",{"$f":"IFERROR(VLOOKUP(H6,'annexe dépense occulte'!$R$2:$BQ$133,22,FALSE),\"\")","v":""}]
[null,"maintien",null,{"$f":"IFERROR(VLOOKUP(B6,'annexe dépense occulte'!$R$2:$BQ$132,25,FALSE),\"\")","v":"350 quotidien"},"coût action",{"$f":"IFERROR(VLOOKUP(B6,'annexe dépense occulte'!$R$2:$BQ$133,2,FALSE),\"\")","v":"tour complet"},null,"maintien",null,{"$f":"IFERROR(VLOOKUP(H6,'annexe dépense occulte'!$R$2:$BQ$132,25,FALSE),\"\")","v":""},"coût action",{"$f":"IFERROR(VLOOKUP(H6,'annexe dépense occulte'!$R$2:$BQ$133,2,FALSE),\"\")","v":""}]
[null,"effet",{"$f":"IFERROR(VLOOKUP(B6,'annexe dépense occulte'!$R$2:$BQ$132,26,FALSE),\"\")","v":" -stance 4\n -+20 vigilance et recherche\n -+10 tir"},null,null,null,null,"effet",{"$f":"IFERROR(VLOOKUP(H6,'annexe dépense occulte'!$R$2:$BQ$132,26,FALSE),\"\")","v":""}]
[]
[]
[null,null,null,"maîtrise",0,{"$f":"IF(AND($G$3>3,E38>399),4,IF(AND($G$3>2,E38>299),3,IF(AND($G$3>1,E38>199),2,IF(AND($G$3>0,E38>0),1,0))))","v":0},null,null,null,"maîtrise",0,{"$f":"IF(AND($G$3>3,K38>399),4,IF(AND($G$3>2,K38>299),3,IF(AND($G$3>1,K38>199),2,IF(AND($G$3>0,K38>0),1,0))))","v":0}]
[null,"Stance 1",null,null,null,null,null,"Stance 1"]
[null,"difficulté",null,{"$f":"IFERROR(VLOOKUP(B38,'annexe dépense occulte'!$R$2:$BQ$132,3,FALSE),\"\")","v":""},"création","non",null,"difficulté",null,{"$f":"IFERROR(VLOOKUP(H38,'annexe dépense occulte'!$R$2:$BQ$132,3,FALSE),\"\")","v":""},"création","non"]
[null,"coût occultisme",null,{"$f":"IFERROR(VLOOKUP(B38,'annexe dépense occulte'!$R$2:$BQ$133,4,FALSE),\"\")","v":""},"coût apprentissage",{"$f":"IFERROR(VLOOKUP(B38,'annexe dépense occulte'!$R$2:$BQ$133,27,FALSE),\"\")","v":""},null,"coût occultisme",null,{"$f":"IFERROR(VLOOKUP(H38,'annexe dépense occulte'!$R$2:$BQ$133,4,FALSE),\"\")","v":""},"coût apprentissage",{"$f":"IFERROR(VLOOKUP(H38,'annexe dépense occulte'!$R$2:$BQ$133,27,FALSE),\"\")","v":""}]
[null,"maintien",null,{"$f":"IFERROR(VLOOKUP(B38,'annexe dépense occulte'!$R$2:$BQ$133,5,FALSE),\"\")","v":""},"coût action",{"$f":"IFERROR(VLOOKUP(B38,'annexe dépense occulte'!$R$2:$BQ$133,2,FALSE),\"\")","v":""},null,"maintien",null,{"$f":"IFERROR(VLOOKUP(H38,'annexe dépense occulte'!$R$2:$BQ$133,5,FALSE),\"\")","v":""},"coût action",{"$f":"IFERROR(VLOOKUP(H38,'annexe dépense occulte'!$R$2:$BQ$133,2,FALSE),\"\")","v":""}]
[null,"effet",{"$f":"IFERROR(VLOOKUP(B38,'annexe dépense occulte'!$R$2:$BQ$133,6,FALSE),\"\")","v":""},null,null,null,null,"effet",{"$f":"IFERROR(VLOOKUP(H38,'annexe dépense occulte'!$R$2:$BQ$133,6,FALSE),\"\")","v":""}]
[]
[null,"Stance 2",null,null,null,null,null,"Stance 2"]
[null,"difficulté",null,{"$f":"IFERROR(VLOOKUP(B38,'annexe dépense occulte'!$R$2:$BQ$132,8,FALSE),\"\")","v":""},"débloquée","non",null,"difficulté",null,{"$f":"IFERROR(VLOOKUP(H38,'annexe dépense occulte'!$R$2:$BQ$132,8,FALSE),\"\")","v":""},"débloquée","non"]
[null,"coût occultisme",null,{"$f":"IFERROR(VLOOKUP(B38,'annexe dépense occulte'!$R$2:$BQ$132,9,FALSE),\"\")","v":""},"coût appren",{"$f":"IFERROR(VLOOKUP(B38,'annexe dépense occulte'!$R$2:$BQ$133,7,FALSE),\"\")","v":""},null,"coût occultisme",null,{"$f":"IFERROR(VLOOKUP(H38,'annexe dépense occulte'!$R$2:$BQ$132,9,FALSE),\"\")","v":""},"coût appren",{"$f":"IFERROR(VLOOKUP(H38,'annexe dépense occulte'!$R$2:$BQ$133,7,FALSE),\"\")","v":""}]
[null,"maintien",null,{"$f":"IFERROR(VLOOKUP(B38,'annexe dépense occulte'!$R$2:$BQ$132,10,FALSE),\"\")","v":""},"coût action",{"$f":"IFERROR(VLOOKUP(B38,'annexe dépense occulte'!$R$2:$BQ$133,2,FALSE),\"\")","v":""},null,"maintien",null,{"$f":"IFERROR(VLOOKUP(H38,'annexe dépense occulte'!$R$2:$BQ$132,10,FALSE),\"\")","v":""},"coût action",{"$f":"IFERROR(VLOOKUP(H38,'annexe dépense occulte'!$R$2:$BQ$133,2,FALSE),\"\")","v":""}]
[null,"effet",{"$f":"IFERROR(VLOOKUP(B38,'annexe dépense occulte'!$R$2:$BQ$132,11,FALSE),\"\")","v":""},null,null,null,null,"effet",{"$f":"IFERROR(VLOOKUP(H38,'annexe dépense occulte'!$R$2:$BQ$132,11,FALSE),\"\")","v":""}]
[]
[null,"Stance 3",null,null,null,null,null,"Stance 3"]
[null,"difficulté",null,{"$f":"IFERROR(VLOOKUP(B38,'annexe dépense occulte'!$R$2:$BQ$132,13,FALSE),\"\")","v":""},"débloquée","non",null,"difficulté",null,{"$f":"IFERROR(VLOOKUP(H38,'annexe dépense occulte'!$R$2:$BQ$132,13,FALSE),\"\")","v":""},"débloquée","non"]
[null,"coût occultisme",null,{"$f":"IFERROR(VLOOKUP(B38,'annexe dépense occulte'!$R$2:$BQ$132,14,FALSE),\"\")","v":""},"coût appren",{"$f":"IFERROR(VLOOKUP(B38,'annexe dépense occulte'!$R$2:$BQ$133,12,FALSE),\"\")","v":""},null,"coût occultisme",null,{"$f":"IFERROR(VLOOKUP(H38,'annexe dépense occulte'!$R$2:$BQ$132,14,FALSE),\"\")","v":""},"coût appren",{"$f":"IFERROR(VLOOKUP(H38,'annexe dépense occulte'!$R$2:$BQ$133,12,FALSE),\"\")","v":""}]
[null,"maintien",null,{"$f":"IFERROR(VLOOKUP(B38,'annexe dépense occulte'!$R$2:$BQ$132,15,FALSE),\"\")","v":""},"coût action",{"$f":"IFERROR(VLOOKUP(B38,'annexe dépense occulte'!$R$2:$BQ$133,2,FALSE),\"\")","v":""},null,"maintien",null,{"$f":"IFERROR(VLOOKUP(H38,'annexe dépense occulte'!$R$2:$BQ$132,15,FALSE),\"\")","v":""},"coût action",{"$f":"IFERROR(VLOOKUP(H38,'annexe dépense occulte'!$R$2:$BQ$133,2,FALSE),\"\")","v":""}]
[null,"effet",{"$f":"IFERROR(VLOOKUP(B38,'annexe dépense occulte'!$R$2:$BQ$132,16,FALSE),\"\")","v":""},null,null,null,null,"effet",{"$f":"IFERROR(VLOOKUP(H38,'annexe dépense occulte'!$R$2:$BQ$132,16,FALSE),\"\")","v":""}]
[]
[null,"Stance 4",null,null,null,null,null,"Stance 4"]
[null,"difficulté",null,{"$f":"IFERROR(VLOOKUP(B38,'annexe dépense occulte'!$R$2:$BQ$132,18,FALSE),\"\")","v":""},"débloquée","non",null,"difficulté",null,{"$f":"IFERROR(VLOOKUP(H38,'annexe dépense occulte'!$R$2:$BQ$132,18,FALSE),\"\")","v":""},"débloquée","non"]
[null,"coût occultisme",null,{"$f":"IFERROR(VLOOKUP(B38,'annexe dépense occulte'!$R$2:$BQ$132,19,FALSE),\"\")","v":""},"coût appren",{"$f":"IFERROR(VLOOKUP(B38,'annexe dépense occulte'!$R$2:$BQ$133,17,FALSE),\"\")","v":""},null,"coût occultisme",null,{"$f":"IFERROR(VLOOKUP(H38,'annexe dépense occulte'!$R$2:$BQ$132,19,FALSE),\"\")","v":""},"coût appren",{"$f":"IFERROR(VLOOKUP(H38,'annexe dépense occulte'!$R$2:$BQ$133,17,FALSE),\"\")","v":""}]
[null,"maintien",null,{"$f":"IFERROR(VLOOKUP(B38,'annexe dépense occulte'!$R$2:$BQ$132,20,FALSE),\"\")","v":""},"coût action",{"$f":"IFERROR(VLOOKUP(B38,'annexe dépense occulte'!$R$2:$BQ$133,2,FALSE),\"\")","v":""},null,"maintien",null,{"$f":"IFERROR(VLOOKUP(H38,'annexe dépense occulte'!$R$2:$BQ$132,20,FALSE),\"\")","v":""},"coût action",{"$f":"IFERROR(VLOOKUP(H38,'annexe dépense occulte'!$R$2:$BQ$133,2,FALSE),\"\")","v":""}]
[null,"effet",{"$f":"IFERROR(VLOOKUP(B38,'annexe dépense occulte'!$R$2:$BQ$132,21,FALSE),\"\")","v":""},null,null,null,null,"effet",{"$f":"IFERROR(VLOOKUP(H38,'annexe dépense occulte'!$R$2:$BQ$132,21,FALSE),\"\")","v":""}]
[]
[null,"Stance 5",null,null,null,null,null,"Stance 5"]
[null,"difficulté",null,{"$f":"IFERROR(VLOOKUP(B38,'annexe dépense occulte'!$R$2:$BQ$132,23,FALSE),\"\")","v":""},"débloquée","non",null,"difficulté",null,{"$f":"IFERROR(VLOOKUP(H38,'annexe dépense occulte'!$R$2:$BQ$132,23,FALSE),\"\")","v":""},"débloquée","non"]
[null,"coût occultisme",null,{"$f":"IFERROR(VLOOKUP(B38,'annexe dépense occulte'!$R$2:$BQ$132,24,FALSE),\"\")","v":""},"coût appren",{"$f":"IFERROR(VLOOKUP(B38,'annexe dépense occulte'!$R$2:$BQ$133,22,FALSE),\"\")","v":""},null,"coût occultisme",null,{"$f":"IFERROR(VLOOKUP(H38,'annexe dépense occulte'!$R$2:$BQ$132,24,FALSE),\"\")","v":""},"coût appren",{"$f":"IFERROR(VLOOKUP(H38,'annexe dépense occulte'!$R$2:$BQ$133,22,FALSE),\"\")","v":""}]
[null,"maintien",null,{"$f":"IFERROR(VLOOKUP(B38,'annexe dépense occulte'!$R$2:$BQ$132,25,FALSE),\"\")","v":""},"coût action",{"$f":"IFERROR(VLOOKUP(B38,'annexe dépense occulte'!$R$2:$BQ$133,2,FALSE),\"\")","v":""},null,"maintien",null,{"$f":"IFERROR(VLOOKUP(H38,'annexe dépense occulte'!$R$2:$BQ$132,25,FALSE),\"\")","v":""},"coût action",{"$f":"IFERROR(VLOOKUP(H38,'annexe dépense occulte'!$R$2:$BQ$133,2,FALSE),\"\")","v":""}]
[null,"effet",{"$f":"IFERROR(VLOOKUP(B38,'annexe dépense occulte'!$R$2:$BQ$132,26,FALSE),\"\")","v":""},null,null,null,null,"effet",{"$f":"IFERROR(VLOOKUP(H38,'annexe dépense occulte'!$R$2:$BQ$132,26,FALSE),\"\")","v":""}]
[]
[]
[null,null,null,"maîtrise",0,{"$f":"IF(AND($G$3>3,E70>399),4,IF(AND($G$3>2,E70>299),3,IF(AND($G$3>1,E70>199),2,IF(AND($G$3>0,E70>0),1,0))))","v":0},null,null,null,"maîtrise",0,{"$f":"IF(AND($G$3>3,K70>399),4,IF(AND($G$3>2,K70>299),3,IF(AND($G$3>1,K70>199),2,IF(AND($G$3>0,K70>0),1,0))))","v":0},null,null,null,"maîtrise",null,{"$f":"IF(AND($G$3>3,Q70>399),4,IF(AND($G$3>2,Q70>299),3,IF(AND($G$3>1,Q70>199),2,IF(AND($G$3>0,Q70>0),1,0))))","v":0},null,null,null,"maîtrise",0,{"$f":"IF(AND($G$3>3,W70>399),4,IF(AND($G$3>2,W70>299),3,IF(AND($G$3>1,W70>199),2,IF(AND($G$3>0,W70>0),1,0))))","v":0}]
[null,"Stance 1",null,null,null,null,null,"Stance 1",null,null,null,null,null,"Stance 1",null,null,null,null,null,"Stance 1"]
[null,"difficulté",null,{"$f":"IFERROR(VLOOKUP(B70,'annexe dépense occulte'!$R$2:$BQ$132,3,FALSE),\"\")","v":""},"création","non",null,"difficulté",null,{"$f":"IFERROR(VLOOKUP(H70,'annexe dépense occulte'!$R$2:$BQ$132,3,FALSE),\"\")","v":""},"création","non",null,"difficulté",null,{"$f":"IFERROR(VLOOKUP(N70,'annexe dépense occulte'!$R$2:$BQ$132,3,FALSE),\"\")","v":""},"création","non",null,"difficulté",null,{"$f":"IFERROR(VLOOKUP(T70,'annexe dépense occulte'!$R$2:$BQ$132,3,FALSE),\"\")","v":""},"création","non"]
[null,"coût occultisme",null,{"$f":"IFERROR(VLOOKUP(B70,'annexe dépense occulte'!$R$2:$BQ$133,4,FALSE),\"\")","v":""},"coût apprentissage",{"$f":"IFERROR(VLOOKUP(B70,'annexe dépense occulte'!$R$2:$BQ$133,27,FALSE),\"\")","v":""},null,"coût occultisme",null,{"$f":"IFERROR(VLOOKUP(H70,'annexe dépense occulte'!$R$2:$BQ$133,4,FALSE),\"\")","v":""},"coût apprentissage",{"$f":"IFERROR(VLOOKUP(H70,'annexe dépense occulte'!$R$2:$BQ$133,27,FALSE),\"\")","v":""},null,"coût occultisme",null,{"$f":"IFERROR(VLOOKUP(N70,'annexe dépense occulte'!$R$2:$BQ$133,4,FALSE),\"\")","v":""},"coût apprentissage",{"$f":"IFERROR(VLOOKUP(N70,'annexe dépense occulte'!$R$2:$BQ$133,27,FALSE),\"\")","v":""},null,"coût occultisme",null,{"$f":"IFERROR(VLOOKUP(T70,'annexe dépense occulte'!$R$2:$BQ$133,4,FALSE),\"\")","v":""},"coût apprentissage",{"$f":"IFERROR(VLOOKUP(T70,'annexe dépense occulte'!$R$2:$BQ$133,27,FALSE),\"\")","v":""}]
[null,"maintien",null,{"$f":"IFERROR(VLOOKUP(B70,'annexe dépense occulte'!$R$2:$BQ$133,5,FALSE),\"\")","v":""},"coût action",{"$f":"IFERROR(VLOOKUP(B70,'annexe dépense occulte'!$R$2:$BQ$133,2,FALSE),\"\")","v":""},null,"maintien",null,{"$f":"IFERROR(VLOOKUP(H70,'annexe dépense occulte'!$R$2:$BQ$133,5,FALSE),\"\")","v":""},"coût action",{"$f":"IFERROR(VLOOKUP(H70,'annexe dépense occulte'!$R$2:$BQ$133,2,FALSE),\"\")","v":""},null,"maintien",null,{"$f":"IFERROR(VLOOKUP(N70,'annexe dépense occulte'!$R$2:$BQ$133,5,FALSE),\"\")","v":""},"coût action",{"$f":"IFERROR(VLOOKUP(N70,'annexe dépense occulte'!$R$2:$BQ$133,2,FALSE),\"\")","v":""},null,"maintien",null,{"$f":"IFERROR(VLOOKUP(T70,'annexe dépense occulte'!$R$2:$BQ$133,5,FALSE),\"\")","v":""},"coût action",{"$f":"IFERROR(VLOOKUP(T70,'annexe dépense occulte'!$R$2:$BQ$133,2,FALSE),\"\")","v":""}]
[null,"effet",{"$f":"IFERROR(VLOOKUP(B70,'annexe dépense occulte'!$R$2:$BQ$133,6,FALSE),\"\")","v":""},null,null,null,null,"effet",{"$f":"IFERROR(VLOOKUP(H70,'annexe dépense occulte'!$R$2:$BQ$133,6,FALSE),\"\")","v":""},null,null,null,null,"effet",{"$f":"IFERROR(VLOOKUP(N70,'annexe dépense occulte'!$R$2:$BQ$133,6,FALSE),\"\")","v":""},null,null,null,null,"effet",{"$f":"IFERROR(VLOOKUP(T70,'annexe dépense occulte'!$R$2:$BQ$133,6,FALSE),\"\")","v":""}]
[]
[null,"Stance 2",null,null,null,null,null,"Stance 2",null,null,null,null,null,"Stance 2",null,null,null,null,null,"Stance 2"]
[null,"difficulté",null,{"$f":"IFERROR(VLOOKUP(B70,'annexe dépense occulte'!$R$2:$BQ$132,8,FALSE),\"\")","v":""},"débloquée","non",null,"difficulté",null,{"$f":"IFERROR(VLOOKUP(H70,'annexe dépense occulte'!$R$2:$BQ$132,8,FALSE),\"\")","v":""},"débloquée","non",null,"difficulté",null,{"$f":"IFERROR(VLOOKUP(N70,'annexe dépense occulte'!$R$2:$BQ$132,8,FALSE),\"\")","v":""},"débloquée","non",null,"difficulté",null,{"$f":"IFERROR(VLOOKUP(T70,'annexe dépense occulte'!$R$2:$BQ$132,8,FALSE),\"\")","v":""},"débloquée","non"]
[null,"coût occultisme",null,{"$f":"IFERROR(VLOOKUP(B70,'annexe dépense occulte'!$R$2:$BQ$132,9,FALSE),\"\")","v":""},"coût appren",{"$f":"IFERROR(VLOOKUP(B70,'annexe dépense occulte'!$R$2:$BQ$133,7,FALSE),\"\")","v":""},null,"coût occultisme",null,{"$f":"IFERROR(VLOOKUP(H70,'annexe dépense occulte'!$R$2:$BQ$132,9,FALSE),\"\")","v":""},"coût appren",{"$f":"IFERROR(VLOOKUP(H70,'annexe dépense occulte'!$R$2:$BQ$133,7,FALSE),\"\")","v":""},null,"coût occultisme",null,{"$f":"IFERROR(VLOOKUP(N70,'annexe dépense occulte'!$R$2:$BQ$132,9,FALSE),\"\")","v":""},"coût appren",{"$f":"IFERROR(VLOOKUP(N70,'annexe dépense occulte'!$R$2:$BQ$133,7,FALSE),\"\")","v":""},null,"coût occultisme",null,{"$f":"IFERROR(VLOOKUP(T70,'annexe dépense occulte'!$R$2:$BQ$132,9,FALSE),\"\")","v":""},"coût appren",{"$f":"IFERROR(VLOOKUP(T70,'annexe dépense occulte'!$R$2:$BQ$133,7,FALSE),\"\")","v":""}]
[null,"maintien",null,{"$f":"IFERROR(VLOOKUP(B70,'annexe dépense occulte'!$R$2:$BQ$132,10,FALSE),\"\")","v":""},"coût action",{"$f":"IFERROR(VLOOKUP(B70,'annexe dépense occulte'!$R$2:$BQ$133,2,FALSE),\"\")","v":""},null,"maintien",null,{"$f":"IFERROR(VLOOKUP(H70,'annexe dépense occulte'!$R$2:$BQ$132,10,FALSE),\"\")","v":""},"coût action",{"$f":"IFERROR(VLOOKUP(H70,'annexe dépense occulte'!$R$2:$BQ$133,2,FALSE),\"\")","v":""},null,"maintien",null,{"$f":"IFERROR(VLOOKUP(N70,'annexe dépense occulte'!$R$2:$BQ$132,10,FALSE),\"\")","v":""},"coût action",{"$f":"IFERROR(VLOOKUP(N70,'annexe dépense occulte'!$R$2:$BQ$133,2,FALSE),\"\")","v":""},null,"maintien",null,{"$f":"IFERROR(VLOOKUP(T70,'annexe dépense occulte'!$R$2:$BQ$132,10,FALSE),\"\")","v":""},"coût action",{"$f":"IFERROR(VLOOKUP(T70,'annexe dépense occulte'!$R$2:$BQ$133,2,FALSE),\"\")","v":""}]
[null,"effet",{"$f":"IFERROR(VLOOKUP(B70,'annexe dépense occulte'!$R$2:$BQ$132,11,FALSE),\"\")","v":""},null,null,null,null,"effet",{"$f":"IFERROR(VLOOKUP(H70,'annexe dépense occulte'!$R$2:$BQ$132,11,FALSE),\"\")","v":""},null,null,null,null,"effet",{"$f":"IFERROR(VLOOKUP(N70,'annexe dépense occulte'!$R$2:$BQ$132,11,FALSE),\"\")","v":""},null,null,null,null,"effet",{"$f":"IFERROR(VLOOKUP(T70,'annexe dépense occulte'!$R$2:$BQ$132,11,FALSE),\"\")","v":""}]
[]
[null,"Stance 3",null,null,null,null,null,"Stance 3",null,null,null,null,null,"Stance 3",null,null,null,null,null,"Stance 3"]
[null,"difficulté",null,{"$f":"IFERROR(VLOOKUP(B70,'annexe dépense occulte'!$R$2:$BQ$132,13,FALSE),\"\")","v":""},"débloquée","non",null,"difficulté",null,{"$f":"IFERROR(VLOOKUP(H70,'annexe dépense occulte'!$R$2:$BQ$132,13,FALSE),\"\")","v":""},"débloquée","non",null,"difficulté",null,{"$f":"IFERROR(VLOOKUP(N70,'annexe dépense occulte'!$R$2:$BQ$132,13,FALSE),\"\")","v":""},"débloquée","non",null,"difficulté",null,{"$f":"IFERROR(VLOOKUP(T70,'annexe dépense occulte'!$R$2:$BQ$132,13,FALSE),\"\")","v":""},"débloquée","non"]
[null,"coût occultisme",null,{"$f":"IFERROR(VLOOKUP(B70,'annexe dépense occulte'!$R$2:$BQ$132,14,FALSE),\"\")","v":""},"coût appren",{"$f":"IFERROR(VLOOKUP(B70,'annexe dépense occulte'!$R$2:$BQ$133,12,FALSE),\"\")","v":""},null,"coût occultisme",null,{"$f":"IFERROR(VLOOKUP(H70,'annexe dépense occulte'!$R$2:$BQ$132,14,FALSE),\"\")","v":""},"coût appren",{"$f":"IFERROR(VLOOKUP(H70,'annexe dépense occulte'!$R$2:$BQ$133,12,FALSE),\"\")","v":""},null,"coût occultisme",null,{"$f":"IFERROR(VLOOKUP(N70,'annexe dépense occulte'!$R$2:$BQ$132,14,FALSE),\"\")","v":""},"coût appren",{"$f":"IFERROR(VLOOKUP(N70,'annexe dépense occulte'!$R$2:$BQ$133,12,FALSE),\"\")","v":""},null,"coût occultisme",null,{"$f":"IFERROR(VLOOKUP(T70,'annexe dépense occulte'!$R$2:$BQ$132,14,FALSE),\"\")","v":""},"coût appren",{"$f":"IFERROR(VLOOKUP(T70,'annexe dépense occulte'!$R$2:$BQ$133,12,FALSE),\"\")","v":""}]
[null,"maintien",null,{"$f":"IFERROR(VLOOKUP(B70,'annexe dépense occulte'!$R$2:$BQ$132,15,FALSE),\"\")","v":""},"coût action",{"$f":"IFERROR(VLOOKUP(B70,'annexe dépense occulte'!$R$2:$BQ$133,2,FALSE),\"\")","v":""},null,"maintien",null,{"$f":"IFERROR(VLOOKUP(H70,'annexe dépense occulte'!$R$2:$BQ$132,15,FALSE),\"\")","v":""},"coût action",{"$f":"IFERROR(VLOOKUP(H70,'annexe dépense occulte'!$R$2:$BQ$133,2,FALSE),\"\")","v":""},null,"maintien",null,{"$f":"IFERROR(VLOOKUP(N70,'annexe dépense occulte'!$R$2:$BQ$132,15,FALSE),\"\")","v":""},"coût action",{"$f":"IFERROR(VLOOKUP(N70,'annexe dépense occulte'!$R$2:$BQ$133,2,FALSE),\"\")","v":""},null,"maintien",null,{"$f":"IFERROR(VLOOKUP(T70,'annexe dépense occulte'!$R$2:$BQ$132,15,FALSE),\"\")","v":""},"coût action",{"$f":"IFERROR(VLOOKUP(T70,'annexe dépense occulte'!$R$2:$BQ$133,2,FALSE),\"\")","v":""}]
[null,"effet",{"$f":"IFERROR(VLOOKUP(B70,'annexe dépense occulte'!$R$2:$BQ$132,16,FALSE),\"\")","v":""},null,null,null,null,"effet",{"$f":"IFERROR(VLOOKUP(H70,'annexe dépense occulte'!$R$2:$BQ$132,16,FALSE),\"\")","v":""},null,null,null,null,"effet",{"$f":"IFERROR(VLOOKUP(N70,'annexe dépense occulte'!$R$2:$BQ$132,16,FALSE),\"\")","v":""},null,null,null,null,"effet",{"$f":"IFERROR(VLOOKUP(T70,'annexe dépense occulte'!$R$2:$BQ$132,16,FALSE),\"\")","v":""}]
[]
[null,"Stance 4",null,null,null,null,null,"Stance 4",null,null,null,null,null,"Stance 4",null,null,null,null,null,"Stance 4"]
[null,"difficulté",null,{"$f":"IFERROR(VLOOKUP(B70,'annexe dépense occulte'!$R$2:$BQ$132,18,FALSE),\"\")","v":""},"débloquée","non",null,"difficulté",null,{"$f":"IFERROR(VLOOKUP(H70,'annexe dépense occulte'!$R$2:$BQ$132,18,FALSE),\"\")","v":""},"débloquée","non",null,"difficulté",null,{"$f":"IFERROR(VLOOKUP(N70,'annexe dépense occulte'!$R$2:$BQ$132,18,FALSE),\"\")","v":""},"débloquée","non",null,"difficulté",null,{"$f":"IFERROR(VLOOKUP(T70,'annexe dépense occulte'!$R$2:$BQ$132,18,FALSE),\"\")","v":""},"débloquée","non"]
[null,"coût occultisme",null,{"$f":"IFERROR(VLOOKUP(B70,'annexe dépense occulte'!$R$2:$BQ$132,19,FALSE),\"\")","v":""},"coût appren",{"$f":"IFERROR(VLOOKUP(B70,'annexe dépense occulte'!$R$2:$BQ$133,17,FALSE),\"\")","v":""},null,"coût occultisme",null,{"$f":"IFERROR(VLOOKUP(H70,'annexe dépense occulte'!$R$2:$BQ$132,19,FALSE),\"\")","v":""},"coût appren",{"$f":"IFERROR(VLOOKUP(H70,'annexe dépense occulte'!$R$2:$BQ$133,17,FALSE),\"\")","v":""},null,"coût occultisme",null,{"$f":"IFERROR(VLOOKUP(N70,'annexe dépense occulte'!$R$2:$BQ$132,19,FALSE),\"\")","v":""},"coût appren",{"$f":"IFERROR(VLOOKUP(N70,'annexe dépense occulte'!$R$2:$BQ$133,17,FALSE),\"\")","v":""},null,"coût occultisme",null,{"$f":"IFERROR(VLOOKUP(T70,'annexe dépense occulte'!$R$2:$BQ$132,19,FALSE),\"\")","v":""},"coût appren",{"$f":"IFERROR(VLOOKUP(T70,'annexe dépense occulte'!$R$2:$BQ$133,17,FALSE),\"\")","v":""}]
[null,"maintien",null,{"$f":"IFERROR(VLOOKUP(B70,'annexe dépense occulte'!$R$2:$BQ$132,20,FALSE),\"\")","v":""},"coût action",{"$f":"IFERROR(VLOOKUP(B70,'annexe dépense occulte'!$R$2:$BQ$133,2,FALSE),\"\")","v":""},null,"maintien",null,{"$f":"IFERROR(VLOOKUP(H70,'annexe dépense occulte'!$R$2:$BQ$132,20,FALSE),\"\")","v":""},"coût action",{"$f":"IFERROR(VLOOKUP(H70,'annexe dépense occulte'!$R$2:$BQ$133,2,FALSE),\"\")","v":""},null,"maintien",null,{"$f":"IFERROR(VLOOKUP(N70,'annexe dépense occulte'!$R$2:$BQ$132,20,FALSE),\"\")","v":""},"coût action",{"$f":"IFERROR(VLOOKUP(N70,'annexe dépense occulte'!$R$2:$BQ$133,2,FALSE),\"\")","v":""},null,"maintien",null,{"$f":"IFERROR(VLOOKUP(T70,'annexe dépense occulte'!$R$2:$BQ$132,20,FALSE),\"\")","v":""},"coût action",{"$f":"IFERROR(VLOOKUP(T70,'annexe dépense occulte'!$R$2:$BQ$133,2,FALSE),\"\")","v":""}]
[null,"effet",{"$f":"IFERROR(VLOOKUP(B70,'annexe dépense occulte'!$R$2:$BQ$132,21,FALSE),\"\")","v":""},null,null,null,null,"effet",{"$f":"IFERROR(VLOOKUP(H70,'annexe dépense occulte'!$R$2:$BQ$132,21,FALSE),\"\")","v":""},null,null,null,null,"effet",{"$f":"IFERROR(VLOOKUP(N70,'annexe dépense occulte'!$R$2:$BQ$132,21,FALSE),\"\")","v":""},null,null,null,null,"effet",{"$f":"IFERROR(VLOOKUP(T70,'annexe dépense occulte'!$R$2:$BQ$132,21,FALSE),\"\")","v":""}]
[]
[null,"Stance 5",null,null,null,null,null,"Stance 5",null,null,null,null,null,"Stance 5",null,null,null,null,null,"Stance 5"]
[null,"difficulté",null,{"$f":"IFERROR(VLOOKUP(B70,'annexe dépense occulte'!$R$2:$BQ$132,23,FALSE),\"\")","v":""},"débloquée","non",null,"difficulté",null,{"$f":"IFERROR(VLOOKUP(H70,'annexe dépense occulte'!$R$2:$BQ$132,23,FALSE),\"\")","v":""},"débloquée","non",null,"difficulté",null,{"$f":"IFERROR(VLOOKUP(N70,'annexe dépense occulte'!$R$2:$BQ$132,23,FALSE),\"\")","v":""},"débloquée","non",null,"difficulté",null,{"$f":"IFERROR(VLOOKUP(T70,'annexe dépense occulte'!$R$2:$BQ$132,23,FALSE),\"\")","v":""},"débloquée","non"]
[null,"coût occultisme",null,{"$f":"IFERROR(VLOOKUP(B70,'annexe dépense occulte'!$R$2:$BQ$132,24,FALSE),\"\")","v":""},"coût appren",{"$f":"IFERROR(VLOOKUP(B70,'annexe dépense occulte'!$R$2:$BQ$133,22,FALSE),\"\")","v":""},null,"coût occultisme",null,{"$f":"IFERROR(VLOOKUP(H70,'annexe dépense occulte'!$R$2:$BQ$132,24,FALSE),\"\")","v":""},"coût appren",{"$f":"IFERROR(VLOOKUP(H70,'annexe dépense occulte'!$R$2:$BQ$133,22,FALSE),\"\")","v":""},null,"coût occultisme",null,{"$f":"IFERROR(VLOOKUP(N70,'annexe dépense occulte'!$R$2:$BQ$132,24,FALSE),\"\")","v":""},"coût appren",{"$f":"IFERROR(VLOOKUP(N70,'annexe dépense occulte'!$R$2:$BQ$133,22,FALSE),\"\")","v":""},null,"coût occultisme",null,{"$f":"IFERROR(VLOOKUP(T70,'annexe dépense occulte'!$R$2:$BQ$132,24,FALSE),\"\")","v":""},"coût appren",{"$f":"IFERROR(VLOOKUP(T70,'annexe dépense occulte'!$R$2:$BQ$133,22,FALSE),\"\")","v":""}]
[null,"maintien",null,{"$f":"IFERROR(VLOOKUP(B70,'annexe dépense occulte'!$R$2:$BQ$132,25,FALSE),\"\")","v":""},"coût action",{"$f":"IFERROR(VLOOKUP(B70,'annexe dépense occulte'!$R$2:$BQ$133,2,FALSE),\"\")","v":""},null,"maintien",null,{"$f":"IFERROR(VLOOKUP(H70,'annexe dépense occulte'!$R$2:$BQ$132,25,FALSE),\"\")","v":""},"coût action",{"$f":"IFERROR(VLOOKUP(H70,'annexe dépense occulte'!$R$2:$BQ$133,2,FALSE),\"\")","v":""},null,"maintien",null,{"$f":"IFERROR(VLOOKUP(N70,'annexe dépense occulte'!$R$2:$BQ$132,25,FALSE),\"\")","v":""},"coût action",{"$f":"IFERROR(VLOOKUP(N70,'annexe dépense occulte'!$R$2:$BQ$133,2,FALSE),\"\")","v":""},null,"maintien",null,{"$f":"IFERROR(VLOOKUP(T70,'annexe dépense occulte'!$R$2:$BQ$132,25,FALSE),\"\")","v":""},"coût action",{"$f":"IFERROR(VLOOKUP(T70,'annexe dépense occulte'!$R$2:$BQ$133,2,FALSE),\"\")","v":""}]
[null,"effet",{"$f":"IFERROR(VLOOKUP(B70,'annexe dépense occulte'!$R$2:$BQ$132,26,FALSE),\"\")","v":""},null,null,null,null,"effet",{"$f":"IFERROR(VLOOKUP(H70,'annexe dépense occulte'!$R$2:$BQ$132,26,FALSE),\"\")","v":""},null,null,null,null,"effet",{"$f":"IFERROR(VLOOKUP(N70,'annexe dépense occulte'!$R$2:$BQ$132,26,FALSE),\"\")","v":""},null,null,null,null,"effet",{"$f":"IFERROR(VLOOKUP(T70,'annexe dépense occulte'!$R$2:$BQ$132,26,FALSE),\"\")","v":""}]
[]
[]
[null,null,null,"maîtrise",0,{"$f":"IF(AND($G$3>3,E102>399),4,IF(AND($G$3>2,E102>299),3,IF(AND($G$3>1,E102>199),2,IF(AND($G$3>0,E102>0),1,0))))","v":0},null,null,null,"maîtrise",0,{"$f":"IF(AND($G$3>3,K102>399),4,IF(AND($G$3>2,K102>299),3,IF(AND($G$3>1,K102>199),2,IF(AND($G$3>0,K102>0),1,0))))","v":0},null,null,null,"maîtrise",0,{"$f":"IF(AND($G$3>3,Q102>399),4,IF(AND($G$3>2,Q102>299),3,IF(AND($G$3>1,Q102>199),2,IF(AND($G$3>0,Q102>0),1,0))))","v":0},null,null,null,"maîtrise",0,{"$f":"IF(AND($G$3>3,W102>399),4,IF(AND($G$3>2,W102>299),3,IF(AND($G$3>1,W102>199),2,IF(AND($G$3>0,W102>0),1,0))))","v":0}]
[null,"Stance 1",null,null,null,null,null,"Stance 1",null,null,null,null,null,"Stance 1",null,null,null,null,null,"Stance 1"]
[null,"difficulté",null,{"$f":"IFERROR(VLOOKUP(B102,'annexe dépense occulte'!$R$2:$BQ$132,3,FALSE),\"\")","v":""},"création","non",null,"difficulté",null,{"$f":"IFERROR(VLOOKUP(H102,'annexe dépense occulte'!$R$2:$BQ$132,3,FALSE),\"\")","v":""},"création","non",null,"difficulté",null,{"$f":"IFERROR(VLOOKUP(N102,'annexe dépense occulte'!$R$2:$BQ$132,3,FALSE),\"\")","v":""},"création","non",null,"difficulté",null,{"$f":"IFERROR(VLOOKUP(T102,'annexe dépense occulte'!$R$2:$BQ$132,3,FALSE),\"\")","v":""},"création","non"]
[null,"coût occultisme",null,{"$f":"IFERROR(VLOOKUP(B102,'annexe dépense occulte'!$R$2:$BQ$133,4,FALSE),\"\")","v":""},"coût apprentissage",{"$f":"IFERROR(VLOOKUP(B102,'annexe dépense occulte'!$R$2:$BQ$133,27,FALSE),\"\")","v":""},null,"coût occultisme",null,{"$f":"IFERROR(VLOOKUP(H102,'annexe dépense occulte'!$R$2:$BQ$133,4,FALSE),\"\")","v":""},"coût apprentissage",{"$f":"IFERROR(VLOOKUP(H102,'annexe dépense occulte'!$R$2:$BQ$133,27,FALSE),\"\")","v":""},null,"coût occultisme",null,{"$f":"IFERROR(VLOOKUP(N102,'annexe dépense occulte'!$R$2:$BQ$133,4,FALSE),\"\")","v":""},"coût apprentissage",{"$f":"IFERROR(VLOOKUP(N102,'annexe dépense occulte'!$R$2:$BQ$133,27,FALSE),\"\")","v":""},null,"coût occultisme",null,{"$f":"IFERROR(VLOOKUP(T102,'annexe dépense occulte'!$R$2:$BQ$133,4,FALSE),\"\")","v":""},"coût apprentissage",{"$f":"IFERROR(VLOOKUP(T102,'annexe dépense occulte'!$R$2:$BQ$133,27,FALSE),\"\")","v":""}]
[null,"maintien",null,{"$f":"IFERROR(VLOOKUP(B102,'annexe dépense occulte'!$R$2:$BQ$133,5,FALSE),\"\")","v":""},"coût action",{"$f":"IFERROR(VLOOKUP(B102,'annexe dépense occulte'!$R$2:$BQ$133,2,FALSE),\"\")","v":""},null,"maintien",null,{"$f":"IFERROR(VLOOKUP(H102,'annexe dépense occulte'!$R$2:$BQ$133,5,FALSE),\"\")","v":""},"coût action",{"$f":"IFERROR(VLOOKUP(H102,'annexe dépense occulte'!$R$2:$BQ$133,2,FALSE),\"\")","v":""},null,"maintien",null,{"$f":"IFERROR(VLOOKUP(N102,'annexe dépense occulte'!$R$2:$BQ$133,5,FALSE),\"\")","v":""},"coût action",{"$f":"IFERROR(VLOOKUP(N102,'annexe dépense occulte'!$R$2:$BQ$133,2,FALSE),\"\")","v":""},null,"maintien",null,{"$f":"IFERROR(VLOOKUP(T102,'annexe dépense occulte'!$R$2:$BQ$133,5,FALSE),\"\")","v":""},"coût action",{"$f":"IFERROR(VLOOKUP(T102,'annexe dépense occulte'!$R$2:$BQ$133,2,FALSE),\"\")","v":""}]
[null,"effet",{"$f":"IFERROR(VLOOKUP(B102,'annexe dépense occulte'!$R$2:$BQ$133,6,FALSE),\"\")","v":""},null,null,null,null,"effet",{"$f":"IFERROR(VLOOKUP(H102,'annexe dépense occulte'!$R$2:$BQ$133,6,FALSE),\"\")","v":""},null,null,null,null,"effet",{"$f":"IFERROR(VLOOKUP(N102,'annexe dépense occulte'!$R$2:$BQ$133,6,FALSE),\"\")","v":""},null,null,null,null,"effet",{"$f":"IFERROR(VLOOKUP(T102,'annexe dépense occulte'!$R$2:$BQ$133,6,FALSE),\"\")","v":""}]
[]
[null,"Stance 2",null,null,null,null,null,"Stance 2",null,null,null,null,null,"Stance 2",null,null,null,null,null,"Stance 2"]
[null,"difficulté",null,{"$f":"IFERROR(VLOOKUP(B102,'annexe dépense occulte'!$R$2:$BQ$132,8,FALSE),\"\")","v":""},"débloquée","non",null,"difficulté",null,{"$f":"IFERROR(VLOOKUP(H102,'annexe dépense occulte'!$R$2:$BQ$132,8,FALSE),\"\")","v":""},"débloquée","non",null,"difficulté",null,{"$f":"IFERROR(VLOOKUP(N102,'annexe dépense occulte'!$R$2:$BQ$132,8,FALSE),\"\")","v":""},"débloquée","non",null,"difficulté",null,{"$f":"IFERROR(VLOOKUP(T102,'annexe dépense occulte'!$R$2:$BQ$132,8,FALSE),\"\")","v":""},"débloquée","non"]
[null,"coût occultisme",null,{"$f":"IFERROR(VLOOKUP(B102,'annexe dépense occulte'!$R$2:$BQ$132,9,FALSE),\"\")","v":""},"coût appren",{"$f":"IFERROR(VLOOKUP(B102,'annexe dépense occulte'!$R$2:$BQ$133,7,FALSE),\"\")","v":""},null,"coût occultisme",null,{"$f":"IFERROR(VLOOKUP(H102,'annexe dépense occulte'!$R$2:$BQ$132,9,FALSE),\"\")","v":""},"coût appren",{"$f":"IFERROR(VLOOKUP(H102,'annexe dépense occulte'!$R$2:$BQ$133,7,FALSE),\"\")","v":""},null,"coût occultisme",null,{"$f":"IFERROR(VLOOKUP(N102,'annexe dépense occulte'!$R$2:$BQ$132,9,FALSE),\"\")","v":""},"coût appren",{"$f":"IFERROR(VLOOKUP(N102,'annexe dépense occulte'!$R$2:$BQ$133,7,FALSE),\"\")","v":""},null,"coût occultisme",null,{"$f":"IFERROR(VLOOKUP(T102,'annexe dépense occulte'!$R$2:$BQ$132,9,FALSE),\"\")","v":""},"coût appren",{"$f":"IFERROR(VLOOKUP(T102,'annexe dépense occulte'!$R$2:$BQ$133,7,FALSE),\"\")","v":""}]
[null,"maintien",null,{"$f":"IFERROR(VLOOKUP(B102,'annexe dépense occulte'!$R$2:$BQ$132,10,FALSE),\"\")","v":""},"coût action",{"$f":"IFERROR(VLOOKUP(B102,'annexe dépense occulte'!$R$2:$BQ$133,2,FALSE),\"\")","v":""},null,"maintien",null,{"$f":"IFERROR(VLOOKUP(H102,'annexe dépense occulte'!$R$2:$BQ$132,10,FALSE),\"\")","v":""},"coût action",{"$f":"IFERROR(VLOOKUP(H102,'annexe dépense occulte'!$R$2:$BQ$133,2,FALSE),\"\")","v":""},null,"maintien",null,{"$f":"IFERROR(VLOOKUP(N102,'annexe dépense occulte'!$R$2:$BQ$132,10,FALSE),\"\")","v":""},"coût action",{"$f":"IFERROR(VLOOKUP(N102,'annexe dépense occulte'!$R$2:$BQ$133,2,FALSE),\"\")","v":""},null,"maintien",null,{"$f":"IFERROR(VLOOKUP(T102,'annexe dépense occulte'!$R$2:$BQ$132,10,FALSE),\"\")","v":""},"coût action",{"$f":"IFERROR(VLOOKUP(T102,'annexe dépense occulte'!$R$2:$BQ$133,2,FALSE),\"\")","v":""}]
[null,"effet",{"$f":"IFERROR(VLOOKUP(B102,'annexe dépense occulte'!$R$2:$BQ$132,11,FALSE),\"\")","v":""},null,null,null,null,"effet",{"$f":"IFERROR(VLOOKUP(H102,'annexe dépense occulte'!$R$2:$BQ$132,11,FALSE),\"\")","v":""},null,null,null,null,"effet",{"$f":"IFERROR(VLOOKUP(N102,'annexe dépense occulte'!$R$2:$BQ$132,11,FALSE),\"\")","v":""},null,null,null,null,"effet",{"$f":"IFERROR(VLOOKUP(T102,'annexe dépense occulte'!$R$2:$BQ$132,11,FALSE),\"\")","v":""}]
[]
[null,"Stance 3",null,null,null,null,null,"Stance 3",null,null,null,null,null,"Stance 3",null,null,null,null,null,"Stance 3"]
[null,"difficulté",null,{"$f":"IFERROR(VLOOKUP(B102,'annexe dépense occulte'!$R$2:$BQ$132,13,FALSE),\"\")","v":""},"débloquée","non",null,"difficulté",null,{"$f":"IFERROR(VLOOKUP(H102,'annexe dépense occulte'!$R$2:$BQ$132,13,FALSE),\"\")","v":""},"débloquée","non",null,"difficulté",null,{"$f":"IFERROR(VLOOKUP(N102,'annexe dépense occulte'!$R$2:$BQ$132,13,FALSE),\"\")","v":""},"débloquée","non",null,"difficulté",null,{"$f":"IFERROR(VLOOKUP(T102,'annexe dépense occulte'!$R$2:$BQ$132,13,FALSE),\"\")","v":""},"débloquée","non"]
[null,"coût occultisme",null,{"$f":"IFERROR(VLOOKUP(B102,'annexe dépense occulte'!$R$2:$BQ$132,14,FALSE),\"\")","v":""},"coût appren",{"$f":"IFERROR(VLOOKUP(B102,'annexe dépense occulte'!$R$2:$BQ$133,12,FALSE),\"\")","v":""},null,"coût occultisme",null,{"$f":"IFERROR(VLOOKUP(H102,'annexe dépense occulte'!$R$2:$BQ$132,14,FALSE),\"\")","v":""},"coût appren",{"$f":"IFERROR(VLOOKUP(H102,'annexe dépense occulte'!$R$2:$BQ$133,12,FALSE),\"\")","v":""},null,"coût occultisme",null,{"$f":"IFERROR(VLOOKUP(N102,'annexe dépense occulte'!$R$2:$BQ$132,14,FALSE),\"\")","v":""},"coût appren",{"$f":"IFERROR(VLOOKUP(N102,'annexe dépense occulte'!$R$2:$BQ$133,12,FALSE),\"\")","v":""},null,"coût occultisme",null,{"$f":"IFERROR(VLOOKUP(T102,'annexe dépense occulte'!$R$2:$BQ$132,14,FALSE),\"\")","v":""},"coût appren",{"$f":"IFERROR(VLOOKUP(T102,'annexe dépense occulte'!$R$2:$BQ$133,12,FALSE),\"\")","v":""}]
[null,"maintien",null,{"$f":"IFERROR(VLOOKUP(B102,'annexe dépense occulte'!$R$2:$BQ$132,15,FALSE),\"\")","v":""},"coût action",{"$f":"IFERROR(VLOOKUP(B102,'annexe dépense occulte'!$R$2:$BQ$133,2,FALSE),\"\")","v":""},null,"maintien",null,{"$f":"IFERROR(VLOOKUP(H102,'annexe dépense occulte'!$R$2:$BQ$132,15,FALSE),\"\")","v":""},"coût action",{"$f":"IFERROR(VLOOKUP(H102,'annexe dépense occulte'!$R$2:$BQ$133,2,FALSE),\"\")","v":""},null,"maintien",null,{"$f":"IFERROR(VLOOKUP(N102,'annexe dépense occulte'!$R$2:$BQ$132,15,FALSE),\"\")","v":""},"coût action",{"$f":"IFERROR(VLOOKUP(N102,'annexe dépense occulte'!$R$2:$BQ$133,2,FALSE),\"\")","v":""},null,"maintien",null,{"$f":"IFERROR(VLOOKUP(T102,'annexe dépense occulte'!$R$2:$BQ$132,15,FALSE),\"\")","v":""},"coût action",{"$f":"IFERROR(VLOOKUP(T102,'annexe dépense occulte'!$R$2:$BQ$133,2,FALSE),\"\")","v":""}]
[null,"effet",{"$f":"IFERROR(VLOOKUP(B102,'annexe dépense occulte'!$R$2:$BQ$132,16,FALSE),\"\")","v":""},null,null,null,null,"effet",{"$f":"IFERROR(VLOOKUP(H102,'annexe dépense occulte'!$R$2:$BQ$132,16,FALSE),\"\")","v":""},null,null,null,null,"effet",{"$f":"IFERROR(VLOOKUP(N102,'annexe dépense occulte'!$R$2:$BQ$132,16,FALSE),\"\")","v":""},null,null,null,null,"effet",{"$f":"IFERROR(VLOOKUP(T102,'annexe dépense occulte'!$R$2:$BQ$132,16,FALSE),\"\")","v":""}]
[]
[null,"Stance 4",null,null,null,null,null,"Stance 4",null,null,null,null,null,"Stance 4",null,null,null,null,null,"Stance 4"]
[null,"difficulté",null,{"$f":"IFERROR(VLOOKUP(B102,'annexe dépense occulte'!$R$2:$BQ$132,18,FALSE),\"\")","v":""},"débloquée","non",null,"difficulté",null,{"$f":"IFERROR(VLOOKUP(H102,'annexe dépense occulte'!$R$2:$BQ$132,18,FALSE),\"\")","v":""},"débloquée","non",null,"difficulté",null,{"$f":"IFERROR(VLOOKUP(N102,'annexe dépense occulte'!$R$2:$BQ$132,18,FALSE),\"\")","v":""},"débloquée","non",null,"difficulté",null,{"$f":"IFERROR(VLOOKUP(T102,'annexe dépense occulte'!$R$2:$BQ$132,18,FALSE),\"\")","v":""},"débloquée","non"]
[null,"coût occultisme",null,{"$f":"IFERROR(VLOOKUP(B102,'annexe dépense occulte'!$R$2:$BQ$132,19,FALSE),\"\")","v":""},"coût appren",{"$f":"IFERROR(VLOOKUP(B102,'annexe dépense occulte'!$R$2:$BQ$133,17,FALSE),\"\")","v":""},null,"coût occultisme",null,{"$f":"IFERROR(VLOOKUP(H102,'annexe dépense occulte'!$R$2:$BQ$132,19,FALSE),\"\")","v":""},"coût appren",{"$f":"IFERROR(VLOOKUP(H102,'annexe dépense occulte'!$R$2:$BQ$133,17,FALSE),\"\")","v":""},null,"coût occultisme",null,{"$f":"IFERROR(VLOOKUP(N102,'annexe dépense occulte'!$R$2:$BQ$132,19,FALSE),\"\")","v":""},"coût appren",{"$f":"IFERROR(VLOOKUP(N102,'annexe dépense occulte'!$R$2:$BQ$133,17,FALSE),\"\")","v":""},null,"coût occultisme",null,{"$f":"IFERROR(VLOOKUP(T102,'annexe dépense occulte'!$R$2:$BQ$132,19,FALSE),\"\")","v":""},"coût appren",{"$f":"IFERROR(VLOOKUP(T102,'annexe dépense occulte'!$R$2:$BQ$133,17,FALSE),\"\")","v":""}]
[null,"maintien",null,{"$f":"IFERROR(VLOOKUP(B102,'annexe dépense occulte'!$R$2:$BQ$132,20,FALSE),\"\")","v":""},"coût action",{"$f":"IFERROR(VLOOKUP(B102,'annexe dépense occulte'!$R$2:$BQ$133,2,FALSE),\"\")","v":""},null,"maintien",null,{"$f":"IFERROR(VLOOKUP(H102,'annexe dépense occulte'!$R$2:$BQ$132,20,FALSE),\"\")","v":""},"coût action",{"$f":"IFERROR(VLOOKUP(H102,'annexe dépense occulte'!$R$2:$BQ$133,2,FALSE),\"\")","v":""},null,"maintien",null,{"$f":"IFERROR(VLOOKUP(N102,'annexe dépense occulte'!$R$2:$BQ$132,20,FALSE),\"\")","v":""},"coût action",{"$f":"IFERROR(VLOOKUP(N102,'annexe dépense occulte'!$R$2:$BQ$133,2,FALSE),\"\")","v":""},null,"maintien",null,{"$f":"IFERROR(VLOOKUP(T102,'annexe dépense occulte'!$R$2:$BQ$132,20,FALSE),\"\")","v":""},"coût action",{"$f":"IFERROR(VLOOKUP(T102,'annexe dépense occulte'!$R$2:$BQ$133,2,FALSE),\"\")","v":""}]
[null,"effet",{"$f":"IFERROR(VLOOKUP(B102,'annexe dépense occulte'!$R$2:$BQ$132,21,FALSE),\"\")","v":""},null,null,null,null,"effet",{"$f":"IFERROR(VLOOKUP(H102,'annexe dépense occulte'!$R$2:$BQ$132,21,FALSE),\"\")","v":""},null,null,null,null,"effet",{"$f":"IFERROR(VLOOKUP(N102,'annexe dépense occulte'!$R$2:$BQ$132,21,FALSE),\"\")","v":""},null,null,null,null,"effet",{"$f":"IFERROR(VLOOKUP(T102,'annexe dépense occulte'!$R$2:$BQ$132,21,FALSE),\"\")","v":""}]
[]
[null,"Stance 5",null,null,null,null,null,"Stance 5",null,null,null,null,null,"Stance 5",null,null,null,null,null,"Stance 5"]
[null,"difficulté",null,{"$f":"IFERROR(VLOOKUP(B102,'annexe dépense occulte'!$R$2:$BQ$132,23,FALSE),\"\")","v":""},"débloquée","non",null,"difficulté",null,{"$f":"IFERROR(VLOOKUP(H102,'annexe dépense occulte'!$R$2:$BQ$132,23,FALSE),\"\")","v":""},"débloquée","non",null,"difficulté",null,{"$f":"IFERROR(VLOOKUP(N102,'annexe dépense occulte'!$R$2:$BQ$132,23,FALSE),\"\")","v":""},"débloquée","non",null,"difficulté",null,{"$f":"IFERROR(VLOOKUP(T102,'annexe dépense occulte'!$R$2:$BQ$132,23,FALSE),\"\")","v":""},"débloquée","non"]
[null,"coût occultisme",null,{"$f":"IFERROR(VLOOKUP(B102,'annexe dépense occulte'!$R$2:$BQ$132,24,FALSE),\"\")","v":""},"coût appren",{"$f":"IFERROR(VLOOKUP(B102,'annexe dépense occulte'!$R$2:$BQ$133,22,FALSE),\"\")","v":""},null,"coût occultisme",null,{"$f":"IFERROR(VLOOKUP(H102,'annexe dépense occulte'!$R$2:$BQ$132,24,FALSE),\"\")","v":""},"coût appren",{"$f":"IFERROR(VLOOKUP(H102,'annexe dépense occulte'!$R$2:$BQ$133,22,FALSE),\"\")","v":""},null,"coût occultisme",null,{"$f":"IFERROR(VLOOKUP(N102,'annexe dépense occulte'!$R$2:$BQ$132,24,FALSE),\"\")","v":""},"coût appren",{"$f":"IFERROR(VLOOKUP(N102,'annexe dépense occulte'!$R$2:$BQ$133,22,FALSE),\"\")","v":""},null,"coût occultisme",null,{"$f":"IFERROR(VLOOKUP(T102,'annexe dépense occulte'!$R$2:$BQ$132,24,FALSE),\"\")","v":""},"coût appren",{"$f":"IFERROR(VLOOKUP(T102,'annexe dépense occulte'!$R$2:$BQ$133,22,FALSE),\"\")","v":""}]
[null,"maintien",null,{"$f":"IFERROR(VLOOKUP(B102,'annexe dépense occulte'!$R$2:$BQ$132,25,FALSE),\"\")","v":""},"coût action",{"$f":"IFERROR(VLOOKUP(B102,'annexe dépense occulte'!$R$2:$BQ$133,2,FALSE),\"\")","v":""},null,"maintien",null,{"$f":"IFERROR(VLOOKUP(H102,'annexe dépense occulte'!$R$2:$BQ$132,25,FALSE),\"\")","v":""},"coût action",{"$f":"IFERROR(VLOOKUP(H102,'annexe dépense occulte'!$R$2:$BQ$133,2,FALSE),\"\")","v":""},null,"maintien",null,{"$f":"IFERROR(VLOOKUP(N102,'annexe dépense occulte'!$R$2:$BQ$132,25,FALSE),\"\")","v":""},"coût action",{"$f":"IFERROR(VLOOKUP(N102,'annexe dépense occulte'!$R$2:$BQ$133,2,FALSE),\"\")","v":""},null,"maintien",null,{"$f":"IFERROR(VLOOKUP(T102,'annexe dépense occulte'!$R$2:$BQ$132,25,FALSE),\"\")","v":""},"coût action",{"$f":"IFERROR(VLOOKUP(T102,'annexe dépense occulte'!$R$2:$BQ$133,2,FALSE),\"\")","v":""}]
[null,"effet",{"$f":"IFERROR(VLOOKUP(B102,'annexe dépense occulte'!$R$2:$BQ$132,26,FALSE),\"\")","v":""},null,null,null,null,"effet",{"$f":"IFERROR(VLOOKUP(H102,'annexe dépense occulte'!$R$2:$BQ$132,26,FALSE),\"\")","v":""},null,null,null,null,"effet",{"$f":"IFERROR(VLOOKUP(N102,'annexe dépense occulte'!$R$2:$BQ$132,26,FALSE),\"\")","v":""},null,null,null,null,"effet",{"$f":"IFERROR(VLOOKUP(T102,'annexe dépense occulte'!$R$2:$BQ$132,26,FALSE),\"\")","v":""}]
[]
[]
[null,null,null,"maîtrise",0,{"$f":"IF(AND($G$3>3,E134>399),4,IF(AND($G$3>2,E134>299),3,IF(AND($G$3>1,E134>199),2,IF(AND($G$3>0,E134>0),1,0))))","v":0},null,null,null,"maîtrise",0,{"$f":"IF(AND($G$3>3,K134>399),4,IF(AND($G$3>2,K134>299),3,IF(AND($G$3>1,K134>199),2,IF(AND($G$3>0,K134>0),1,0))))","v":0},null,null,null,"maîtrise",0,{"$f":"IF(AND($G$3>3,Q134>399),4,IF(AND($G$3>2,Q134>299),3,IF(AND($G$3>1,Q134>199),2,IF(AND($G$3>0,Q134>0),1,0))))","v":0},null,null,null,"maîtrise",0,{"$f":"IF(AND($G$3>3,W134>399),4,IF(AND($G$3>2,W134>299),3,IF(AND($G$3>1,W134>199),2,IF(AND($G$3>0,W134>0),1,0))))","v":0}]
[null,"Stance 1",null,null,null,null,null,"Stance 1",null,null,null,null,null,"Stance 1",null,null,null,null,null,"Stance 1"]
[null,"difficulté",null,{"$f":"IFERROR(VLOOKUP(B134,'annexe dépense occulte'!$R$2:$BQ$132,3,FALSE),\"\")","v":""},"création","non",null,"difficulté",null,{"$f":"IFERROR(VLOOKUP(H134,'annexe dépense occulte'!$R$2:$BQ$132,3,FALSE),\"\")","v":""},"création","non",null,"difficulté",null,{"$f":"IFERROR(VLOOKUP(N134,'annexe dépense occulte'!$R$2:$BQ$132,3,FALSE),\"\")","v":""},"création","non",null,"difficulté",null,{"$f":"IFERROR(VLOOKUP(T134,'annexe dépense occulte'!$R$2:$BQ$132,3,FALSE),\"\")","v":""},"création","non"]
[null,"coût occultisme",null,{"$f":"IFERROR(VLOOKUP(B134,'annexe dépense occulte'!$R$2:$BQ$133,4,FALSE),\"\")","v":""},"coût apprentissage",{"$f":"IFERROR(VLOOKUP(B134,'annexe dépense occulte'!$R$2:$BQ$133,27,FALSE),\"\")","v":""},null,"coût occultisme",null,{"$f":"IFERROR(VLOOKUP(H134,'annexe dépense occulte'!$R$2:$BQ$133,4,FALSE),\"\")","v":""},"coût apprentissage",{"$f":"IFERROR(VLOOKUP(H134,'annexe dépense occulte'!$R$2:$BQ$133,27,FALSE),\"\")","v":""},null,"coût occultisme",null,{"$f":"IFERROR(VLOOKUP(N134,'annexe dépense occulte'!$R$2:$BQ$133,4,FALSE),\"\")","v":""},"coût apprentissage",{"$f":"IFERROR(VLOOKUP(N134,'annexe dépense occulte'!$R$2:$BQ$133,27,FALSE),\"\")","v":""},null,"coût occultisme",null,{"$f":"IFERROR(VLOOKUP(T134,'annexe dépense occulte'!$R$2:$BQ$133,4,FALSE),\"\")","v":""},"coût apprentissage",{"$f":"IFERROR(VLOOKUP(T134,'annexe dépense occulte'!$R$2:$BQ$133,27,FALSE),\"\")","v":""}]
[null,"maintien",null,{"$f":"IFERROR(VLOOKUP(B134,'annexe dépense occulte'!$R$2:$BQ$133,5,FALSE),\"\")","v":""},"coût action",{"$f":"IFERROR(VLOOKUP(B134,'annexe dépense occulte'!$R$2:$BQ$133,2,FALSE),\"\")","v":""},null,"maintien",null,{"$f":"IFERROR(VLOOKUP(H134,'annexe dépense occulte'!$R$2:$BQ$133,5,FALSE),\"\")","v":""},"coût action",{"$f":"IFERROR(VLOOKUP(H134,'annexe dépense occulte'!$R$2:$BQ$133,2,FALSE),\"\")","v":""},null,"maintien",null,{"$f":"IFERROR(VLOOKUP(N134,'annexe dépense occulte'!$R$2:$BQ$133,5,FALSE),\"\")","v":""},"coût action",{"$f":"IFERROR(VLOOKUP(N134,'annexe dépense occulte'!$R$2:$BQ$133,2,FALSE),\"\")","v":""},null,"maintien",null,{"$f":"IFERROR(VLOOKUP(T134,'annexe dépense occulte'!$R$2:$BQ$133,5,FALSE),\"\")","v":""},"coût action",{"$f":"IFERROR(VLOOKUP(T134,'annexe dépense occulte'!$R$2:$BQ$133,2,FALSE),\"\")","v":""}]
[null,"effet",{"$f":"IFERROR(VLOOKUP(B134,'annexe dépense occulte'!$R$2:$BQ$133,6,FALSE),\"\")","v":""},null,null,null,null,"effet",{"$f":"IFERROR(VLOOKUP(H134,'annexe dépense occulte'!$R$2:$BQ$133,6,FALSE),\"\")","v":""},null,null,null,null,"effet",{"$f":"IFERROR(VLOOKUP(N134,'annexe dépense occulte'!$R$2:$BQ$133,6,FALSE),\"\")","v":""},null,null,null,null,"effet",{"$f":"IFERROR(VLOOKUP(T134,'annexe dépense occulte'!$R$2:$BQ$133,6,FALSE),\"\")","v":""}]
[]
[null,"Stance 2",null,null,null,null,null,"Stance 2",null,null,null,null,null,"Stance 2",null,null,null,null,null,"Stance 2"]
[null,"difficulté",null,{"$f":"IFERROR(VLOOKUP(B134,'annexe dépense occulte'!$R$2:$BQ$132,8,FALSE),\"\")","v":""},"débloquée","non",null,"difficulté",null,{"$f":"IFERROR(VLOOKUP(H134,'annexe dépense occulte'!$R$2:$BQ$132,8,FALSE),\"\")","v":""},"débloquée","non",null,"difficulté",null,{"$f":"IFERROR(VLOOKUP(N134,'annexe dépense occulte'!$R$2:$BQ$132,8,FALSE),\"\")","v":""},"débloquée","non",null,"difficulté",null,{"$f":"IFERROR(VLOOKUP(T134,'annexe dépense occulte'!$R$2:$BQ$132,8,FALSE),\"\")","v":""},"débloquée","non"]
[null,"coût occultisme",null,{"$f":"IFERROR(VLOOKUP(B134,'annexe dépense occulte'!$R$2:$BQ$132,9,FALSE),\"\")","v":""},"coût appren",{"$f":"IFERROR(VLOOKUP(B134,'annexe dépense occulte'!$R$2:$BQ$133,7,FALSE),\"\")","v":""},null,"coût occultisme",null,{"$f":"IFERROR(VLOOKUP(H134,'annexe dépense occulte'!$R$2:$BQ$132,9,FALSE),\"\")","v":""},"coût appren",{"$f":"IFERROR(VLOOKUP(H134,'annexe dépense occulte'!$R$2:$BQ$133,7,FALSE),\"\")","v":""},null,"coût occultisme",null,{"$f":"IFERROR(VLOOKUP(N134,'annexe dépense occulte'!$R$2:$BQ$132,9,FALSE),\"\")","v":""},"coût appren",{"$f":"IFERROR(VLOOKUP(N134,'annexe dépense occulte'!$R$2:$BQ$133,7,FALSE),\"\")","v":""},null,"coût occultisme",null,{"$f":"IFERROR(VLOOKUP(T134,'annexe dépense occulte'!$R$2:$BQ$132,9,FALSE),\"\")","v":""},"coût appren",{"$f":"IFERROR(VLOOKUP(T134,'annexe dépense occulte'!$R$2:$BQ$133,7,FALSE),\"\")","v":""}]
[null,"maintien",null,{"$f":"IFERROR(VLOOKUP(B134,'annexe dépense occulte'!$R$2:$BQ$132,10,FALSE),\"\")","v":""},"coût action",{"$f":"IFERROR(VLOOKUP(B134,'annexe dépense occulte'!$R$2:$BQ$133,2,FALSE),\"\")","v":""},null,"maintien",null,{"$f":"IFERROR(VLOOKUP(H134,'annexe dépense occulte'!$R$2:$BQ$132,10,FALSE),\"\")","v":""},"coût action",{"$f":"IFERROR(VLOOKUP(H134,'annexe dépense occulte'!$R$2:$BQ$133,2,FALSE),\"\")","v":""},null,"maintien",null,{"$f":"IFERROR(VLOOKUP(N134,'annexe dépense occulte'!$R$2:$BQ$132,10,FALSE),\"\")","v":""},"coût action",{"$f":"IFERROR(VLOOKUP(N134,'annexe dépense occulte'!$R$2:$BQ$133,2,FALSE),\"\")","v":""},null,"maintien",null,{"$f":"IFERROR(VLOOKUP(T134,'annexe dépense occulte'!$R$2:$BQ$132,10,FALSE),\"\")","v":""},"coût action",{"$f":"IFERROR(VLOOKUP(T134,'annexe dépense occulte'!$R$2:$BQ$133,2,FALSE),\"\")","v":""}]
[null,"effet",{"$f":"IFERROR(VLOOKUP(B134,'annexe dépense occulte'!$R$2:$BQ$132,11,FALSE),\"\")","v":""},null,null,null,null,"effet",{"$f":"IFERROR(VLOOKUP(H134,'annexe dépense occulte'!$R$2:$BQ$132,11,FALSE),\"\")","v":""},null,null,null,null,"effet",{"$f":"IFERROR(VLOOKUP(N134,'annexe dépense occulte'!$R$2:$BQ$132,11,FALSE),\"\")","v":""},null,null,null,null,"effet",{"$f":"IFERROR(VLOOKUP(T134,'annexe dépense occulte'!$R$2:$BQ$132,11,FALSE),\"\")","v":""}]
[]
[null,"Stance 3",null,null,null,null,null,"Stance 3",null,null,null,null,null,"Stance 3",null,null,null,null,null,"Stance 3"]
[null,"difficulté",null,{"$f":"IFERROR(VLOOKUP(B134,'annexe dépense occulte'!$R$2:$BQ$132,13,FALSE),\"\")","v":""},"débloquée","non",null,"difficulté",null,{"$f":"IFERROR(VLOOKUP(H134,'annexe dépense occulte'!$R$2:$BQ$132,13,FALSE),\"\")","v":""},"débloquée","non",null,"difficulté",null,{"$f":"IFERROR(VLOOKUP(N134,'annexe dépense occulte'!$R$2:$BQ$132,13,FALSE),\"\")","v":""},"débloquée","non",null,"difficulté",null,{"$f":"IFERROR(VLOOKUP(T134,'annexe dépense occulte'!$R$2:$BQ$132,13,FALSE),\"\")","v":""},"débloquée","non"]
[null,"coût occultisme",null,{"$f":"IFERROR(VLOOKUP(B134,'annexe dépense occulte'!$R$2:$BQ$132,14,FALSE),\"\")","v":""},"coût appren",{"$f":"IFERROR(VLOOKUP(B134,'annexe dépense occulte'!$R$2:$BQ$133,12,FALSE),\"\")","v":""},null,"coût occultisme",null,{"$f":"IFERROR(VLOOKUP(H134,'annexe dépense occulte'!$R$2:$BQ$132,14,FALSE),\"\")","v":""},"coût appren",{"$f":"IFERROR(VLOOKUP(H134,'annexe dépense occulte'!$R$2:$BQ$133,12,FALSE),\"\")","v":""},null,"coût occultisme",null,{"$f":"IFERROR(VLOOKUP(N134,'annexe dépense occulte'!$R$2:$BQ$132,14,FALSE),\"\")","v":""},"coût appren",{"$f":"IFERROR(VLOOKUP(N134,'annexe dépense occulte'!$R$2:$BQ$133,12,FALSE),\"\")","v":""},null,"coût occultisme",null,{"$f":"IFERROR(VLOOKUP(T134,'annexe dépense occulte'!$R$2:$BQ$132,14,FALSE),\"\")","v":""},"coût appren",{"$f":"IFERROR(VLOOKUP(T134,'annexe dépense occulte'!$R$2:$BQ$133,12,FALSE),\"\")","v":""}]
[null,"maintien",null,{"$f":"IFERROR(VLOOKUP(B134,'annexe dépense occulte'!$R$2:$BQ$132,15,FALSE),\"\")","v":""},"coût action",{"$f":"IFERROR(VLOOKUP(B134,'annexe dépense occulte'!$R$2:$BQ$133,2,FALSE),\"\")","v":""},null,"maintien",null,{"$f":"IFERROR(VLOOKUP(H134,'annexe dépense occulte'!$R$2:$BQ$132,15,FALSE),\"\")","v":""},"coût action",{"$f":"IFERROR(VLOOKUP(H134,'annexe dépense occulte'!$R$2:$BQ$133,2,FALSE),\"\")","v":""},null,"maintien",null,{"$f":"IFERROR(VLOOKUP(N134,'annexe dépense occulte'!$R$2:$BQ$132,15,FALSE),\"\")","v":""},"coût action",{"$f":"IFERROR(VLOOKUP(N134,'annexe dépense occulte'!$R$2:$BQ$133,2,FALSE),\"\")","v":""},null,"maintien",null,{"$f":"IFERROR(VLOOKUP(T134,'annexe dépense occulte'!$R$2:$BQ$132,15,FALSE),\"\")","v":""},"coût action",{"$f":"IFERROR(VLOOKUP(T134,'annexe dépense occulte'!$R$2:$BQ$133,2,FALSE),\"\")","v":""}]
[null,"effet",{"$f":"IFERROR(VLOOKUP(B134,'annexe dépense occulte'!$R$2:$BQ$132,16,FALSE),\"\")","v":""},null,null,null,null,"effet",{"$f":"IFERROR(VLOOKUP(H134,'annexe dépense occulte'!$R$2:$BQ$132,16,FALSE),\"\")","v":""},null,null,null,null,"effet",{"$f":"IFERROR(VLOOKUP(N134,'annexe dépense occulte'!$R$2:$BQ$132,16,FALSE),\"\")","v":""},null,null,null,null,"effet",{"$f":"IFERROR(VLOOKUP(T134,'annexe dépense occulte'!$R$2:$BQ$132,16,FALSE),\"\")","v":""}]
[]
[null,"Stance 4",null,null,null,null,null,"Stance 4",null,null,null,null,null,"Stance 4",null,null,null,null,null,"Stance 4"]
[null,"difficulté",null,{"$f":"IFERROR(VLOOKUP(B134,'annexe dépense occulte'!$R$2:$BQ$132,18,FALSE),\"\")","v":""},"débloquée","non",null,"difficulté",null,{"$f":"IFERROR(VLOOKUP(H134,'annexe dépense occulte'!$R$2:$BQ$132,18,FALSE),\"\")","v":""},"débloquée","non",null,"difficulté",null,{"$f":"IFERROR(VLOOKUP(N134,'annexe dépense occulte'!$R$2:$BQ$132,18,FALSE),\"\")","v":""},"débloquée","non",null,"difficulté",null,{"$f":"IFERROR(VLOOKUP(T134,'annexe dépense occulte'!$R$2:$BQ$132,18,FALSE),\"\")","v":""},"débloquée","non"]
[null,"coût occultisme",null,{"$f":"IFERROR(VLOOKUP(B134,'annexe dépense occulte'!$R$2:$BQ$132,19,FALSE),\"\")","v":""},"coût appren",{"$f":"IFERROR(VLOOKUP(B134,'annexe dépense occulte'!$R$2:$BQ$133,17,FALSE),\"\")","v":""},null,"coût occultisme",null,{"$f":"IFERROR(VLOOKUP(H134,'annexe dépense occulte'!$R$2:$BQ$132,19,FALSE),\"\")","v":""},"coût appren",{"$f":"IFERROR(VLOOKUP(H134,'annexe dépense occulte'!$R$2:$BQ$133,17,FALSE),\"\")","v":""},null,"coût occultisme",null,{"$f":"IFERROR(VLOOKUP(N134,'annexe dépense occulte'!$R$2:$BQ$132,19,FALSE),\"\")","v":""},"coût appren",{"$f":"IFERROR(VLOOKUP(N134,'annexe dépense occulte'!$R$2:$BQ$133,17,FALSE),\"\")","v":""},null,"coût occultisme",null,{"$f":"IFERROR(VLOOKUP(T134,'annexe dépense occulte'!$R$2:$BQ$132,19,FALSE),\"\")","v":""},"coût appren",{"$f":"IFERROR(VLOOKUP(T134,'annexe dépense occulte'!$R$2:$BQ$133,17,FALSE),\"\")","v":""}]
[null,"maintien",null,{"$f":"IFERROR(VLOOKUP(B134,'annexe dépense occulte'!$R$2:$BQ$132,20,FALSE),\"\")","v":""},"coût action",{"$f":"IFERROR(VLOOKUP(B134,'annexe dépense occulte'!$R$2:$BQ$133,2,FALSE),\"\")","v":""},null,"maintien",null,{"$f":"IFERROR(VLOOKUP(H134,'annexe dépense occulte'!$R$2:$BQ$132,20,FALSE),\"\")","v":""},"coût action",{"$f":"IFERROR(VLOOKUP(H134,'annexe dépense occulte'!$R$2:$BQ$133,2,FALSE),\"\")","v":""},null,"maintien",null,{"$f":"IFERROR(VLOOKUP(N134,'annexe dépense occulte'!$R$2:$BQ$132,20,FALSE),\"\")","v":""},"coût action",{"$f":"IFERROR(VLOOKUP(N134,'annexe dépense occulte'!$R$2:$BQ$133,2,FALSE),\"\")","v":""},null,"maintien",null,{"$f":"IFERROR(VLOOKUP(T134,'annexe dépense occulte'!$R$2:$BQ$132,20,FALSE),\"\")","v":""},"coût action",{"$f":"IFERROR(VLOOKUP(T134,'annexe dépense occulte'!$R$2:$BQ$133,2,FALSE),\"\")","v":""}]
[null,"effet",{"$f":"IFERROR(VLOOKUP(B134,'annexe dépense occulte'!$R$2:$BQ$132,21,FALSE),\"\")","v":""},null,null,null,null,"effet",{"$f":"IFERROR(VLOOKUP(H134,'annexe dépense occulte'!$R$2:$BQ$132,21,FALSE),\"\")","v":""},null,null,null,null,"effet",{"$f":"IFERROR(VLOOKUP(N134,'annexe dépense occulte'!$R$2:$BQ$132,21,FALSE),\"\")","v":""},null,null,null,null,"effet",{"$f":"IFERROR(VLOOKUP(T134,'annexe dépense occulte'!$R$2:$BQ$132,21,FALSE),\"\")","v":""}]
[]
[null,"Stance 5",null,null,null,null,null,"Stance 5",null,null,null,null,null,"Stance 5",null,null,null,null,null,"Stance 5"]
[null,"difficulté",null,{"$f":"IFERROR(VLOOKUP(B134,'annexe dépense occulte'!$R$2:$BQ$132,23,FALSE),\"\")","v":""},"débloquée","non",null,"difficulté",null,{"$f":"IFERROR(VLOOKUP(H134,'annexe dépense occulte'!$R$2:$BQ$132,23,FALSE),\"\")","v":""},"débloquée","non",null,"difficulté",null,{"$f":"IFERROR(VLOOKUP(N134,'annexe dépense occulte'!$R$2:$BQ$132,23,FALSE),\"\")","v":""},"débloquée","non",null,"difficulté",null,{"$f":"IFERROR(VLOOKUP(T134,'annexe dépense occulte'!$R$2:$BQ$132,23,FALSE),\"\")","v":""},"débloquée","non"]
[null,"coût occultisme",null,{"$f":"IFERROR(VLOOKUP(B134,'annexe dépense occulte'!$R$2:$BQ$132,24,FALSE),\"\")","v":""},"coût appren",{"$f":"IFERROR(VLOOKUP(B134,'annexe dépense occulte'!$R$2:$BQ$133,22,FALSE),\"\")","v":""},null,"coût occultisme",null,{"$f":"IFERROR(VLOOKUP(H134,'annexe dépense occulte'!$R$2:$BQ$132,24,FALSE),\"\")","v":""},"coût appren",{"$f":"IFERROR(VLOOKUP(H134,'annexe dépense occulte'!$R$2:$BQ$133,22,FALSE),\"\")","v":""},null,"coût occultisme",null,{"$f":"IFERROR(VLOOKUP(N134,'annexe dépense occulte'!$R$2:$BQ$132,24,FALSE),\"\")","v":""},"coût appren",{"$f":"IFERROR(VLOOKUP(N134,'annexe dépense occulte'!$R$2:$BQ$133,22,FALSE),\"\")","v":""},null,"coût occultisme",null,{"$f":"IFERROR(VLOOKUP(T134,'annexe dépense occulte'!$R$2:$BQ$132,24,FALSE),\"\")","v":""},"coût appren",{"$f":"IFERROR(VLOOKUP(T134,'annexe dépense occulte'!$R$2:$BQ$133,22,FALSE),\"\")","v":""}]
[null,"maintien",null,{"$f":"IFERROR(VLOOKUP(B134,'annexe dépense occulte'!$R$2:$BQ$132,25,FALSE),\"\")","v":""},"coût action",{"$f":"IFERROR(VLOOKUP(B134,'annexe dépense occulte'!$R$2:$BQ$133,2,FALSE),\"\")","v":""},null,"maintien",null,{"$f":"IFERROR(VLOOKUP(H134,'annexe dépense occulte'!$R$2:$BQ$132,25,FALSE),\"\")","v":""},"coût action",{"$f":"IFERROR(VLOOKUP(H134,'annexe dépense occulte'!$R$2:$BQ$133,2,FALSE),\"\")","v":""},null,"maintien",null,{"$f":"IFERROR(VLOOKUP(N134,'annexe dépense occulte'!$R$2:$BQ$132,25,FALSE),\"\")","v":""},"coût action",{"$f":"IFERROR(VLOOKUP(N134,'annexe dépense occulte'!$R$2:$BQ$133,2,FALSE),\"\")","v":""},null,"maintien",null,{"$f":"IFERROR(VLOOKUP(T134,'annexe dépense occulte'!$R$2:$BQ$132,25,FALSE),\"\")","v":""},"coût action",{"$f":"IFERROR(VLOOKUP(T134,'annexe dépense occulte'!$R$2:$BQ$133,2,FALSE),\"\")","v":""}]
[null,"effet",{"$f":"IFERROR(VLOOKUP(B134,'annexe dépense occulte'!$R$2:$BQ$132,26,FALSE),\"\")","v":""},null,null,null,null,"effet",{"$f":"IFERROR(VLOOKUP(H134,'annexe dépense occulte'!$R$2:$BQ$132,26,FALSE),\"\")","v":""},null,null,null,null,"effet",{"$f":"IFERROR(VLOOKUP(N134,'annexe dépense occulte'!$R$2:$BQ$132,26,FALSE),\"\")","v":""},null,null,null,null,"effet",{"$f":"IFERROR(VLOOKUP(T134,'annexe dépense occulte'!$R$2:$BQ$132,26,FALSE),\"\")","v":""}]
[]
[]
[null,null,null,"maîtrise",0,{"$f":"IF(AND($G$3>3,E166>399),4,IF(AND($G$3>2,E166>299),3,IF(AND($G$3>1,E166>199),2,IF(AND($G$3>0,E166>0),1,0))))","v":0},null,null,null,"maîtrise",0,{"$f":"IF(AND($G$3>3,K166>399),4,IF(AND($G$3>2,K166>299),3,IF(AND($G$3>1,K166>199),2,IF(AND($G$3>0,K166>0),1,0))))","v":0},null,null,null,"maîtrise",0,{"$f":"IF(AND($G$3>3,Q166>399),4,IF(AND($G$3>2,Q166>299),3,IF(AND($G$3>1,Q166>199),2,IF(AND($G$3>0,Q166>0),1,0))))","v":0},null,null,null,"maîtrise",0,{"$f":"IF(AND($G$3>3,W166>399),4,IF(AND($G$3>2,W166>299),3,IF(AND($G$3>1,W166>199),2,IF(AND($G$3>0,W166>0),1,0))))","v":0}]
[null,"Stance 1",null,null,null,null,null,"Stance 1",null,null,null,null,null,"Stance 1",null,null,null,null,null,"Stance 1"]
[null,"difficulté",null,{"$f":"IFERROR(VLOOKUP(B166,'annexe dépense occulte'!$R$2:$BQ$132,3,FALSE),\"\")","v":""},"création","non",null,"difficulté",null,{"$f":"IFERROR(VLOOKUP(H166,'annexe dépense occulte'!$R$2:$BQ$132,3,FALSE),\"\")","v":""},"création","non",null,"difficulté",null,{"$f":"IFERROR(VLOOKUP(N166,'annexe dépense occulte'!$R$2:$BQ$132,3,FALSE),\"\")","v":""},"création","non",null,"difficulté",null,{"$f":"IFERROR(VLOOKUP(T166,'annexe dépense occulte'!$R$2:$BQ$132,3,FALSE),\"\")","v":""},"création","non"]
[null,"coût occultisme",null,{"$f":"IFERROR(VLOOKUP(B166,'annexe dépense occulte'!$R$2:$BQ$133,4,FALSE),\"\")","v":""},"coût apprentissage",{"$f":"IFERROR(VLOOKUP(B166,'annexe dépense occulte'!$R$2:$BQ$133,27,FALSE),\"\")","v":""},null,"coût occultisme",null,{"$f":"IFERROR(VLOOKUP(H166,'annexe dépense occulte'!$R$2:$BQ$133,4,FALSE),\"\")","v":""},"coût apprentissage",{"$f":"IFERROR(VLOOKUP(H166,'annexe dépense occulte'!$R$2:$BQ$133,27,FALSE),\"\")","v":""},null,"coût occultisme",null,{"$f":"IFERROR(VLOOKUP(N166,'annexe dépense occulte'!$R$2:$BQ$133,4,FALSE),\"\")","v":""},"coût apprentissage",{"$f":"IFERROR(VLOOKUP(N166,'annexe dépense occulte'!$R$2:$BQ$133,27,FALSE),\"\")","v":""},null,"coût occultisme",null,{"$f":"IFERROR(VLOOKUP(T166,'annexe dépense occulte'!$R$2:$BQ$133,4,FALSE),\"\")","v":""},"coût apprentissage",{"$f":"IFERROR(VLOOKUP(T166,'annexe dépense occulte'!$R$2:$BQ$133,27,FALSE),\"\")","v":""}]
[null,"maintien",null,{"$f":"IFERROR(VLOOKUP(B166,'annexe dépense occulte'!$R$2:$BQ$133,5,FALSE),\"\")","v":""},"coût action",{"$f":"IFERROR(VLOOKUP(B166,'annexe dépense occulte'!$R$2:$BQ$133,2,FALSE),\"\")","v":""},null,"maintien",null,{"$f":"IFERROR(VLOOKUP(H166,'annexe dépense occulte'!$R$2:$BQ$133,5,FALSE),\"\")","v":""},"coût action",{"$f":"IFERROR(VLOOKUP(H166,'annexe dépense occulte'!$R$2:$BQ$133,2,FALSE),\"\")","v":""},null,"maintien",null,{"$f":"IFERROR(VLOOKUP(N166,'annexe dépense occulte'!$R$2:$BQ$133,5,FALSE),\"\")","v":""},"coût action",{"$f":"IFERROR(VLOOKUP(N166,'annexe dépense occulte'!$R$2:$BQ$133,2,FALSE),\"\")","v":""},null,"maintien",null,{"$f":"IFERROR(VLOOKUP(T166,'annexe dépense occulte'!$R$2:$BQ$133,5,FALSE),\"\")","v":""},"coût action",{"$f":"IFERROR(VLOOKUP(T166,'annexe dépense occulte'!$R$2:$BQ$133,2,FALSE),\"\")","v":""}]
[null,"effet",{"$f":"IFERROR(VLOOKUP(B166,'annexe dépense occulte'!$R$2:$BQ$133,6,FALSE),\"\")","v":""},null,null,null,null,"effet",{"$f":"IFERROR(VLOOKUP(H166,'annexe dépense occulte'!$R$2:$BQ$133,6,FALSE),\"\")","v":""},null,null,null,null,"effet",{"$f":"IFERROR(VLOOKUP(N166,'annexe dépense occulte'!$R$2:$BQ$133,6,FALSE),\"\")","v":""},null,null,null,null,"effet",{"$f":"IFERROR(VLOOKUP(T166,'annexe dépense occulte'!$R$2:$BQ$133,6,FALSE),\"\")","v":""}]
[]
[null,"Stance 2",null,null,null,null,null,"Stance 2",null,null,null,null,null,"Stance 2",null,null,null,null,null,"Stance 2"]
[null,"difficulté",null,{"$f":"IFERROR(VLOOKUP(B166,'annexe dépense occulte'!$R$2:$BQ$132,8,FALSE),\"\")","v":""},"débloquée","non",null,"difficulté",null,{"$f":"IFERROR(VLOOKUP(H166,'annexe dépense occulte'!$R$2:$BQ$132,8,FALSE),\"\")","v":""},"débloquée","non",null,"difficulté",null,{"$f":"IFERROR(VLOOKUP(N166,'annexe dépense occulte'!$R$2:$BQ$132,8,FALSE),\"\")","v":""},"débloquée","non",null,"difficulté",null,{"$f":"IFERROR(VLOOKUP(T166,'annexe dépense occulte'!$R$2:$BQ$132,8,FALSE),\"\")","v":""},"débloquée","non"]
[null,"coût occultisme",null,{"$f":"IFERROR(VLOOKUP(B166,'annexe dépense occulte'!$R$2:$BQ$132,9,FALSE),\"\")","v":""},"coût appren",{"$f":"IFERROR(VLOOKUP(B166,'annexe dépense occulte'!$R$2:$BQ$133,7,FALSE),\"\")","v":""},null,"coût occultisme",null,{"$f":"IFERROR(VLOOKUP(H166,'annexe dépense occulte'!$R$2:$BQ$132,9,FALSE),\"\")","v":""},"coût appren",{"$f":"IFERROR(VLOOKUP(H166,'annexe dépense occulte'!$R$2:$BQ$133,7,FALSE),\"\")","v":""},null,"coût occultisme",null,{"$f":"IFERROR(VLOOKUP(N166,'annexe dépense occulte'!$R$2:$BQ$132,9,FALSE),\"\")","v":""},"coût appren",{"$f":"IFERROR(VLOOKUP(N166,'annexe dépense occulte'!$R$2:$BQ$133,7,FALSE),\"\")","v":""},null,"coût occultisme",null,{"$f":"IFERROR(VLOOKUP(T166,'annexe dépense occulte'!$R$2:$BQ$132,9,FALSE),\"\")","v":""},"coût appren",{"$f":"IFERROR(VLOOKUP(T166,'annexe dépense occulte'!$R$2:$BQ$133,7,FALSE),\"\")","v":""}]
[null,"maintien",null,{"$f":"IFERROR(VLOOKUP(B166,'annexe dépense occulte'!$R$2:$BQ$132,10,FALSE),\"\")","v":""},"coût action",{"$f":"IFERROR(VLOOKUP(B166,'annexe dépense occulte'!$R$2:$BQ$133,2,FALSE),\"\")","v":""},null,"maintien",null,{"$f":"IFERROR(VLOOKUP(H166,'annexe dépense occulte'!$R$2:$BQ$132,10,FALSE),\"\")","v":""},"coût action",{"$f":"IFERROR(VLOOKUP(H166,'annexe dépense occulte'!$R$2:$BQ$133,2,FALSE),\"\")","v":""},null,"maintien",null,{"$f":"IFERROR(VLOOKUP(N166,'annexe dépense occulte'!$R$2:$BQ$132,10,FALSE),\"\")","v":""},"coût action",{"$f":"IFERROR(VLOOKUP(N166,'annexe dépense occulte'!$R$2:$BQ$133,2,FALSE),\"\")","v":""},null,"maintien",null,{"$f":"IFERROR(VLOOKUP(T166,'annexe dépense occulte'!$R$2:$BQ$132,10,FALSE),\"\")","v":""},"coût action",{"$f":"IFERROR(VLOOKUP(T166,'annexe dépense occulte'!$R$2:$BQ$133,2,FALSE),\"\")","v":""}]
[null,"effet",{"$f":"IFERROR(VLOOKUP(B166,'annexe dépense occulte'!$R$2:$BQ$132,11,FALSE),\"\")","v":""},null,null,null,null,"effet",{"$f":"IFERROR(VLOOKUP(H166,'annexe dépense occulte'!$R$2:$BQ$132,11,FALSE),\"\")","v":""},null,null,null,null,"effet",{"$f":"IFERROR(VLOOKUP(N166,'annexe dépense occulte'!$R$2:$BQ$132,11,FALSE),\"\")","v":""},null,null,null,null,"effet",{"$f":"IFERROR(VLOOKUP(T166,'annexe dépense occulte'!$R$2:$BQ$132,11,FALSE),\"\")","v":""}]
[]
[null,"Stance 3",null,null,null,null,null,"Stance 3",null,null,null,null,null,"Stance 3",null,null,null,null,null,"Stance 3"]
[null,"difficulté",null,{"$f":"IFERROR(VLOOKUP(B166,'annexe dépense occulte'!$R$2:$BQ$132,13,FALSE),\"\")","v":""},"débloquée","non",null,"difficulté",null,{"$f":"IFERROR(VLOOKUP(H166,'annexe dépense occulte'!$R$2:$BQ$132,13,FALSE),\"\")","v":""},"débloquée","non",null,"difficulté",null,{"$f":"IFERROR(VLOOKUP(N166,'annexe dépense occulte'!$R$2:$BQ$132,13,FALSE),\"\")","v":""},"débloquée","non",null,"difficulté",null,{"$f":"IFERROR(VLOOKUP(T166,'annexe dépense occulte'!$R$2:$BQ$132,13,FALSE),\"\")","v":""},"débloquée","non"]
[null,"coût occultisme",null,{"$f":"IFERROR(VLOOKUP(B166,'annexe dépense occulte'!$R$2:$BQ$132,14,FALSE),\"\")","v":""},"coût appren",{"$f":"IFERROR(VLOOKUP(B166,'annexe dépense occulte'!$R$2:$BQ$133,12,FALSE),\"\")","v":""},null,"coût occultisme",null,{"$f":"IFERROR(VLOOKUP(H166,'annexe dépense occulte'!$R$2:$BQ$132,14,FALSE),\"\")","v":""},"coût appren",{"$f":"IFERROR(VLOOKUP(H166,'annexe dépense occulte'!$R$2:$BQ$133,12,FALSE),\"\")","v":""},null,"coût occultisme",null,{"$f":"IFERROR(VLOOKUP(N166,'annexe dépense occulte'!$R$2:$BQ$132,14,FALSE),\"\")","v":""},"coût appren",{"$f":"IFERROR(VLOOKUP(N166,'annexe dépense occulte'!$R$2:$BQ$133,12,FALSE),\"\")","v":""},null,"coût occultisme",null,{"$f":"IFERROR(VLOOKUP(T166,'annexe dépense occulte'!$R$2:$BQ$132,14,FALSE),\"\")","v":""},"coût appren",{"$f":"IFERROR(VLOOKUP(T166,'annexe dépense occulte'!$R$2:$BQ$133,12,FALSE),\"\")","v":""}]
[null,"maintien",null,{"$f":"IFERROR(VLOOKUP(B166,'annexe dépense occulte'!$R$2:$BQ$132,15,FALSE),\"\")","v":""},"coût action",{"$f":"IFERROR(VLOOKUP(B166,'annexe dépense occulte'!$R$2:$BQ$133,2,FALSE),\"\")","v":""},null,"maintien",null,{"$f":"IFERROR(VLOOKUP(H166,'annexe dépense occulte'!$R$2:$BQ$132,15,FALSE),\"\")","v":""},"coût action",{"$f":"IFERROR(VLOOKUP(H166,'annexe dépense occulte'!$R$2:$BQ$133,2,FALSE),\"\")","v":""},null,"maintien",null,{"$f":"IFERROR(VLOOKUP(N166,'annexe dépense occulte'!$R$2:$BQ$132,15,FALSE),\"\")","v":""},"coût action",{"$f":"IFERROR(VLOOKUP(N166,'annexe dépense occulte'!$R$2:$BQ$133,2,FALSE),\"\")","v":""},null,"maintien",null,{"$f":"IFERROR(VLOOKUP(T166,'annexe dépense occulte'!$R$2:$BQ$132,15,FALSE),\"\")","v":""},"coût action",{"$f":"IFERROR(VLOOKUP(T166,'annexe dépense occulte'!$R$2:$BQ$133,2,FALSE),\"\")","v":""}]
[null,"effet",{"$f":"IFERROR(VLOOKUP(B166,'annexe dépense occulte'!$R$2:$BQ$132,16,FALSE),\"\")","v":""},null,null,null,null,"effet",{"$f":"IFERROR(VLOOKUP(H166,'annexe dépense occulte'!$R$2:$BQ$132,16,FALSE),\"\")","v":""},null,null,null,null,"effet",{"$f":"IFERROR(VLOOKUP(N166,'annexe dépense occulte'!$R$2:$BQ$132,16,FALSE),\"\")","v":""},null,null,null,null,"effet",{"$f":"IFERROR(VLOOKUP(T166,'annexe dépense occulte'!$R$2:$BQ$132,16,FALSE),\"\")","v":""}]
[]
[null,"Stance 4",null,null,null,null,null,"Stance 4",null,null,null,null,null,"Stance 4",null,null,null,null,null,"Stance 4"]
[null,"difficulté",null,{"$f":"IFERROR(VLOOKUP(B166,'annexe dépense occulte'!$R$2:$BQ$132,18,FALSE),\"\")","v":""},"débloquée","non",null,"difficulté",null,{"$f":"IFERROR(VLOOKUP(H166,'annexe dépense occulte'!$R$2:$BQ$132,18,FALSE),\"\")","v":""},"débloquée","non",null,"difficulté",null,{"$f":"IFERROR(VLOOKUP(N166,'annexe dépense occulte'!$R$2:$BQ$132,18,FALSE),\"\")","v":""},"débloquée","non",null,"difficulté",null,{"$f":"IFERROR(VLOOKUP(T166,'annexe dépense occulte'!$R$2:$BQ$132,18,FALSE),\"\")","v":""},"débloquée","non"]
[null,"coût occultisme",null,{"$f":"IFERROR(VLOOKUP(B166,'annexe dépense occulte'!$R$2:$BQ$132,19,FALSE),\"\")","v":""},"coût appren",{"$f":"IFERROR(VLOOKUP(B166,'annexe dépense occulte'!$R$2:$BQ$133,17,FALSE),\"\")","v":""},null,"coût occultisme",null,{"$f":"IFERROR(VLOOKUP(H166,'annexe dépense occulte'!$R$2:$BQ$132,19,FALSE),\"\")","v":""},"coût appren",{"$f":"IFERROR(VLOOKUP(H166,'annexe dépense occulte'!$R$2:$BQ$133,17,FALSE),\"\")","v":""},null,"coût occultisme",null,{"$f":"IFERROR(VLOOKUP(N166,'annexe dépense occulte'!$R$2:$BQ$132,19,FALSE),\"\")","v":""},"coût appren",{"$f":"IFERROR(VLOOKUP(N166,'annexe dépense occulte'!$R$2:$BQ$133,17,FALSE),\"\")","v":""},null,"coût occultisme",null,{"$f":"IFERROR(VLOOKUP(T166,'annexe dépense occulte'!$R$2:$BQ$132,19,FALSE),\"\")","v":""},"coût appren",{"$f":"IFERROR(VLOOKUP(T166,'annexe dépense occulte'!$R$2:$BQ$133,17,FALSE),\"\")","v":""}]
[null,"maintien",null,{"$f":"IFERROR(VLOOKUP(B166,'annexe dépense occulte'!$R$2:$BQ$132,20,FALSE),\"\")","v":""},"coût action",{"$f":"IFERROR(VLOOKUP(B166,'annexe dépense occulte'!$R$2:$BQ$133,2,FALSE),\"\")","v":""},null,"maintien",null,{"$f":"IFERROR(VLOOKUP(H166,'annexe dépense occulte'!$R$2:$BQ$132,20,FALSE),\"\")","v":""},"coût action",{"$f":"IFERROR(VLOOKUP(H166,'annexe dépense occulte'!$R$2:$BQ$133,2,FALSE),\"\")","v":""},null,"maintien",null,{"$f":"IFERROR(VLOOKUP(N166,'annexe dépense occulte'!$R$2:$BQ$132,20,FALSE),\"\")","v":""},"coût action",{"$f":"IFERROR(VLOOKUP(N166,'annexe dépense occulte'!$R$2:$BQ$133,2,FALSE),\"\")","v":""},null,"maintien",null,{"$f":"IFERROR(VLOOKUP(T166,'annexe dépense occulte'!$R$2:$BQ$132,20,FALSE),\"\")","v":""},"coût action",{"$f":"IFERROR(VLOOKUP(T166,'annexe dépense occulte'!$R$2:$BQ$133,2,FALSE),\"\")","v":""}]
[null,"effet",{"$f":"IFERROR(VLOOKUP(B166,'annexe dépense occulte'!$R$2:$BQ$132,21,FALSE),\"\")","v":""},null,null,null,null,"effet",{"$f":"IFERROR(VLOOKUP(H166,'annexe dépense occulte'!$R$2:$BQ$132,21,FALSE),\"\")","v":""},null,null,null,null,"effet",{"$f":"IFERROR(VLOOKUP(N166,'annexe dépense occulte'!$R$2:$BQ$132,21,FALSE),\"\")","v":""},null,null,null,null,"effet",{"$f":"IFERROR(VLOOKUP(T166,'annexe dépense occulte'!$R$2:$BQ$132,21,FALSE),\"\")","v":""}]
[]
[null,"Stance 5",null,null,null,null,null,"Stance 5",null,null,null,null,null,"Stance 5",null,null,null,null,null,"Stance 5"]
[null,"difficulté",null,{"$f":"IFERROR(VLOOKUP(B166,'annexe dépense occulte'!$R$2:$BQ$132,23,FALSE),\"\")","v":""},"débloquée","non",null,"difficulté",null,{"$f":"IFERROR(VLOOKUP(H166,'annexe dépense occulte'!$R$2:$BQ$132,23,FALSE),\"\")","v":""},"débloquée","non",null,"difficulté",null,{"$f":"IFERROR(VLOOKUP(N166,'annexe dépense occulte'!$R$2:$BQ$132,23,FALSE),\"\")","v":""},"débloquée","non",null,"difficulté",null,{"$f":"IFERROR(VLOOKUP(T166,'annexe dépense occulte'!$R$2:$BQ$132,23,FALSE),\"\")","v":""},"débloquée","non"]
[null,"coût occultisme",null,{"$f":"IFERROR(VLOOKUP(B166,'annexe dépense occulte'!$R$2:$BQ$132,24,FALSE),\"\")","v":""},"coût appren",{"$f":"IFERROR(VLOOKUP(B166,'annexe dépense occulte'!$R$2:$BQ$133,22,FALSE),\"\")","v":""},null,"coût occultisme",null,{"$f":"IFERROR(VLOOKUP(H166,'annexe dépense occulte'!$R$2:$BQ$132,24,FALSE),\"\")","v":""},"coût appren",{"$f":"IFERROR(VLOOKUP(H166,'annexe dépense occulte'!$R$2:$BQ$133,22,FALSE),\"\")","v":""},null,"coût occultisme",null,{"$f":"IFERROR(VLOOKUP(N166,'annexe dépense occulte'!$R$2:$BQ$132,24,FALSE),\"\")","v":""},"coût appren",{"$f":"IFERROR(VLOOKUP(N166,'annexe dépense occulte'!$R$2:$BQ$133,22,FALSE),\"\")","v":""},null,"coût occultisme",null,{"$f":"IFERROR(VLOOKUP(T166,'annexe dépense occulte'!$R$2:$BQ$132,24,FALSE),\"\")","v":""},"coût appren",{"$f":"IFERROR(VLOOKUP(T166,'annexe dépense occulte'!$R$2:$BQ$133,22,FALSE),\"\")","v":""}]
[null,"maintien",null,{"$f":"IFERROR(VLOOKUP(B166,'annexe dépense occulte'!$R$2:$BQ$132,25,FALSE),\"\")","v":""},"coût action",{"$f":"IFERROR(VLOOKUP(B166,'annexe dépense occulte'!$R$2:$BQ$133,2,FALSE),\"\")","v":""},null,"maintien",null,{"$f":"IFERROR(VLOOKUP(H166,'annexe dépense occulte'!$R$2:$BQ$132,25,FALSE),\"\")","v":""},"coût action",{"$f":"IFERROR(VLOOKUP(H166,'annexe dépense occulte'!$R$2:$BQ$133,2,FALSE),\"\")","v":""},null,"maintien",null,{"$f":"IFERROR(VLOOKUP(N166,'annexe dépense occulte'!$R$2:$BQ$132,25,FALSE),\"\")","v":""},"coût action",{"$f":"IFERROR(VLOOKUP(N166,'annexe dépense occulte'!$R$2:$BQ$133,2,FALSE),\"\")","v":""},null,"maintien",null,{"$f":"IFERROR(VLOOKUP(T166,'annexe dépense occulte'!$R$2:$BQ$132,25,FALSE),\"\")","v":""},"coût action",{"$f":"IFERROR(VLOOKUP(T166,'annexe dépense occulte'!$R$2:$BQ$133,2,FALSE),\"\")","v":""}]
[null,"effet",{"$f":"IFERROR(VLOOKUP(B166,'annexe dépense occulte'!$R$2:$BQ$132,26,FALSE),\"\")","v":""},null,null,null,null,"effet",{"$f":"IFERROR(VLOOKUP(H166,'annexe dépense occulte'!$R$2:$BQ$132,26,FALSE),\"\")","v":""},null,null,null,null,"effet",{"$f":"IFERROR(VLOOKUP(N166,'annexe dépense occulte'!$R$2:$BQ$132,26,FALSE),\"\")","v":""},null,null,null,null,"effet",{"$f":"IFERROR(VLOOKUP(T166,'annexe dépense occulte'!$R$2:$BQ$132,26,FALSE),\"\")","v":""}]
[]
[]
[null,null,null,"maîtrise",0,{"$f":"IF(AND($G$3>3,E198>399),4,IF(AND($G$3>2,E198>299),3,IF(AND($G$3>1,E198>199),2,IF(AND($G$3>0,E198>0),1,0))))","v":0},null,null,null,"maîtrise",0,{"$f":"IF(AND($G$3>3,K198>399),4,IF(AND($G$3>2,K198>299),3,IF(AND($G$3>1,K198>199),2,IF(AND($G$3>0,K198>0),1,0))))","v":0},null,null,null,"maîtrise",0,{"$f":"IF(AND($G$3>3,Q198>399),4,IF(AND($G$3>2,Q198>299),3,IF(AND($G$3>1,Q198>199),2,IF(AND($G$3>0,Q198>0),1,0))))","v":0},null,null,null,"maîtrise",0,{"$f":"IF(AND($G$3>3,W198>399),4,IF(AND($G$3>2,W198>299),3,IF(AND($G$3>1,W198>199),2,IF(AND($G$3>0,W198>0),1,0))))","v":0}]
[null,"Stance 1",null,null,null,null,null,"Stance 1",null,null,null,null,null,"Stance 1",null,null,null,null,null,"Stance 1"]
[null,"difficulté",null,{"$f":"IFERROR(VLOOKUP(B198,'annexe dépense occulte'!$R$2:$BQ$132,3,FALSE),\"\")","v":""},"création","non",null,"difficulté",null,{"$f":"IFERROR(VLOOKUP(H198,'annexe dépense occulte'!$R$2:$BQ$132,3,FALSE),\"\")","v":""},"création","non",null,"difficulté",null,{"$f":"IFERROR(VLOOKUP(N198,'annexe dépense occulte'!$R$2:$BQ$132,3,FALSE),\"\")","v":""},"création","non",null,"difficulté",null,{"$f":"IFERROR(VLOOKUP(T198,'annexe dépense occulte'!$R$2:$BQ$132,3,FALSE),\"\")","v":""},"création","non"]
[null,"coût occultisme",null,{"$f":"IFERROR(VLOOKUP(B198,'annexe dépense occulte'!$R$2:$BQ$133,4,FALSE),\"\")","v":""},"coût apprentissage",{"$f":"IFERROR(VLOOKUP(B198,'annexe dépense occulte'!$R$2:$BQ$133,27,FALSE),\"\")","v":""},null,"coût occultisme",null,{"$f":"IFERROR(VLOOKUP(H198,'annexe dépense occulte'!$R$2:$BQ$133,4,FALSE),\"\")","v":""},"coût apprentissage",{"$f":"IFERROR(VLOOKUP(H198,'annexe dépense occulte'!$R$2:$BQ$133,27,FALSE),\"\")","v":""},null,"coût occultisme",null,{"$f":"IFERROR(VLOOKUP(N198,'annexe dépense occulte'!$R$2:$BQ$133,4,FALSE),\"\")","v":""},"coût apprentissage",{"$f":"IFERROR(VLOOKUP(N198,'annexe dépense occulte'!$R$2:$BQ$133,27,FALSE),\"\")","v":""},null,"coût occultisme",null,{"$f":"IFERROR(VLOOKUP(T198,'annexe dépense occulte'!$R$2:$BQ$133,4,FALSE),\"\")","v":""},"coût apprentissage",{"$f":"IFERROR(VLOOKUP(T198,'annexe dépense occulte'!$R$2:$BQ$133,27,FALSE),\"\")","v":""}]
[null,"maintien",null,{"$f":"IFERROR(VLOOKUP(B198,'annexe dépense occulte'!$R$2:$BQ$133,5,FALSE),\"\")","v":""},"coût action",{"$f":"IFERROR(VLOOKUP(B198,'annexe dépense occulte'!$R$2:$BQ$133,2,FALSE),\"\")","v":""},null,"maintien",null,{"$f":"IFERROR(VLOOKUP(H198,'annexe dépense occulte'!$R$2:$BQ$133,5,FALSE),\"\")","v":""},"coût action",{"$f":"IFERROR(VLOOKUP(H198,'annexe dépense occulte'!$R$2:$BQ$133,2,FALSE),\"\")","v":""},null,"maintien",null,{"$f":"IFERROR(VLOOKUP(N198,'annexe dépense occulte'!$R$2:$BQ$133,5,FALSE),\"\")","v":""},"coût action",{"$f":"IFERROR(VLOOKUP(N198,'annexe dépense occulte'!$R$2:$BQ$133,2,FALSE),\"\")","v":""},null,"maintien",null,{"$f":"IFERROR(VLOOKUP(T198,'annexe dépense occulte'!$R$2:$BQ$133,5,FALSE),\"\")","v":""},"coût action",{"$f":"IFERROR(VLOOKUP(T198,'annexe dépense occulte'!$R$2:$BQ$133,2,FALSE),\"\")","v":""}]
[null,"effet",{"$f":"IFERROR(VLOOKUP(B198,'annexe dépense occulte'!$R$2:$BQ$133,6,FALSE),\"\")","v":""},null,null,null,null,"effet",{"$f":"IFERROR(VLOOKUP(H198,'annexe dépense occulte'!$R$2:$BQ$133,6,FALSE),\"\")","v":""},null,null,null,null,"effet",{"$f":"IFERROR(VLOOKUP(N198,'annexe dépense occulte'!$R$2:$BQ$133,6,FALSE),\"\")","v":""},null,null,null,null,"effet",{"$f":"IFERROR(VLOOKUP(T198,'annexe dépense occulte'!$R$2:$BQ$133,6,FALSE),\"\")","v":""}]
[]
[null,"Stance 2",null,null,null,null,null,"Stance 2",null,null,null,null,null,"Stance 2",null,null,null,null,null,"Stance 2"]
[null,"difficulté",null,{"$f":"IFERROR(VLOOKUP(B198,'annexe dépense occulte'!$R$2:$BQ$132,8,FALSE),\"\")","v":""},"débloquée","non",null,"difficulté",null,{"$f":"IFERROR(VLOOKUP(H198,'annexe dépense occulte'!$R$2:$BQ$132,8,FALSE),\"\")","v":""},"débloquée","non",null,"difficulté",null,{"$f":"IFERROR(VLOOKUP(N198,'annexe dépense occulte'!$R$2:$BQ$132,8,FALSE),\"\")","v":""},"débloquée","non",null,"difficulté",null,{"$f":"IFERROR(VLOOKUP(T198,'annexe dépense occulte'!$R$2:$BQ$132,8,FALSE),\"\")","v":""},"débloquée","non"]
[null,"coût occultisme",null,{"$f":"IFERROR(VLOOKUP(B198,'annexe dépense occulte'!$R$2:$BQ$132,9,FALSE),\"\")","v":""},"coût appren",{"$f":"IFERROR(VLOOKUP(B198,'annexe dépense occulte'!$R$2:$BQ$133,7,FALSE),\"\")","v":""},null,"coût occultisme",null,{"$f":"IFERROR(VLOOKUP(H198,'annexe dépense occulte'!$R$2:$BQ$132,9,FALSE),\"\")","v":""},"coût appren",{"$f":"IFERROR(VLOOKUP(H198,'annexe dépense occulte'!$R$2:$BQ$133,7,FALSE),\"\")","v":""},null,"coût occultisme",null,{"$f":"IFERROR(VLOOKUP(N198,'annexe dépense occulte'!$R$2:$BQ$132,9,FALSE),\"\")","v":""},"coût appren",{"$f":"IFERROR(VLOOKUP(N198,'annexe dépense occulte'!$R$2:$BQ$133,7,FALSE),\"\")","v":""},null,"coût occultisme",null,{"$f":"IFERROR(VLOOKUP(T198,'annexe dépense occulte'!$R$2:$BQ$132,9,FALSE),\"\")","v":""},"coût appren",{"$f":"IFERROR(VLOOKUP(T198,'annexe dépense occulte'!$R$2:$BQ$133,7,FALSE),\"\")","v":""}]
[null,"maintien",null,{"$f":"IFERROR(VLOOKUP(B198,'annexe dépense occulte'!$R$2:$BQ$132,10,FALSE),\"\")","v":""},"coût action",{"$f":"IFERROR(VLOOKUP(B198,'annexe dépense occulte'!$R$2:$BQ$133,2,FALSE),\"\")","v":""},null,"maintien",null,{"$f":"IFERROR(VLOOKUP(H198,'annexe dépense occulte'!$R$2:$BQ$132,10,FALSE),\"\")","v":""},"coût action",{"$f":"IFERROR(VLOOKUP(H198,'annexe dépense occulte'!$R$2:$BQ$133,2,FALSE),\"\")","v":""},null,"maintien",null,{"$f":"IFERROR(VLOOKUP(N198,'annexe dépense occulte'!$R$2:$BQ$132,10,FALSE),\"\")","v":""},"coût action",{"$f":"IFERROR(VLOOKUP(N198,'annexe dépense occulte'!$R$2:$BQ$133,2,FALSE),\"\")","v":""},null,"maintien",null,{"$f":"IFERROR(VLOOKUP(T198,'annexe dépense occulte'!$R$2:$BQ$132,10,FALSE),\"\")","v":""},"coût action",{"$f":"IFERROR(VLOOKUP(T198,'annexe dépense occulte'!$R$2:$BQ$133,2,FALSE),\"\")","v":""}]
[null,"effet",{"$f":"IFERROR(VLOOKUP(B198,'annexe dépense occulte'!$R$2:$BQ$132,11,FALSE),\"\")","v":""},null,null,null,null,"effet",{"$f":"IFERROR(VLOOKUP(H198,'annexe dépense occulte'!$R$2:$BQ$132,11,FALSE),\"\")","v":""},null,null,null,null,"effet",{"$f":"IFERROR(VLOOKUP(N198,'annexe dépense occulte'!$R$2:$BQ$132,11,FALSE),\"\")","v":""},null,null,null,null,"effet",{"$f":"IFERROR(VLOOKUP(T198,'annexe dépense occulte'!$R$2:$BQ$132,11,FALSE),\"\")","v":""}]
[]
[null,"Stance 3",null,null,null,null,null,"Stance 3",null,null,null,null,null,"Stance 3",null,null,null,null,null,"Stance 3"]
[null,"difficulté",null,{"$f":"IFERROR(VLOOKUP(B198,'annexe dépense occulte'!$R$2:$BQ$132,13,FALSE),\"\")","v":""},"débloquée","non",null,"difficulté",null,{"$f":"IFERROR(VLOOKUP(H198,'annexe dépense occulte'!$R$2:$BQ$132,13,FALSE),\"\")","v":""},"débloquée","non",null,"difficulté",null,{"$f":"IFERROR(VLOOKUP(N198,'annexe dépense occulte'!$R$2:$BQ$132,13,FALSE),\"\")","v":""},"débloquée","non",null,"difficulté",null,{"$f":"IFERROR(VLOOKUP(T198,'annexe dépense occulte'!$R$2:$BQ$132,13,FALSE),\"\")","v":""},"débloquée","non"]
[null,"coût occultisme",null,{"$f":"IFERROR(VLOOKUP(B198,'annexe dépense occulte'!$R$2:$BQ$132,14,FALSE),\"\")","v":""},"coût appren",{"$f":"IFERROR(VLOOKUP(B198,'annexe dépense occulte'!$R$2:$BQ$133,12,FALSE),\"\")","v":""},null,"coût occultisme",null,{"$f":"IFERROR(VLOOKUP(H198,'annexe dépense occulte'!$R$2:$BQ$132,14,FALSE),\"\")","v":""},"coût appren",{"$f":"IFERROR(VLOOKUP(H198,'annexe dépense occulte'!$R$2:$BQ$133,12,FALSE),\"\")","v":""},null,"coût occultisme",null,{"$f":"IFERROR(VLOOKUP(N198,'annexe dépense occulte'!$R$2:$BQ$132,14,FALSE),\"\")","v":""},"coût appren",{"$f":"IFERROR(VLOOKUP(N198,'annexe dépense occulte'!$R$2:$BQ$133,12,FALSE),\"\")","v":""},null,"coût occultisme",null,{"$f":"IFERROR(VLOOKUP(T198,'annexe dépense occulte'!$R$2:$BQ$132,14,FALSE),\"\")","v":""},"coût appren",{"$f":"IFERROR(VLOOKUP(T198,'annexe dépense occulte'!$R$2:$BQ$133,12,FALSE),\"\")","v":""}]
[null,"maintien",null,{"$f":"IFERROR(VLOOKUP(B198,'annexe dépense occulte'!$R$2:$BQ$132,15,FALSE),\"\")","v":""},"coût action",{"$f":"IFERROR(VLOOKUP(B198,'annexe dépense occulte'!$R$2:$BQ$133,2,FALSE),\"\")","v":""},null,"maintien",null,{"$f":"IFERROR(VLOOKUP(H198,'annexe dépense occulte'!$R$2:$BQ$132,15,FALSE),\"\")","v":""},"coût action",{"$f":"IFERROR(VLOOKUP(H198,'annexe dépense occulte'!$R$2:$BQ$133,2,FALSE),\"\")","v":""},null,"maintien",null,{"$f":"IFERROR(VLOOKUP(N198,'annexe dépense occulte'!$R$2:$BQ$132,15,FALSE),\"\")","v":""},"coût action",{"$f":"IFERROR(VLOOKUP(N198,'annexe dépense occulte'!$R$2:$BQ$133,2,FALSE),\"\")","v":""},null,"maintien",null,{"$f":"IFERROR(VLOOKUP(T198,'annexe dépense occulte'!$R$2:$BQ$132,15,FALSE),\"\")","v":""},"coût action",{"$f":"IFERROR(VLOOKUP(T198,'annexe dépense occulte'!$R$2:$BQ$133,2,FALSE),\"\")","v":""}]
[null,"effet",{"$f":"IFERROR(VLOOKUP(B198,'annexe dépense occulte'!$R$2:$BQ$132,16,FALSE),\"\")","v":""},null,null,null,null,"effet",{"$f":"IFERROR(VLOOKUP(H198,'annexe dépense occulte'!$R$2:$BQ$132,16,FALSE),\"\")","v":""},null,null,null,null,"effet",{"$f":"IFERROR(VLOOKUP(N198,'annexe dépense occulte'!$R$2:$BQ$132,16,FALSE),\"\")","v":""},null,null,null,null,"effet",{"$f":"IFERROR(VLOOKUP(T198,'annexe dépense occulte'!$R$2:$BQ$132,16,FALSE),\"\")","v":""}]
[]
[null,"Stance 4",null,null,null,null,null,"Stance 4",null,null,null,null,null,"Stance 4",null,null,null,null,null,"Stance 4"]
[null,"difficulté",null,{"$f":"IFERROR(VLOOKUP(B198,'annexe dépense occulte'!$R$2:$BQ$132,18,FALSE),\"\")","v":""},"débloquée","non",null,"difficulté",null,{"$f":"IFERROR(VLOOKUP(H198,'annexe dépense occulte'!$R$2:$BQ$132,18,FALSE),\"\")","v":""},"débloquée","non",null,"difficulté",null,{"$f":"IFERROR(VLOOKUP(N198,'annexe dépense occulte'!$R$2:$BQ$132,18,FALSE),\"\")","v":""},"débloquée","non",null,"difficulté",null,{"$f":"IFERROR(VLOOKUP(T198,'annexe dépense occulte'!$R$2:$BQ$132,18,FALSE),\"\")","v":""},"débloquée","non"]
[null,"coût occultisme",null,{"$f":"IFERROR(VLOOKUP(B198,'annexe dépense occulte'!$R$2:$BQ$132,19,FALSE),\"\")","v":""},"coût appren",{"$f":"IFERROR(VLOOKUP(B198,'annexe dépense occulte'!$R$2:$BQ$133,17,FALSE),\"\")","v":""},null,"coût occultisme",null,{"$f":"IFERROR(VLOOKUP(H198,'annexe dépense occulte'!$R$2:$BQ$132,19,FALSE),\"\")","v":""},"coût appren",{"$f":"IFERROR(VLOOKUP(H198,'annexe dépense occulte'!$R$2:$BQ$133,17,FALSE),\"\")","v":""},null,"coût occultisme",null,{"$f":"IFERROR(VLOOKUP(N198,'annexe dépense occulte'!$R$2:$BQ$132,19,FALSE),\"\")","v":""},"coût appren",{"$f":"IFERROR(VLOOKUP(N198,'annexe dépense occulte'!$R$2:$BQ$133,17,FALSE),\"\")","v":""},null,"coût occultisme",null,{"$f":"IFERROR(VLOOKUP(T198,'annexe dépense occulte'!$R$2:$BQ$132,19,FALSE),\"\")","v":""},"coût appren",{"$f":"IFERROR(VLOOKUP(T198,'annexe dépense occulte'!$R$2:$BQ$133,17,FALSE),\"\")","v":""}]
[null,"maintien",null,{"$f":"IFERROR(VLOOKUP(B198,'annexe dépense occulte'!$R$2:$BQ$132,20,FALSE),\"\")","v":""},"coût action",{"$f":"IFERROR(VLOOKUP(B198,'annexe dépense occulte'!$R$2:$BQ$133,2,FALSE),\"\")","v":""},null,"maintien",null,{"$f":"IFERROR(VLOOKUP(H198,'annexe dépense occulte'!$R$2:$BQ$132,20,FALSE),\"\")","v":""},"coût action",{"$f":"IFERROR(VLOOKUP(H198,'annexe dépense occulte'!$R$2:$BQ$133,2,FALSE),\"\")","v":""},null,"maintien",null,{"$f":"IFERROR(VLOOKUP(N198,'annexe dépense occulte'!$R$2:$BQ$132,20,FALSE),\"\")","v":""},"coût action",{"$f":"IFERROR(VLOOKUP(N198,'annexe dépense occulte'!$R$2:$BQ$133,2,FALSE),\"\")","v":""},null,"maintien",null,{"$f":"IFERROR(VLOOKUP(T198,'annexe dépense occulte'!$R$2:$BQ$132,20,FALSE),\"\")","v":""},"coût action",{"$f":"IFERROR(VLOOKUP(T198,'annexe dépense occulte'!$R$2:$BQ$133,2,FALSE),\"\")","v":""}]
[null,"effet",{"$f":"IFERROR(VLOOKUP(B198,'annexe dépense occulte'!$R$2:$BQ$132,21,FALSE),\"\")","v":""},null,null,null,null,"effet",{"$f":"IFERROR(VLOOKUP(H198,'annexe dépense occulte'!$R$2:$BQ$132,21,FALSE),\"\")","v":""},null,null,null,null,"effet",{"$f":"IFERROR(VLOOKUP(N198,'annexe dépense occulte'!$R$2:$BQ$132,21,FALSE),\"\")","v":""},null,null,null,null,"effet",{"$f":"IFERROR(VLOOKUP(T198,'annexe dépense occulte'!$R$2:$BQ$132,21,FALSE),\"\")","v":""}]
[]
[null,"Stance 5",null,null,null,null,null,"Stance 5",null,null,null,null,null,"Stance 5",null,null,null,null,null,"Stance 5"]
[null,"difficulté",null,{"$f":"IFERROR(VLOOKUP(B198,'annexe dépense occulte'!$R$2:$BQ$132,23,FALSE),\"\")","v":""},"débloquée","non",null,"difficulté",null,{"$f":"IFERROR(VLOOKUP(H198,'annexe dépense occulte'!$R$2:$BQ$132,23,FALSE),\"\")","v":""},"débloquée","non",null,"difficulté",null,{"$f":"IFERROR(VLOOKUP(N198,'annexe dépense occulte'!$R$2:$BQ$132,23,FALSE),\"\")","v":""},"débloquée","non",null,"difficulté",null,{"$f":"IFERROR(VLOOKUP(T198,'annexe dépense occulte'!$R$2:$BQ$132,23,FALSE),\"\")","v":""},"débloquée","non"]
[null,"coût occultisme",null,{"$f":"IFERROR(VLOOKUP(B198,'annexe dépense occulte'!$R$2:$BQ$132,24,FALSE),\"\")","v":""},"coût appren",{"$f":"IFERROR(VLOOKUP(B198,'annexe dépense occulte'!$R$2:$BQ$133,22,FALSE),\"\")","v":""},null,"coût occultisme",null,{"$f":"IFERROR(VLOOKUP(H198,'annexe dépense occulte'!$R$2:$BQ$132,24,FALSE),\"\")","v":""},"coût appren",{"$f":"IFERROR(VLOOKUP(H198,'annexe dépense occulte'!$R$2:$BQ$133,22,FALSE),\"\")","v":""},null,"coût occultisme",null,{"$f":"IFERROR(VLOOKUP(N198,'annexe dépense occulte'!$R$2:$BQ$132,24,FALSE),\"\")","v":""},"coût appren",{"$f":"IFERROR(VLOOKUP(N198,'annexe dépense occulte'!$R$2:$BQ$133,22,FALSE),\"\")","v":""},null,"coût occultisme",null,{"$f":"IFERROR(VLOOKUP(T198,'annexe dépense occulte'!$R$2:$BQ$132,24,FALSE),\"\")","v":""},"coût appren",{"$f":"IFERROR(VLOOKUP(T198,'annexe dépense occulte'!$R$2:$BQ$133,22,FALSE),\"\")","v":""}]
[null,"maintien",null,{"$f":"IFERROR(VLOOKUP(B198,'annexe dépense occulte'!$R$2:$BQ$132,25,FALSE),\"\")","v":""},"coût action",{"$f":"IFERROR(VLOOKUP(B198,'annexe dépense occulte'!$R$2:$BQ$133,2,FALSE),\"\")","v":""},null,"maintien",null,{"$f":"IFERROR(VLOOKUP(H198,'annexe dépense occulte'!$R$2:$BQ$132,25,FALSE),\"\")","v":""},"coût action",{"$f":"IFERROR(VLOOKUP(H198,'annexe dépense occulte'!$R$2:$BQ$133,2,FALSE),\"\")","v":""},null,"maintien",null,{"$f":"IFERROR(VLOOKUP(N198,'annexe dépense occulte'!$R$2:$BQ$132,25,FALSE),\"\")","v":""},"coût action",{"$f":"IFERROR(VLOOKUP(N198,'annexe dépense occulte'!$R$2:$BQ$133,2,FALSE),\"\")","v":""},null,"maintien",null,{"$f":"IFERROR(VLOOKUP(T198,'annexe dépense occulte'!$R$2:$BQ$132,25,FALSE),\"\")","v":""},"coût action",{"$f":"IFERROR(VLOOKUP(T198,'annexe dépense occulte'!$R$2:$BQ$133,2,FALSE),\"\")","v":""}]
[null,"effet",{"$f":"IFERROR(VLOOKUP(B198,'annexe dépense occulte'!$R$2:$BQ$132,26,FALSE),\"\")","v":""},null,null,null,null,"effet",{"$f":"IFERROR(VLOOKUP(H198,'annexe dépense occulte'!$R$2:$BQ$132,26,FALSE),\"\")","v":""},null,null,null,null,"effet",{"$f":"IFERROR(VLOOKUP(N198,'annexe dépense occulte'!$R$2:$BQ$132,26,FALSE),\"\")","v":""},null,null,null,null,"effet",{"$f":"IFERROR(VLOOKUP(T198,'annexe dépense occulte'!$R$2:$BQ$132,26,FALSE),\"\")","v":""}]
[]
[]
[null,null,null,"maîtrise",0,{"$f":"IF(AND($G$3>3,E230>399),4,IF(AND($G$3>2,E230>299),3,IF(AND($G$3>1,E230>199),2,IF(AND($G$3>0,E230>0),1,0))))","v":0},null,null,null,"maîtrise",0,{"$f":"IF(AND($G$3>3,K230>399),4,IF(AND($G$3>2,K230>299),3,IF(AND($G$3>1,K230>199),2,IF(AND($G$3>0,K230>0),1,0))))","v":0},null,null,null,"maîtrise",0,{"$f":"IF(AND($G$3>3,Q230>399),4,IF(AND($G$3>2,Q230>299),3,IF(AND($G$3>1,Q230>199),2,IF(AND($G$3>0,Q230>0),1,0))))","v":0},null,null,null,"maîtrise",0,{"$f":"IF(AND($G$3>3,W230>399),4,IF(AND($G$3>2,W230>299),3,IF(AND($G$3>1,W230>199),2,IF(AND($G$3>0,W230>0),1,0))))","v":0}]
[null,"Stance 1",null,null,null,null,null,"Stance 1",null,null,null,null,null,"Stance 1",null,null,null,null,null,"Stance 1"]
[null,"difficulté",null,{"$f":"IFERROR(VLOOKUP(B230,'annexe dépense occulte'!$R$2:$BQ$132,3,FALSE),\"\")","v":""},"création","non",null,"difficulté",null,{"$f":"IFERROR(VLOOKUP(H230,'annexe dépense occulte'!$R$2:$BQ$132,3,FALSE),\"\")","v":""},"création","non",null,"difficulté",null,{"$f":"IFERROR(VLOOKUP(N230,'annexe dépense occulte'!$R$2:$BQ$132,3,FALSE),\"\")","v":""},"création","non",null,"difficulté",null,{"$f":"IFERROR(VLOOKUP(T230,'annexe dépense occulte'!$R$2:$BQ$132,3,FALSE),\"\")","v":""},"création","non"]
[null,"coût occultisme",null,{"$f":"IFERROR(VLOOKUP(B230,'annexe dépense occulte'!$R$2:$BQ$133,4,FALSE),\"\")","v":""},"coût apprentissage",{"$f":"IFERROR(VLOOKUP(B230,'annexe dépense occulte'!$R$2:$BQ$133,27,FALSE),\"\")","v":""},null,"coût occultisme",null,{"$f":"IFERROR(VLOOKUP(H230,'annexe dépense occulte'!$R$2:$BQ$133,4,FALSE),\"\")","v":""},"coût apprentissage",{"$f":"IFERROR(VLOOKUP(H230,'annexe dépense occulte'!$R$2:$BQ$133,27,FALSE),\"\")","v":""},null,"coût occultisme",null,{"$f":"IFERROR(VLOOKUP(N230,'annexe dépense occulte'!$R$2:$BQ$133,4,FALSE),\"\")","v":""},"coût apprentissage",{"$f":"IFERROR(VLOOKUP(N230,'annexe dépense occulte'!$R$2:$BQ$133,27,FALSE),\"\")","v":""},null,"coût occultisme",null,{"$f":"IFERROR(VLOOKUP(T230,'annexe dépense occulte'!$R$2:$BQ$133,4,FALSE),\"\")","v":""},"coût apprentissage",{"$f":"IFERROR(VLOOKUP(T230,'annexe dépense occulte'!$R$2:$BQ$133,27,FALSE),\"\")","v":""}]
[null,"maintien",null,{"$f":"IFERROR(VLOOKUP(B230,'annexe dépense occulte'!$R$2:$BQ$133,5,FALSE),\"\")","v":""},"coût action",{"$f":"IFERROR(VLOOKUP(B230,'annexe dépense occulte'!$R$2:$BQ$133,2,FALSE),\"\")","v":""},null,"maintien",null,{"$f":"IFERROR(VLOOKUP(H230,'annexe dépense occulte'!$R$2:$BQ$133,5,FALSE),\"\")","v":""},"coût action",{"$f":"IFERROR(VLOOKUP(H230,'annexe dépense occulte'!$R$2:$BQ$133,2,FALSE),\"\")","v":""},null,"maintien",null,{"$f":"IFERROR(VLOOKUP(N230,'annexe dépense occulte'!$R$2:$BQ$133,5,FALSE),\"\")","v":""},"coût action",{"$f":"IFERROR(VLOOKUP(N230,'annexe dépense occulte'!$R$2:$BQ$133,2,FALSE),\"\")","v":""},null,"maintien",null,{"$f":"IFERROR(VLOOKUP(T230,'annexe dépense occulte'!$R$2:$BQ$133,5,FALSE),\"\")","v":""},"coût action",{"$f":"IFERROR(VLOOKUP(T230,'annexe dépense occulte'!$R$2:$BQ$133,2,FALSE),\"\")","v":""}]
[null,"effet",{"$f":"IFERROR(VLOOKUP(B230,'annexe dépense occulte'!$R$2:$BQ$133,6,FALSE),\"\")","v":""},null,null,null,null,"effet",{"$f":"IFERROR(VLOOKUP(H230,'annexe dépense occulte'!$R$2:$BQ$133,6,FALSE),\"\")","v":""},null,null,null,null,"effet",{"$f":"IFERROR(VLOOKUP(N230,'annexe dépense occulte'!$R$2:$BQ$133,6,FALSE),\"\")","v":""},null,null,null,null,"effet",{"$f":"IFERROR(VLOOKUP(T230,'annexe dépense occulte'!$R$2:$BQ$133,6,FALSE),\"\")","v":""}]
[]
[null,"Stance 2",null,null,null,null,null,"Stance 2",null,null,null,null,null,"Stance 2",null,null,null,null,null,"Stance 2"]
[null,"difficulté",null,{"$f":"IFERROR(VLOOKUP(B230,'annexe dépense occulte'!$R$2:$BQ$132,8,FALSE),\"\")","v":""},"débloquée","non",null,"difficulté",null,{"$f":"IFERROR(VLOOKUP(H230,'annexe dépense occulte'!$R$2:$BQ$132,8,FALSE),\"\")","v":""},"débloquée","non",null,"difficulté",null,{"$f":"IFERROR(VLOOKUP(N230,'annexe dépense occulte'!$R$2:$BQ$132,8,FALSE),\"\")","v":""},"débloquée","non",null,"difficulté",null,{"$f":"IFERROR(VLOOKUP(T230,'annexe dépense occulte'!$R$2:$BQ$132,8,FALSE),\"\")","v":""},"débloquée","non"]
[null,"coût occultisme",null,{"$f":"IFERROR(VLOOKUP(B230,'annexe dépense occulte'!$R$2:$BQ$132,9,FALSE),\"\")","v":""},"coût appren",{"$f":"IFERROR(VLOOKUP(B230,'annexe dépense occulte'!$R$2:$BQ$133,7,FALSE),\"\")","v":""},null,"coût occultisme",null,{"$f":"IFERROR(VLOOKUP(H230,'annexe dépense occulte'!$R$2:$BQ$132,9,FALSE),\"\")","v":""},"coût appren",{"$f":"IFERROR(VLOOKUP(H230,'annexe dépense occulte'!$R$2:$BQ$133,7,FALSE),\"\")","v":""},null,"coût occultisme",null,{"$f":"IFERROR(VLOOKUP(N230,'annexe dépense occulte'!$R$2:$BQ$132,9,FALSE),\"\")","v":""},"coût appren",{"$f":"IFERROR(VLOOKUP(N230,'annexe dépense occulte'!$R$2:$BQ$133,7,FALSE),\"\")","v":""},null,"coût occultisme",null,{"$f":"IFERROR(VLOOKUP(T230,'annexe dépense occulte'!$R$2:$BQ$132,9,FALSE),\"\")","v":""},"coût appren",{"$f":"IFERROR(VLOOKUP(T230,'annexe dépense occulte'!$R$2:$BQ$133,7,FALSE),\"\")","v":""}]
[null,"maintien",null,{"$f":"IFERROR(VLOOKUP(B230,'annexe dépense occulte'!$R$2:$BQ$132,10,FALSE),\"\")","v":""},"coût action",{"$f":"IFERROR(VLOOKUP(B230,'annexe dépense occulte'!$R$2:$BQ$133,2,FALSE),\"\")","v":""},null,"maintien",null,{"$f":"IFERROR(VLOOKUP(H230,'annexe dépense occulte'!$R$2:$BQ$132,10,FALSE),\"\")","v":""},"coût action",{"$f":"IFERROR(VLOOKUP(H230,'annexe dépense occulte'!$R$2:$BQ$133,2,FALSE),\"\")","v":""},null,"maintien",null,{"$f":"IFERROR(VLOOKUP(N230,'annexe dépense occulte'!$R$2:$BQ$132,10,FALSE),\"\")","v":""},"coût action",{"$f":"IFERROR(VLOOKUP(N230,'annexe dépense occulte'!$R$2:$BQ$133,2,FALSE),\"\")","v":""},null,"maintien",null,{"$f":"IFERROR(VLOOKUP(T230,'annexe dépense occulte'!$R$2:$BQ$132,10,FALSE),\"\")","v":""},"coût action",{"$f":"IFERROR(VLOOKUP(T230,'annexe dépense occulte'!$R$2:$BQ$133,2,FALSE),\"\")","v":""}]
[null,"effet",{"$f":"IFERROR(VLOOKUP(B230,'annexe dépense occulte'!$R$2:$BQ$132,11,FALSE),\"\")","v":""},null,null,null,null,"effet",{"$f":"IFERROR(VLOOKUP(H230,'annexe dépense occulte'!$R$2:$BQ$132,11,FALSE),\"\")","v":""},null,null,null,null,"effet",{"$f":"IFERROR(VLOOKUP(N230,'annexe dépense occulte'!$R$2:$BQ$132,11,FALSE),\"\")","v":""},null,null,null,null,"effet",{"$f":"IFERROR(VLOOKUP(T230,'annexe dépense occulte'!$R$2:$BQ$132,11,FALSE),\"\")","v":""}]
[]
[null,"Stance 3",null,null,null,null,null,"Stance 3",null,null,null,null,null,"Stance 3",null,null,null,null,null,"Stance 3"]
[null,"difficulté",null,{"$f":"IFERROR(VLOOKUP(B230,'annexe dépense occulte'!$R$2:$BQ$132,13,FALSE),\"\")","v":""},"débloquée","non",null,"difficulté",null,{"$f":"IFERROR(VLOOKUP(H230,'annexe dépense occulte'!$R$2:$BQ$132,13,FALSE),\"\")","v":""},"débloquée","non",null,"difficulté",null,{"$f":"IFERROR(VLOOKUP(N230,'annexe dépense occulte'!$R$2:$BQ$132,13,FALSE),\"\")","v":""},"débloquée","non",null,"difficulté",null,{"$f":"IFERROR(VLOOKUP(T230,'annexe dépense occulte'!$R$2:$BQ$132,13,FALSE),\"\")","v":""},"débloquée","non"]
[null,"coût occultisme",null,{"$f":"IFERROR(VLOOKUP(B230,'annexe dépense occulte'!$R$2:$BQ$132,14,FALSE),\"\")","v":""},"coût appren",{"$f":"IFERROR(VLOOKUP(B230,'annexe dépense occulte'!$R$2:$BQ$133,12,FALSE),\"\")","v":""},null,"coût occultisme",null,{"$f":"IFERROR(VLOOKUP(H230,'annexe dépense occulte'!$R$2:$BQ$132,14,FALSE),\"\")","v":""},"coût appren",{"$f":"IFERROR(VLOOKUP(H230,'annexe dépense occulte'!$R$2:$BQ$133,12,FALSE),\"\")","v":""},null,"coût occultisme",null,{"$f":"IFERROR(VLOOKUP(N230,'annexe dépense occulte'!$R$2:$BQ$132,14,FALSE),\"\")","v":""},"coût appren",{"$f":"IFERROR(VLOOKUP(N230,'annexe dépense occulte'!$R$2:$BQ$133,12,FALSE),\"\")","v":""},null,"coût occultisme",null,{"$f":"IFERROR(VLOOKUP(T230,'annexe dépense occulte'!$R$2:$BQ$132,14,FALSE),\"\")","v":""},"coût appren",{"$f":"IFERROR(VLOOKUP(T230,'annexe dépense occulte'!$R$2:$BQ$133,12,FALSE),\"\")","v":""}]
[null,"maintien",null,{"$f":"IFERROR(VLOOKUP(B230,'annexe dépense occulte'!$R$2:$BQ$132,15,FALSE),\"\")","v":""},"coût action",{"$f":"IFERROR(VLOOKUP(B230,'annexe dépense occulte'!$R$2:$BQ$133,2,FALSE),\"\")","v":""},null,"maintien",null,{"$f":"IFERROR(VLOOKUP(H230,'annexe dépense occulte'!$R$2:$BQ$132,15,FALSE),\"\")","v":""},"coût action",{"$f":"IFERROR(VLOOKUP(H230,'annexe dépense occulte'!$R$2:$BQ$133,2,FALSE),\"\")","v":""},null,"maintien",null,{"$f":"IFERROR(VLOOKUP(N230,'annexe dépense occulte'!$R$2:$BQ$132,15,FALSE),\"\")","v":""},"coût action",{"$f":"IFERROR(VLOOKUP(N230,'annexe dépense occulte'!$R$2:$BQ$133,2,FALSE),\"\")","v":""},null,"maintien",null,{"$f":"IFERROR(VLOOKUP(T230,'annexe dépense occulte'!$R$2:$BQ$132,15,FALSE),\"\")","v":""},"coût action",{"$f":"IFERROR(VLOOKUP(T230,'annexe dépense occulte'!$R$2:$BQ$133,2,FALSE),\"\")","v":""}]
[null,"effet",{"$f":"IFERROR(VLOOKUP(B230,'annexe dépense occulte'!$R$2:$BQ$132,16,FALSE),\"\")","v":""},null,null,null,null,"effet",{"$f":"IFERROR(VLOOKUP(H230,'annexe dépense occulte'!$R$2:$BQ$132,16,FALSE),\"\")","v":""},null,null,null,null,"effet",{"$f":"IFERROR(VLOOKUP(N230,'annexe dépense occulte'!$R$2:$BQ$132,16,FALSE),\"\")","v":""},null,null,null,null,"effet",{"$f":"IFERROR(VLOOKUP(T230,'annexe dépense occulte'!$R$2:$BQ$132,16,FALSE),\"\")","v":""}]
[]
[null,"Stance 4",null,null,null,null,null,"Stance 4",null,null,null,null,null,"Stance 4",null,null,null,null,null,"Stance 4"]
[null,"difficulté",null,{"$f":"IFERROR(VLOOKUP(B230,'annexe dépense occulte'!$R$2:$BQ$132,18,FALSE),\"\")","v":""},"débloquée","non",null,"difficulté",null,{"$f":"IFERROR(VLOOKUP(H230,'annexe dépense occulte'!$R$2:$BQ$132,18,FALSE),\"\")","v":""},"débloquée","non",null,"difficulté",null,{"$f":"IFERROR(VLOOKUP(N230,'annexe dépense occulte'!$R$2:$BQ$132,18,FALSE),\"\")","v":""},"débloquée","non",null,"difficulté",null,{"$f":"IFERROR(VLOOKUP(T230,'annexe dépense occulte'!$R$2:$BQ$132,18,FALSE),\"\")","v":""},"débloquée","non"]
[null,"coût occultisme",null,{"$f":"IFERROR(VLOOKUP(B230,'annexe dépense occulte'!$R$2:$BQ$132,19,FALSE),\"\")","v":""},"coût appren",{"$f":"IFERROR(VLOOKUP(B230,'annexe dépense occulte'!$R$2:$BQ$133,17,FALSE),\"\")","v":""},null,"coût occultisme",null,{"$f":"IFERROR(VLOOKUP(H230,'annexe dépense occulte'!$R$2:$BQ$132,19,FALSE),\"\")","v":""},"coût appren",{"$f":"IFERROR(VLOOKUP(H230,'annexe dépense occulte'!$R$2:$BQ$133,17,FALSE),\"\")","v":""},null,"coût occultisme",null,{"$f":"IFERROR(VLOOKUP(N230,'annexe dépense occulte'!$R$2:$BQ$132,19,FALSE),\"\")","v":""},"coût appren",{"$f":"IFERROR(VLOOKUP(N230,'annexe dépense occulte'!$R$2:$BQ$133,17,FALSE),\"\")","v":""},null,"coût occultisme",null,{"$f":"IFERROR(VLOOKUP(T230,'annexe dépense occulte'!$R$2:$BQ$132,19,FALSE),\"\")","v":""},"coût appren",{"$f":"IFERROR(VLOOKUP(T230,'annexe dépense occulte'!$R$2:$BQ$133,17,FALSE),\"\")","v":""}]
[null,"maintien",null,{"$f":"IFERROR(VLOOKUP(B230,'annexe dépense occulte'!$R$2:$BQ$132,20,FALSE),\"\")","v":""},"coût action",{"$f":"IFERROR(VLOOKUP(B230,'annexe dépense occulte'!$R$2:$BQ$133,2,FALSE),\"\")","v":""},null,"maintien",null,{"$f":"IFERROR(VLOOKUP(H230,'annexe dépense occulte'!$R$2:$BQ$132,20,FALSE),\"\")","v":""},"coût action",{"$f":"IFERROR(VLOOKUP(H230,'annexe dépense occulte'!$R$2:$BQ$133,2,FALSE),\"\")","v":""},null,"maintien",null,{"$f":"IFERROR(VLOOKUP(N230,'annexe dépense occulte'!$R$2:$BQ$132,20,FALSE),\"\")","v":""},"coût action",{"$f":"IFERROR(VLOOKUP(N230,'annexe dépense occulte'!$R$2:$BQ$133,2,FALSE),\"\")","v":""},null,"maintien",null,{"$f":"IFERROR(VLOOKUP(T230,'annexe dépense occulte'!$R$2:$BQ$132,20,FALSE),\"\")","v":""},"coût action",{"$f":"IFERROR(VLOOKUP(T230,'annexe dépense occulte'!$R$2:$BQ$133,2,FALSE),\"\")","v":""}]
[null,"effet",{"$f":"IFERROR(VLOOKUP(B230,'annexe dépense occulte'!$R$2:$BQ$132,21,FALSE),\"\")","v":""},null,null,null,null,"effet",{"$f":"IFERROR(VLOOKUP(H230,'annexe dépense occulte'!$R$2:$BQ$132,21,FALSE),\"\")","v":""},null,null,null,null,"effet",{"$f":"IFERROR(VLOOKUP(N230,'annexe dépense occulte'!$R$2:$BQ$132,21,FALSE),\"\")","v":""},null,null,null,null,"effet",{"$f":"IFERROR(VLOOKUP(T230,'annexe dépense occulte'!$R$2:$BQ$132,21,FALSE),\"\")","v":""}]
[]
[null,"Stance 5",null,null,null,null,null,"Stance 5",null,null,null,null,null,"Stance 5",null,null,null,null,null,"Stance 5"]
[null,"difficulté",null,{"$f":"IFERROR(VLOOKUP(B230,'annexe dépense occulte'!$R$2:$BQ$132,23,FALSE),\"\")","v":""},"débloquée","non",null,"difficulté",null,{"$f":"IFERROR(VLOOKUP(H230,'annexe dépense occulte'!$R$2:$BQ$132,23,FALSE),\"\")","v":""},"débloquée","non",null,"difficulté",null,{"$f":"IFERROR(VLOOKUP(N230,'annexe dépense occulte'!$R$2:$BQ$132,23,FALSE),\"\")","v":""},"débloquée","non",null,"difficulté",null,{"$f":"IFERROR(VLOOKUP(T230,'annexe dépense occulte'!$R$2:$BQ$132,23,FALSE),\"\")","v":""},"débloquée","non"]
[null,"coût occultisme",null,{"$f":"IFERROR(VLOOKUP(B230,'annexe dépense occulte'!$R$2:$BQ$132,24,FALSE),\"\")","v":""},"coût appren",{"$f":"IFERROR(VLOOKUP(B230,'annexe dépense occulte'!$R$2:$BQ$133,22,FALSE),\"\")","v":""},null,"coût occultisme",null,{"$f":"IFERROR(VLOOKUP(H230,'annexe dépense occulte'!$R$2:$BQ$132,24,FALSE),\"\")","v":""},"coût appren",{"$f":"IFERROR(VLOOKUP(H230,'annexe dépense occulte'!$R$2:$BQ$133,22,FALSE),\"\")","v":""},null,"coût occultisme",null,{"$f":"IFERROR(VLOOKUP(N230,'annexe dépense occulte'!$R$2:$BQ$132,24,FALSE),\"\")","v":""},"coût appren",{"$f":"IFERROR(VLOOKUP(N230,'annexe dépense occulte'!$R$2:$BQ$133,22,FALSE),\"\")","v":""},null,"coût occultisme",null,{"$f":"IFERROR(VLOOKUP(T230,'annexe dépense occulte'!$R$2:$BQ$132,24,FALSE),\"\")","v":""},"coût appren",{"$f":"IFERROR(VLOOKUP(T230,'annexe dépense occulte'!$R$2:$BQ$133,22,FALSE),\"\")","v":""}]
[null,"maintien",null,{"$f":"IFERROR(VLOOKUP(B230,'annexe dépense occulte'!$R$2:$BQ$132,25,FALSE),\"\")","v":""},"coût action",{"$f":"IFERROR(VLOOKUP(B230,'annexe dépense occulte'!$R$2:$BQ$133,2,FALSE),\"\")","v":""},null,"maintien",null,{"$f":"IFERROR(VLOOKUP(H230,'annexe dépense occulte'!$R$2:$BQ$132,25,FALSE),\"\")","v":""},"coût action",{"$f":"IFERROR(VLOOKUP(H230,'annexe dépense occulte'!$R$2:$BQ$133,2,FALSE),\"\")","v":""},null,"maintien",null,{"$f":"IFERROR(VLOOKUP(N230,'annexe dépense occulte'!$R$2:$BQ$132,25,FALSE),\"\")","v":""},"coût action",{"$f":"IFERROR(VLOOKUP(N230,'annexe dépense occulte'!$R$2:$BQ$133,2,FALSE),\"\")","v":""},null,"maintien",null,{"$f":"IFERROR(VLOOKUP(T230,'annexe dépense occulte'!$R$2:$BQ$132,25,FALSE),\"\")","v":""},"coût action",{"$f":"IFERROR(VLOOKUP(T230,'annexe dépense occulte'!$R$2:$BQ$133,2,FALSE),\"\")","v":""}]
[null,"effet",{"$f":"IFERROR(VLOOKUP(B230,'annexe dépense occulte'!$R$2:$BQ$132,26,FALSE),\"\")","v":""},null,null,null,null,"effet",{"$f":"IFERROR(VLOOKUP(H230,'annexe dépense occulte'!$R$2:$BQ$132,26,FALSE),\"\")","v":""},null,null,null,null,"effet",{"$f":"IFERROR(VLOOKUP(N230,'annexe dépense occulte'!$R$2:$BQ$132,26,FALSE),\"\")","v":""},null,null,null,null,"effet",{"$f":"IFERROR(VLOOKUP(T230,'annexe dépense occulte'!$R$2:$BQ$132,26,FALSE),\"\")","v":""}]
[]
[]
[null,null,null,"maîtrise",0,{"$f":"IF(AND($G$3>3,E262>399),4,IF(AND($G$3>2,E262>299),3,IF(AND($G$3>1,E262>199),2,IF(AND($G$3>0,E262>0),1,0))))","v":0},null,null,null,"maîtrise",0,{"$f":"IF(AND($G$3>3,K262>399),4,IF(AND($G$3>2,K262>299),3,IF(AND($G$3>1,K262>199),2,IF(AND($G$3>0,K262>0),1,0))))","v":0},null,null,null,"maîtrise",0,{"$f":"IF(AND($G$3>3,Q262>399),4,IF(AND($G$3>2,Q262>299),3,IF(AND($G$3>1,Q262>199),2,IF(AND($G$3>0,Q262>0),1,0))))","v":0},null,null,null,"maîtrise",0,{"$f":"IF(AND($G$3>3,W262>399),4,IF(AND($G$3>2,W262>299),3,IF(AND($G$3>1,W262>199),2,IF(AND($G$3>0,W262>0),1,0))))","v":0}]
[null,"Stance 1",null,null,null,null,null,"Stance 1",null,null,null,null,null,"Stance 1",null,null,null,null,null,"Stance 1"]
[null,"difficulté",null,{"$f":"IFERROR(VLOOKUP(B262,'annexe dépense occulte'!$R$2:$BQ$132,3,FALSE),\"\")","v":""},"création","non",null,"difficulté",null,{"$f":"IFERROR(VLOOKUP(H262,'annexe dépense occulte'!$R$2:$BQ$132,3,FALSE),\"\")","v":""},"création","non",null,"difficulté",null,{"$f":"IFERROR(VLOOKUP(N262,'annexe dépense occulte'!$R$2:$BQ$132,3,FALSE),\"\")","v":""},"création","non",null,"difficulté",null,{"$f":"IFERROR(VLOOKUP(T262,'annexe dépense occulte'!$R$2:$BQ$132,3,FALSE),\"\")","v":""},"création","non"]
[null,"coût occultisme",null,{"$f":"IFERROR(VLOOKUP(B262,'annexe dépense occulte'!$R$2:$BQ$133,4,FALSE),\"\")","v":""},"coût apprentissage",{"$f":"IFERROR(VLOOKUP(B262,'annexe dépense occulte'!$R$2:$BQ$133,27,FALSE),\"\")","v":""},null,"coût occultisme",null,{"$f":"IFERROR(VLOOKUP(H262,'annexe dépense occulte'!$R$2:$BQ$133,4,FALSE),\"\")","v":""},"coût apprentissage",{"$f":"IFERROR(VLOOKUP(H262,'annexe dépense occulte'!$R$2:$BQ$133,27,FALSE),\"\")","v":""},null,"coût occultisme",null,{"$f":"IFERROR(VLOOKUP(N262,'annexe dépense occulte'!$R$2:$BQ$133,4,FALSE),\"\")","v":""},"coût apprentissage",{"$f":"IFERROR(VLOOKUP(N262,'annexe dépense occulte'!$R$2:$BQ$133,27,FALSE),\"\")","v":""},null,"coût occultisme",null,{"$f":"IFERROR(VLOOKUP(T262,'annexe dépense occulte'!$R$2:$BQ$133,4,FALSE),\"\")","v":""},"coût apprentissage",{"$f":"IFERROR(VLOOKUP(T262,'annexe dépense occulte'!$R$2:$BQ$133,27,FALSE),\"\")","v":""}]
[null,"maintien",null,{"$f":"IFERROR(VLOOKUP(B262,'annexe dépense occulte'!$R$2:$BQ$133,5,FALSE),\"\")","v":""},"coût action",{"$f":"IFERROR(VLOOKUP(B262,'annexe dépense occulte'!$R$2:$BQ$133,2,FALSE),\"\")","v":""},null,"maintien",null,{"$f":"IFERROR(VLOOKUP(H262,'annexe dépense occulte'!$R$2:$BQ$133,5,FALSE),\"\")","v":""},"coût action",{"$f":"IFERROR(VLOOKUP(H262,'annexe dépense occulte'!$R$2:$BQ$133,2,FALSE),\"\")","v":""},null,"maintien",null,{"$f":"IFERROR(VLOOKUP(N262,'annexe dépense occulte'!$R$2:$BQ$133,5,FALSE),\"\")","v":""},"coût action",{"$f":"IFERROR(VLOOKUP(N262,'annexe dépense occulte'!$R$2:$BQ$133,2,FALSE),\"\")","v":""},null,"maintien",null,{"$f":"IFERROR(VLOOKUP(T262,'annexe dépense occulte'!$R$2:$BQ$133,5,FALSE),\"\")","v":""},"coût action",{"$f":"IFERROR(VLOOKUP(T262,'annexe dépense occulte'!$R$2:$BQ$133,2,FALSE),\"\")","v":""}]
[null,"effet",{"$f":"IFERROR(VLOOKUP(B262,'annexe dépense occulte'!$R$2:$BQ$133,6,FALSE),\"\")","v":""},null,null,null,null,"effet",{"$f":"IFERROR(VLOOKUP(H262,'annexe dépense occulte'!$R$2:$BQ$133,6,FALSE),\"\")","v":""},null,null,null,null,"effet",{"$f":"IFERROR(VLOOKUP(N262,'annexe dépense occulte'!$R$2:$BQ$133,6,FALSE),\"\")","v":""},null,null,null,null,"effet",{"$f":"IFERROR(VLOOKUP(T262,'annexe dépense occulte'!$R$2:$BQ$133,6,FALSE),\"\")","v":""}]
[]
[null,"Stance 2",null,null,null,null,null,"Stance 2",null,null,null,null,null,"Stance 2",null,null,null,null,null,"Stance 2"]
[null,"difficulté",null,{"$f":"IFERROR(VLOOKUP(B262,'annexe dépense occulte'!$R$2:$BQ$132,8,FALSE),\"\")","v":""},"débloquée","non",null,"difficulté",null,{"$f":"IFERROR(VLOOKUP(H262,'annexe dépense occulte'!$R$2:$BQ$132,8,FALSE),\"\")","v":""},"débloquée","non",null,"difficulté",null,{"$f":"IFERROR(VLOOKUP(N262,'annexe dépense occulte'!$R$2:$BQ$132,8,FALSE),\"\")","v":""},"débloquée","non",null,"difficulté",null,{"$f":"IFERROR(VLOOKUP(T262,'annexe dépense occulte'!$R$2:$BQ$132,8,FALSE),\"\")","v":""},"débloquée","non"]
[null,"coût occultisme",null,{"$f":"IFERROR(VLOOKUP(B262,'annexe dépense occulte'!$R$2:$BQ$132,9,FALSE),\"\")","v":""},"coût appren",{"$f":"IFERROR(VLOOKUP(B262,'annexe dépense occulte'!$R$2:$BQ$133,7,FALSE),\"\")","v":""},null,"coût occultisme",null,{"$f":"IFERROR(VLOOKUP(H262,'annexe dépense occulte'!$R$2:$BQ$132,9,FALSE),\"\")","v":""},"coût appren",{"$f":"IFERROR(VLOOKUP(H262,'annexe dépense occulte'!$R$2:$BQ$133,7,FALSE),\"\")","v":""},null,"coût occultisme",null,{"$f":"IFERROR(VLOOKUP(N262,'annexe dépense occulte'!$R$2:$BQ$132,9,FALSE),\"\")","v":""},"coût appren",{"$f":"IFERROR(VLOOKUP(N262,'annexe dépense occulte'!$R$2:$BQ$133,7,FALSE),\"\")","v":""},null,"coût occultisme",null,{"$f":"IFERROR(VLOOKUP(T262,'annexe dépense occulte'!$R$2:$BQ$132,9,FALSE),\"\")","v":""},"coût appren",{"$f":"IFERROR(VLOOKUP(T262,'annexe dépense occulte'!$R$2:$BQ$133,7,FALSE),\"\")","v":""}]
[null,"maintien",null,{"$f":"IFERROR(VLOOKUP(B262,'annexe dépense occulte'!$R$2:$BQ$132,10,FALSE),\"\")","v":""},"coût action",{"$f":"IFERROR(VLOOKUP(B262,'annexe dépense occulte'!$R$2:$BQ$133,2,FALSE),\"\")","v":""},null,"maintien",null,{"$f":"IFERROR(VLOOKUP(H262,'annexe dépense occulte'!$R$2:$BQ$132,10,FALSE),\"\")","v":""},"coût action",{"$f":"IFERROR(VLOOKUP(H262,'annexe dépense occulte'!$R$2:$BQ$133,2,FALSE),\"\")","v":""},null,"maintien",null,{"$f":"IFERROR(VLOOKUP(N262,'annexe dépense occulte'!$R$2:$BQ$132,10,FALSE),\"\")","v":""},"coût action",{"$f":"IFERROR(VLOOKUP(N262,'annexe dépense occulte'!$R$2:$BQ$133,2,FALSE),\"\")","v":""},null,"maintien",null,{"$f":"IFERROR(VLOOKUP(T262,'annexe dépense occulte'!$R$2:$BQ$132,10,FALSE),\"\")","v":""},"coût action",{"$f":"IFERROR(VLOOKUP(T262,'annexe dépense occulte'!$R$2:$BQ$133,2,FALSE),\"\")","v":""}]
[null,"effet",{"$f":"IFERROR(VLOOKUP(B262,'annexe dépense occulte'!$R$2:$BQ$132,11,FALSE),\"\")","v":""},null,null,null,null,"effet",{"$f":"IFERROR(VLOOKUP(H262,'annexe dépense occulte'!$R$2:$BQ$132,11,FALSE),\"\")","v":""},null,null,null,null,"effet",{"$f":"IFERROR(VLOOKUP(N262,'annexe dépense occulte'!$R$2:$BQ$132,11,FALSE),\"\")","v":""},null,null,null,null,"effet",{"$f":"IFERROR(VLOOKUP(T262,'annexe dépense occulte'!$R$2:$BQ$132,11,FALSE),\"\")","v":""}]
[]
[null,"Stance 3",null,null,null,null,null,"Stance 3",null,null,null,null,null,"Stance 3",null,null,null,null,null,"Stance 3"]
[null,"difficulté",null,{"$f":"IFERROR(VLOOKUP(B262,'annexe dépense occulte'!$R$2:$BQ$132,13,FALSE),\"\")","v":""},"débloquée","non",null,"difficulté",null,{"$f":"IFERROR(VLOOKUP(H262,'annexe dépense occulte'!$R$2:$BQ$132,13,FALSE),\"\")","v":""},"débloquée","non",null,"difficulté",null,{"$f":"IFERROR(VLOOKUP(N262,'annexe dépense occulte'!$R$2:$BQ$132,13,FALSE),\"\")","v":""},"débloquée","non",null,"difficulté",null,{"$f":"IFERROR(VLOOKUP(T262,'annexe dépense occulte'!$R$2:$BQ$132,13,FALSE),\"\")","v":""},"débloquée","non"]
[null,"coût occultisme",null,{"$f":"IFERROR(VLOOKUP(B262,'annexe dépense occulte'!$R$2:$BQ$132,14,FALSE),\"\")","v":""},"coût appren",{"$f":"IFERROR(VLOOKUP(B262,'annexe dépense occulte'!$R$2:$BQ$133,12,FALSE),\"\")","v":""},null,"coût occultisme",null,{"$f":"IFERROR(VLOOKUP(H262,'annexe dépense occulte'!$R$2:$BQ$132,14,FALSE),\"\")","v":""},"coût appren",{"$f":"IFERROR(VLOOKUP(H262,'annexe dépense occulte'!$R$2:$BQ$133,12,FALSE),\"\")","v":""},null,"coût occultisme",null,{"$f":"IFERROR(VLOOKUP(N262,'annexe dépense occulte'!$R$2:$BQ$132,14,FALSE),\"\")","v":""},"coût appren",{"$f":"IFERROR(VLOOKUP(N262,'annexe dépense occulte'!$R$2:$BQ$133,12,FALSE),\"\")","v":""},null,"coût occultisme",null,{"$f":"IFERROR(VLOOKUP(T262,'annexe dépense occulte'!$R$2:$BQ$132,14,FALSE),\"\")","v":""},"coût appren",{"$f":"IFERROR(VLOOKUP(T262,'annexe dépense occulte'!$R$2:$BQ$133,12,FALSE),\"\")","v":""}]
[null,"maintien",null,{"$f":"IFERROR(VLOOKUP(B262,'annexe dépense occulte'!$R$2:$BQ$132,15,FALSE),\"\")","v":""},"coût action",{"$f":"IFERROR(VLOOKUP(B262,'annexe dépense occulte'!$R$2:$BQ$133,2,FALSE),\"\")","v":""},null,"maintien",null,{"$f":"IFERROR(VLOOKUP(H262,'annexe dépense occulte'!$R$2:$BQ$132,15,FALSE),\"\")","v":""},"coût action",{"$f":"IFERROR(VLOOKUP(H262,'annexe dépense occulte'!$R$2:$BQ$133,2,FALSE),\"\")","v":""},null,"maintien",null,{"$f":"IFERROR(VLOOKUP(N262,'annexe dépense occulte'!$R$2:$BQ$132,15,FALSE),\"\")","v":""},"coût action",{"$f":"IFERROR(VLOOKUP(N262,'annexe dépense occulte'!$R$2:$BQ$133,2,FALSE),\"\")","v":""},null,"maintien",null,{"$f":"IFERROR(VLOOKUP(T262,'annexe dépense occulte'!$R$2:$BQ$132,15,FALSE),\"\")","v":""},"coût action",{"$f":"IFERROR(VLOOKUP(T262,'annexe dépense occulte'!$R$2:$BQ$133,2,FALSE),\"\")","v":""}]
[null,"effet",{"$f":"IFERROR(VLOOKUP(B262,'annexe dépense occulte'!$R$2:$BQ$132,16,FALSE),\"\")","v":""},null,null,null,null,"effet",{"$f":"IFERROR(VLOOKUP(H262,'annexe dépense occulte'!$R$2:$BQ$132,16,FALSE),\"\")","v":""},null,null,null,null,"effet",{"$f":"IFERROR(VLOOKUP(N262,'annexe dépense occulte'!$R$2:$BQ$132,16,FALSE),\"\")","v":""},null,null,null,null,"effet",{"$f":"IFERROR(VLOOKUP(T262,'annexe dépense occulte'!$R$2:$BQ$132,16,FALSE),\"\")","v":""}]
[]
[null,"Stance 4",null,null,null,null,null,"Stance 4",null,null,null,null,null,"Stance 4",null,null,null,null,null,"Stance 4"]
[null,"difficulté",null,{"$f":"IFERROR(VLOOKUP(B262,'annexe dépense occulte'!$R$2:$BQ$132,18,FALSE),\"\")","v":""},"débloquée","non",null,"difficulté",null,{"$f":"IFERROR(VLOOKUP(H262,'annexe dépense occulte'!$R$2:$BQ$132,18,FALSE),\"\")","v":""},"débloquée","non",null,"difficulté",null,{"$f":"IFERROR(VLOOKUP(N262,'annexe dépense occulte'!$R$2:$BQ$132,18,FALSE),\"\")","v":""},"débloquée","non",null,"difficulté",null,{"$f":"IFERROR(VLOOKUP(T262,'annexe dépense occulte'!$R$2:$BQ$132,18,FALSE),\"\")","v":""},"débloquée","non"]
[null,"coût occultisme",null,{"$f":"IFERROR(VLOOKUP(B262,'annexe dépense occulte'!$R$2:$BQ$132,19,FALSE),\"\")","v":""},"coût appren",{"$f":"IFERROR(VLOOKUP(B262,'annexe dépense occulte'!$R$2:$BQ$133,17,FALSE),\"\")","v":""},null,"coût occultisme",null,{"$f":"IFERROR(VLOOKUP(H262,'annexe dépense occulte'!$R$2:$BQ$132,19,FALSE),\"\")","v":""},"coût appren",{"$f":"IFERROR(VLOOKUP(H262,'annexe dépense occulte'!$R$2:$BQ$133,17,FALSE),\"\")","v":""},null,"coût occultisme",null,{"$f":"IFERROR(VLOOKUP(N262,'annexe dépense occulte'!$R$2:$BQ$132,19,FALSE),\"\")","v":""},"coût appren",{"$f":"IFERROR(VLOOKUP(N262,'annexe dépense occulte'!$R$2:$BQ$133,17,FALSE),\"\")","v":""},null,"coût occultisme",null,{"$f":"IFERROR(VLOOKUP(T262,'annexe dépense occulte'!$R$2:$BQ$132,19,FALSE),\"\")","v":""},"coût appren",{"$f":"IFERROR(VLOOKUP(T262,'annexe dépense occulte'!$R$2:$BQ$133,17,FALSE),\"\")","v":""}]
[null,"maintien",null,{"$f":"IFERROR(VLOOKUP(B262,'annexe dépense occulte'!$R$2:$BQ$132,20,FALSE),\"\")","v":""},"coût action",{"$f":"IFERROR(VLOOKUP(B262,'annexe dépense occulte'!$R$2:$BQ$133,2,FALSE),\"\")","v":""},null,"maintien",null,{"$f":"IFERROR(VLOOKUP(H262,'annexe dépense occulte'!$R$2:$BQ$132,20,FALSE),\"\")","v":""},"coût action",{"$f":"IFERROR(VLOOKUP(H262,'annexe dépense occulte'!$R$2:$BQ$133,2,FALSE),\"\")","v":""},null,"maintien",null,{"$f":"IFERROR(VLOOKUP(N262,'annexe dépense occulte'!$R$2:$BQ$132,20,FALSE),\"\")","v":""},"coût action",{"$f":"IFERROR(VLOOKUP(N262,'annexe dépense occulte'!$R$2:$BQ$133,2,FALSE),\"\")","v":""},null,"maintien",null,{"$f":"IFERROR(VLOOKUP(T262,'annexe dépense occulte'!$R$2:$BQ$132,20,FALSE),\"\")","v":""},"coût action",{"$f":"IFERROR(VLOOKUP(T262,'annexe dépense occulte'!$R$2:$BQ$133,2,FALSE),\"\")","v":""}]
[null,"effet",{"$f":"IFERROR(VLOOKUP(B262,'annexe dépense occulte'!$R$2:$BQ$132,21,FALSE),\"\")","v":""},null,null,null,null,"effet",{"$f":"IFERROR(VLOOKUP(H262,'annexe dépense occulte'!$R$2:$BQ$132,21,FALSE),\"\")","v":""},null,null,null,null,"effet",{"$f":"IFERROR(VLOOKUP(N262,'annexe dépense occulte'!$R$2:$BQ$132,21,FALSE),\"\")","v":""},null,null,null,null,"effet",{"$f":"IFERROR(VLOOKUP(T262,'annexe dépense occulte'!$R$2:$BQ$132,21,FALSE),\"\")","v":""}]
[]
[null,"Stance 5",null,null,null,null,null,"Stance 5",null,null,null,null,null,"Stance 5",null,null,null,null,null,"Stance 5"]
[null,"difficulté",null,{"$f":"IFERROR(VLOOKUP(B262,'annexe dépense occulte'!$R$2:$BQ$132,23,FALSE),\"\")","v":""},"débloquée","non",null,"difficulté",null,{"$f":"IFERROR(VLOOKUP(H262,'annexe dépense occulte'!$R$2:$BQ$132,23,FALSE),\"\")","v":""},"débloquée","non",null,"difficulté",null,{"$f":"IFERROR(VLOOKUP(N262,'annexe dépense occulte'!$R$2:$BQ$132,23,FALSE),\"\")","v":""},"débloquée","non",null,"difficulté",null,{"$f":"IFERROR(VLOOKUP(T262,'annexe dépense occulte'!$R$2:$BQ$132,23,FALSE),\"\")","v":""},"débloquée","non"]
[null,"coût occultisme",null,{"$f":"IFERROR(VLOOKUP(B262,'annexe dépense occulte'!$R$2:$BQ$132,24,FALSE),\"\")","v":""},"coût appren",{"$f":"IFERROR(VLOOKUP(B262,'annexe dépense occulte'!$R$2:$BQ$133,22,FALSE),\"\")","v":""},null,"coût occultisme",null,{"$f":"IFERROR(VLOOKUP(H262,'annexe dépense occulte'!$R$2:$BQ$132,24,FALSE),\"\")","v":""},"coût appren",{"$f":"IFERROR(VLOOKUP(H262,'annexe dépense occulte'!$R$2:$BQ$133,22,FALSE),\"\")","v":""},null,"coût occultisme",null,{"$f":"IFERROR(VLOOKUP(N262,'annexe dépense occulte'!$R$2:$BQ$132,24,FALSE),\"\")","v":""},"coût appren",{"$f":"IFERROR(VLOOKUP(N262,'annexe dépense occulte'!$R$2:$BQ$133,22,FALSE),\"\")","v":""},null,"coût occultisme",null,{"$f":"IFERROR(VLOOKUP(T262,'annexe dépense occulte'!$R$2:$BQ$132,24,FALSE),\"\")","v":""},"coût appren",{"$f":"IFERROR(VLOOKUP(T262,'annexe dépense occulte'!$R$2:$BQ$133,22,FALSE),\"\")","v":""}]
[null,"maintien",null,{"$f":"IFERROR(VLOOKUP(B262,'annexe dépense occulte'!$R$2:$BQ$132,25,FALSE),\"\")","v":""},"coût action",{"$f":"IFERROR(VLOOKUP(B262,'annexe dépense occulte'!$R$2:$BQ$133,2,FALSE),\"\")","v":""},null,"maintien",null,{"$f":"IFERROR(VLOOKUP(H262,'annexe dépense occulte'!$R$2:$BQ$132,25,FALSE),\"\")","v":""},"coût action",{"$f":"IFERROR(VLOOKUP(H262,'annexe dépense occulte'!$R$2:$BQ$133,2,FALSE),\"\")","v":""},null,"maintien",null,{"$f":"IFERROR(VLOOKUP(N262,'annexe dépense occulte'!$R$2:$BQ$132,25,FALSE),\"\")","v":""},"coût action",{"$f":"IFERROR(VLOOKUP(N262,'annexe dépense occulte'!$R$2:$BQ$133,2,FALSE),\"\")","v":""},null,"maintien",null,{"$f":"IFERROR(VLOOKUP(T262,'annexe dépense occulte'!$R$2:$BQ$132,25,FALSE),\"\")","v":""},"coût action",{"$f":"IFERROR(VLOOKUP(T262,'annexe dépense occulte'!$R$2:$BQ$133,2,FALSE),\"\")","v":""}]
[null,"effet",{"$f":"IFERROR(VLOOKUP(B262,'annexe dépense occulte'!$R$2:$BQ$132,26,FALSE),\"\")","v":""},null,null,null,null,"effet",{"$f":"IFERROR(VLOOKUP(H262,'annexe dépense occulte'!$R$2:$BQ$132,26,FALSE),\"\")","v":""},null,null,null,null,"effet",{"$f":"IFERROR(VLOOKUP(N262,'annexe dépense occulte'!$R$2:$BQ$132,26,FALSE),\"\")","v":""},null,null,null,null,"effet",{"$f":"IFERROR(VLOOKUP(T262,'annexe dépense occulte'!$R$2:$BQ$132,26,FALSE),\"\")","v":""}]
[]
[]
[null,null,null,"maîtrise",0,{"$f":"IF(AND($G$3>3,E294>399),4,IF(AND($G$3>2,E294>299),3,IF(AND($G$3>1,E294>199),2,IF(AND($G$3>0,E294>0),1,0))))","v":0},null,null,null,"maîtrise",0,{"$f":"IF(AND($G$3>3,K294>399),4,IF(AND($G$3>2,K294>299),3,IF(AND($G$3>1,K294>199),2,IF(AND($G$3>0,K294>0),1,0))))","v":0},null,null,null,"maîtrise",0,{"$f":"IF(AND($G$3>3,Q294>399),4,IF(AND($G$3>2,Q294>299),3,IF(AND($G$3>1,Q294>199),2,IF(AND($G$3>0,Q294>0),1,0))))","v":0},null,null,null,"maîtrise",0,{"$f":"IF(AND($G$3>3,W294>399),4,IF(AND($G$3>2,W294>299),3,IF(AND($G$3>1,W294>199),2,IF(AND($G$3>0,W294>0),1,0))))","v":0}]
[null,"Stance 1",null,null,null,null,null,"Stance 1",null,null,null,null,null,"Stance 1",null,null,null,null,null,"Stance 1"]
[null,"difficulté",null,{"$f":"IFERROR(VLOOKUP(B294,'annexe dépense occulte'!$R$2:$BQ$132,3,FALSE),\"\")","v":""},"création","non",null,"difficulté",null,{"$f":"IFERROR(VLOOKUP(H294,'annexe dépense occulte'!$R$2:$BQ$132,3,FALSE),\"\")","v":""},"création","non",null,"difficulté",null,{"$f":"IFERROR(VLOOKUP(N294,'annexe dépense occulte'!$R$2:$BQ$132,3,FALSE),\"\")","v":""},"création","non",null,"difficulté",null,{"$f":"IFERROR(VLOOKUP(T294,'annexe dépense occulte'!$R$2:$BQ$132,3,FALSE),\"\")","v":""},"création","non"]
[null,"coût occultisme",null,{"$f":"IFERROR(VLOOKUP(B294,'annexe dépense occulte'!$R$2:$BQ$133,4,FALSE),\"\")","v":""},"coût apprentissage",{"$f":"IFERROR(VLOOKUP(B294,'annexe dépense occulte'!$R$2:$BQ$133,27,FALSE),\"\")","v":""},null,"coût occultisme",null,{"$f":"IFERROR(VLOOKUP(H294,'annexe dépense occulte'!$R$2:$BQ$133,4,FALSE),\"\")","v":""},"coût apprentissage",{"$f":"IFERROR(VLOOKUP(H294,'annexe dépense occulte'!$R$2:$BQ$133,27,FALSE),\"\")","v":""},null,"coût occultisme",null,{"$f":"IFERROR(VLOOKUP(N294,'annexe dépense occulte'!$R$2:$BQ$133,4,FALSE),\"\")","v":""},"coût apprentissage",{"$f":"IFERROR(VLOOKUP(N294,'annexe dépense occulte'!$R$2:$BQ$133,27,FALSE),\"\")","v":""},null,"coût occultisme",null,{"$f":"IFERROR(VLOOKUP(T294,'annexe dépense occulte'!$R$2:$BQ$133,4,FALSE),\"\")","v":""},"coût apprentissage",{"$f":"IFERROR(VLOOKUP(T294,'annexe dépense occulte'!$R$2:$BQ$133,27,FALSE),\"\")","v":""}]
[null,"maintien",null,{"$f":"IFERROR(VLOOKUP(B294,'annexe dépense occulte'!$R$2:$BQ$133,5,FALSE),\"\")","v":""},"coût action",{"$f":"IFERROR(VLOOKUP(B294,'annexe dépense occulte'!$R$2:$BQ$133,2,FALSE),\"\")","v":""},null,"maintien",null,{"$f":"IFERROR(VLOOKUP(H294,'annexe dépense occulte'!$R$2:$BQ$133,5,FALSE),\"\")","v":""},"coût action",{"$f":"IFERROR(VLOOKUP(H294,'annexe dépense occulte'!$R$2:$BQ$133,2,FALSE),\"\")","v":""},null,"maintien",null,{"$f":"IFERROR(VLOOKUP(N294,'annexe dépense occulte'!$R$2:$BQ$133,5,FALSE),\"\")","v":""},"coût action",{"$f":"IFERROR(VLOOKUP(N294,'annexe dépense occulte'!$R$2:$BQ$133,2,FALSE),\"\")","v":""},null,"maintien",null,{"$f":"IFERROR(VLOOKUP(T294,'annexe dépense occulte'!$R$2:$BQ$133,5,FALSE),\"\")","v":""},"coût action",{"$f":"IFERROR(VLOOKUP(T294,'annexe dépense occulte'!$R$2:$BQ$133,2,FALSE),\"\")","v":""}]
[null,"effet",{"$f":"IFERROR(VLOOKUP(B294,'annexe dépense occulte'!$R$2:$BQ$133,6,FALSE),\"\")","v":""},null,null,null,null,"effet",{"$f":"IFERROR(VLOOKUP(H294,'annexe dépense occulte'!$R$2:$BQ$133,6,FALSE),\"\")","v":""},null,null,null,null,"effet",{"$f":"IFERROR(VLOOKUP(N294,'annexe dépense occulte'!$R$2:$BQ$133,6,FALSE),\"\")","v":""},null,null,null,null,"effet",{"$f":"IFERROR(VLOOKUP(T294,'annexe dépense occulte'!$R$2:$BQ$133,6,FALSE),\"\")","v":""}]
[]
[null,"Stance 2",null,null,null,null,null,"Stance 2",null,null,null,null,null,"Stance 2",null,null,null,null,null,"Stance 2"]
[null,"difficulté",null,{"$f":"IFERROR(VLOOKUP(B294,'annexe dépense occulte'!$R$2:$BQ$132,8,FALSE),\"\")","v":""},"débloquée","non",null,"difficulté",null,{"$f":"IFERROR(VLOOKUP(H294,'annexe dépense occulte'!$R$2:$BQ$132,8,FALSE),\"\")","v":""},"débloquée","non",null,"difficulté",null,{"$f":"IFERROR(VLOOKUP(N294,'annexe dépense occulte'!$R$2:$BQ$132,8,FALSE),\"\")","v":""},"débloquée","non",null,"difficulté",null,{"$f":"IFERROR(VLOOKUP(T294,'annexe dépense occulte'!$R$2:$BQ$132,8,FALSE),\"\")","v":""},"débloquée","non"]
[null,"coût occultisme",null,{"$f":"IFERROR(VLOOKUP(B294,'annexe dépense occulte'!$R$2:$BQ$132,9,FALSE),\"\")","v":""},"coût appren",{"$f":"IFERROR(VLOOKUP(B294,'annexe dépense occulte'!$R$2:$BQ$133,7,FALSE),\"\")","v":""},null,"coût occultisme",null,{"$f":"IFERROR(VLOOKUP(H294,'annexe dépense occulte'!$R$2:$BQ$132,9,FALSE),\"\")","v":""},"coût appren",{"$f":"IFERROR(VLOOKUP(H294,'annexe dépense occulte'!$R$2:$BQ$133,7,FALSE),\"\")","v":""},null,"coût occultisme",null,{"$f":"IFERROR(VLOOKUP(N294,'annexe dépense occulte'!$R$2:$BQ$132,9,FALSE),\"\")","v":""},"coût appren",{"$f":"IFERROR(VLOOKUP(N294,'annexe dépense occulte'!$R$2:$BQ$133,7,FALSE),\"\")","v":""},null,"coût occultisme",null,{"$f":"IFERROR(VLOOKUP(T294,'annexe dépense occulte'!$R$2:$BQ$132,9,FALSE),\"\")","v":""},"coût appren",{"$f":"IFERROR(VLOOKUP(T294,'annexe dépense occulte'!$R$2:$BQ$133,7,FALSE),\"\")","v":""}]
[null,"maintien",null,{"$f":"IFERROR(VLOOKUP(B294,'annexe dépense occulte'!$R$2:$BQ$132,10,FALSE),\"\")","v":""},"coût action",{"$f":"IFERROR(VLOOKUP(B294,'annexe dépense occulte'!$R$2:$BQ$133,2,FALSE),\"\")","v":""},null,"maintien",null,{"$f":"IFERROR(VLOOKUP(H294,'annexe dépense occulte'!$R$2:$BQ$132,10,FALSE),\"\")","v":""},"coût action",{"$f":"IFERROR(VLOOKUP(H294,'annexe dépense occulte'!$R$2:$BQ$133,2,FALSE),\"\")","v":""},null,"maintien",null,{"$f":"IFERROR(VLOOKUP(N294,'annexe dépense occulte'!$R$2:$BQ$132,10,FALSE),\"\")","v":""},"coût action",{"$f":"IFERROR(VLOOKUP(N294,'annexe dépense occulte'!$R$2:$BQ$133,2,FALSE),\"\")","v":""},null,"maintien",null,{"$f":"IFERROR(VLOOKUP(T294,'annexe dépense occulte'!$R$2:$BQ$132,10,FALSE),\"\")","v":""},"coût action",{"$f":"IFERROR(VLOOKUP(T294,'annexe dépense occulte'!$R$2:$BQ$133,2,FALSE),\"\")","v":""}]
[null,"effet",{"$f":"IFERROR(VLOOKUP(B294,'annexe dépense occulte'!$R$2:$BQ$132,11,FALSE),\"\")","v":""},null,null,null,null,"effet",{"$f":"IFERROR(VLOOKUP(H294,'annexe dépense occulte'!$R$2:$BQ$132,11,FALSE),\"\")","v":""},null,null,null,null,"effet",{"$f":"IFERROR(VLOOKUP(N294,'annexe dépense occulte'!$R$2:$BQ$132,11,FALSE),\"\")","v":""},null,null,null,null,"effet",{"$f":"IFERROR(VLOOKUP(T294,'annexe dépense occulte'!$R$2:$BQ$132,11,FALSE),\"\")","v":""}]
[]
[null,"Stance 3",null,null,null,null,null,"Stance 3",null,null,null,null,null,"Stance 3",null,null,null,null,null,"Stance 3"]
[null,"difficulté",null,{"$f":"IFERROR(VLOOKUP(B294,'annexe dépense occulte'!$R$2:$BQ$132,13,FALSE),\"\")","v":""},"débloquée","non",null,"difficulté",null,{"$f":"IFERROR(VLOOKUP(H294,'annexe dépense occulte'!$R$2:$BQ$132,13,FALSE),\"\")","v":""},"débloquée","non",null,"difficulté",null,{"$f":"IFERROR(VLOOKUP(N294,'annexe dépense occulte'!$R$2:$BQ$132,13,FALSE),\"\")","v":""},"débloquée","non",null,"difficulté",null,{"$f":"IFERROR(VLOOKUP(T294,'annexe dépense occulte'!$R$2:$BQ$132,13,FALSE),\"\")","v":""},"débloquée","non"]
[null,"coût occultisme",null,{"$f":"IFERROR(VLOOKUP(B294,'annexe dépense occulte'!$R$2:$BQ$132,14,FALSE),\"\")","v":""},"coût appren",{"$f":"IFERROR(VLOOKUP(B294,'annexe dépense occulte'!$R$2:$BQ$133,12,FALSE),\"\")","v":""},null,"coût occultisme",null,{"$f":"IFERROR(VLOOKUP(H294,'annexe dépense occulte'!$R$2:$BQ$132,14,FALSE),\"\")","v":""},"coût appren",{"$f":"IFERROR(VLOOKUP(H294,'annexe dépense occulte'!$R$2:$BQ$133,12,FALSE),\"\")","v":""},null,"coût occultisme",null,{"$f":"IFERROR(VLOOKUP(N294,'annexe dépense occulte'!$R$2:$BQ$132,14,FALSE),\"\")","v":""},"coût appren",{"$f":"IFERROR(VLOOKUP(N294,'annexe dépense occulte'!$R$2:$BQ$133,12,FALSE),\"\")","v":""},null,"coût occultisme",null,{"$f":"IFERROR(VLOOKUP(T294,'annexe dépense occulte'!$R$2:$BQ$132,14,FALSE),\"\")","v":""},"coût appren",{"$f":"IFERROR(VLOOKUP(T294,'annexe dépense occulte'!$R$2:$BQ$133,12,FALSE),\"\")","v":""}]
[null,"maintien",null,{"$f":"IFERROR(VLOOKUP(B294,'annexe dépense occulte'!$R$2:$BQ$132,15,FALSE),\"\")","v":""},"coût action",{"$f":"IFERROR(VLOOKUP(B294,'annexe dépense occulte'!$R$2:$BQ$133,2,FALSE),\"\")","v":""},null,"maintien",null,{"$f":"IFERROR(VLOOKUP(H294,'annexe dépense occulte'!$R$2:$BQ$132,15,FALSE),\"\")","v":""},"coût action",{"$f":"IFERROR(VLOOKUP(H294,'annexe dépense occulte'!$R$2:$BQ$133,2,FALSE),\"\")","v":""},null,"maintien",null,{"$f":"IFERROR(VLOOKUP(N294,'annexe dépense occulte'!$R$2:$BQ$132,15,FALSE),\"\")","v":""},"coût action",{"$f":"IFERROR(VLOOKUP(N294,'annexe dépense occulte'!$R$2:$BQ$133,2,FALSE),\"\")","v":""},null,"maintien",null,{"$f":"IFERROR(VLOOKUP(T294,'annexe dépense occulte'!$R$2:$BQ$132,15,FALSE),\"\")","v":""},"coût action",{"$f":"IFERROR(VLOOKUP(T294,'annexe dépense occulte'!$R$2:$BQ$133,2,FALSE),\"\")","v":""}]
[null,"effet",{"$f":"IFERROR(VLOOKUP(B294,'annexe dépense occulte'!$R$2:$BQ$132,16,FALSE),\"\")","v":""},null,null,null,null,"effet",{"$f":"IFERROR(VLOOKUP(H294,'annexe dépense occulte'!$R$2:$BQ$132,16,FALSE),\"\")","v":""},null,null,null,null,"effet",{"$f":"IFERROR(VLOOKUP(N294,'annexe dépense occulte'!$R$2:$BQ$132,16,FALSE),\"\")","v":""},null,null,null,null,"effet",{"$f":"IFERROR(VLOOKUP(T294,'annexe dépense occulte'!$R$2:$BQ$132,16,FALSE),\"\")","v":""}]
[]
[null,"Stance 4",null,null,null,null,null,"Stance 4",null,null,null,null,null,"Stance 4",null,null,null,null,null,"Stance 4"]
[null,"difficulté",null,{"$f":"IFERROR(VLOOKUP(B294,'annexe dépense occulte'!$R$2:$BQ$132,18,FALSE),\"\")","v":""},"débloquée","non",null,"difficulté",null,{"$f":"IFERROR(VLOOKUP(H294,'annexe dépense occulte'!$R$2:$BQ$132,18,FALSE),\"\")","v":""},"débloquée","non",null,"difficulté",null,{"$f":"IFERROR(VLOOKUP(N294,'annexe dépense occulte'!$R$2:$BQ$132,18,FALSE),\"\")","v":""},"débloquée","non",null,"difficulté",null,{"$f":"IFERROR(VLOOKUP(T294,'annexe dépense occulte'!$R$2:$BQ$132,18,FALSE),\"\")","v":""},"débloquée","non"]
[null,"coût occultisme",null,{"$f":"IFERROR(VLOOKUP(B294,'annexe dépense occulte'!$R$2:$BQ$132,19,FALSE),\"\")","v":""},"coût appren",{"$f":"IFERROR(VLOOKUP(B294,'annexe dépense occulte'!$R$2:$BQ$133,17,FALSE),\"\")","v":""},null,"coût occultisme",null,{"$f":"IFERROR(VLOOKUP(H294,'annexe dépense occulte'!$R$2:$BQ$132,19,FALSE),\"\")","v":""},"coût appren",{"$f":"IFERROR(VLOOKUP(H294,'annexe dépense occulte'!$R$2:$BQ$133,17,FALSE),\"\")","v":""},null,"coût occultisme",null,{"$f":"IFERROR(VLOOKUP(N294,'annexe dépense occulte'!$R$2:$BQ$132,19,FALSE),\"\")","v":""},"coût appren",{"$f":"IFERROR(VLOOKUP(N294,'annexe dépense occulte'!$R$2:$BQ$133,17,FALSE),\"\")","v":""},null,"coût occultisme",null,{"$f":"IFERROR(VLOOKUP(T294,'annexe dépense occulte'!$R$2:$BQ$132,19,FALSE),\"\")","v":""},"coût appren",{"$f":"IFERROR(VLOOKUP(T294,'annexe dépense occulte'!$R$2:$BQ$133,17,FALSE),\"\")","v":""}]
[null,"maintien",null,{"$f":"IFERROR(VLOOKUP(B294,'annexe dépense occulte'!$R$2:$BQ$132,20,FALSE),\"\")","v":""},"coût action",{"$f":"IFERROR(VLOOKUP(B294,'annexe dépense occulte'!$R$2:$BQ$133,2,FALSE),\"\")","v":""},null,"maintien",null,{"$f":"IFERROR(VLOOKUP(H294,'annexe dépense occulte'!$R$2:$BQ$132,20,FALSE),\"\")","v":""},"coût action",{"$f":"IFERROR(VLOOKUP(H294,'annexe dépense occulte'!$R$2:$BQ$133,2,FALSE),\"\")","v":""},null,"maintien",null,{"$f":"IFERROR(VLOOKUP(N294,'annexe dépense occulte'!$R$2:$BQ$132,20,FALSE),\"\")","v":""},"coût action",{"$f":"IFERROR(VLOOKUP(N294,'annexe dépense occulte'!$R$2:$BQ$133,2,FALSE),\"\")","v":""},null,"maintien",null,{"$f":"IFERROR(VLOOKUP(T294,'annexe dépense occulte'!$R$2:$BQ$132,20,FALSE),\"\")","v":""},"coût action",{"$f":"IFERROR(VLOOKUP(T294,'annexe dépense occulte'!$R$2:$BQ$133,2,FALSE),\"\")","v":""}]
[null,"effet",{"$f":"IFERROR(VLOOKUP(B294,'annexe dépense occulte'!$R$2:$BQ$132,21,FALSE),\"\")","v":""},null,null,null,null,"effet",{"$f":"IFERROR(VLOOKUP(H294,'annexe dépense occulte'!$R$2:$BQ$132,21,FALSE),\"\")","v":""},null,null,null,null,"effet",{"$f":"IFERROR(VLOOKUP(N294,'annexe dépense occulte'!$R$2:$BQ$132,21,FALSE),\"\")","v":""},null,null,null,null,"effet",{"$f":"IFERROR(VLOOKUP(T294,'annexe dépense occulte'!$R$2:$BQ$132,21,FALSE),\"\")","v":""}]
[]
[null,"Stance 5",null,null,null,null,null,"Stance 5",null,null,null,null,null,"Stance 5",null,null,null,null,null,"Stance 5"]
[null,"difficulté",null,{"$f":"IFERROR(VLOOKUP(B294,'annexe dépense occulte'!$R$2:$BQ$132,23,FALSE),\"\")","v":""},"débloquée","non",null,"difficulté",null,{"$f":"IFERROR(VLOOKUP(H294,'annexe dépense occulte'!$R$2:$BQ$132,23,FALSE),\"\")","v":""},"débloquée","non",null,"difficulté",null,{"$f":"IFERROR(VLOOKUP(N294,'annexe dépense occulte'!$R$2:$BQ$132,23,FALSE),\"\")","v":""},"débloquée","non",null,"difficulté",null,{"$f":"IFERROR(VLOOKUP(T294,'annexe dépense occulte'!$R$2:$BQ$132,23,FALSE),\"\")","v":""},"débloquée","non"]
[null,"coût occultisme",null,{"$f":"IFERROR(VLOOKUP(B294,'annexe dépense occulte'!$R$2:$BQ$132,24,FALSE),\"\")","v":""},"coût appren",{"$f":"IFERROR(VLOOKUP(B294,'annexe dépense occulte'!$R$2:$BQ$133,22,FALSE),\"\")","v":""},null,"coût occultisme",null,{"$f":"IFERROR(VLOOKUP(H294,'annexe dépense occulte'!$R$2:$BQ$132,24,FALSE),\"\")","v":""},"coût appren",{"$f":"IFERROR(VLOOKUP(H294,'annexe dépense occulte'!$R$2:$BQ$133,22,FALSE),\"\")","v":""},null,"coût occultisme",null,{"$f":"IFERROR(VLOOKUP(N294,'annexe dépense occulte'!$R$2:$BQ$132,24,FALSE),\"\")","v":""},"coût appren",{"$f":"IFERROR(VLOOKUP(N294,'annexe dépense occulte'!$R$2:$BQ$133,22,FALSE),\"\")","v":""},null,"coût occultisme",null,{"$f":"IFERROR(VLOOKUP(T294,'annexe dépense occulte'!$R$2:$BQ$132,24,FALSE),\"\")","v":""},"coût appren",{"$f":"IFERROR(VLOOKUP(T294,'annexe dépense occulte'!$R$2:$BQ$133,22,FALSE),\"\")","v":""}]
[null,"maintien",null,{"$f":"IFERROR(VLOOKUP(B294,'annexe dépense occulte'!$R$2:$BQ$132,25,FALSE),\"\")","v":""},"coût action",{"$f":"IFERROR(VLOOKUP(B294,'annexe dépense occulte'!$R$2:$BQ$133,2,FALSE),\"\")","v":""},null,"maintien",null,{"$f":"IFERROR(VLOOKUP(H294,'annexe dépense occulte'!$R$2:$BQ$132,25,FALSE),\"\")","v":""},"coût action",{"$f":"IFERROR(VLOOKUP(H294,'annexe dépense occulte'!$R$2:$BQ$133,2,FALSE),\"\")","v":""},null,"maintien",null,{"$f":"IFERROR(VLOOKUP(N294,'annexe dépense occulte'!$R$2:$BQ$132,25,FALSE),\"\")","v":""},"coût action",{"$f":"IFERROR(VLOOKUP(N294,'annexe dépense occulte'!$R$2:$BQ$133,2,FALSE),\"\")","v":""},null,"maintien",null,{"$f":"IFERROR(VLOOKUP(T294,'annexe dépense occulte'!$R$2:$BQ$132,25,FALSE),\"\")","v":""},"coût action",{"$f":"IFERROR(VLOOKUP(T294,'annexe dépense occulte'!$R$2:$BQ$133,2,FALSE),\"\")","v":""}]
[null,"effet",{"$f":"IFERROR(VLOOKUP(B294,'annexe dépense occulte'!$R$2:$BQ$132,26,FALSE),\"\")","v":""},null,null,null,null,"effet",{"$f":"IFERROR(VLOOKUP(H294,'annexe dépense occulte'!$R$2:$BQ$132,26,FALSE),\"\")","v":""},null,null,null,null,"effet",{"$f":"IFERROR(VLOOKUP(N294,'annexe dépense occulte'!$R$2:$BQ$132,26,FALSE),\"\")","v":""},null,null,null,null,"effet",{"$f":"IFERROR(VLOOKUP(T294,'annexe dépense occulte'!$R$2:$BQ$132,26,FALSE),\"\")","v":""}]
[]
[]
[null,null,null,"maîtrise",0,{"$f":"IF(AND($G$3>3,E326>399),4,IF(AND($G$3>2,E326>299),3,IF(AND($G$3>1,E326>199),2,IF(AND($G$3>0,E326>0),1,0))))","v":0},null,null,null,"maîtrise",0,{"$f":"IF(AND($G$3>3,K326>399),4,IF(AND($G$3>2,K326>299),3,IF(AND($G$3>1,K326>199),2,IF(AND($G$3>0,K326>0),1,0))))","v":0},null,null,null,"maîtrise",0,{"$f":"IF(AND($G$3>3,Q326>399),4,IF(AND($G$3>2,Q326>299),3,IF(AND($G$3>1,Q326>199),2,IF(AND($G$3>0,Q326>0),1,0))))","v":0},null,null,null,"maîtrise",0,{"$f":"IF(AND($G$3>3,W326>399),4,IF(AND($G$3>2,W326>299),3,IF(AND($G$3>1,W326>199),2,IF(AND($G$3>0,W326>0),1,0))))","v":0}]
[null,"Stance 1",null,null,null,null,null,"Stance 1",null,null,null,null,null,"Stance 1",null,null,null,null,null,"Stance 1"]
[null,"difficulté",null,{"$f":"IFERROR(VLOOKUP(B326,'annexe dépense occulte'!$R$2:$BQ$132,3,FALSE),\"\")","v":""},"création","non",null,"difficulté",null,{"$f":"IFERROR(VLOOKUP(H326,'annexe dépense occulte'!$R$2:$BQ$132,3,FALSE),\"\")","v":""},"création","non",null,"difficulté",null,{"$f":"IFERROR(VLOOKUP(N326,'annexe dépense occulte'!$R$2:$BQ$132,3,FALSE),\"\")","v":""},"création","non",null,"difficulté",null,{"$f":"IFERROR(VLOOKUP(T326,'annexe dépense occulte'!$R$2:$BQ$132,3,FALSE),\"\")","v":""},"création","non"]
[null,"coût occultisme",null,{"$f":"IFERROR(VLOOKUP(B326,'annexe dépense occulte'!$R$2:$BQ$133,4,FALSE),\"\")","v":""},"coût apprentissage",{"$f":"IFERROR(VLOOKUP(B326,'annexe dépense occulte'!$R$2:$BQ$133,27,FALSE),\"\")","v":""},null,"coût occultisme",null,{"$f":"IFERROR(VLOOKUP(H326,'annexe dépense occulte'!$R$2:$BQ$133,4,FALSE),\"\")","v":""},"coût apprentissage",{"$f":"IFERROR(VLOOKUP(H326,'annexe dépense occulte'!$R$2:$BQ$133,27,FALSE),\"\")","v":""},null,"coût occultisme",null,{"$f":"IFERROR(VLOOKUP(N326,'annexe dépense occulte'!$R$2:$BQ$133,4,FALSE),\"\")","v":""},"coût apprentissage",{"$f":"IFERROR(VLOOKUP(N326,'annexe dépense occulte'!$R$2:$BQ$133,27,FALSE),\"\")","v":""},null,"coût occultisme",null,{"$f":"IFERROR(VLOOKUP(T326,'annexe dépense occulte'!$R$2:$BQ$133,4,FALSE),\"\")","v":""},"coût apprentissage",{"$f":"IFERROR(VLOOKUP(T326,'annexe dépense occulte'!$R$2:$BQ$133,27,FALSE),\"\")","v":""}]
[null,"maintien",null,{"$f":"IFERROR(VLOOKUP(B326,'annexe dépense occulte'!$R$2:$BQ$133,5,FALSE),\"\")","v":""},"coût action",{"$f":"IFERROR(VLOOKUP(B326,'annexe dépense occulte'!$R$2:$BQ$133,2,FALSE),\"\")","v":""},null,"maintien",null,{"$f":"IFERROR(VLOOKUP(H326,'annexe dépense occulte'!$R$2:$BQ$133,5,FALSE),\"\")","v":""},"coût action",{"$f":"IFERROR(VLOOKUP(H326,'annexe dépense occulte'!$R$2:$BQ$133,2,FALSE),\"\")","v":""},null,"maintien",null,{"$f":"IFERROR(VLOOKUP(N326,'annexe dépense occulte'!$R$2:$BQ$133,5,FALSE),\"\")","v":""},"coût action",{"$f":"IFERROR(VLOOKUP(N326,'annexe dépense occulte'!$R$2:$BQ$133,2,FALSE),\"\")","v":""},null,"maintien",null,{"$f":"IFERROR(VLOOKUP(T326,'annexe dépense occulte'!$R$2:$BQ$133,5,FALSE),\"\")","v":""},"coût action",{"$f":"IFERROR(VLOOKUP(T326,'annexe dépense occulte'!$R$2:$BQ$133,2,FALSE),\"\")","v":""}]
[null,"effet",{"$f":"IFERROR(VLOOKUP(B326,'annexe dépense occulte'!$R$2:$BQ$133,6,FALSE),\"\")","v":""},null,null,null,null,"effet",{"$f":"IFERROR(VLOOKUP(H326,'annexe dépense occulte'!$R$2:$BQ$133,6,FALSE),\"\")","v":""},null,null,null,null,"effet",{"$f":"IFERROR(VLOOKUP(N326,'annexe dépense occulte'!$R$2:$BQ$133,6,FALSE),\"\")","v":""},null,null,null,null,"effet",{"$f":"IFERROR(VLOOKUP(T326,'annexe dépense occulte'!$R$2:$BQ$133,6,FALSE),\"\")","v":""}]
[]
[null,"Stance 2",null,null,null,null,null,"Stance 2",null,null,null,null,null,"Stance 2",null,null,null,null,null,"Stance 2"]
[null,"difficulté",null,{"$f":"IFERROR(VLOOKUP(B326,'annexe dépense occulte'!$R$2:$BQ$132,8,FALSE),\"\")","v":""},"débloquée","non",null,"difficulté",null,{"$f":"IFERROR(VLOOKUP(H326,'annexe dépense occulte'!$R$2:$BQ$132,8,FALSE),\"\")","v":""},"débloquée","non",null,"difficulté",null,{"$f":"IFERROR(VLOOKUP(N326,'annexe dépense occulte'!$R$2:$BQ$132,8,FALSE),\"\")","v":""},"débloquée","non",null,"difficulté",null,{"$f":"IFERROR(VLOOKUP(T326,'annexe dépense occulte'!$R$2:$BQ$132,8,FALSE),\"\")","v":""},"débloquée","non"]
[null,"coût occultisme",null,{"$f":"IFERROR(VLOOKUP(B326,'annexe dépense occulte'!$R$2:$BQ$132,9,FALSE),\"\")","v":""},"coût appren",{"$f":"IFERROR(VLOOKUP(B326,'annexe dépense occulte'!$R$2:$BQ$133,7,FALSE),\"\")","v":""},null,"coût occultisme",null,{"$f":"IFERROR(VLOOKUP(H326,'annexe dépense occulte'!$R$2:$BQ$132,9,FALSE),\"\")","v":""},"coût appren",{"$f":"IFERROR(VLOOKUP(H326,'annexe dépense occulte'!$R$2:$BQ$133,7,FALSE),\"\")","v":""},null,"coût occultisme",null,{"$f":"IFERROR(VLOOKUP(N326,'annexe dépense occulte'!$R$2:$BQ$132,9,FALSE),\"\")","v":""},"coût appren",{"$f":"IFERROR(VLOOKUP(N326,'annexe dépense occulte'!$R$2:$BQ$133,7,FALSE),\"\")","v":""},null,"coût occultisme",null,{"$f":"IFERROR(VLOOKUP(T326,'annexe dépense occulte'!$R$2:$BQ$132,9,FALSE),\"\")","v":""},"coût appren",{"$f":"IFERROR(VLOOKUP(T326,'annexe dépense occulte'!$R$2:$BQ$133,7,FALSE),\"\")","v":""}]
[null,"maintien",null,{"$f":"IFERROR(VLOOKUP(B326,'annexe dépense occulte'!$R$2:$BQ$132,10,FALSE),\"\")","v":""},"coût action",{"$f":"IFERROR(VLOOKUP(B326,'annexe dépense occulte'!$R$2:$BQ$133,2,FALSE),\"\")","v":""},null,"maintien",null,{"$f":"IFERROR(VLOOKUP(H326,'annexe dépense occulte'!$R$2:$BQ$132,10,FALSE),\"\")","v":""},"coût action",{"$f":"IFERROR(VLOOKUP(H326,'annexe dépense occulte'!$R$2:$BQ$133,2,FALSE),\"\")","v":""},null,"maintien",null,{"$f":"IFERROR(VLOOKUP(N326,'annexe dépense occulte'!$R$2:$BQ$132,10,FALSE),\"\")","v":""},"coût action",{"$f":"IFERROR(VLOOKUP(N326,'annexe dépense occulte'!$R$2:$BQ$133,2,FALSE),\"\")","v":""},null,"maintien",null,{"$f":"IFERROR(VLOOKUP(T326,'annexe dépense occulte'!$R$2:$BQ$132,10,FALSE),\"\")","v":""},"coût action",{"$f":"IFERROR(VLOOKUP(T326,'annexe dépense occulte'!$R$2:$BQ$133,2,FALSE),\"\")","v":""}]
[null,"effet",{"$f":"IFERROR(VLOOKUP(B326,'annexe dépense occulte'!$R$2:$BQ$132,11,FALSE),\"\")","v":""},null,null,null,null,"effet",{"$f":"IFERROR(VLOOKUP(H326,'annexe dépense occulte'!$R$2:$BQ$132,11,FALSE),\"\")","v":""},null,null,null,null,"effet",{"$f":"IFERROR(VLOOKUP(N326,'annexe dépense occulte'!$R$2:$BQ$132,11,FALSE),\"\")","v":""},null,null,null,null,"effet",{"$f":"IFERROR(VLOOKUP(T326,'annexe dépense occulte'!$R$2:$BQ$132,11,FALSE),\"\")","v":""}]
[]
[null,"Stance 3",null,null,null,null,null,"Stance 3",null,null,null,null,null,"Stance 3",null,null,null,null,null,"Stance 3"]
[null,"difficulté",null,{"$f":"IFERROR(VLOOKUP(B326,'annexe dépense occulte'!$R$2:$BQ$132,13,FALSE),\"\")","v":""},"débloquée","non",null,"difficulté",null,{"$f":"IFERROR(VLOOKUP(H326,'annexe dépense occulte'!$R$2:$BQ$132,13,FALSE),\"\")","v":""},"débloquée","non",null,"difficulté",null,{"$f":"IFERROR(VLOOKUP(N326,'annexe dépense occulte'!$R$2:$BQ$132,13,FALSE),\"\")","v":""},"débloquée","non",null,"difficulté",null,{"$f":"IFERROR(VLOOKUP(T326,'annexe dépense occulte'!$R$2:$BQ$132,13,FALSE),\"\")","v":""},"débloquée","non"]
[null,"coût occultisme",null,{"$f":"IFERROR(VLOOKUP(B326,'annexe dépense occulte'!$R$2:$BQ$132,14,FALSE),\"\")","v":""},"coût appren",{"$f":"IFERROR(VLOOKUP(B326,'annexe dépense occulte'!$R$2:$BQ$133,12,FALSE),\"\")","v":""},null,"coût occultisme",null,{"$f":"IFERROR(VLOOKUP(H326,'annexe dépense occulte'!$R$2:$BQ$132,14,FALSE),\"\")","v":""},"coût appren",{"$f":"IFERROR(VLOOKUP(H326,'annexe dépense occulte'!$R$2:$BQ$133,12,FALSE),\"\")","v":""},null,"coût occultisme",null,{"$f":"IFERROR(VLOOKUP(N326,'annexe dépense occulte'!$R$2:$BQ$132,14,FALSE),\"\")","v":""},"coût appren",{"$f":"IFERROR(VLOOKUP(N326,'annexe dépense occulte'!$R$2:$BQ$133,12,FALSE),\"\")","v":""},null,"coût occultisme",null,{"$f":"IFERROR(VLOOKUP(T326,'annexe dépense occulte'!$R$2:$BQ$132,14,FALSE),\"\")","v":""},"coût appren",{"$f":"IFERROR(VLOOKUP(T326,'annexe dépense occulte'!$R$2:$BQ$133,12,FALSE),\"\")","v":""}]
[null,"maintien",null,{"$f":"IFERROR(VLOOKUP(B326,'annexe dépense occulte'!$R$2:$BQ$132,15,FALSE),\"\")","v":""},"coût action",{"$f":"IFERROR(VLOOKUP(B326,'annexe dépense occulte'!$R$2:$BQ$133,2,FALSE),\"\")","v":""},null,"maintien",null,{"$f":"IFERROR(VLOOKUP(H326,'annexe dépense occulte'!$R$2:$BQ$132,15,FALSE),\"\")","v":""},"coût action",{"$f":"IFERROR(VLOOKUP(H326,'annexe dépense occulte'!$R$2:$BQ$133,2,FALSE),\"\")","v":""},null,"maintien",null,{"$f":"IFERROR(VLOOKUP(N326,'annexe dépense occulte'!$R$2:$BQ$132,15,FALSE),\"\")","v":""},"coût action",{"$f":"IFERROR(VLOOKUP(N326,'annexe dépense occulte'!$R$2:$BQ$133,2,FALSE),\"\")","v":""},null,"maintien",null,{"$f":"IFERROR(VLOOKUP(T326,'annexe dépense occulte'!$R$2:$BQ$132,15,FALSE),\"\")","v":""},"coût action",{"$f":"IFERROR(VLOOKUP(T326,'annexe dépense occulte'!$R$2:$BQ$133,2,FALSE),\"\")","v":""}]
[null,"effet",{"$f":"IFERROR(VLOOKUP(B326,'annexe dépense occulte'!$R$2:$BQ$132,16,FALSE),\"\")","v":""},null,null,null,null,"effet",{"$f":"IFERROR(VLOOKUP(H326,'annexe dépense occulte'!$R$2:$BQ$132,16,FALSE),\"\")","v":""},null,null,null,null,"effet",{"$f":"IFERROR(VLOOKUP(N326,'annexe dépense occulte'!$R$2:$BQ$132,16,FALSE),\"\")","v":""},null,null,null,null,"effet",{"$f":"IFERROR(VLOOKUP(T326,'annexe dépense occulte'!$R$2:$BQ$132,16,FALSE),\"\")","v":""}]
[]
[null,"Stance 4",null,null,null,null,null,"Stance 4",null,null,null,null,null,"Stance 4",null,null,null,null,null,"Stance 4"]
[null,"difficulté",null,{"$f":"IFERROR(VLOOKUP(B326,'annexe dépense occulte'!$R$2:$BQ$132,18,FALSE),\"\")","v":""},"débloquée","non",null,"difficulté",null,{"$f":"IFERROR(VLOOKUP(H326,'annexe dépense occulte'!$R$2:$BQ$132,18,FALSE),\"\")","v":""},"débloquée","non",null,"difficulté",null,{"$f":"IFERROR(VLOOKUP(N326,'annexe dépense occulte'!$R$2:$BQ$132,18,FALSE),\"\")","v":""},"débloquée","non",null,"difficulté",null,{"$f":"IFERROR(VLOOKUP(T326,'annexe dépense occulte'!$R$2:$BQ$132,18,FALSE),\"\")","v":""},"débloquée","non"]
[null,"coût occultisme",null,{"$f":"IFERROR(VLOOKUP(B326,'annexe dépense occulte'!$R$2:$BQ$132,19,FALSE),\"\")","v":""},"coût appren",{"$f":"IFERROR(VLOOKUP(B326,'annexe dépense occulte'!$R$2:$BQ$133,17,FALSE),\"\")","v":""},null,"coût occultisme",null,{"$f":"IFERROR(VLOOKUP(H326,'annexe dépense occulte'!$R$2:$BQ$132,19,FALSE),\"\")","v":""},"coût appren",{"$f":"IFERROR(VLOOKUP(H326,'annexe dépense occulte'!$R$2:$BQ$133,17,FALSE),\"\")","v":""},null,"coût occultisme",null,{"$f":"IFERROR(VLOOKUP(N326,'annexe dépense occulte'!$R$2:$BQ$132,19,FALSE),\"\")","v":""},"coût appren",{"$f":"IFERROR(VLOOKUP(N326,'annexe dépense occulte'!$R$2:$BQ$133,17,FALSE),\"\")","v":""},null,"coût occultisme",null,{"$f":"IFERROR(VLOOKUP(T326,'annexe dépense occulte'!$R$2:$BQ$132,19,FALSE),\"\")","v":""},"coût appren",{"$f":"IFERROR(VLOOKUP(T326,'annexe dépense occulte'!$R$2:$BQ$133,17,FALSE),\"\")","v":""}]
[null,"maintien",null,{"$f":"IFERROR(VLOOKUP(B326,'annexe dépense occulte'!$R$2:$BQ$132,20,FALSE),\"\")","v":""},"coût action",{"$f":"IFERROR(VLOOKUP(B326,'annexe dépense occulte'!$R$2:$BQ$133,2,FALSE),\"\")","v":""},null,"maintien",null,{"$f":"IFERROR(VLOOKUP(H326,'annexe dépense occulte'!$R$2:$BQ$132,20,FALSE),\"\")","v":""},"coût action",{"$f":"IFERROR(VLOOKUP(H326,'annexe dépense occulte'!$R$2:$BQ$133,2,FALSE),\"\")","v":""},null,"maintien",null,{"$f":"IFERROR(VLOOKUP(N326,'annexe dépense occulte'!$R$2:$BQ$132,20,FALSE),\"\")","v":""},"coût action",{"$f":"IFERROR(VLOOKUP(N326,'annexe dépense occulte'!$R$2:$BQ$133,2,FALSE),\"\")","v":""},null,"maintien",null,{"$f":"IFERROR(VLOOKUP(T326,'annexe dépense occulte'!$R$2:$BQ$132,20,FALSE),\"\")","v":""},"coût action",{"$f":"IFERROR(VLOOKUP(T326,'annexe dépense occulte'!$R$2:$BQ$133,2,FALSE),\"\")","v":""}]
[null,"effet",{"$f":"IFERROR(VLOOKUP(B326,'annexe dépense occulte'!$R$2:$BQ$132,21,FALSE),\"\")","v":""},null,null,null,null,"effet",{"$f":"IFERROR(VLOOKUP(H326,'annexe dépense occulte'!$R$2:$BQ$132,21,FALSE),\"\")","v":""},null,null,null,null,"effet",{"$f":"IFERROR(VLOOKUP(N326,'annexe dépense occulte'!$R$2:$BQ$132,21,FALSE),\"\")","v":""},null,null,null,null,"effet",{"$f":"IFERROR(VLOOKUP(T326,'annexe dépense occulte'!$R$2:$BQ$132,21,FALSE),\"\")","v":""}]
[]
[null,"Stance 5",null,null,null,null,null,"Stance 5",null,null,null,null,null,"Stance 5",null,null,null,null,null,"Stance 5"]
[null,"difficulté",null,{"$f":"IFERROR(VLOOKUP(B326,'annexe dépense occulte'!$R$2:$BQ$132,23,FALSE),\"\")","v":""},"débloquée","non",null,"difficulté",null,{"$f":"IFERROR(VLOOKUP(H326,'annexe dépense occulte'!$R$2:$BQ$132,23,FALSE),\"\")","v":""},"débloquée","non",null,"difficulté",null,{"$f":"IFERROR(VLOOKUP(N326,'annexe dépense occulte'!$R$2:$BQ$132,23,FALSE),\"\")","v":""},"débloquée","non",null,"difficulté",null,{"$f":"IFERROR(VLOOKUP(T326,'annexe dépense occulte'!$R$2:$BQ$132,23,FALSE),\"\")","v":""},"débloquée","non"]
[null,"coût occultisme",null,{"$f":"IFERROR(VLOOKUP(B326,'annexe dépense occulte'!$R$2:$BQ$132,24,FALSE),\"\")","v":""},"coût appren",{"$f":"IFERROR(VLOOKUP(B326,'annexe dépense occulte'!$R$2:$BQ$133,22,FALSE),\"\")","v":""},null,"coût occultisme",null,{"$f":"IFERROR(VLOOKUP(H326,'annexe dépense occulte'!$R$2:$BQ$132,24,FALSE),\"\")","v":""},"coût appren",{"$f":"IFERROR(VLOOKUP(H326,'annexe dépense occulte'!$R$2:$BQ$133,22,FALSE),\"\")","v":""},null,"coût occultisme",null,{"$f":"IFERROR(VLOOKUP(N326,'annexe dépense occulte'!$R$2:$BQ$132,24,FALSE),\"\")","v":""},"coût appren",{"$f":"IFERROR(VLOOKUP(N326,'annexe dépense occulte'!$R$2:$BQ$133,22,FALSE),\"\")","v":""},null,"coût occultisme",null,{"$f":"IFERROR(VLOOKUP(T326,'annexe dépense occulte'!$R$2:$BQ$132,24,FALSE),\"\")","v":""},"coût appren",{"$f":"IFERROR(VLOOKUP(T326,'annexe dépense occulte'!$R$2:$BQ$133,22,FALSE),\"\")","v":""}]
[null,"maintien",null,{"$f":"IFERROR(VLOOKUP(B326,'annexe dépense occulte'!$R$2:$BQ$132,25,FALSE),\"\")","v":""},"coût action",{"$f":"IFERROR(VLOOKUP(B326,'annexe dépense occulte'!$R$2:$BQ$133,2,FALSE),\"\")","v":""},null,"maintien",null,{"$f":"IFERROR(VLOOKUP(H326,'annexe dépense occulte'!$R$2:$BQ$132,25,FALSE),\"\")","v":""},"coût action",{"$f":"IFERROR(VLOOKUP(H326,'annexe dépense occulte'!$R$2:$BQ$133,2,FALSE),\"\")","v":""},null,"maintien",null,{"$f":"IFERROR(VLOOKUP(N326,'annexe dépense occulte'!$R$2:$BQ$132,25,FALSE),\"\")","v":""},"coût action",{"$f":"IFERROR(VLOOKUP(N326,'annexe dépense occulte'!$R$2:$BQ$133,2,FALSE),\"\")","v":""},null,"maintien",null,{"$f":"IFERROR(VLOOKUP(T326,'annexe dépense occulte'!$R$2:$BQ$132,25,FALSE),\"\")","v":""},"coût action",{"$f":"IFERROR(VLOOKUP(T326,'annexe dépense occulte'!$R$2:$BQ$133,2,FALSE),\"\")","v":""}]
[null,"effet",{"$f":"IFERROR(VLOOKUP(B326,'annexe dépense occulte'!$R$2:$BQ$132,26,FALSE),\"\")","v":""},null,null,null,null,"effet",{"$f":"IFERROR(VLOOKUP(H326,'annexe dépense occulte'!$R$2:$BQ$132,26,FALSE),\"\")","v":""},null,null,null,null,"effet",{"$f":"IFERROR(VLOOKUP(N326,'annexe dépense occulte'!$R$2:$BQ$132,26,FALSE),\"\")","v":""},null,null,null,null,"effet",{"$f":"IFERROR(VLOOKUP(T326,'annexe dépense occulte'!$R$2:$BQ$132,26,FALSE),\"\")","v":""}]
[]
[]
[null,null,null,"maîtrise",0,{"$f":"IF(AND($G$3>3,E358>399),4,IF(AND($G$3>2,E358>299),3,IF(AND($G$3>1,E358>199),2,IF(AND($G$3>0,E358>0),1,0))))","v":0},null,null,null,"maîtrise",0,{"$f":"IF(AND($G$3>3,K358>399),4,IF(AND($G$3>2,K358>299),3,IF(AND($G$3>1,K358>199),2,IF(AND($G$3>0,K358>0),1,0))))","v":0},null,null,null,"maîtrise",0,{"$f":"IF(AND($G$3>3,Q358>399),4,IF(AND($G$3>2,Q358>299),3,IF(AND($G$3>1,Q358>199),2,IF(AND($G$3>0,Q358>0),1,0))))","v":0},null,null,null,"maîtrise",0,{"$f":"IF(AND($G$3>3,W358>399),4,IF(AND($G$3>2,W358>299),3,IF(AND($G$3>1,W358>199),2,IF(AND($G$3>0,W358>0),1,0))))","v":0}]
[null,"Stance 1",null,null,null,null,null,"Stance 1",null,null,null,null,null,"Stance 1",null,null,null,null,null,"Stance 1"]
[null,"difficulté",null,{"$f":"IFERROR(VLOOKUP(B358,'annexe dépense occulte'!$R$2:$BQ$132,3,FALSE),\"\")","v":""},"création","non",null,"difficulté",null,{"$f":"IFERROR(VLOOKUP(H358,'annexe dépense occulte'!$R$2:$BQ$132,3,FALSE),\"\")","v":""},"création","non",null,"difficulté",null,{"$f":"IFERROR(VLOOKUP(N358,'annexe dépense occulte'!$R$2:$BQ$132,3,FALSE),\"\")","v":""},"création","non",null,"difficulté",null,{"$f":"IFERROR(VLOOKUP(T358,'annexe dépense occulte'!$R$2:$BQ$132,3,FALSE),\"\")","v":""},"création","non"]
[null,"coût occultisme",null,{"$f":"IFERROR(VLOOKUP(B358,'annexe dépense occulte'!$R$2:$BQ$133,4,FALSE),\"\")","v":""},"coût apprentissage",{"$f":"IFERROR(VLOOKUP(B358,'annexe dépense occulte'!$R$2:$BQ$133,27,FALSE),\"\")","v":""},null,"coût occultisme",null,{"$f":"IFERROR(VLOOKUP(H358,'annexe dépense occulte'!$R$2:$BQ$133,4,FALSE),\"\")","v":""},"coût apprentissage",{"$f":"IFERROR(VLOOKUP(H358,'annexe dépense occulte'!$R$2:$BQ$133,27,FALSE),\"\")","v":""},null,"coût occultisme",null,{"$f":"IFERROR(VLOOKUP(N358,'annexe dépense occulte'!$R$2:$BQ$133,4,FALSE),\"\")","v":""},"coût apprentissage",{"$f":"IFERROR(VLOOKUP(N358,'annexe dépense occulte'!$R$2:$BQ$133,27,FALSE),\"\")","v":""},null,"coût occultisme",null,{"$f":"IFERROR(VLOOKUP(T358,'annexe dépense occulte'!$R$2:$BQ$133,4,FALSE),\"\")","v":""},"coût apprentissage",{"$f":"IFERROR(VLOOKUP(T358,'annexe dépense occulte'!$R$2:$BQ$133,27,FALSE),\"\")","v":""}]
[null,"maintien",null,{"$f":"IFERROR(VLOOKUP(B358,'annexe dépense occulte'!$R$2:$BQ$133,5,FALSE),\"\")","v":""},"coût action",{"$f":"IFERROR(VLOOKUP(B358,'annexe dépense occulte'!$R$2:$BQ$133,2,FALSE),\"\")","v":""},null,"maintien",null,{"$f":"IFERROR(VLOOKUP(H358,'annexe dépense occulte'!$R$2:$BQ$133,5,FALSE),\"\")","v":""},"coût action",{"$f":"IFERROR(VLOOKUP(H358,'annexe dépense occulte'!$R$2:$BQ$133,2,FALSE),\"\")","v":""},null,"maintien",null,{"$f":"IFERROR(VLOOKUP(N358,'annexe dépense occulte'!$R$2:$BQ$133,5,FALSE),\"\")","v":""},"coût action",{"$f":"IFERROR(VLOOKUP(N358,'annexe dépense occulte'!$R$2:$BQ$133,2,FALSE),\"\")","v":""},null,"maintien",null,{"$f":"IFERROR(VLOOKUP(T358,'annexe dépense occulte'!$R$2:$BQ$133,5,FALSE),\"\")","v":""},"coût action",{"$f":"IFERROR(VLOOKUP(T358,'annexe dépense occulte'!$R$2:$BQ$133,2,FALSE),\"\")","v":""}]
[null,"effet",{"$f":"IFERROR(VLOOKUP(B358,'annexe dépense occulte'!$R$2:$BQ$133,6,FALSE),\"\")","v":""},null,null,null,null,"effet",{"$f":"IFERROR(VLOOKUP(H358,'annexe dépense occulte'!$R$2:$BQ$133,6,FALSE),\"\")","v":""},null,null,null,null,"effet",{"$f":"IFERROR(VLOOKUP(N358,'annexe dépense occulte'!$R$2:$BQ$133,6,FALSE),\"\")","v":""},null,null,null,null,"effet",{"$f":"IFERROR(VLOOKUP(T358,'annexe dépense occulte'!$R$2:$BQ$133,6,FALSE),\"\")","v":""}]
[]
[null,"Stance 2",null,null,null,null,null,"Stance 2",null,null,null,null,null,"Stance 2",null,null,null,null,null,"Stance 2"]
[null,"difficulté",null,{"$f":"IFERROR(VLOOKUP(B358,'annexe dépense occulte'!$R$2:$BQ$132,8,FALSE),\"\")","v":""},"débloquée","non",null,"difficulté",null,{"$f":"IFERROR(VLOOKUP(H358,'annexe dépense occulte'!$R$2:$BQ$132,8,FALSE),\"\")","v":""},"débloquée","non",null,"difficulté",null,{"$f":"IFERROR(VLOOKUP(N358,'annexe dépense occulte'!$R$2:$BQ$132,8,FALSE),\"\")","v":""},"débloquée","non",null,"difficulté",null,{"$f":"IFERROR(VLOOKUP(T358,'annexe dépense occulte'!$R$2:$BQ$132,8,FALSE),\"\")","v":""},"débloquée","non"]
[null,"coût occultisme",null,{"$f":"IFERROR(VLOOKUP(B358,'annexe dépense occulte'!$R$2:$BQ$132,9,FALSE),\"\")","v":""},"coût appren",{"$f":"IFERROR(VLOOKUP(B358,'annexe dépense occulte'!$R$2:$BQ$133,7,FALSE),\"\")","v":""},null,"coût occultisme",null,{"$f":"IFERROR(VLOOKUP(H358,'annexe dépense occulte'!$R$2:$BQ$132,9,FALSE),\"\")","v":""},"coût appren",{"$f":"IFERROR(VLOOKUP(H358,'annexe dépense occulte'!$R$2:$BQ$133,7,FALSE),\"\")","v":""},null,"coût occultisme",null,{"$f":"IFERROR(VLOOKUP(N358,'annexe dépense occulte'!$R$2:$BQ$132,9,FALSE),\"\")","v":""},"coût appren",{"$f":"IFERROR(VLOOKUP(N358,'annexe dépense occulte'!$R$2:$BQ$133,7,FALSE),\"\")","v":""},null,"coût occultisme",null,{"$f":"IFERROR(VLOOKUP(T358,'annexe dépense occulte'!$R$2:$BQ$132,9,FALSE),\"\")","v":""},"coût appren",{"$f":"IFERROR(VLOOKUP(T358,'annexe dépense occulte'!$R$2:$BQ$133,7,FALSE),\"\")","v":""}]
[null,"maintien",null,{"$f":"IFERROR(VLOOKUP(B358,'annexe dépense occulte'!$R$2:$BQ$132,10,FALSE),\"\")","v":""},"coût action",{"$f":"IFERROR(VLOOKUP(B358,'annexe dépense occulte'!$R$2:$BQ$133,2,FALSE),\"\")","v":""},null,"maintien",null,{"$f":"IFERROR(VLOOKUP(H358,'annexe dépense occulte'!$R$2:$BQ$132,10,FALSE),\"\")","v":""},"coût action",{"$f":"IFERROR(VLOOKUP(H358,'annexe dépense occulte'!$R$2:$BQ$133,2,FALSE),\"\")","v":""},null,"maintien",null,{"$f":"IFERROR(VLOOKUP(N358,'annexe dépense occulte'!$R$2:$BQ$132,10,FALSE),\"\")","v":""},"coût action",{"$f":"IFERROR(VLOOKUP(N358,'annexe dépense occulte'!$R$2:$BQ$133,2,FALSE),\"\")","v":""},null,"maintien",null,{"$f":"IFERROR(VLOOKUP(T358,'annexe dépense occulte'!$R$2:$BQ$132,10,FALSE),\"\")","v":""},"coût action",{"$f":"IFERROR(VLOOKUP(T358,'annexe dépense occulte'!$R$2:$BQ$133,2,FALSE),\"\")","v":""}]
[null,"effet",{"$f":"IFERROR(VLOOKUP(B358,'annexe dépense occulte'!$R$2:$BQ$132,11,FALSE),\"\")","v":""},null,null,null,null,"effet",{"$f":"IFERROR(VLOOKUP(H358,'annexe dépense occulte'!$R$2:$BQ$132,11,FALSE),\"\")","v":""},null,null,null,null,"effet",{"$f":"IFERROR(VLOOKUP(N358,'annexe dépense occulte'!$R$2:$BQ$132,11,FALSE),\"\")","v":""},null,null,null,null,"effet",{"$f":"IFERROR(VLOOKUP(T358,'annexe dépense occulte'!$R$2:$BQ$132,11,FALSE),\"\")","v":""}]
[]
[null,"Stance 3",null,null,null,null,null,"Stance 3",null,null,null,null,null,"Stance 3",null,null,null,null,null,"Stance 3"]
[null,"difficulté",null,{"$f":"IFERROR(VLOOKUP(B358,'annexe dépense occulte'!$R$2:$BQ$132,13,FALSE),\"\")","v":""},"débloquée","non",null,"difficulté",null,{"$f":"IFERROR(VLOOKUP(H358,'annexe dépense occulte'!$R$2:$BQ$132,13,FALSE),\"\")","v":""},"débloquée","non",null,"difficulté",null,{"$f":"IFERROR(VLOOKUP(N358,'annexe dépense occulte'!$R$2:$BQ$132,13,FALSE),\"\")","v":""},"débloquée","non",null,"difficulté",null,{"$f":"IFERROR(VLOOKUP(T358,'annexe dépense occulte'!$R$2:$BQ$132,13,FALSE),\"\")","v":""},"débloquée","non"]
[null,"coût occultisme",null,{"$f":"IFERROR(VLOOKUP(B358,'annexe dépense occulte'!$R$2:$BQ$132,14,FALSE),\"\")","v":""},"coût appren",{"$f":"IFERROR(VLOOKUP(B358,'annexe dépense occulte'!$R$2:$BQ$133,12,FALSE),\"\")","v":""},null,"coût occultisme",null,{"$f":"IFERROR(VLOOKUP(H358,'annexe dépense occulte'!$R$2:$BQ$132,14,FALSE),\"\")","v":""},"coût appren",{"$f":"IFERROR(VLOOKUP(H358,'annexe dépense occulte'!$R$2:$BQ$133,12,FALSE),\"\")","v":""},null,"coût occultisme",null,{"$f":"IFERROR(VLOOKUP(N358,'annexe dépense occulte'!$R$2:$BQ$132,14,FALSE),\"\")","v":""},"coût appren",{"$f":"IFERROR(VLOOKUP(N358,'annexe dépense occulte'!$R$2:$BQ$133,12,FALSE),\"\")","v":""},null,"coût occultisme",null,{"$f":"IFERROR(VLOOKUP(T358,'annexe dépense occulte'!$R$2:$BQ$132,14,FALSE),\"\")","v":""},"coût appren",{"$f":"IFERROR(VLOOKUP(T358,'annexe dépense occulte'!$R$2:$BQ$133,12,FALSE),\"\")","v":""}]
[null,"maintien",null,{"$f":"IFERROR(VLOOKUP(B358,'annexe dépense occulte'!$R$2:$BQ$132,15,FALSE),\"\")","v":""},"coût action",{"$f":"IFERROR(VLOOKUP(B358,'annexe dépense occulte'!$R$2:$BQ$133,2,FALSE),\"\")","v":""},null,"maintien",null,{"$f":"IFERROR(VLOOKUP(H358,'annexe dépense occulte'!$R$2:$BQ$132,15,FALSE),\"\")","v":""},"coût action",{"$f":"IFERROR(VLOOKUP(H358,'annexe dépense occulte'!$R$2:$BQ$133,2,FALSE),\"\")","v":""},null,"maintien",null,{"$f":"IFERROR(VLOOKUP(N358,'annexe dépense occulte'!$R$2:$BQ$132,15,FALSE),\"\")","v":""},"coût action",{"$f":"IFERROR(VLOOKUP(N358,'annexe dépense occulte'!$R$2:$BQ$133,2,FALSE),\"\")","v":""},null,"maintien",null,{"$f":"IFERROR(VLOOKUP(T358,'annexe dépense occulte'!$R$2:$BQ$132,15,FALSE),\"\")","v":""},"coût action",{"$f":"IFERROR(VLOOKUP(T358,'annexe dépense occulte'!$R$2:$BQ$133,2,FALSE),\"\")","v":""}]
[null,"effet",{"$f":"IFERROR(VLOOKUP(B358,'annexe dépense occulte'!$R$2:$BQ$132,16,FALSE),\"\")","v":""},null,null,null,null,"effet",{"$f":"IFERROR(VLOOKUP(H358,'annexe dépense occulte'!$R$2:$BQ$132,16,FALSE),\"\")","v":""},null,null,null,null,"effet",{"$f":"IFERROR(VLOOKUP(N358,'annexe dépense occulte'!$R$2:$BQ$132,16,FALSE),\"\")","v":""},null,null,null,null,"effet",{"$f":"IFERROR(VLOOKUP(T358,'annexe dépense occulte'!$R$2:$BQ$132,16,FALSE),\"\")","v":""}]
[]
[null,"Stance 4",null,null,null,null,null,"Stance 4",null,null,null,null,null,"Stance 4",null,null,null,null,null,"Stance 4"]
[null,"difficulté",null,{"$f":"IFERROR(VLOOKUP(B358,'annexe dépense occulte'!$R$2:$BQ$132,18,FALSE),\"\")","v":""},"débloquée","non",null,"difficulté",null,{"$f":"IFERROR(VLOOKUP(H358,'annexe dépense occulte'!$R$2:$BQ$132,18,FALSE),\"\")","v":""},"débloquée","non",null,"difficulté",null,{"$f":"IFERROR(VLOOKUP(N358,'annexe dépense occulte'!$R$2:$BQ$132,18,FALSE),\"\")","v":""},"débloquée","non",null,"difficulté",null,{"$f":"IFERROR(VLOOKUP(T358,'annexe dépense occulte'!$R$2:$BQ$132,18,FALSE),\"\")","v":""},"débloquée","non"]
[null,"coût occultisme",null,{"$f":"IFERROR(VLOOKUP(B358,'annexe dépense occulte'!$R$2:$BQ$132,19,FALSE),\"\")","v":""},"coût appren",{"$f":"IFERROR(VLOOKUP(B358,'annexe dépense occulte'!$R$2:$BQ$133,17,FALSE),\"\")","v":""},null,"coût occultisme",null,{"$f":"IFERROR(VLOOKUP(H358,'annexe dépense occulte'!$R$2:$BQ$132,19,FALSE),\"\")","v":""},"coût appren",{"$f":"IFERROR(VLOOKUP(H358,'annexe dépense occulte'!$R$2:$BQ$133,17,FALSE),\"\")","v":""},null,"coût occultisme",null,{"$f":"IFERROR(VLOOKUP(N358,'annexe dépense occulte'!$R$2:$BQ$132,19,FALSE),\"\")","v":""},"coût appren",{"$f":"IFERROR(VLOOKUP(N358,'annexe dépense occulte'!$R$2:$BQ$133,17,FALSE),\"\")","v":""},null,"coût occultisme",null,{"$f":"IFERROR(VLOOKUP(T358,'annexe dépense occulte'!$R$2:$BQ$132,19,FALSE),\"\")","v":""},"coût appren",{"$f":"IFERROR(VLOOKUP(T358,'annexe dépense occulte'!$R$2:$BQ$133,17,FALSE),\"\")","v":""}]
[null,"maintien",null,{"$f":"IFERROR(VLOOKUP(B358,'annexe dépense occulte'!$R$2:$BQ$132,20,FALSE),\"\")","v":""},"coût action",{"$f":"IFERROR(VLOOKUP(B358,'annexe dépense occulte'!$R$2:$BQ$133,2,FALSE),\"\")","v":""},null,"maintien",null,{"$f":"IFERROR(VLOOKUP(H358,'annexe dépense occulte'!$R$2:$BQ$132,20,FALSE),\"\")","v":""},"coût action",{"$f":"IFERROR(VLOOKUP(H358,'annexe dépense occulte'!$R$2:$BQ$133,2,FALSE),\"\")","v":""},null,"maintien",null,{"$f":"IFERROR(VLOOKUP(N358,'annexe dépense occulte'!$R$2:$BQ$132,20,FALSE),\"\")","v":""},"coût action",{"$f":"IFERROR(VLOOKUP(N358,'annexe dépense occulte'!$R$2:$BQ$133,2,FALSE),\"\")","v":""},null,"maintien",null,{"$f":"IFERROR(VLOOKUP(T358,'annexe dépense occulte'!$R$2:$BQ$132,20,FALSE),\"\")","v":""},"coût action",{"$f":"IFERROR(VLOOKUP(T358,'annexe dépense occulte'!$R$2:$BQ$133,2,FALSE),\"\")","v":""}]
[null,"effet",{"$f":"IFERROR(VLOOKUP(B358,'annexe dépense occulte'!$R$2:$BQ$132,21,FALSE),\"\")","v":""},null,null,null,null,"effet",{"$f":"IFERROR(VLOOKUP(H358,'annexe dépense occulte'!$R$2:$BQ$132,21,FALSE),\"\")","v":""},null,null,null,null,"effet",{"$f":"IFERROR(VLOOKUP(N358,'annexe dépense occulte'!$R$2:$BQ$132,21,FALSE),\"\")","v":""},null,null,null,null,"effet",{"$f":"IFERROR(VLOOKUP(T358,'annexe dépense occulte'!$R$2:$BQ$132,21,FALSE),\"\")","v":""}]
[]
[null,"Stance 5",null,null,null,null,null,"Stance 5",null,null,null,null,null,"Stance 5",null,null,null,null,null,"Stance 5"]
[null,"difficulté",null,{"$f":"IFERROR(VLOOKUP(B358,'annexe dépense occulte'!$R$2:$BQ$132,23,FALSE),\"\")","v":""},"débloquée","non",null,"difficulté",null,{"$f":"IFERROR(VLOOKUP(H358,'annexe dépense occulte'!$R$2:$BQ$132,23,FALSE),\"\")","v":""},"débloquée","non",null,"difficulté",null,{"$f":"IFERROR(VLOOKUP(N358,'annexe dépense occulte'!$R$2:$BQ$132,23,FALSE),\"\")","v":""},"débloquée","non",null,"difficulté",null,{"$f":"IFERROR(VLOOKUP(T358,'annexe dépense occulte'!$R$2:$BQ$132,23,FALSE),\"\")","v":""},"débloquée","non"]
[null,"coût occultisme",null,{"$f":"IFERROR(VLOOKUP(B358,'annexe dépense occulte'!$R$2:$BQ$132,24,FALSE),\"\")","v":""},"coût appren",{"$f":"IFERROR(VLOOKUP(B358,'annexe dépense occulte'!$R$2:$BQ$133,22,FALSE),\"\")","v":""},null,"coût occultisme",null,{"$f":"IFERROR(VLOOKUP(H358,'annexe dépense occulte'!$R$2:$BQ$132,24,FALSE),\"\")","v":""},"coût appren",{"$f":"IFERROR(VLOOKUP(H358,'annexe dépense occulte'!$R$2:$BQ$133,22,FALSE),\"\")","v":""},null,"coût occultisme",null,{"$f":"IFERROR(VLOOKUP(N358,'annexe dépense occulte'!$R$2:$BQ$132,24,FALSE),\"\")","v":""},"coût appren",{"$f":"IFERROR(VLOOKUP(N358,'annexe dépense occulte'!$R$2:$BQ$133,22,FALSE),\"\")","v":""},null,"coût occultisme",null,{"$f":"IFERROR(VLOOKUP(T358,'annexe dépense occulte'!$R$2:$BQ$132,24,FALSE),\"\")","v":""},"coût appren",{"$f":"IFERROR(VLOOKUP(T358,'annexe dépense occulte'!$R$2:$BQ$133,22,FALSE),\"\")","v":""}]
[null,"maintien",null,{"$f":"IFERROR(VLOOKUP(B358,'annexe dépense occulte'!$R$2:$BQ$132,25,FALSE),\"\")","v":""},"coût action",{"$f":"IFERROR(VLOOKUP(B358,'annexe dépense occulte'!$R$2:$BQ$133,2,FALSE),\"\")","v":""},null,"maintien",null,{"$f":"IFERROR(VLOOKUP(H358,'annexe dépense occulte'!$R$2:$BQ$132,25,FALSE),\"\")","v":""},"coût action",{"$f":"IFERROR(VLOOKUP(H358,'annexe dépense occulte'!$R$2:$BQ$133,2,FALSE),\"\")","v":""},null,"maintien",null,{"$f":"IFERROR(VLOOKUP(N358,'annexe dépense occulte'!$R$2:$BQ$132,25,FALSE),\"\")","v":""},"coût action",{"$f":"IFERROR(VLOOKUP(N358,'annexe dépense occulte'!$R$2:$BQ$133,2,FALSE),\"\")","v":""},null,"maintien",null,{"$f":"IFERROR(VLOOKUP(T358,'annexe dépense occulte'!$R$2:$BQ$132,25,FALSE),\"\")","v":""},"coût action",{"$f":"IFERROR(VLOOKUP(T358,'annexe dépense occulte'!$R$2:$BQ$133,2,FALSE),\"\")","v":""}]
[null,"effet",{"$f":"IFERROR(VLOOKUP(B358,'annexe dépense occulte'!$R$2:$BQ$132,26,FALSE),\"\")","v":""},null,null,null,null,"effet",{"$f":"IFERROR(VLOOKUP(H358,'annexe dépense occulte'!$R$2:$BQ$132,26,FALSE),\"\")","v":""},null,null,null,null,"effet",{"$f":"IFERROR(VLOOKUP(N358,'annexe dépense occulte'!$R$2:$BQ$132,26,FALSE),\"\")","v":""},null,null,null,null,"effet",{"$f":"IFERROR(VLOOKUP(T358,'annexe dépense occulte'!$R$2:$BQ$132,26,FALSE),\"\")","v":""}]

{"sheet":"annexe dépense occulte","index":8,"n_rows":114,"n_cols":56,"rows_kept":114,"cut":false,"hidden":true,"merged":[[0,33,0,37],[0,38,0,42],[0,43,1,43],[0,19,0,22],[0,17,1,17],[0,18,1,18],[0,23,0,27],[0,28,0,32]]}
[null,null,null,null,null,null,null,null,null,null,null,null,null,null,null,null,null,"sort","coût action","stance 1",null,null,null,"stance 2",null,null,null,null,"stance 3",null,null,null,null,"stance 4",null,null,null,null,"stance 5",null,null,null,null,"coût création"]
[null,null,null,null,null,null,null,null,null,null,null,null,null,null,null,null,null,null,null,"difficulté","coût ","maintien","effet","coût d'apprentissage","difficulté","coût","maintien","effets","coût d'apprentissage","difficulté","coût","maintien","effets","coût d'apprentissage","difficulté","coût","maintien","effets","coût d'apprentissage","difficulté","coût","maintien","effets"]
["sorts à la création",{"$f":"IF(#REF!=\"oui\",VLOOKUP(#REF!,'annexe dépense occulte'!R3:AR233,27,FALSE),)+IF(#REF!=\"oui\",VLOOKUP(#REF!,'annexe dépense occulte'!R3:AR233,27,FALSE),)+IF(#REF!=\"oui\",VLOOKUP(#REF!,'annexe dépense occulte'!R3:AR233,27,FALSE),)+IF(#REF!=\"oui\",VLOOKUP(#REF!,'annexe dépense occulte'!R3:AR233,27,FALSE),)+IF(#REF!=\"oui\",VLOOKUP(#REF!,'annexe dépense occulte'!R3:AR233,27,FALSE),)+IF(#REF!=\"oui\",VLOOKUP(#REF!,'annexe dépense occulte'!R3:AR233,27,FALSE),)+IF(#REF!=\"oui\",VLOOKUP(#REF!,'annexe dépense occulte'!R3:AR233,27,FALSE),)+IF(#REF!=\"oui\",VLOOKUP(#REF!,'annexe dépense occulte'!R3:AR233,27,FALSE),)+IF(#REF!=\"oui\",VLOOKUP(#REF!,'annexe dépense occulte'!R3:AR233,27,FALSE),)+IF(#REF!=\"oui\",VLOOKUP(#REF!,'annexe dépense occulte'!R3:AR233,27,FALSE),)+IF(#REF!=\"oui\",VLOOKUP(#REF!,'annexe dépense occulte'!R3:AR233,27,FALSE),)+IF(#REF!=\"oui\",VLOOKUP(#REF!,'annexe dépense occulte'!R3:AR233,27,FALSE),)","v":{"$error":"#REF!"}},null,null,null,null,null,null,null,null,null,null,null,null,null,null,1,"double vue","tour complet",20,50,"50 quotidien","permet au joueur de voir ou d’exister dans l’Outremonde.",10,30,100,"100 quotidien","permet au lanceur de sort de voir ou d'exister dans une superposition de l'Outremonde et du monde humain.",15,40,150,"150 quotidien"," - stance 1\n - stance 2\n - +30 vigilance et recherche",25,50,250,"250 quotidien"," -stance 3\n -le lanceur de sort peut voir l’aura occulte des créature, ainsi il peut détecter les créatures de l’Outremonde ainsi que les créature de notre monde capable de lancer des sorts. \n -+15 tir",45,70,350,"350 quotidien"," -stance 4\n -+20 vigilance et recherche\n -+10 tir",0]
["apprentissage stance pat.1",{"$f":"IF(#REF!=\"oui\",VLOOKUP(#REF!,'annexe dépense occulte'!R3:AQ233,7,FALSE),)+IF(#REF!=\"oui\",VLOOKUP(#REF!,'annexe dépense occulte'!R3:AQ233,7,FALSE),)+IF(#REF!=\"oui\",VLOOKUP(#REF!,'annexe dépense occulte'!R3:AQ233,12,FALSE),)+IF(#REF!=\"oui\",VLOOKUP(#REF!,'annexe dépense occulte'!R3:AQ233,7,FALSE),)+IF(#REF!=\"oui\",VLOOKUP(#REF!,'annexe dépense occulte'!R3:AQ233,7,FALSE),)+IF(#REF!=\"oui\",VLOOKUP(#REF!,'annexe dépense occulte'!R3:AQ233,7,FALSE),)+IF(#REF!=\"oui\",VLOOKUP(#REF!,'annexe dépense occulte'!R3:AQ233,12,FALSE),)+IF(#REF!=\"oui\",VLOOKUP(#REF!,'annexe dépense occulte'!R3:AQ233,7,FALSE),)","v":{"$error":"#REF!"}},null,null,null,null,null,null,null,null,null,null,null,null,null,null,2,"augmentation mystique","rapide",30,100,"20 / 3 tours"," +16 dans une caractéristique au choix",20,40,150,"30 / 3 tours"," +30 dans une caractéristique au choix",30,50,200,"40 / 3 tours"," + 50 dans une caractéristique au choix",40,60,300,"50 / 3 tours"," +60 dans une caractéristique au choix",55,75,350,"100 / 3 tours"," +100 dans une caractéristiques",30]
["apprentissage stance pat.2",null,null,null,null,null,null,null,null,null,null,null,null,null,null,null,3,"transmutation","rapide",5,50,"10 / heure","permet de modifier l'apparence du visage ",20,10,70,"70 / tour"," -permet de modifier l’entièreté de l’apparence\n -+50 compétence Influence au choix.  ",40,20,100,"70 / heure"," -permet de modifier l'entièreté de l'apparence et de créer des clones (voir livre de sort). +50 compétence d'Influence au choix",60,40,200,"70 / jour"," -permet de modifier l’entièreté de l’apparence en illusion faisant jusqu’à deux fois l’apparence initiale.\n -+100 compétence Influence au choix",80,50,300,"100 / minute","Le personnage choisit l'illusion. La seule limite est son immagination ",10]
[null,null,null,null,null,null,null,null,null,null,null,null,null,null,null,null,4,"rayon d'énergie mystique","combat",5,50,null,"dégâts = 5 + 1d4",25,15,75," "," dégâts = 10 + 1d8\n+10 tir",35,20,90," ","dégâts = 10 + 1d20\n+15 tir",50,25,110," ","dégâts = 40 + 1d100\n+50 tir",70,50,200," ","dégâts = 80 + 2d100\n+100 tir",40]
[null,null,null,null,null,null,null,null,null,null,null,null,null,null,null,null,5,"soin","combat",0,10,null," la cible regagne autant de P.V.que la M.R.",10,20,30," ","la cible regagne autant de P.V. que le M.R. +30",30,30,50," "," -la cible regagne autant de P.V. que la M.R. x 2 – 30\n -les blessures soignées ne laissent pas de cicatrices\n -les cicatrices présentes disparaissent",50,50,100," ","-la cible regagne autant de point de vie que la M.R. x 2 -permet à la cible de dépasser son maximum de P.V. avec l’effet de cette stance. Le surplus de P.V. disparaîtra au bout de 24 heures s’il est encore là.",100,100,500," ","la cible regagne autant de P.V. que la M.R. / 2 -permet de faire revenir à la vie un personnage décédé. s’il est décédé depuis plus de 2 minutes le personnage sera atteint de zombiisme.",20]
[null,null,null,null,null,null,null,null,null,null,null,null,null,null,null,null,6,"entraves","combat",10,50,"25 / tour"," -10 caractéristiques et compétences (rappelons que l’évolution des carac imlique une évolution des comp. Dans ce cas l'ensemble des compétence subiront donc -15) ",20,15,80,"40 / tour"," -30 caractéristiques et compétences",20,20,120,"60 / tour"," -40 cractéristiques et compétences",25,25,150,"75 / tour","dégâts = 1d10 / tour\n-50 caractéristiques et compétences",40,30,200,"100 / tour","dégâts = 1d20 / tour\n-66 caractéristiques et compétences",50]
[null,null,null,null,null,null,null,null,null,null,null,null,null,null,null,null,7,"armes mystiques","rapide",10,50,"30 / 3 tours","permet d'invoquer une arme de mêlée au choix",25,20,80,"50 / 3 tours","permet d'invoquer une arme de tir au choix",30,30,110,"70 / 3 tours"," -permet d’invoquer une arme au choix.\n -les armes éthérées ont maniabilité +20 tir / mêlée / lancé.\n -les armes éthérées ont +1d10 au dégâts",40,40,180,"100 / 3 tours"," -permet d’invoquer deux armes au choix. \n -les armes éthérées ont maniabilité +20 tir / mêlée / lancé. \n -les armes éthérées ont +1d10 au dégâts -les armes éthérées ont ambidextrie -0 tir / mêlée / lancé.",50,50,220,"150 / tour"," -permet d’invoquer deux armes au choix.\n -les armes éthérées ont maniabilité +40 tir / mêlée / lancé.\n -les armes éthérées ont +1d20 au dégâts\n -les armes éthérées ont ambidextrie -0 ambidextrie tir / mêlée / lancé.\n -les armes éthérées sont plus grandes et offrent +50 intimidation",null,null," "," "," "," "," "," "," "," "," "," "," "]
[null,null,null,null,null,null,null,null,null,null,null,null,null,null,null,null,8,"convocation","tour complet",40,200,"20 / jour","permet d'invoquer une escouade de chats et de chiens",30,80,400,"40 / jour","permet d'invoquer une escouade de kubob",40,160,600,"60 / jour","permet d'invoquer une escouade de klobtob",60,620,800,"80 / jour","permet de convoquer une escouade",500,640,1200,"600 / jour"," permet d’invoquer une créature légendaire tel que le blob de chair de l'Outremonde. Cette stance ne peut être apprise qu’en lisant le grimoire de l’invocateur ou en se le faisant apprendre par un lanceur de sort la maîtrisant."]
[null,null,null,null,null,null,null,null,null,null,null,null,null,null,null,null,9,"contrôle mental","rapide",0,20,"50 / heure","permet de s’infiltrer dans les pensées et la conscience de la cible. Le lanceur de sort voit et ressent l’environnement de la cible. Il peut aussi entendre les pensées de la cible. C’est un moyen de communication et de gestion efficace.\n",20,20,100,"20 / tour"," -permet de s’infiltrer dans les pensées et la conscience de la cible. Le lanceur de sort voit et ressent l’environnement de la cible. Il peut aussi entendre les pensées de la cible. C’est un   moyen de communication et de gestion efficace. \n -permet de contrôler la cible. Le joueur joue à la place de la cible en plus de son personnage.",30,50,100,"50 / heure"," -permet de s’infiltrer dans les pensées et la conscience de la cible. Le lanceur de sort voit et ressent l’environnement de la cible. Il peut aussi entendre les pensées de la cible. C’est un moyen de communication et de gestion efficace.\n -permet de contrôler la cible. Le joueur joue à la place de la cible en plus de son personnage.\n -la cible peut être la cible de sort du lanceur de sort même s’il n’y a pas de contact visuel sauf pour rayon d’énergie mystique et cône d’énergie",50,100,150,"60 / heure"," -permet de s’infiltrer dans les pensées et la conscience de la cible. Le lanceur de sort voit et ressent l’environnement de la cible. Il peut aussi entendre les pensées de la cible. C’est un moyen de communication et de gestion efficace.\n -permet de contrôler la cible. Le joueur joue à la place de la cible en plus de son personnage.\n -la cible peut être la cible de sort du lanceur de sort même s’il n’y a pas de contact visuel sauf pour rayon d’énergie mystique et cône d’énergie.\n -le lanceur de sort peut utiliser la cible comme vecteur pour lancer ses sorts. Il a le choix entre utiliser son effort occulte ou celui de la cible ou un mélange des deux.",1000,600,1000,"définitif","permet de transposer sa conscience dans le corps de la cible. La conscience du lanceur de sort disparaît alors que celle de la cible s’éteint à tout jamais. Les caractéristiques du nouveau personnage correspondent à celles de son nouveau corps tandis que tout le reste correspond aux scores du lanceur de sort (compétences, pathologies, etc.)."]
[null,null,null,null,null,null,null,null,null,null,null,null,null,null,null,null,10,"transition mystique","tour complet",20,100," ","permet de de faire transiter d’un monde à un autre un petit objet simple, sans mécanisme et non emprunt d’énergie mystique, cependant il dégage quand même une légère aura.",50,50,150,null,"permet de de faire transiter d’un monde à un autre un petit objet d’une taille maximal de 1m³.",100,50,200,null,"permet de faire transiter une créature",150,100,500," ","permet de faire cohabiter la version du monde éthéré d’un bâtiment avec la version normale dans le monde du choix du lanceur de sort.",200,1000,1000," ","permet de faire transiter la chose du choix du lanceur de sort."]
[null,null,null,null,null,null,null,null,null,null,null,null,null,null,null,null,11,"attribut mystique","tour complet",50,50,"20 / tour"," +50 dans une compétence",20,50,50,"40 / tour"," +50 dans deux compétences",40,100,100,"50 / tour"," -permet de développer la compétence vol ou respiration aquatique\n +100 dans la compétence ainsi crée ",80,200,200,"100 / tour"," +100 dégâts C. à C. \n+100 dans deux compétences \n+ création de la compétence vol ou respiration aquatique",160,300,400,"200 / tour"," +600 compétences au choix \n- nouveau corps choisi par le lanceur"]
[null,null,null,null,null,null,null,null,null,null,null,null,null,null,null,null,12,"création d'Outremonde","tour complet",20,100,"100 / heure","permet de créer un objet inanimé et sans mécanisme de maximum 1m3",20,40,400,"400 / jour","permet de créer une créature comparable à un chat, un chien, un scorpion géant ou plus faible et plus petit",100,60,600,"600 / heure","permet de créer une créature comparable à un humain, nabéloki ou un klobto ou plus faible et plus petite",200,80,800,"800 / heure"," -permet de créer une créature comparable à un doppelgänger ou un dragon.\n -permet de créer un objet inanimé pouvant contenir un mécanisme que le lanceur de sort connaît. Cet objet peut prendre une taille maximum de 600m",300,100,1000,"1000 / jour","permet de créer un bâtiment et une armé pour le garder. La seule limite est l’imagination du lanceur de sort."]
[null,null,null,null,null,null,null,null,null,null,null,null,null,null,null,null,13,"maîtrise du warp","rapide",10,10,null,"permet de s'incarner à une distance maximum de 1m dans la direction de son choix",20,20,40," ","permet de s'incarner à une distance maximum de 10m dans la direction voulue",40,100,200," ","permet de s'incarner ainsi qu'un groupe de 10 personnes maximum à une distance de 10m maximum dans la direction souhaitée",30,200,400," ","permet de s'incarner ainsi qu'un groupe de 10 personnes maximum à 10km de distance maximum dans la direction voulue",50,500,500," ","permet de s'incarner ainsi qu'un groupe de 10 personnes maximum à une distance maximum de 100km de distance maximum dans la direction voulue"]
[null,null,null,null,null,null,null,null,null,null,null,null,null,null,null,null,14,"invisibilité","tour complet",20,50,"20 / minute","permet au lanceur de sort disparaître quasiment entièrement. Il ne laisse qu’une légère distorsion de l’image comme au dessus d’une source de chaleur.",20,75,100,"30 / minute","permet au lanceur de sort de ne laisser qu’une ombre à la place de son apparence.",50,100,125,"45 / minute","permet au lanceur de sort de disparaître entièrement",100,125,150,"68 / minute"," -permet de ne laisser qu’une ombre à la place de son apparence\n -permet de se mouvoir dans un silence complet",200,175,175,"102 / minute","permet de faire entièrement disparaître un groupe allant jusqu’à 10 personnes, leur permet aussi de se mouvoir sans aucun bruit."]
[null,null,null,null,null,null,null,null,null,null,null,null,null,null,null,null,15,"tunel","rapide",10,30,"30 / tour","la matière solide n’est pas totalement modelable, mais elle est tout de même traversable pour le lanceur de sort. Passer au travers demandera une réussite en natation / 2",30,20,50,"30 / tour","la matière solide devient pour le lanceur de sort comme une gigantesque piscine. La traverser demandera une réussite en natation",60,40,75,"50 / tour","pour le lanceur de sort la matière solide devient un milieu plus naturel que que son milieu d’origine. Traverser la matière solide demandera une réussite en natation x 2.",120,10,120,"120 / tour","la matière solide n’est pas totalement malléable pour un groupe d’une dizaine de personnes. Pour eux, traverser la matière solide demandera une réussite en natation / 2",150,20,200,"200 / tour","la matière solide devient pour un groupe pouvant aller jusqu’à 10 personnes, semblable à une gigantesque piscine. La traverser demandera une réussite en natation."]
[null,null,null,null,null,null,null,null,null,null,null,null,null,null,null,null,16,"création d'énergie","rapide",0,10," ","une flamme est créée dans la main du lanceur de sort",10,0,10," ","un éclair se forme entre le pouce et l'index du lanceur de sort",10,0,10," ","du givre se forme autour de la main du lanceur de sort",10,0,10," ","une petite lumière aveuglante apparaît dans la paume de la main du lanceur de sort",10,0,10," ","un son sourd se fait entendre et une petite projection se forme dans le pong du lanceur de sort",10]
[null,null,"non",null,null,null,null,null,null,null,null,null,null,null,null,null,17,"contrôle d'énergie","combat",20,30," ","l'énergie prend la forme voulue d'une taille maximum d'un ballon de basket et peut être projeté ave un jet en tir ",30,40,50," ","l’énergie prend la forme d’un cône (45°, 16m) projeté grâce à un test en tir et affecte toutes les personnes prises dans la zone d’effet n’ayant pas réussi à esquiver l’attaque.",50,60,70," ","l'énergie prend la forme d'un éclair projeté vers une cible grâce à un test en tir.",90,100,110," ","l'énergie prend la forme d'un éclair en chaîne projeté vers une cible grâce à un test en tir.",170,200,220," ","permet au lanceur de sort de créer un chaosium à partir de l'énergie",20]
[null,null,"oui",null,null,null,null,null,null,null,null,null,null,null,null,null,18,"enchantement","jour complet",30,50,null," -permet d’infuser un sort à la première stance.\n -le sort infusé de cette manière se déclenchera en continue à partir de la fin de l’enchantement et ne s’arrêtera que lorsque la charge en occultisme sera vide.",50,40,75," "," -permet d’infuser un sort à la première ou la deuxième stance. \n -le sort infusé de cette manière s’activera sous conditions posées par l’enchanteur au moment de l’enchantement (par exemple, une épée entourée d’une armure de flammes ne s’activera que lorsqu’elle est sortie de son fourreau. Dans ce cas bien précis le fourreau doit aussi être enchanté. Autre exemple, un collier enchanté avec le sort de soin ne soignera le porteur que lorsque ses points de vie sont inférieurs à 20). Si la réalisation des conditions ne dépend pas d’une action de l’utilisateur, elle ne prendra pas d’action supplémentaire.",75,50,125," "," -permet d’infuser un sort à la première, deuxième ou troisième stance.\n -le sort infusé de cette manière est utilisable au bon vouloir de l’utilisateur, cela nécessite d’utiliser une action identique à s’il lançait le sort de lui-même.\n -il possible à l’enchanteur d’ajouter des conditions comme à la seconde stance.",100,60,200," ","-permet d’infuser un sort à la première, deuxième, troisième ou quatrième stance.\n  -le sort infusé de cette manière est utilisable au bon vouloir de l’utilisateur, cela     nécessite d’utiliser une action identique à s’il lançait le sort de lui-même.\n  -il est possible à l’enchanteur d’ajouter des conditions comme à la seconde stance.\n  -il est possible à l’utilisateur de consommer sa propre endurance occulte au lieu de la    charge comprise dans l’artefact.\n",150,70,250,null,"-permet d’infuser un sort à la première, deuxième, troisième, quatrième ou cinquième    stance.\n  -le sort infusé de cette manière est utilisable au bon vouloir de l’utilisateur, cela     nécessite d’utiliser une action identique à s’il lançait le sort de lui-même.\n  -il est possible à l’enchanteur d’ajouter des conditions comme à la seconde stance.\n  -il est possible à l’utilisateur de consommer sa propre endurance occulte au lieu de la    charge comprise dans l’artefact.\n"]
[null,null,null,null,null,null,null,null,null,null,null,null,null,null,null,null,19,"drain d’énergie vitale","rapide",10,30,"20 / 3 tours","permet de drainer 10 PV au contact de la cible.",50,50,60,"40 / 3 tours"," permet de drainer 20 PV au contact de la cible.",100,130,120,"80 / 3 tours","permet de drainer 40 PV au contact de la cible.",200,260,240,"160 / 3 tours","permet de drainer 80 PV au contact de la cible.",400,520,480,"320 / 3 tours","permet de drainer 160 PV au contact de la cible."," "]
[null,null,null,null,null,null,null,null,null,null,null,null,null,null,null,null,20,"folie obscure","rapide",10,30,"20 / 3 tours","permet de drainer 10 SAN au contact de la cible.",50,50,60,"40 / 3 tours","permet de drainer 20 SAN au contact de la cible.",100,130,120,"80 / 3 tours","permet de drainer 40 SAN au contact de la cible.",200,260,240,"160 / 3 tours","permet de drainer 80 SAN au contact de la cible.",400,520,480,"320 / 3 tours","permet de drainer 160 SAN au contact de la cible.",40]
[null,null,null,null,null,null,null,null,null,null,null,null,null,null,null,null,21,"drain de potentiel","rapide",10,50,"40 / 3 tours","permet de drainer 20 points de la caractéristique voulue au contact de la cible.",100,20,100,"80 / 3 tours","permet de drainer 40 points de la caractéristique voulue au contact de la cible.",200,40,200,"160 / 3 tours","permet de drainer 80 points de la caractéristique voulue au contact de la cible.",400,80,400,"320 / 3 tours","permet de drainer 160 points de la caractéristique voulue au contact de la cible.",800,160,800,"640 / 3 tours","permet de drainer 320 points de la caractéristique voulue au contact de la cible."]
[null,null,null,null,null,null,null,null,null,null,null,null,null,null,null,null,22,"drain magique","rapide",0,30,"20 / 3 tours","permet de drainer 15 points d’effort occulte au contact de la cible.",30,10,50,"40 / 3 tours","permet de drainer 35 points d’effort occulte au contact de la cible.",50,20,60,"50 / 3 tours","permet de drainer 50 points d’effort occulte au contact de la cible.",70,30,70,"60 / 3 tours","permet de drainer 80 points d’effort occulte au contact de la cible.",90,40,90,"80 / 3 tours","permet de drainer 130 points d’effort occulte au contact de la cible."]
[null,null,null,null,null,null,null,null,null,null,null,null,null,null,null,null,23,"armure divine","rapide",30,60,"40 / 3 tours","+10 IP",30,45,90,"30 / 3 tours","+20 IP",45,68,135,"45 / 3 tours","+30 IP\n+1d6 dégâts subits par personnage autre que le lanceur de sort touchant l’armure.",68,100,200,"68 / 3 tours","+50 IP\n +1d12 dégâts subits par personnage autre que le lanceur de sort touchant l’armure.\n",100,210,410,"100 / 3 tours","+ 50 IP\n+1d20 dégâts subits par le personnage autre que le lanceur de sort touchant l’armure.\n"]
[null,null,null,null,null,null,null,null,null,null,null,null,null,null,null,null,24,"vitesse divine","combat",30,15,"10 / tour","double l’agilité de la cible",35,55,62,"40 / tour","permet à la cible de réaliser une action de mouvement supplémentaire.",65,55,68,"45 / tour","permet à la cible de réaliser une action de combat supplémentaire.",95,80,80,"50 / tour","permet à la cible de réaliser une action de combat et une action de mouvement    supplémentaire.",120,100,150,"100 / tour","permet à un groupe cible d’un maximum de 10 personnages hors le lanceur de sort de réaliser une action de mouvement et une action de combat supplémentaire, leur agilité est aussi doublée,",40]
[null,null,null,null,null,null,null,null,null,null,null,null,null,null,null,null,25,"stasis temporis","combat",100,50,"25 / tour","permet d’arrêter le temps dans un rayon de 2m autour du lanceur de sort.",150,200,100,"50 / tour","permet d’arrêter le temps dans un rayon de 5m autour du lanceur de sort.",400,400,200,"100 / tour","permet d’arrêter le temps dans un rayon de 10m autour du lanceur de sort sauf pour   les cibles choisies par le lanceur de sort."]
[null,null,null,null,null,null,null,null,null,null,null,null,null,null,null,null,26,"réanimation obscure",null,100,10,"20 / tour","permet de réanimer un cadavre. Il est bête, mais indépendant, attaquant chaque    personnage l’approchant y compris le lanceur de sort",100,120,20,"30 / tour","permet de réanimer un cadavre. Il est sous les ordres absolus du lanceur de sort qui   doit le commander à haute voix. Le cadavre est entièrement dénué d’initiative et en   l’absence d’ordre du lanceur de sort, il reste sur place sans réaliser aucune action.",100,150,30,"40 / tour","permet de réanimer l’ensemble des cadavres compris dans un rayon de 5m autour du   lanceur de sort. Les cadavres sont bêtes, mais indépendants, ils attaquent chaque    personnage les approchant y compris le lanceur de sort.",200,180,45,"50 / tour","permet de réanimer l’ensemble des cadavres compris dans un rayon de 5m autour du   lanceur de sort. Les cadavres sont entièrement dénués d’initiative et en l’absence   d’ordre du lanceur de sort, ils restent sur place sans réaliser aucune action.",300,200,55,"70 / tour","permet de réanimer l’ensemble des cadavres compris dans un rayon de 5m autour du   lanceur de sort. Les cadavres réanimés ont une absolue dévotion envers le lanceur de   sort. Ils ne l’attaquent pas et lui obéissent ;  de plus un lien magique les lient et tous   sorts lancer par le lanceur de sort peut leur passer au travers afin d’atteindre leur    cible.",50]
[null,null,null,null,null,null,null,null,null,null,null,null,null,null,null,null,27,"barrière mystique","rapide",0,10,"10 / tour","permet de former un bouclier d’énergie mystique ovale allant de la cheville à    l’épaule. Il est transportable sans aucune gène.\n  +10 IP",20,5,20,"20 / tour","permet de former une barrière d’énergie mystique d’une hauteur de 2m et d’une    longueur pouvant aller jusqu’à 10m.\n  +20 IP\n",30,10,40,"40 / tour","-permet de former une barrière d’énergie mystique d’une hauteur de 2m et d’une     longueur pouvant aller jusqu’à 10m.\n  -la barrière ainsi formée est infranchissable aussi bien physiquement par les     personnages que par leurs sorts.\n  +30 IP\n",45,50,80,"80 / tour","-permet de former une barrière d’énergie mystique pouvant former un cercle d’une    hauteur de 2m et d’un rayon pouvant atteindre 5m autour du lanceur de sort.\n  -cette barrière ainsi créée est infranchissable aussi bien physiquement par des     personnages que par leurs sorts.\n  +50 IP\n",90,100,160,"160 / tour","-permet de former une barrière d’énergie pouvant former un dôme ou une sphère      d’un rayon maximum de 10m autour du lanceur de sort.\n  -cette barrière ainsi créée est infranchissable aussi bien physiquement par des     personnages que par leurs sorts.\n  +80 IP\n",10]
[null,null,null,null,null,null,null,null,null,null,null,null,null,null,null,null,28,"rupture de sort","rapide",30,30,null,"le sort maintenu ciblé est rompu sauf si le laceur de sort ciblé ne paye 50 points    d’effort occulte.",64,50,50,null,"le sort maintenu ciblé est rompu sauf si le lanceur de sort ciblé ne paye 100 points   d’effort occulte",96,70,70,null,"le sort maintenu ciblé est rompu sauf si le lanceur de sort ciblé ne paye 150 points   d’effort occulte et que le test de rupture de sort ne soit résisté par un test de volonté   de la cible.",144,90,90,null,"le sort maintenu ciblé est rompu sauf si le lanceur de sort ciblé ne paye 150 points   d’effort occulte et que le test de rupture de sort +20 ne soit résisté par un test de    volonté de la cible.",216,110,110,null,"le sort maintenu ciblé est rompu.",20]
[null,null,null,null,null,null,null,null,null,null,null,null,null,null,null,null,29,"hurlement des dieux","combat",30,30,null,"permet de provoquer une surdité totale pendant 1d4 tours à tous les personnages    entendant le hurlement",20,40,40,null,"permet au lanceur de sort de devenir la cible privilégié de tous les ennemis ayant    entendu le hurlement pendant 1d4 tours.",40,50,100,null,"permet d’augmenter la volonté de 100 points de tous les alliés entendant ce hurlement   pendant 1d6 tours.",80,100,200,null,"permet de réduire l’ensemble des caractéristiques de 50 points de tous les alliés    entendant ce hurlement pendant 1d6 tous.",160,200,400,null,"permet d’endormir pendant 1d4 tours tous les personnages ayant entendu ce    hurlement.",50]
[null,null,null,null,null,null,null,null,null,null,null,null,null,null,null,null,30,"ombre fatale","combat",30,40,"40 / 3 tour","permet de créer une ombre à la place du lanceur de sort dans la vision de la cible",30,70,55,"55 / 3 tours","permet de créer une ombre à la place du lanceur de sort dans la vision d’un nombre   de cibles pouvant aller jusqu’à 10.",45,115,95,"95 / 3 tour","permet de créer une ombre pouvant couvrir un groupe de maximum 10 personnes   dans la vision de la cible.",70,180,150,"150 / 3 tours","permet de créer une ombre pouvant couvrir un groupe de maximum 10 personnes   dans la vision d’un nombre de cibles pouvant aller jusqu’à 10.",105,280,230,"230 / 3 tours","a pression veineuse intracrânienne de la cible jusqu’à provoquer une rupture    d’anévrisme provoquant une cécité partielle pendant 1d4 tours puis une cécité totale   pendant 1d6 tours puis la mort de la cible.  ",30]
[null,null,null,null,null,null,null,null,null,null,null,null,null,null,null,null,31,"brume de pestilence","tour complet",35,70,null,"produit une brume opaque dans un rayon de 10 m maximum pendant 1d10 tours.",80,70,140,null,"produit une brume opaque et corrosive dans un rayon de 10 m maximum infligeant   1d6 dégâts ignorant l’armure à tous les personnages pris dans la brume, sauf le    lanceur de sort. Cette brume persiste pendant 1d10 tours",160,140,280,null,"produit une brume toxique et corrosive dans un rayon maximum de 10 m infligeant   1d6 dégâts ignorant l’armure à tous les personnages pris dans la brume sauf le    lanceur de sort, puis 1d4 dégâts ignorant l’armure pendant 1d4 tours à tous les    personnages sortant de la brume sauf le lanceur de sort. Cette brume persiste pendant   1d10 tours.",320,280,560,null,"produit une brume opaque dans un rayon maximum de 10 m divisant l’ensemble des   caractéristiques des personnages pris dans cette brume sauf le lanceur de sort. Cet   effet peut être résisté par un test en volonté. Cette brume persiste pendant 1d10 tours.",340,560,1120,null,"produit une brume opaque dans un rayon maximum de 10 m endormant l’ensemble   des personnages pris dans la brume. Cet effet peut être résisté par un test en volonté.   Cette brume perdure pendant 1d10 tours."]
[null,null,null,null,null,null,null,null,null,null,null,null,null,null,null,null,32,"lecture de l’âme","combat",20,10,null,"permet de lire les caractéristiques et l’hostilité de la cible.",30,60,20,null,"permet de lire les compétences l’hostilité et les motivations de la cible.",60,180,40,null,"permet de lire les compétences, les caractéristiques, l’hostilité, l’effort occulte en   cours et maximum ainsi que les motivations de la cible.",90,440,60,null,"permet de lire les compétences, les motivations, l’effort en cours et maximum ainsi   que les sorts maîtrisés et leurs niveaux de maîtrise.",120,500,100,null,"permet de lire l’ensemble de la fiche personnage de la cible ainsi que de connaître   son background et ses motivations.",30]
[null,null,null,null,null,null,null,null,null,null,null,null,null,null,null,null,33,"bénédiction","combat",30,20,null,"permet de passer le seuil de réussite automatique dans une compétence à 20 % et le   seuil de réussite critique à 5 %.",100,50,30,null,"permet de passer le seuil de réussite automatique de l’ensemble des compétences    d’une caractéristique ciblée à 20 % et le seuil de réussite critique à 5 %.",150,70,50,null,"permet de passer le seuil de   réussite automatique de   l’ensemble des sorts    maîtrisé à 30 % et le seuil   de réussite critique à 5 %.",200,100,80,null,"permet de passer le seuil de   réussite automatique d’une   compétence à 40 % et le   seuil de réussite critique à   10 %.",250,130,100,null,"permet de passer le seuil de   réussite automatique de   l’ensemble des compétences   d’une caractéristique ciblée à   40 % et le seuil de réussite   critique à 10 %.",10]
[null,null,null,null,null,null,null,null,null,null,null,null,null,null,null,null,34,"vue lointaine","tour complet",80,100,null,"permet de voir un endroit cible que le lanceur de sort a déjà visité.",100,180,200,null,"permet de voir un endroit jamais visité par le lanceur de sort dans un rayon de 50m   autour du lanceur de sort",200,350,400,null,"permet de voir une personne déjà rencontré par le lanceur de sort.",300,550,600,null,"permet de voir une personne jamais rencontré par le lanceur de sort à condition qu’il   en connaisse le nom, qu’il est déjà vu une photo de la cible et qu’il en connaisse le   nom et la localisation approximative.",400,850,800,null,"permet de réaliser une carte mentale de la zone entière où se trouve le lanceur de sort   avec l’emplacement de tous les êtres vivants.",20]
[null,null,null,null,null,null,null,null,null,null,null,null,null,null,null,null,35,"réserve mystique","rapide",10,10,null,"permet de dépenser les points de la réserve au bon vouloir du lanceur de sort pour augmenter ses scores ou ceux d’une autre cible.",30,20,50,null,"permet de nourrir la réserve en PV. Pour cela, le lanceur de sort doit dépenser autant de PV que points gagnés dans sa réserve.",50,30,75,null,"permet de nourrir la réserve en SAN. Pour cela, le lanceur de sort doit dépenser autant de San que points gagnés dans sa réserve.",70,40,90,null,"permet de nourrir la réserve avec des points gagnés grâce à l’effet d’un sort (soin, augmentation mystique, drain d’énergie vitale, etc.). Ainsi, la réserve est augmentée d’autant de points que le sort n’en aurait accordés. ",90,50,100,null,"permet de nourrir la réserve en dépensant ses efforts.",40]
[null,null,null,null,null,null,null,null,null,null,null,null,null,null,null,null,36,"contrôle climatique","tour complet",20,10,null,"permet de créer ou dissiper des nuages",30,30,15,"10 / 3 tours","permet de calmer ou de lever le vent (dans la    direction choisie par le lanceur de sort).",60,30,20,"15 / tours","permet de faire tomber la pluie.",120,150,100,"80 / 3 tours","permet de créer un orage. Un éclair tombe tous les 1d3 tours et a 1 chance sur 2 de   toucher un personnage sauf le lanceur de sort.",240,200,150,"120 / 3 tours","permet de créer une tempête de 10 m de rayon autour du lanceur de sort, qui emporte   tout sur son passage à moins que les personnages pris dans le tourbillon ne    réussissent un test en résistance au choc sauf pour le lanceur de sort.",40]
[null,null,null,null,null,null,null,null,null,null,null,null,null,null,null,null,37,"sommeil fantomatique","tour complet",50,100,"10 / heure","permet de faire plier la volonté de la cible afin de l’endormir. Elle ne s’évanouit pas,   mais s’endort à la suite d’une immense fatigue.",80,30,120,null,"permet de pénétrer dans les rêves de la cible endormie.",120,50,180,"15 / heure","permet de pénétrer et de modifier légèrement les rêves de la cible,",180,80,220,"20 / heure","permet de pénétrer et de modifier à volonté les rêves de la cible.",220,100,280,"25 / heure","permet de pénétrer et créer de toutes pièces les rêves de la cible."]
[null,null,null,null,null,null,null,null,null,null,null,null,null,null,null,null,38,"scellé d’immobilisme","tour complet",30,70,"80 / heure","permet de scellé objet de petite taille comme un rubik’s cube.",60,60,140,"150 / heure","permet de scellé un objet d’une taille humaine comme une porte",120,120,280,"290 / heure","permet de scellé un sort à la première ou seconde stance.",240,240,560,"570 / heure","permet de scellé un sort à la troisième ou quatrième stance.",480,480,960,"970 / heure","permet de scellé la chose au choix du lanceur de sort, sauf pour le lanceur de sort.",30]
[null,null,null,null,null,null,null,null,null,null,null,null,null,null,null,null,39,"vision astrale","rapide",35,75,"50 / minute","permet de voir en surbrillance les personnes maîtrisant l’énergie occulte (ayant déjà   dépensé de l’xp occulte ou maîtrisant au moins un sort).",60,70,150,"100 / minute","permet de voir en surbrillance les personnes maîtrisant l’énergie occulte (ayant déjà   dépensé de l’xp occulte ou maîtrisant au moins un sort) et les créatures sous l’effet   ou étant le résultat d’un sort.",210,140,300,"200 / minute","permet de voir en surbrillance les personnes maîtrisant des sorts et de voir les sorts   actifs",240,240,600,"400 / minute","permet de voir en surbrillance les personnes maîtrisant l’énergie occulte et de voir les   traces de pas qu’ils laissent derrière eux jusqu’à 24h après leur passage.",840,480,1200,"800 / minute","permet de voir les sorts actifs les personnes maîtrisant au moins un sort ainsi que    leurs traces. Le personnage observant les traces d’un sorcier peut connaître les sorts   maîtrisés par ce sorcier."]
[null,null,null,null,null,null,null,null,null,null,null,null,null,null,null,null,40,"appel des anciens","tour complet",90,100,"100 / tour","permet d’invoquer un ancien compagnon mort dont les stats seront divisé par 2.",300,190,150,"150 / tour","permet d’invoquer un ancien    compagnon mort.",500,290,200,"200 / heure","permet d’invoquer un ancien    compagnon mort.",800,400,600,"400 / jour","permet d’invoquer un ancien    compagnon mort.",1600,500,800,"800 / jour","permet d’invoquer jusqu’à 3 ancien compagnon mort.",30]
[null,null,null,null,null,null,null,null,null,null,null,null,null,null,null,null,41,"parangon du sang","rapide",30,50,"30 / minute","boire du sang permet de regagner des points de vie. Boire 50 cl restaure entièrement   les PV.",50,90,70,"50 / tour","au contact du sang, le lanceur de sort peut le solidifier en une lame indestructible    pouvant infliger \n1d20 + 1d4 dégâts et a 20 de pénétration d’armure.",100,110,150,"20 / tour","le sang à proximité du lanceur de sort peut se solidifier en petites billes qu’il peu    projeter à raison de 1 par tour. \nPour cela il faut réaliser un test en tir. \nChaque bille   ainsi projetée inflige 1d12 dégât et possède 10 de pénétration d’armure.",200,140,180,"70 / tour","au contact du sang, le lanceur de sang peut créer une lame identique à la stance 1. le   lanceur de sort peut projeter cette lame avec un test en tir.",400,190,250,"70 / tour","le sang à proximité du lanceur de sort peut se solidifier en petites billes identiques à   la stance 2, puis il peut en projeter jusqu’à 10 en tour en une pluie de sang    meurtrière.",30]
[null,null,null,null,null,null,null,null,null,null,null,null,null,null,null,null,42,"parangon de pureté","rapide",10,30,"30 / minute","l’eau devient pour le lanceur de sort une sorte de potion de soin. Boire 1L d’eau    permet de restaurer la moitié de ses points de vie.",70,10,30,"30 / minute","l’eau, au contact du lanceur de sort devient une sorte de potion de soin pour    n’importe quel personnage et le reste tant que le sort est maintenu.",150,80,80,"50 / minute","l’eau au contact du lanceur de sort devient un liquide extrêmement corrosif sauf pour   le lanceur de sort. Son contact provoque 1d8 dégât pendant 1d6 tours",250,150,150,"100 / 3 rounds","l’eau à proximité du lanceur de sort peut être contrôler par la pensée et peu même   réaliser des mouvement que la physique interdit comme la lévitation par exemple.",500,250,200,"150 / 3 rounds","l’eau à proximité du lanceur de sort peut se durcir en une lame tranchante que le    lanceur de sort peut contrôler autour de lui et même projeter s’il le souhaite grâce à   test en tir."]
[null,null,null,null,null,null,null,null,null,null,null,null,null,null,null,null,43,"ronces de ténèbre","combat",20,100,"50 / tour","-20 caractéristiques et compétences (rappelons   que l’évolution des caractéristiques a une    incidence directe sur les compétences ; par    exemple, pour -20 dans les compétences et    caractéristiques, les caractéristiques subiront     -20 et les compétences -30).",82,40,150,"75 / tour","-20 caractéristiques et compétences.\n  -1d10 dégâts subits par la cible par tour.\n",164,80,300,"150 / tour","-20 caractéristiques et compétences.\n  -2d8 dégâts subits par la cible par tour.\n  -1d10 dégâts subits par la cible à chaque action qu’elle tente de faire.\n",328,160,600,"300 / tour","-20 caractéristiques et compétences\n  -1d20 dégâts subits par la cible par tour.\n  -2d8 dégâts subits par la cible à chaque action qu’elle tente de faire.\n  -1d10 dégâts subits par la cible par liane couper\n",656,320,1200,"600 / tour","-40 caractéristiques et compétences\n  -2d12 dégâts subits par la cible par tour.\n  -1d20 dégâts subits par la cible à chaque action qu’elle tente de faire.\n  -2d8 dégâts subits pour chaque liane coupée par la cible et par chaque autre     personnage aidant à couper la liane coupé.\n",50]
[null,null,null,null,null,null,null,null,null,null,null,null,null,null,null,null,44,"créations de fumée","tour complet",20,50,"20 / heure","permet de créer un homuncule avec des stats ne pouvant dépasser celle du lanceur de   sort. Cet homuncule ne connaît aucun sort ni aucun pouvoir.",200,40,100,"50 / jour","permet de créer un homuncule avec des stats ne pouvant dépasser celles du lanceur   de sort. Cet homuncule connaît jusqu’à un sort que le lanceur de sort connaît. Le    niveau  de maîtrise de ce sort ne peut excéder la maîtrise du sort du lanceur de sort.",400,60,150,"75 / jour","permet de créer un homuncule avec des stats ne pouvant dépasser celles du lanceur   de sort. Cet homuncule connaît jusqu’à deux sorts que le lanceur de sort connaît. Le   niveau de maîtrise de ces sors ne peut excéder la maîtrise des sorts du lanceur de  sort.",600,80,200,"100 / jour","permet de créer un homuncule avec des stats ne pouvant dépasser celles du lanceur    de sort. Cet homuncule connaît jusqu’à trois sorts que le lanceur de sort connaît. Le   niveau de maîtrise de ces sorts ne peut excéder la maîtrise des sorts du lanceur de   sort.",1000,100,400,"200 / jour","permet de créer un homuncule avec des stats ne pouvant dépasser celles du lanceur   de sort. Cet homuncule connaît jusqu’à quatre sorts que le lanceur de sort connaît. Le   niveau de maîtrise de ces sorts ne peut excéder la maîtrise des sorts du lanceur de   sort."]
[null,null,null,null,null,null,null,null,null,null,null,null,null,null,null,null,45,"nazar","rapide",40,30,null,"permet de passer le seuil d’échec automatique dans une compétence ciblé à 80 % et le   seuil d’échec critique à 95 %.",150,75,45,null,"permet de passer le seuil d’échec automatique dans l’ensemble des compétences    d’une caractéristique ciblée à 80 % et le seuil d’échec critique à 95 %.",225,105,75,null,"permet de passer le seuil d’échec automatique de l’ensemble des sorts maîtrisé à    70 % et le seuil d’échec critique à 95 %.",300,150,120,null,"permet de passer le seuil d’échec automatique d’une compétence à 60 % et le seuil   d’échec critique à 90 %.",375,195,150,null,"permet de passer le seuil d’échec automatique de l’ensemble des compétences d’une   caractéristique ciblée à 60 % et le seuil d’échec critique à 90 %",30]
[null,null,null,null,null,null,null,null,null,null,null,null,null,null,null,null,46,"alignement phytique","tour complet",50,70,null,"permet au lanceur de sort, au contact avec de la végétation, de sentir leur présence et   par les réseaux les reliant (tel que le réseau de mycélium) d’estimer une carte    mentale des environs.",150,100,140,"100 / 3 tours","permet au lanceur de sort de communiquer avec la végétation environnante et grâce à   elle de créer une carte mentale des environs et de détecter les créatures la traversant.",300,200,280,"200 / 3 tours","permet au lanceur de sort de communiquer avec la végétation et à son contact de la   contrôler. La croissance magique maximum grâce à ce sort est de 10 cm par branche   et par minute,",600,400,560,null,"permet au lanceur de sort d’obliger la végétation environnante à produire la ressource   d’origine végétale voulue.",1200,800,1020,"800 / 3 tours","permet au lanceur de sort de se faire avaler par un tronc ou une mousse s’ouvrant à   son passage et de voyager ainsi vers un autre à raison de 10 m par tour.",50]
[null,null,null,null,null,null,null,null,null,null,null,null,null,null,null,null,47,"lévitation","rapide",10,100,"80 / tour","permet au lanceur de sort de s’élever dans les airs à raison de 10 m / tour maximum",150,80,110,"100 / tour","permet au lanceur de sort d’évoluer dans la direction de son choix à raison de 10 m /   tour maximum.",200,100,150,"100 / tour","permet au lanceur de sort d’évoluer dans la direction de son choix à raison de 20 m /   tour maximum.",250,140,175,"150 / tour","permet au lanceur de sort d’évoluer dans la direction de son choix à raison de 20 m /   tour maximum, cette distance peut être doublée à condition de céder une action de   combat.",500,500,500,"100 / tour","permet au lanceur de sort d’évoluer dans la direction de son choix à raison de 50 m /   tour maximum, cette distance peut être doublée à condition de céder une action de   combat.",10]
[null,null,null,null,null,null,null,null,null,null,null,null,null,null,null,null,48,"divine entropie","variable",68,118,null,"-si le résultat du d100 est compris entre 001 et 050 alors le sort est lancé à la première   stance.\n  -si le résultat du d100 est compris entre 051 et 070 alors le sort est lancé à la seconde   stance.\n  -si le résultat du d100 est compris entre 071 et 085 alors le sort est lancé à la    troisième stance.\n  -si le résultat du d100 est compris entre 086 et 095 alors le sort est lancé à la    quatrième stance.\n  -si le résultat du d100 est compris entre 096 et 100 alors le sort est lancé à la    cinquième stance.\n",88,79,137,null,"-si le résultat du d100 est compris entre 001 et 015 alors le sort est lancé à la première   stance.\n  -si le résultat du d100 est compris entre 016 et 065 alors le sort est lancé à la seconde   stance.\n  -si le résultat du d100 est compris entre 066 et 085 alors le sort est lancé à la    troisième stance.\n  -si le résultat du d100 est compris entre 086 et 095 alors le sort est lancé à la    quatrième stance.\n  -si le résultat du d100 est compris entre 096 et 100 alors le sort est lancé à la    cinquième stance.\n",126,109,185,null,"-si le résultat du d100 est compris entre 001 et 010 alors le sort est lancé à la première stance.\n-si le résultat du d100 est compris entre 011 et 025 alors le sort est lancé à la seconde stance.\n-si le résultat du d100 est compris entre 026 et 075 alors le sort est lancé à la troisième stance.\n-si le résultat du d100 est compris entre 076 et 090 alors le sort est lancé à la quatrième stance.\n-si le résultat du d100 est compris entre 091 et 100 alors le sort est lancé à la\ncinquième stance.",161,141,239,null,"-si le résultat du d100 est compris entre 001 et 010 alors le sort est lancé à la première   stance.\n  -si le résultat du d100 est compris entre 011 et 020 alors le sort est lancé à la seconde   stance.\n  -si le résultat du d100 est compris entre 021 et 035 alors le sort est lancé à la    troisième stance.\n  -si le résultat du d100 est compris entre 036 et 085 alors le sort est lancé à la    quatrième stance.\n  -si le résultat du d100 est compris entre 086 et 100 alors le sort est lancé à la    cinquième stance.\n",194,194,315,null,"-si le résultat du d100 est compris entre 001 et 005 alors le sort est lancé à la première   stance.\n  -si le résultat du d100 est compris entre 006 et 015 alors le sort est lancé à la seconde   stance.\n  -si le résultat du d100 est compris entre 016 et 030 alors le sort est lancé à la    troisième stance.\n  -si le résultat du d100 est compris entre 031 et 050 alors le sort est lancé à la    quatrième stance.\n  -si le résultat du d100 est compris entre 051 et 100 alors le sort est lancé à la    cinquième stance.\n"]
[]
[]
[]
[]
[]
[]
[]
[]
[]
[]
[]
[]
[]
[]
[]
[]
[]
[]
[]
[]
[]
[]
[]
[]
[]
[]
[]
[]
[]
[]
[]
[]
[]
[]
[]
[]
[]
[]
[]
[]
[]
[null,null,null,null,null,null,null,null,null,null,null,null,null,null,null,null,"combat"]
[]
[]
[]
[]
[]
[]
[]
[]
[]
[]
[]
[]
[]
[]
[]
[]
[]
[]
[]
[]
[]
[null,null,null,null,null,null,null,null,null,null,null,null,null,null,null,null,"combat"]

{"sheet":"pouvoirs","index":9,"n_rows":79,"n_cols":35,"rows_kept":79,"cut":false,"hidden":true,"merged":[[62,1,78,1],[62,7,62,9],[41,1,42,1],[41,7,41,9],[55,1,56,1],[55,7,55,9],[56,7,56,9],[1,1,2,1],[29,1,30,1],[29,7,29,9],[35,1,36,1],[35,7,35,9],[10,1,11,1],[10,7,10,9],[19,1,20,1],[19,7,19,9],[23,1,24,1],[23,7,23,9],[4,1,5,7],[36,7,36,9],[11,7,11,9],[20,7,20,9],[24,7,24,9],[55,22,56,22],[55,28,55,30],[44,23,45,23],[44,24,45,24],[44,25,45,25],[44,27,45,27],[44,28,45,30],[44,26,45,26],[56,28,56,30],[9,22,10,22],[9,28,9,30],[19,22,20,22],[19,28,19,30],[23,22,24,22],[23,28,23,30],[10,28,10,30],[20,28,20,30],[24,28,24,30],[30,7,30,9],[42,7,42,9],[44,32,45,32],[44,34,45,34],[43,22,45,22],[35,22,36,22],[35,28,35,30],[43,28,43,30],[36,28,36,30],[44,31,45,31],[44,33,45,33]]}
[]
[null,"parapsy","base","bonus","évolution","max","effort occulte en cours",null,"évolution","coût xp occulte"]
[null,null,{"$f":"CEILING(5*(caractéritiques!C13+caractéritiques!F13)/2, 1)","v":0},{"$f":"IF(info_perso!$D$2=\"Cobaye\",150,0)","v":0},null,{"$f":"C3+E3+D3","v":0},"                                                           ",null,"maîtrise",1]
[null,null,null,null,null,null,null,null,"évolution parapsy",2]
[null,{"$f":"IF(info_perso!$D$2=\"Cobaye\",\"Le P.J. est un cobaye des expériences militaires. Il a vu des horreurs et a su s’en échappé.\n+1 pouvoir Mx aléatoire\",\"\")","v":""}]
[]
[null,null,null,null,null,null,null,null,null,null,null,null,null,null,null,null,null,null,null,null,null,null,null,null,null,null,null,null,null,null,null,null,"jet :",{"$f":"info_perso!O18","v":65}]
[null,null,null,null,null,null,null,null,null,null,null,"jet :",{"$f":"info_perso!$O$18","v":65}]
[]
[null,null,null,null,null,null,null,null,null,null,null,null,null,null,null,null,null,null,null,null,null,null,"Oeil","prothèse","maîtrise","effet passif","temps d'activation","coût d'activation","effets actifs",null,null,"Effet","activé","Jet","MR"]
[null,"système neuronal","prothèse","maîtrise","effet passif","temps d'activation","coût d'activation","effets actifs",null,null,"Effet","activé","Jet","MR",null,null,null,null,null,null,null,null,null," ",null,{"$f":"IF(X11=\" \",\" \",VLOOKUP(X11,'annexe pouvoirs'!B10:I12,2,FALSE))","v":" "},{"$f":"IF($X$11=\" \",\" \",VLOOKUP($X$11,'annexe pouvoirs'!B10:G12,6,FALSE))","v":" "},null,null,null,null,null,"non",47,3]
[null,null," ",null,{"$f":"IF(C12=\" \",\" \",VLOOKUP(C12,'annexe pouvoirs'!BF9:BK13,2,FALSE))","v":" "},{"$f":"IF(C12=\" \",\" \",VLOOKUP(C12,'annexe pouvoirs'!BF9:BK13,6,FALSE))","v":" "},null,null,null,null,null,"non",19,-19]
[]
[]
[]
[]
[]
[]
[]
[null,"Oreilles ","prothèse","maîtrise","effet passif","temps d'activation","coût d'activation","effets actifs",null,null,"Effet","activé","Jet","MR",null,null,null,null,null,null,null,null,"Crâne","prothèse","maîtrise","effet passif","temps d'activation","coût d'activation","effets actifs",null,null,"Effet","activé","Jet","MR"]
[null,null," ",null,{"$f":"IF(C21=\" \",\" \",VLOOKUP(C21,'annexe pouvoirs'!AY9:BD13,2,FALSE))","v":" "},{"$f":"IF(C21=\" \",\" \",VLOOKUP(C21,'annexe pouvoirs'!AY9:BD13,6,FALSE))","v":" "},null,null,null,null,null,"non",null,{"$f":"IF(info_perso!$O$18<96,D21-info_perso!$O$18,IF(info_perso!$O$18=100,\"échec crit\", \"échec auto\"))","v":-65},null,null,null,null,null,null,null,null,null," ",null,{"$f":"VLOOKUP(X21,'annexe pouvoirs'!I9:N12,2,FALSE)","v":" "},{"$f":"VLOOKUP(X21,'annexe pouvoirs'!I10:N11,6,FALSE)","v":" "},null,null,null,null,null,"non",45,-45]
[]
[]
[null,"Bouche / gorge","prothèse","maîtrise","effet passif","temps d'activation","coût d'activation","effets actifs",null,null,"Effet","activé","Jet","MR",null,null,null,null,null,null,null,null,"Rachis","prothèse","maîtrise","effet passif","temps d'activation","coût d'activation","effets actifs",null,null,"Effet","activé","Jet","MR"]
[null,null," ",null,{"$f":"IF(C25=\" \",\" \",VLOOKUP(C25,'annexe pouvoirs'!BM9:BR14,2,FALSE))","v":" "},{"$f":"IF(C25=\" \",\" \",VLOOKUP(C25,'annexe pouvoirs'!BM9:BR14,6,FALSE))","v":" "},null,null,null,null,null,"non",null,{"$f":"IF(info_perso!$O$18<96,D25-info_perso!$O$18,IF(info_perso!$O$18=100,\"échec crit\", \"échec auto\"))","v":-65},null,null,null,null,null,null,null,null,null," ",null,{"$f":"VLOOKUP(X25,'annexe pouvoirs'!CA9:CF30,2,FALSE)","v":" "},{"$f":"VLOOKUP(X25,'annexe pouvoirs'!CA9:CF30,6,FALSE)","v":" "},null,null,null,null,null,null,69,-69]
[]
[]
[]
[]
[null,"Dos","prothèse","maîtrise","effet passif","temps d'activation","coût d'activation","effets actifs",null,null,"Effet","activé","Jet","MR"]
[null,null," ",null,{"$f":"IF(C31=\" \",\" \",VLOOKUP(C31,'annexe pouvoirs'!AR9:AW13,2,FALSE))","v":" "},{"$f":"IF(C31=\" \",\" \",VLOOKUP(C31,'annexe pouvoirs'!AR9:AW13,6,FALSE))","v":" "},null,null,null,null,null,null,null,{"$f":"IF(info_perso!$O$18<96,D31-info_perso!$O$18,IF(info_perso!$O$18=100,\"échec crit\", \"échec auto\"))","v":-65}]
[]
[]
[]
[]
[null,"Bras gauche","prothèse","maîtrise","effet passif","temps d'activation","coût d'activation","effets actifs",null,null,"Effet","activé","Jet","MR",null,null,null,null,null,null,null,null,"Bras droit","prothèse","maîtrise","effet passif","temps d'activation","coût d'activation","effets à l'activation",null,null,"Effet","activé","Jet","MR"]
[null,null," ",null,{"$f":"IF(C37=\" \",\" \",VLOOKUP(C37,'annexe pouvoirs'!P21:U27,2,FALSE))","v":" "},{"$f":"IF(C37=\" \",\" \",VLOOKUP(C37,'annexe pouvoirs'!P21:U27,6,FALSE))","v":" "},null,null,null,null,null,"non",94,-94,null,null,null,null,null,null,null,null,null," ",null,{"$f":"VLOOKUP(X37,'annexe pouvoirs'!P10:U16,2,FALSE)","v":" "},{"$f":"VLOOKUP(X37,'annexe pouvoirs'!P10:U16,6,FALSE)","v":" "},null,null,null,null,null,"non",42,58]
[]
[]
[]
[]
[null,"Organes sexuels","prothèse","maîtrise","effet passif","temps d'activation","coût d'activation","effets actifs",null,null,"Effet","activé","Jet","MR"]
[null,null," ",null,{"$f":"IF(C43=\" \",\" \",VLOOKUP(C43,'annexe pouvoirs'!AK9:AP13,2,FALSE))","v":" "},{"$f":"IF(C43=\" \",\" \",VLOOKUP(C43,'annexe pouvoirs'!AK9:AP13,6,FALSE))","v":" "},null,null,null,null,null,"non",null,{"$f":"IF(info_perso!$O$18<96,D43-info_perso!$O$18,IF(info_perso!$O$18=100,\"échec crit\", \"échec auto\"))","v":-65}]
[null,null,null,null,null,null,null,null,null,null,null,null,null,null,null,null,null,null,null,null,null,null,"Mains","prothèse","maîtrise","effet passif","temps d'activation","coût d'activation","effets actifs",null,null,"Effet","activé","Jet","MR"]
[null,null,null,null,null,null,null,null,null,null,null,null,null,null,null,null,null,null,null,null,null,null,null," ",null,{"$f":"IF(X45=\" \",\" \",VLOOKUP(X45,'annexe pouvoirs'!W10:AC15,2,FALSE))","v":" "},{"$f":"VLOOKUP(X45,'annexe pouvoirs'!W10:AB16,6,FALSE)","v":" "},null,null,null,null,null,"non",82,-82]
[]
[]
[]
[]
[]
[]
[]
[]
[]
[]
[null,"Jambe gauche","prothèse","maîtrise","effet passif","temps d'activation","coût d'activation","effets actifs",null,null,"Effet","activé","Jet","MR",null,null,null,null,null,null,null,null,"Jambe droite","prothèse","maîtrise","effet passif","temps d'activation","coût d'activation",null,null,null,"Effet","activé","Jet","MR"]
[null,null," ",null,{"$f":"IF(C57=\" \",\" \",VLOOKUP(C57,'annexe pouvoirs'!AD20:AI27,2,FALSE))","v":" "},{"$f":"IF(C57=\" \",\" \",VLOOKUP(C57,'annexe pouvoirs'!AD20:AI27,6,FALSE))","v":" "},null,null,null,null,null,"non",34,66,null,null,null,null,null,null,null,null,null," ",null,{"$f":"IF(X57=\" \",\" \",VLOOKUP(X57,'annexe pouvoirs'!AD9:AI16,2,FALSE))","v":" "},{"$f":"IF(X57=\" \",\" \",VLOOKUP(X57,'annexe pouvoirs'!AD9:AI16,6,FALSE))","v":" "},98," -98 vigilance, perception et 98 dégâts à chaque personnage dans un rayon de 10 mètres y compris le l'utilisateur (sauf en cas de repirateur artificiel)",null,null,0,"non",13,487]
[]
[]
[]
[]
[]
[null,"autres","prothèse ou MX","maîtrise","effet passif","temps d'activation","coût d'activation","effets actifs",null,null,"Effet","activé","Jet","MR"]
[null,null," ",null,{"$f":"IF(C64=\" \",\" \",VLOOKUP(C64,'annexe pouvoirs'!$BT$9:$BY$36,2,FALSE))","v":" "},{"$f":"IF(C64=\" \",\" \",VLOOKUP(C64,'annexe pouvoirs'!$BT$9:$BY$36,6,FALSE))","v":" "},null,null,null,null,null,null,null,{"$f":"IF(info_perso!$O$18<96,D64-info_perso!$O$18,IF(info_perso!$O$18=100,\"échec crit\", \"échec auto\"))","v":-65}]
[null,null," ",null,{"$f":"IF(C65=\" \",\" \",VLOOKUP(C65,'annexe pouvoirs'!$BT$9:$BY$36,2,FALSE))","v":" "},{"$f":"IF(C65=\" \",\" \",VLOOKUP(C65,'annexe pouvoirs'!$BT$9:$BY$36,6,FALSE))","v":" "},null,null,null,null,null,null,null,{"$f":"IF(info_perso!$O$18<96,D65-info_perso!$O$18,IF(info_perso!$O$18=100,\"échec crit\", \"échec auto\"))","v":-65}]
[null,null," ",null,{"$f":"IF(C66=\" \",\" \",VLOOKUP(C66,'annexe pouvoirs'!$BT$9:$BY$36,2,FALSE))","v":" "},{"$f":"IF(C66=\" \",\" \",VLOOKUP(C66,'annexe pouvoirs'!$BT$9:$BY$36,6,FALSE))","v":" "},null,null,null,null,null,null,null,{"$f":"IF(info_perso!$O$18<96,D66-info_perso!$O$18,IF(info_perso!$O$18=100,\"échec crit\", \"échec auto\"))","v":-65}]
[null,null," ",null,{"$f":"IF(C67=\" \",\" \",VLOOKUP(C67,'annexe pouvoirs'!$BT$9:$BY$36,2,FALSE))","v":" "},{"$f":"IF(C67=\" \",\" \",VLOOKUP(C67,'annexe pouvoirs'!$BT$9:$BY$36,6,FALSE))","v":" "},null,null,null,null,null,null,null,{"$f":"IF(info_perso!$O$18<96,D67-info_perso!$O$18,IF(info_perso!$O$18=100,\"échec crit\", \"échec auto\"))","v":-65}]
[null,null," ",null,{"$f":"IF(C68=\" \",\" \",VLOOKUP(C68,'annexe pouvoirs'!$BT$9:$BY$36,2,FALSE))","v":" "},{"$f":"IF(C68=\" \",\" \",VLOOKUP(C68,'annexe pouvoirs'!$BT$9:$BY$36,6,FALSE))","v":" "},null,null,null,null,null,null,null,{"$f":"IF(info_perso!$O$18<96,D68-info_perso!$O$18,IF(info_perso!$O$18=100,\"échec crit\", \"échec auto\"))","v":-65}]
[null,null," ",null,{"$f":"IF(C69=\" \",\" \",VLOOKUP(C69,'annexe pouvoirs'!$BT$9:$BY$36,2,FALSE))","v":" "},{"$f":"IF(C69=\" \",\" \",VLOOKUP(C69,'annexe pouvoirs'!$BT$9:$BY$36,6,FALSE))","v":" "},null,null,null,null,null,null,null,{"$f":"IF(info_perso!$O$18<96,D69-info_perso!$O$18,IF(info_perso!$O$18=100,\"échec crit\", \"échec auto\"))","v":-65}]
[null,null," ",null,{"$f":"IF(C70=\" \",\" \",VLOOKUP(C70,'annexe pouvoirs'!$BT$9:$BY$36,2,FALSE))","v":" "},{"$f":"IF(C70=\" \",\" \",VLOOKUP(C70,'annexe pouvoirs'!$BT$9:$BY$36,6,FALSE))","v":" "},null,null,null,null,null,null,null,{"$f":"IF(info_perso!$O$18<96,D70-info_perso!$O$18,IF(info_perso!$O$18=100,\"échec crit\", \"échec auto\"))","v":-65}]
[null,null," ",null,{"$f":"IF(C71=\" \",\" \",VLOOKUP(C71,'annexe pouvoirs'!$BT$9:$BY$36,2,FALSE))","v":" "},{"$f":"IF(C71=\" \",\" \",VLOOKUP(C71,'annexe pouvoirs'!$BT$9:$BY$36,6,FALSE))","v":" "},null,null,null,null,null,null,null,{"$f":"IF(info_perso!$O$18<96,D71-info_perso!$O$18,IF(info_perso!$O$18=100,\"échec crit\", \"échec auto\"))","v":-65}]
[null,null," ",null,{"$f":"IF(C72=\" \",\" \",VLOOKUP(C72,'annexe pouvoirs'!$BT$9:$BY$36,2,FALSE))","v":" "},{"$f":"IF(C72=\" \",\" \",VLOOKUP(C72,'annexe pouvoirs'!$BT$9:$BY$36,6,FALSE))","v":" "},null,null,null,null,null,null,null,{"$f":"IF(info_perso!$O$18<96,D72-info_perso!$O$18,IF(info_perso!$O$18=100,\"échec crit\", \"échec auto\"))","v":-65}]
[null,null," ",null,{"$f":"IF(C73=\" \",\" \",VLOOKUP(C73,'annexe pouvoirs'!$BT$9:$BY$36,2,FALSE))","v":" "},{"$f":"IF(C73=\" \",\" \",VLOOKUP(C73,'annexe pouvoirs'!$BT$9:$BY$36,6,FALSE))","v":" "},null,null,null,null,null,null,null,{"$f":"IF(info_perso!$O$18<96,D73-info_perso!$O$18,IF(info_perso!$O$18=100,\"échec crit\", \"échec auto\"))","v":-65}]
[null,null," ",null,{"$f":"IF(C74=\" \",\" \",VLOOKUP(C74,'annexe pouvoirs'!$BT$9:$BY$36,2,FALSE))","v":" "},{"$f":"IF(C74=\" \",\" \",VLOOKUP(C74,'annexe pouvoirs'!$BT$9:$BY$36,6,FALSE))","v":" "},null,null,null,null,null,null,null,{"$f":"IF(info_perso!$O$18<96,D74-info_perso!$O$18,IF(info_perso!$O$18=100,\"échec crit\", \"échec auto\"))","v":-65}]
[null,null," ",null,{"$f":"IF(C75=\" \",\" \",VLOOKUP(C75,'annexe pouvoirs'!$BT$9:$BY$36,2,FALSE))","v":" "},{"$f":"IF(C75=\" \",\" \",VLOOKUP(C75,'annexe pouvoirs'!$BT$9:$BY$36,6,FALSE))","v":" "},null,null,null,null,null,null,null,{"$f":"IF(info_perso!$O$18<96,D75-info_perso!$O$18,IF(info_perso!$O$18=100,\"échec crit\", \"échec auto\"))","v":-65}]
[null,null," ",null,{"$f":"IF(C76=\" \",\" \",VLOOKUP(C76,'annexe pouvoirs'!$BT$9:$BY$36,2,FALSE))","v":" "},{"$f":"IF(C76=\" \",\" \",VLOOKUP(C76,'annexe pouvoirs'!$BT$9:$BY$36,6,FALSE))","v":" "},null,null,null,null,null,null,null,{"$f":"IF(info_perso!$O$18<96,D76-info_perso!$O$18,IF(info_perso!$O$18=100,\"échec crit\", \"échec auto\"))","v":-65}]
[null,null," ",null,{"$f":"IF(C77=\" \",\" \",VLOOKUP(C77,'annexe pouvoirs'!$BT$9:$BY$36,2,FALSE))","v":" "},{"$f":"IF(C77=\" \",\" \",VLOOKUP(C77,'annexe pouvoirs'!$BT$9:$BY$36,6,FALSE))","v":" "},null,null,null,null,null,null,null,{"$f":"IF(info_perso!$O$18<96,D77-info_perso!$O$18,IF(info_perso!$O$18=100,\"échec crit\", \"échec auto\"))","v":-65}]
[null,null," ",null,{"$f":"IF(C78=\" \",\" \",VLOOKUP(C78,'annexe pouvoirs'!$BT$9:$BY$36,2,FALSE))","v":" "},{"$f":"IF(C78=\" \",\" \",VLOOKUP(C78,'annexe pouvoirs'!$BT$9:$BY$36,6,FALSE))","v":" "},null,null,null,null,null,null,null,{"$f":"IF(info_perso!$O$18<96,D78-info_perso!$O$18,IF(info_perso!$O$18=100,\"échec crit\", \"échec auto\"))","v":-65}]
[null,null," ",null,{"$f":"IF(C79=\" \",\" \",VLOOKUP(C79,'annexe pouvoirs'!$BT$9:$BY$36,2,FALSE))","v":" "},{"$f":"IF(C79=\" \",\" \",VLOOKUP(C79,'annexe pouvoirs'!$BT$9:$BY$36,6,FALSE))","v":" "},null,null,null,null,null,null,null,{"$f":"IF(info_perso!$O$18<96,D79-info_perso!$O$18,IF(info_perso!$O$18=100,\"échec crit\", \"échec auto\"))","v":-65}]

{"sheet":"annexe pouvoirs","index":10,"n_rows":36,"n_cols":84,"rows_kept":36,"cut":false,"hidden":true,"merged":[[16,15,16,20],[16,22,16,27],[7,13,7,15]]}
[]
[]
[]
[null,null,null,null,null,null,null,null,null,null,null,null,null,null,null,null,null,null,null,null,null,null,null,null,null,null,null,null,null,null,null,null,null,null,null,null,null,null,null,null,null,null,null,null,null,null,null,null,null,null,null,null,null,null,null,null,null,null,null,null,null,null,null,"oui"]
[null,null,null,null,null,null,null,null,null,null,null,null,null,null,null,null,null,null,null,null,null,null,null,null,null,null,null,null,null,null,null,null,null,null,null,null,null,null,null,null,null,null,null,null,null,null,null,null,null,null,null,null,null,null,null,null,null,null,null,null,null,null,null,"non"]
[]
[null,null,null,null,null,null,null,null,null,null,null,null,null,null,null,null,null,null,null,{"$f":"pouvoirs!AG37","v":"non"}]
[null,null,null,null,null,null,null,null,null,null,null,null,null,null,null,null,null,null,null,{"$f":"IF(pouvoirs!AG37=\"oui\",'annexe pouvoirs'!AA10,\"\")","v":""},null,null,null,null,null,null,{"$f":"IF('annexe pouvoirs'!AI45=\"oui\",'annexe pouvoirs'!AA10,\"\")","v":""}]
[null,"œil","effets passifs","coût d'activation","Effet","effets actifs","temps d'activation",null,"crâne","effets passifs","coût d'activation","Effet","effets actifs","temps d'activation",null,"bras droit","effets passifs","coût d'activation","Effet","effets actifs","temps d'activation",null,"mains","effets passifs","coût d'activation","Effet","effets actifs","temps d'activation",null,"jambe droite","effets passifs","coût d'activation","Effet","effets actifs","temps d'activation",null,"Organes Sexuels","effets passifs","coût d'activation","Effet","effets actifs","temps d'activation",null,"Dos","effets passifs","coût d'activation","Effet","effets actifs","temps d'activation",null,"Oreilles","effets passifs","coût d'activation","Effet","effets actifs","temps d'activation",null,"Système neuronal","effets passifs","coût d'activation","Effet","effets actifs","temps d'activation",null,"bouche gorge","effets passifs","coût d'activation","Effet","effets actifs","temps d'activation",null,"autres","effets passifs","coût d'activation","Effet","effets actifs","temps d'activation",null,"rachis","effets passifs","coût d'activation","Effet","effets actifs","temps d'activation"]
[null,"vision d'insecte"," +20 Perception"," ",null," ",null,null,"marteau de Thor"," -30 Agilité, -40 Pvmax & +40 IP",{"$f":"CEILING(IF(pouvoirs!$Y$11-pouvoirs!$AH$7>0,(pouvoirs!$Y$11-pouvoirs!$AH$7)/2,(pouvoirs!$Y$11-pouvoirs!$AH$7)/-2),1)","v":33},{"$f":"IF(pouvoirs!$AH$7<96,IF(pouvoirs!$AI$11>=0,\"+\"&CEILING(pouvoirs!$AI$11,1),0),0)","v":"+3"},{"$f":"IF(pouvoirs!$AH$7<96,IF(pouvoirs!$AI$11>=0,\"+\"&CEILING(pouvoirs!$AI$11,1)&\" C. à C. pour la prochaine attaque intervenant ce tour\",\"rien ne se passe\"),\"rien ne se passe\")","v":"+3 C. à C. pour la prochaine attaque intervenant ce tour"},"action rapide",null,"lame secrète"," -20 Pvmax",50,null,"permet de ranger/sortir une lame qui fait 1d20 dégâts avec 25 P.A.","action rapide",null,"mille et une pattes"," -70 informatique, mêlée et tir",{"$f":"CEILING(IF(pouvoirs!$Y$45-pouvoirs!$AH$7>0,(pouvoirs!$Y$45-pouvoirs!$AH$7)/2,(pouvoirs!$Y$45-pouvoirs!$AH$7)/-2),1)","v":33},{"$f":"IF(pouvoirs!AH45<96,IF(pouvoirs!$AI$45>=0,\"+\"&CEILING(pouvoirs!$AI$45/2,1),0),0)","v":0},{"$f":"IF(pouvoirs!AH7<96,IF((pouvoirs!Y45-pouvoirs!AH7)>=0,\"+\"&CEILING(pouvoirs!$AI$45/2,1)&\" informatique, mêlée et tir pendant 5 tours\",\"rien ne se passe\"),\"rien ne se passe\")","v":"rien ne se passe"},"action rapide",null,"lame secrète"," -20 Pvmax",50,null,{"$f":"IF(pouvoirs!AH7<96,IF((pouvoirs!Y57-pouvoirs!AH7)>=0,\"permet de ranger/sortir une lame qui fait 1d20 dégâts avec 25 P.A.\",\"rien ne se passe\"),\"rien ne se passe\")","v":"rien ne se passe"},"action rapide",null,"sexobot",null,null,null,null,null,null,"carapace infranchissable",null,null,null,null,null,null," ",null,null,null,null,null,null,"implant neural",null,{"$f":"CEILING(IF(pouvoirs!$Y$57-pouvoirs!$AH$7>0,(pouvoirs!$Y$57-pouvoirs!$AH$7)/5,(pouvoirs!$Y$57-pouvoirs!$AH$7)/-5),1)","v":13},{"$f":"IF(pouvoirs!$AH$7<96,IF(pouvoirs!$AI$37>=0,\" -\"&BH10,0),0)","v":" -13"},{"$f":"IF(pouvoirs!$AH$7<96,IF(pouvoirs!$AI$57>=0,\" -\"&BH10&\" vigilance, perception et \"&BH10&\" dégâts à chaque personnage dans un rayon de 10 mètres y compris le l'utilisateur (sauf en cas de repirateur artificiel)\",\"rien ne se passe\"),\"rien ne se passe\")","v":" -13 vigilance, perception et 13 dégâts à chaque personnage dans un rayon de 10 mètres y compris le l'utilisateur (sauf en cas de repirateur artificiel)"},"action de combat",null,"cri perçant",null,null,null,null,null,null,"squelette inquassable",null,null,null,null,null,null,"V.0.0.1"]
[null,"vision ultime","avantage nyctalopie",{"$f":"CEILING(IF(pouvoirs!$Y$11-pouvoirs!$AH$7>0,(pouvoirs!$Y$11-pouvoirs!$AH$7)/5,(pouvoirs!$Y$11-pouvoirs!$AH$7)/-5),1)","v":13},{"$f":"IF(pouvoirs!$AH$7<96,IF(pouvoirs!$AI$11>=0,\"+\"&CEILING(pouvoirs!$AI$11,1),0),0)","v":"+3"},{"$f":"IF(pouvoirs!$AH$7<96,IF(pouvoirs!$AI$11>=0,\"+\"&CEILING(pouvoirs!$AI$11,1)&\" Perception\",\"rien ne se passe\"),\"rien ne se passe\")","v":"+3 Perception"},"action rapide",null," "," "," ",null," "," ",null,"canon corporel"," -30 Agilité",{"$f":"CEILING(IF(pouvoirs!$Y$37-pouvoirs!$AH$7>=0,(pouvoirs!$Y$37-pouvoirs!$AH$7),(pouvoirs!$Y$37-pouvoirs!$AH$7)*-1),1)","v":65},null,{"$f":"IF(pouvoirs!$AH$7<96,IF(pouvoirs!$AI$37>=0,\"produit un tir (necessite un test en tir) avec \"&pouvoirs!AI37&\" dégâts & \"&CEILING(pouvoirs!AI37/5,1)&\" P.A.\",\"rien ne se passe\"),\"rien ne se passe\")","v":"produit un tir (necessite un test en tir) avec 58 dégâts & 12 P.A."},"action de combat",null,"puissance de l'éclair"," +20 C. à C. & -10 Pvmax, informatique et tir",{"$f":"CEILING(IF(pouvoirs!$Y$45-pouvoirs!$AH$7>0,(pouvoirs!$Y$45-pouvoirs!$AH$7)/2,(pouvoirs!$Y$45-pouvoirs!$AH$7)/-2),1)","v":33},null,{"$f":"IF(pouvoirs!$AH$7<96,IF((pouvoirs!Y45-pouvoirs!AH7)>=0,\"ajoute \"&CEILING((pouvoirs!Y45-pouvoirs!AH7)/2,1)&\" aux dégâts à la prochaine attaque au C. à C. intervenant ce tour et paralyse la cible pendant \"&AA19&\" tours\",\"rien ne se passe\"),\"rien ne se passe\")","v":"rien ne se passe"},"action rapide",null,"canon corporel"," -30 Agilité",{"$f":"CEILING(IF(pouvoirs!$Y$57-pouvoirs!$AH$7>=0,(pouvoirs!$Y$57-pouvoirs!$AH$7),(pouvoirs!$Y$57-pouvoirs!$AH$7)*-1),1)","v":65},null,{"$f":"IF(pouvoirs!$AH$7<96,IF((pouvoirs!Y57-pouvoirs!AH7)>=0,\"produit un tir (necessite un test en tir) avec \"&(pouvoirs!Y57-pouvoirs!AH7)&\" dégâts & \"&CEILING((pouvoirs!Y57-pouvoirs!AH7)/5,1)&\" P.A.\",\"rien ne se passe\"),\"rien ne se passe\")","v":"rien ne se passe"},"action de combat",null,"réacteur rectal",null,null,null,null,null,null," ",null,null,null,null,null,null,null,null,null,null,null,null,null,"interface de hacking VR",null,null,null,null,null,null,"jet d'acide",null,null,null,null,null,null,"sang oxydant",null,null,null,null,null,null,"V.0.0.2"]
[null," ",null,null,null,null,null,null,null,null,null,null,null,null,null,"membre rétractable"," -20 C. à C. & -10 Force",{"$f":"CEILING(IF(pouvoirs!$Y$37-pouvoirs!$AH$7>=0,((pouvoirs!$Y$37-pouvoirs!$AH$7)/2),(pouvoirs!$Y$37-pouvoirs!$AH$7)/-2),1)","v":33},null,{"$f":"IF(pouvoirs!$AH$7<96,IF(pouvoirs!$AI$37>=0,\"permet d'allonger son membre de \"&CEILING((pouvoirs!AI37/10),1)&\" mètres\",\"rien ne se passe\"),\"rien ne se passe\")","v":"permet d'allonger son membre de 6 mètres"},"action de combat",null,"pince du crabe"," -20 C. à C., tir, informatique & -10 Force",{"$f":"IF(Y18<0,0,Y18)","v":13},null,{"$f":"IF(pouvoirs!$AH$7<96,IF((pouvoirs!Y45-pouvoirs!AH7)>=0,\"inflige \"&CEILING((pouvoirs!Y45-pouvoirs!AH7)*2,1)&\" dégâts à une cible maintenue dans la pince\",\"rien ne se passe\"),\"rien ne se passe\")","v":"rien ne se passe"},"C. à C.",null,"membre rétractable"," -20 C. à C. & -10 Force",{"$f":"CEILING(IF(pouvoirs!$Y$57-pouvoirs!$AH$7>=0,((pouvoirs!$Y$57-pouvoirs!$AH$7)/2),(pouvoirs!$Y$57-pouvoirs!$AH$7)/-2),1)","v":33},null,{"$f":"IF(pouvoirs!$AH$7<96,IF((pouvoirs!Y57-pouvoirs!AH7)>=0,\"permet d'allonger son membre de \"&CEILING(((pouvoirs!Y57-pouvoirs!AH7)/10),1)&\" mètres\",\"rien ne se passe\"),\"rien ne se passe\")","v":"rien ne se passe"},"action de combat",null,"pestillence",null,null,{"$f":"IF(pouvoirs!$AH$7<96,IF(pouvoirs!$AI$37>=0,\" -\"&AM12,0),0)","v":" -"},null,null,null,null,null,null,null,null,null,null,null,null,null,null,null,null,null," ",null,null,null,null,null,null,"absorbtion de drogue",null,null,null,null,null,null,"squelette à souplesse modulable",null,null,null,null,null,null,"V.0.1.0"]
[null,null,null,null,null,null,null,null,null,null,null,null,null,null,null,"sangsue"," -30 Pvmax & -10 Influence /!\\ parfois les sangues sont visible se baladant sous la peau",{"$f":"CEILING(IF(pouvoirs!$Y$37-pouvoirs!$AH$7>=0,((pouvoirs!$Y$37-pouvoirs!$AH$7)*2),(pouvoirs!$Y$37-pouvoirs!$AH$7)*-2),1)","v":130},null,{"$f":"IF(pouvoirs!$AH$7<96,IF(pouvoirs!$AI$37>=0,\"permet de réaliser une attaque au C. à C. ou à la mêlée qui, si elle réussi, accroche une sangsue qui provoque \"&CEILING((pouvoirs!AI37/2),1)&\" dégâts puis 10 dégâts ignorant l'armure jusqu'à la mort de la victime ou la destruction de la sangsue\",\"rien ne se passe\"),\"rien ne se passe\")","v":"permet de réaliser une attaque au C. à C. ou à la mêlée qui, si elle réussi, accroche une sangsue qui provoque 29 dégâts puis 10 dégâts ignorant l'armure jusqu'à la mort de la victime ou la destruction de la sangsue"},"action de combat",null,"senseur de champs électromagnétique","Magnétosensibilité"," ",null," ",null,null,"sangsue"," -30 Pvmax & -10 Influence /!\\ parfois les sangues sont visible se baladant sous la peau",{"$f":"CEILING(IF(pouvoirs!$Y$57-pouvoirs!$AH$7>=0,((pouvoirs!$Y$57-pouvoirs!$AH$7)*2),(pouvoirs!$Y$57-pouvoirs!$AH$7)*-2),1)","v":130},null,{"$f":"IF(pouvoirs!$AH$7<96,IF((pouvoirs!Y57-pouvoirs!AH7)>=0,\"permet de réaliser une attaque au C. à C. ou à la mêlée qui, si elle réussi, accroche une sangsue qui provoque \"&CEILING(((pouvoirs!Y57-pouvoirs!AH7)/2),1)&\" dégâts puis 10 dégâts ignorant l'armure jusqu'à la mort de la victime ou la destruction de la sangsue\",\"rien ne se passe\"),\"rien ne se passe\")","v":"rien ne se passe"},"action de combat",null," ",null,null,null,null,null,null," ",null,null,null,null,null,null," ",null,null,null,null,null,null," ",null,null,null,null,null,null,"morsure de cobra",null,null,null,null,null,null,"M.X. 1",null,null,null,null,null,null,"V.0.1.1"]
[null,null,null,null,null,null,null,null,null,null,null,null,null,null,null,"lame de sang"," -10 Agilité",{"$f":"CEILING(IF(pouvoirs!$Y$37-pouvoirs!$AH$7>=0,((pouvoirs!$Y$37-pouvoirs!$AH$7)*4),(pouvoirs!$Y$37-pouvoirs!$AH$7)*-4),1)","v":260},null,{"$f":"IF(pouvoirs!$AH$7<96,IF(pouvoirs!$AI$37>=0,\"créé ou détruit une lame de sang provoquant \"&CEILING((pouvoirs!AI38/4),1)&\" dégâts et \"&pouvoirs!AI37&\" P.A.\",\"rien ne se passe\"),\"rien ne se passe\")","v":"créé ou détruit une lame de sang provoquant 0 dégâts et 58 P.A."},"action rapide",null,"paume explosive"," -20 tir, conduite, pilotage, navigation et informatique",{"$f":"CEILING(IF(pouvoirs!$Y$45-pouvoirs!$AH$7>0,(pouvoirs!$Y$45-pouvoirs!$AH$7),(pouvoirs!$Y$45-pouvoirs!$AH$7)*-1),1)","v":65},null,{"$f":"IF(pouvoirs!$AH$7<96,IF((pouvoirs!Y45-pouvoirs!AH7)>=0,\"permet de produir un tir de \"&(pouvoirs!Y45-pouvoirs!AH7)&\" dégâts\",\"rien ne se passe\"),\"rien ne se passe\")","v":"rien ne se passe"},"action de combat",null,"pestillence",null,{"$f":"CEILING(IF(pouvoirs!$Y$57-pouvoirs!$AH$7>0,(pouvoirs!$Y$57-pouvoirs!$AH$7)/5,(pouvoirs!$Y$57-pouvoirs!$AH$7)/-5),1)","v":13},{"$f":"IF(pouvoirs!$AH$7<96,IF(pouvoirs!$AI$37>=0,\" -\"&AF14,0),0)","v":" -13"},{"$f":"IF(pouvoirs!$AH$7<96,IF((pouvoirs!Y57-pouvoirs!AH7)>=0,\" -\"&AF14&\" vigilance, perception et \"&AF14&\" dégâts à chaque personnage dans un rayon de 10 mètres y compris le l'utilisateur (sauf en cas de repirateur artificiel)\",\"rien ne se passe\"),\"rien ne se passe\")","v":"rien ne se passe"},"action de combat",null,null,null,null,null,null,null,null,null,null,null,null,null,null,null,null,null,null,null,null,null,null,null,null,null,null,null,null,null," ",null,null,null,null,null,null,"M.X. 2",null,null,null,null,null,null,"V.0.1.2"]
[null,null,null,null,null,null,null,null,null,null,null,null,null,null,null,"pestillence",null,{"$f":"CEILING(IF(pouvoirs!$Y$37-pouvoirs!$AH$7>0,(pouvoirs!$Y$37-pouvoirs!$AH$7)/5,(pouvoirs!$Y$37-pouvoirs!$AH$7)/-5),1)","v":13},{"$f":"IF(pouvoirs!$AH$7<96,IF(pouvoirs!$AI$37>=0,\" -\"&R15,0),0)","v":" -13"},{"$f":"IF(pouvoirs!$AH$7<96,IF(pouvoirs!$AI$37>=0,\" -\"&R15&\" vigilance, perception et \"&R15&\" dégâts à chaque personnage dans un rayon de 10 mètres y compris le l'utilisateur (sauf en cas de repirateur artificiel)\",\"rien ne se passe\"),\"rien ne se passe\")","v":" -13 vigilance, perception et 13 dégâts à chaque personnage dans un rayon de 10 mètres y compris le l'utilisateur (sauf en cas de repirateur artificiel)"},"action de combat",null,"pestilence"," ",{"$f":"CEILING(IF(pouvoirs!$Y$45-pouvoirs!$AH$7>0,(pouvoirs!$Y$45-pouvoirs!$AH$7)/5,(pouvoirs!$Y$45-pouvoirs!$AH$7)/-5),1)","v":13},{"$f":"IF(pouvoirs!$AH$7<96,IF(pouvoirs!$AI$37>=0,\" -\"&Y15,0),0)","v":" -13"},{"$f":"IF(pouvoirs!$AH$7<96,IF((pouvoirs!Y45-pouvoirs!AH7)>=0,\" -\"&Y15&\" vigilance, perception et \"&Y15&\" dégâts à chaque personnage dans un rayon de 10 mètres y compris le l'utilisateur (sauf en cas de repirateur artificiel)\",\"rien ne se passe\"),\"rien ne se passe\")","v":"rien ne se passe"},"action de combat",null,"lame de sang"," -10 Agilité",{"$f":"CEILING(IF(pouvoirs!$Y$57-pouvoirs!$AH$7>=0,((pouvoirs!$Y$57-pouvoirs!$AH$7)*4),(pouvoirs!$Y$57-pouvoirs!$AH$7)*-4),1)","v":260},null,{"$f":"IF(pouvoirs!$AH$7<96,IF((pouvoirs!Y57-pouvoirs!AH7)>=0,\"créé ou détruit une lame de sang provoquant \"&CEILING(((pouvoirs!Y57-pouvoirs!AH7)/4),1)&\" dégâts et \"&(pouvoirs!Y57-pouvoirs!AH7)&\" P.A.\",\"rien ne se passe\"),\"rien ne se passe\")","v":"rien ne se passe"},"action rapide",null,null,null,null,null,null,null,null,null,null,null,null,null,null,null,null,null,null,null,null,null,null,null,null,null,null,null,null,null,null,null,null,null,null,null,null,"M.X. 3",null,null,null,null,null,null,"V.0.1.3"]
[null,null,null,null,null,null,null,null,null,null,"+3 C. à C. pour la prochaine attaque intervenant ce tour",null,null,null,null," "," "," ",null," "," ",null," "," "," ",null," "," "," "," "," "," ",null," "," ",null,null,null,null,null,null,null,null,null,null,null,null,null,null,null,null,null,null,null,null,null,null,null,null,null,null,null,null,null,null,null,null,null,null,null,null,"M.X. 4",null,null,null,null,null,null,"V.0.2.1"]
[null,null,null,null,null,null,null,null,null,null,null,null,null,null,null,"valeurs tampon",null,null,null,null,null,null,"valeurs tampon",null,null,null,null,null,null,null,null,null,null,null,null,null,null,null,null,null,null,null,null,null,null,null,null,null,null,null,null,null,null,null,null,null,null,null,null,null,null,null,null,null,null,null,null,null,null,null,null,"M.X. 5",null,null,null,null,null,null,"V.0.2.2"]
[null,null,null,null,null,null,null,null,null,null,null,null,null,null,null,"pestillence",null,null,null,null,null,null,"pince du crabe",null,{"$f":"CEILING(IF(pouvoirs!$Y$45-pouvoirs!$AH$7>0,(pouvoirs!$Y$45-pouvoirs!$AH$7-20)/2,((pouvoirs!$Y$45-pouvoirs!$AH$7)/-2)-20),1)","v":13},null,null,null,null,null,null,null,null,null,null,null,null,null,null,null,null,null,null,null,null,null,null,null,null,null,null,null,null,null,null,null,null,null,null,null,null,null,null,null,null,null,null,null,null,null,null,"M.X. 6",null,null,null,null,null,null,"V.1.0.1"]
[null,null,null,null,null,null,null,null,null,null,null,null,null,null,null,null,null,null,null,null,null,null,"paume explosive",null,null,null,{"$f":"IF(info_perso!M18-2<0,0,info_perso!M18-2)","v":3},null,null,null,null,null,null,null,null,null,null,null,null,null,null,null,null,null,null,null,null,null,null,null,null,null,null,null,null,null,null,null,null,null,null,null,null,null,null,null,null,null,null,null,null,"M.X. 7",null,null,null,null,null,null,"V.1.1.1"]
[null,null,null,null,null,null,null,null,null,null,null,null,null,null,null,"bras gauche","effets passifs","coût d'activation","Effet","effets actifs","temps d'activation",null,"puissance de l'éclair",null,null,null,null,null,null,"jambe gauche","effets passifs","coût d'activation","Effet","effets actifs","temps d'activation",null,null,null,null,null,null,null,null,null,null,null,null,null,null,null,null,null,null,null,null,null,null,null,null,null,null,null,null,null,null,null,null,null,null,null,null,"M.X. 8",null,null,null,null,null,null,"V.1.1.2"]
[null,null,null,null,null,null,null,null,null,null,null,null,null,null,null,"lame secrète"," -20 Pvmax",50,null,"permet de ranger/sortir une lame qui fait 1d20 dégâts avec 25 P.A.","action rapide",null,null,null,null,null,null,null,null,"lame secrète"," -20 Pvmax",50,null,{"$f":"IF(pouvoirs!M8<96,IF((pouvoirs!D57-pouvoirs!M8)>=0,\"permet de ranger/sortir une lame qui fait 1d20 dégâts avec 25 P.A.\",\"rien ne se passe\"),\"rien ne se passe\")","v":"rien ne se passe"},"action rapide",null,null,null,null,null,null,null,null,null,null,null,null,null,null,null,null,null,null,null,null,null,null,null,null,null,null,null,null,null,null,null,null,null,null,null,null,"M.X. 9",null,null,null,null,null,null,"V.1.2.1"]
[null,null,null,null,null,null,null,null,null,null,null,null,null,null,null,"canon corporel"," -30 Agilité",{"$f":"CEILING(IF((pouvoirs!D37-pouvoirs!M8)>=0,(pouvoirs!D37-pouvoirs!M8),(pouvoirs!D37-pouvoirs!M8)*-1),1)","v":65},null,{"$f":"IF(pouvoirs!$AH$7<96,IF(pouvoirs!$D$37>=0,\"produit un tir (necessite un test en tir) avec \"&pouvoirs!D37&\" dégâts & \"&CEILING(pouvoirs!D37/5,1)&\" P.A.\",\"rien ne se passe\"),\"rien ne se passe\")","v":"produit un tir (necessite un test en tir) avec  dégâts & 0 P.A."},"action de combat",null,null,null,null,null,null,null,null,"canon corporel"," -30 Agilité",{"$f":"CEILING(IF(pouvoirs!$Y$57-pouvoirs!$AH$7>=0,(pouvoirs!$Y$57-pouvoirs!$AH$7),(pouvoirs!$Y$57-pouvoirs!$AH$7)*-1),1)","v":65},null,{"$f":"IF(pouvoirs!M8<96,IF((pouvoirs!D57-pouvoirs!M8)>=0,\"produit un tir (necessite un test en tir) avec \"&(pouvoirs!D57-pouvoirs!M8)&\" dégâts & \"&CEILING((pouvoirs!D57-pouvoirs!M8)/5,1)&\" P.A.\",\"rien ne se passe\"),\"rien ne se passe\")","v":"rien ne se passe"},"action de combat",null,null,null,null,null,null,null,null,null,null,null,null,null,null,null,null,null,null,null,null,null,null,null,null,null,null,null,null,null,null,null,null,null,null,null,null,"M.X. 10",null,null,null,null,null,null,"V.1.2.2"]
[null,null,null,null,null,null,null,null,null,null,null,null,null,null,null,"membre rétractable"," -20 C. à C. & -10 Force",{"$f":"CEILING(IF((pouvoirs!D37-pouvoirs!M8)>=0,(pouvoirs!D37-pouvoirs!M8)/2,(pouvoirs!D37-pouvoirs!M8)/-2),1)","v":33},null,{"$f":"IF(pouvoirs!$AH$7<96,IF(pouvoirs!$D$37>=0,\"permet d'allonger son membre de \"&CEILING((pouvoirs!D37/10),1)&\" mètres\",\"rien ne se passe\"),\"rien ne se passe\")","v":"permet d'allonger son membre de 0 mètres"},"action de combat",null,null,null,null,null,null,null,null,"membre rétractable"," -20 C. à C. & -10 Force",{"$f":"CEILING(IF(pouvoirs!$Y$57-pouvoirs!$AH$7>=0,((pouvoirs!$Y$57-pouvoirs!$AH$7)/2),(pouvoirs!$Y$57-pouvoirs!$AH$7)/-2),1)","v":33},null,{"$f":"IF(pouvoirs!$AH$7<96,IF((pouvoirs!D57-pouvoirs!M8)>=0,\"permet d'allonger son membre de \"&CEILING(((pouvoirs!D57-pouvoirs!M8)/10),1)&\" mètres\",\"rien ne se passe\"),\"rien ne se passe\")","v":"rien ne se passe"},"action de combat",null,null,null,null,null,null,null,null,null,null,null,null,null,null,null,null,null,null,null,null,null,null,null,null,null,null,null,null,null,null,null,null,null,null,null,null,"M.X. 11",null,null,null,null,null,null,"V.1.2.3"]
[null,null,null,null,null,null,null,null,null,null,null,null,null,null,null,"sangsue"," -30 Pvmax & -10 Influence /!\\ parfois les sangues sont visible se baladant sous la peau",{"$f":"CEILING(IF(pouvoirs!$D$37-pouvoirs!$M$8>=0,((pouvoirs!$D$37-pouvoirs!$M$8)*2),(pouvoirs!$D$37-pouvoirs!$M$8)*-2),1)","v":130},null,{"$f":"IF(pouvoirs!$AH$7<96,IF(pouvoirs!$D$37>=0,\"permet de réaliser une attaque au C. à C. ou à la mêlée qui, si elle réussi, accroche une sangsue qui provoque \"&CEILING((pouvoirs!D37/2),1)&\" dégâts puis 10 dégâts ignorant l'armure jusqu'à la mort de la victime ou la destruction de la sangsue\",\"rien ne se passe\"),\"rien ne se passe\")","v":"permet de réaliser une attaque au C. à C. ou à la mêlée qui, si elle réussi, accroche une sangsue qui provoque 0 dégâts puis 10 dégâts ignorant l'armure jusqu'à la mort de la victime ou la destruction de la sangsue"},"action de combat",null,null,null,null,null,null,null,null,"sangsue"," -30 Pvmax & -10 Influence /!\\ parfois les sangues sont visible se baladant sous la peau",{"$f":"CEILING(IF(pouvoirs!$Y$57-pouvoirs!$AH$7>=0,((pouvoirs!$Y$57-pouvoirs!$AH$7)*2),(pouvoirs!$Y$57-pouvoirs!$AH$7)*-2),1)","v":130},null,{"$f":"IF(pouvoirs!$AH$7<96,IF((pouvoirs!D57-pouvoirs!M8)>=0,\"permet de réaliser une attaque au C. à C. ou à la mêlée qui, si elle réussi, accroche une sangsue qui provoque \"&CEILING(((pouvoirs!D57-pouvoirs!M8)/2),1)&\" dégâts puis 10 dégâts ignorant l'armure jusqu'à la mort de la victime ou la destruction de la sangsue\",\"rien ne se passe\"),\"rien ne se passe\")","v":"rien ne se passe"},"action de combat",null,null,null,null,null,null,null,null,null,null,null,null,null,null,null,null,null,null,null,null,null,null,null,null,null,null,null,null,null,null,null,null,null,null,null,null,"M.X. 12",null,null,null,null,null,null,"V.2"]
[null,null,null,null,null,null,null,null,null,null,null,null,null,null,null,"lame de sang"," -10 Agilité",{"$f":"CEILING(IF(pouvoirs!$D$37-pouvoirs!$M$8>=0,((pouvoirs!$D$37-pouvoirs!$M$8)*4),(pouvoirs!$D$37-pouvoirs!$M$8)*-4),1)","v":260},null,{"$f":"IF(pouvoirs!$AH$7<96,IF(pouvoirs!$D$37>=0,\"créé ou détruit une lame de sang provoquant \"&CEILING((pouvoirs!D37/4),1)&\" dégâts et \"&pouvoirs!D37&\" P.A.\",\"rien ne se passe\"),\"rien ne se passe\")","v":"créé ou détruit une lame de sang provoquant 0 dégâts et  P.A."},"action rapide",null,null,null,null,null,null,null,null,"pestillence",null,{"$f":"CEILING(IF(pouvoirs!$Y$57-pouvoirs!$AH$7>0,(pouvoirs!$Y$57-pouvoirs!$AH$7)/5,(pouvoirs!$Y$57-pouvoirs!$AH$7)/-5),1)","v":13},{"$f":"IF(pouvoirs!$AH$7<96,IF(pouvoirs!$AI$37>=0,\" -\"&AF25,0),0)","v":" -13"},{"$f":"IF(pouvoirs!$AH$7<96,IF((pouvoirs!D57-pouvoirs!M8)>=0,\" -\"&AF25&\" vigilance, perception et \"&AF25&\" dégâts à chaque personnage dans un rayon de 10 mètres y compris le l'utilisateur (sauf en cas de repirateur artificiel)\",\"rien ne se passe\"),\"rien ne se passe\")","v":"rien ne se passe"},"action de combat",null,null,null,null,null,null,null,null,null,null,null,null,null,null,null,null,null,null,null,null,null,null,null,null,null,null,null,null,null,null,null,null,null,null,null,null,"M.X. 13",null,null,null,null,null,null,"V.15.11.32"]
[null,null,null,null,null,null,null,null,null,null,null,null,null,null,null,"pestillence",null,{"$f":"CEILING(IF(pouvoirs!$D$37-pouvoirs!$M$8>0,(pouvoirs!$D$37-pouvoirs!$M$8)/5,(pouvoirs!$D$37-pouvoirs!$M$8)/-5),1)","v":13},{"$f":"IF(pouvoirs!$AH$7<96,IF(pouvoirs!$AI$37>=0,\" -\"&R26,0),0)","v":" -13"},{"$f":"IF(pouvoirs!$AH$7<96,IF(pouvoirs!$AI$37>=0,\" -\"&R26&\" vigilance, perception et \"&R26&\" dégâts à chaque personnage dans un rayon de 10 mètres y compris le l'utilisateur (sauf en cas de repirateur artificiel)\",\"rien ne se passe\"),\"rien ne se passe\")","v":" -13 vigilance, perception et 13 dégâts à chaque personnage dans un rayon de 10 mètres y compris le l'utilisateur (sauf en cas de repirateur artificiel)"},"action de combat",null,null,null,null,null,null,null,null,"lame de sang"," -10 Agilité",{"$f":"CEILING(IF(pouvoirs!$Y$57-pouvoirs!$AH$7>=0,((pouvoirs!$Y$57-pouvoirs!$AH$7)*4),(pouvoirs!$Y$57-pouvoirs!$AH$7)*-4),1)","v":260},null,{"$f":"IF(pouvoirs!$AH$7<96,IF((pouvoirs!D57-pouvoirs!M8)>=0,\"créé ou détruit une lame de sang provoquant \"&CEILING(((pouvoirs!D57-pouvoirs!M8)/4),1)&\" dégâts et \"&(pouvoirs!D57-pouvoirs!M8)&\" P.A.\",\"rien ne se passe\"),\"rien ne se passe\")","v":"rien ne se passe"},"action rapide",null,null,null,null,null,null,null,null,null,null,null,null,null,null,null,null,null,null,null,null,null,null,null,null,null,null,null,null,null,null,null,null,null,null,null,null,"M.X. 14",null,null,null,null,null,null,"Alpha"]
[null,null,null,null,null,null,null,null,null,null,null,null,null,null,null," "," "," ",null," "," ",null,null,null,null,null,null,null,null," "," "," ",null," "," ",null,null,null,null,null,null,null,null,null,null,null,null,null,null,null,null,null,null,null,null,null,null,null,null,null,null,null,null,null,null,null,null,null,null,null,null,"M.X. 15",null,null,null,null,null,null,"Oméga"]
[null,null,null,null,null,null,null,null,null,null,null,null,null,null,null,null,null,null,null,null,null,null,null,null,null,null,null,null,null,null,null,null,null,null,null,null,null,null,null,null,null,null,null,null,null,null,null,null,null,null,null,null,null,null,null,null,null,null,null,null,null,null,null,null,null,null,null,null,null,null,null,"M.X. 16",null,null,null,null,null,null,"Ultime confession"]
[null,null,null,null,null,null,null,null,null,null,null,null,null,null,null,null,null,null,null,null,null,null,null,null,null,null,null,null,null,null,null,null,null,null,null,null,null,null,null,null,null,null,null,null,null,null,null,null,null,null,null,null,null,null,null,null,null,null,null,null,null,null,null,null,null,null,null,null,null,null,null,"M.X. 17",null,null,null,null,null,null,"Ultime pêché"]
[null,null,null,null,null,null,null,null,null,null,null,null,null,null,null,null,null,null,null,null,null,null,null,null,null,null,null,null,null,null,null,null,null,null,null,null,null,null,null,null,null,null,null,null,null,null,null,null,null,null,null,null,null,null,null,null,null,null,null,null,null,null,null,null,null,null,null,null,null,null,null,"M.X. 18",null,null,null,null,null,null," "," "," "," "," "," "]
[null,null,null,null,null,null,null,null,null,null,null,null,null,null,null,null,null,null,null,null,null,null,null,null,null,null,null,null,null,null,null,null,null,null,null,null,null,null,null,null,null,null,null,null,null,null,null,null,null,null,null,null,null,null,null,null,null,null,null,null,null,null,null,null,null,null,null,null,null,null,null,"M.X. 19"]
[null,null,null,null,null,null,null,null,null,null,null,null,null,null,null,null,null,null,null,null,null,null,null,null,null,null,null,null,null,null,null,null,null,null,null,null,null,null,null,null,null,null,null,null,null,null,null,null,null,null,null,null,null,null,null,null,null,null,null,null,null,null,null,null,null,null,null,null,null,null,null,"M.X. 20"]
[null,null,null,null,null,null,null,null,null,null,null,null,null,null,null,null,null,null,null,null,null,null,null,null,null,null,null,null,null,null,null,null,null,null,null,null,null,null,null,null,null,null,null,null,null,null,null,null,null,null,null,null,null,null,null,null,null,null,null,null,null,null,null,null,null,null,null,null,null,null,null,"M.X. 21"]
[null,null,null,null,null,null,null,null,null,null,null,null,null,null,null,null,null,null,null,null,null,null,null,null,null,null,null,null,null,null,null,null,null,null,null,null,null,null,null,null,null,null,null,null,null,null,null,null,null,null,null,null,null,null,null,null,null,null,null,null,null,null,null,null,null,null,null,null,null,null,null,"M.X. 22"]
[null,null,null,null,null,null,null,null,null,null,null,null,null,null,null,null,null,null,null,null,null,null,null,null,null,null,null,null,null,null,null,null,null,null,null,null,null,null,null,null,null,null,null,null,null,null,null,null,null,null,null,null,null,null,null,null,null,null,null,null,null,null,null,null,null,null,null,null,null,null,null,"M.X. 23"]
[null,null,null,null,null,null,null,null,null,null,null,null,null,null,null,null,null,null,null,null,null,null,null,null,null,null,null,null,null,null,null,null,null,null,null,null,null,null,null,null,null,null,null,null,null,null,null,null,null,null,null,null,null,null,null,null,null,null,null,null,null,null,null,null,null,null,null,null,null,null,null," "]

{"sheet":"annexe équipement","index":11,"n_rows":24,"n_cols":12,"rows_kept":24,"cut":false,"hidden":true,"merged":[[8,0,8,1],[3,0,3,1],[4,0,4,1],[5,0,5,1],[6,0,6,1],[7,0,7,1],[20,0,20,1],[9,0,9,1],[10,0,10,1],[11,0,11,1],[12,0,12,1],[13,0,13,1],[14,0,14,1],[15,0,15,1],[16,0,16,1],[17,0,17,1],[18,0,18,1],[19,0,19,1],[32,0,32,1],[21,0,21,1],[22,0,22,1],[23,0,23,1],[24,0,24,1],[25,0,25,1],[26,0,26,1],[27,0,27,1],[28,0,28,1],[29,0,29,1],[30,0,30,1],[31,0,31,1],[44,0,44,1],[33,0,33,1],[34,0,34,1],[35,0,35,1],[36,0,36,1],[37,0,37,1],[38,0,38,1],[39,0,39,1],[40,0,40,1],[41,0,41,1],[42,0,42,1],[43,0,43,1],[51,0,51,1],[52,0,52,1],[53,0,53,1],[45,0,45,1],[46,0,46,1],[47,0,47,1],[48,0,48,1],[49,0,49,1],[50,0,50,1]]}
[]
[]
[]
["armes",null,"rareté ","marque","portée","effet","effet secondaire","Mun.","Cap.","P.A.","Dég.","Frag"]
["Berretta M9",null,"commun","Torve","25m",null,null,"9mm",15,0,"1d6","98+"]
["IMI Desert Eagle",null,"rare","Torve","12m","1 tir / tour",null,"12,7mm",7,10,"1d10+1d6",100]
["Glock 17 9mm auto",null,"non commun","Torve","25m",null,null,"9mm",17,5,"1d6+1d4","97+"]
["Luger modèle P08",null,"très rare","Torve","25m",null,null,"9mm",8,10,"1d10","98+"]
["Lance-Fusée",null,"commun","Googleplexe","20m","1 tir / tour","brûlure","fusée",1,0,"1d20+2","95+"]
["Cutter laser",null,"commun","Zémika","25m","1 tir / tour",null,"nanobatterie",7,15,"3d20","95+"]
["AK-47",null,"commun","Torve","50m",null,null,"7,62mm",30,7,"2d6","98+"]
["AK-74",null,"non commun","Torve","50m",null,null,"5,45mm",30,9,"2d6+2","99+"]
["FN FAL",null,"très rare","Googleplexe","100m",null,null,"7,62mm",20,7,"2d10","95+"]
["M4",null,"non commun","Googleplexe","25m",null,null,"5,56mm",30,6,"2d8","98+"]
["Uzi SMG",null,"commun","Googleplexe","25m","ambidextrie -20 tir",null,"9mm",32,6,"2d6","97+"]
["FAMAS",null,"rare","Googleplexe","50m",null,null,"5,56mm",25,7,"2d6+1d8","99+"]
["M16",null,"rare","Googleplexe","50m",null,null,"5,56mm",20,7,"1d20","99+"]
["FN Minimi 5,56",null,"rare","Googleplexe","100m",null,null,"5,56mm",200,10,"4d6","97+"]
["50 BMG",null,"très rare","Googleplexe","100m","4 tirs / tour",null,"12,7mm",250,15,"3d8","98+"]
["Minigun",null,"très rare","Googleplexe","100m","4 tirs / tour",null,"20mm",4000,20,"1d20+4","99+"]
["Souffle du Dragon",null,"très rare","Zémika","16m","1 tir / tour","cône de feu (brûlure)","nanobatterie",20,0,"1d20","98+"]
["Croc de l'ombre",null,"non commun","Bailleur Kémi C.A.L.","100m","1 tir / tour","cône d'énergie à terme","nanobatterie",30,20,"2d20","95+"]
["Barette",null,"rare","Torve","200m","1 tir / tour",null,"12,7mm",12,20,"1d100/2","98+"]
["Fusil à chocs gravitationnels",null,"très rare","Zémika","100m","1 tir / tour",null,"nanobatterie",15,50,"1d100+20","95+"]

{"sheet":"évolution","index":12,"n_rows":41,"n_cols":15,"rows_kept":41,"cut":false,"hidden":false,"merged":[[12,10,12,11],[13,10,13,11],[14,10,14,11],[12,7,12,8]]}
[]
[]
["type xp gagné","création","Séance 1","Séance 2","Séance 3","Séance 4","Séance 5","Séance 6","Séance 7","Séance 8","Séance 9","Séance 10","Séance 11","Séance 12","total"]
["naturel",0,{"$f":"C25","v":0},0,0,0,0,0,0,0,0,0,0,0,{"$f":"SUM(B4:N4)","v":0}]
["occulte",0,{"$f":"C34","v":0},0,0,0,0,0,0,0,0,0,0,0,{"$f":"SUM(B5:N5)","v":0}]
["parapsy",0,{"$f":"C41","v":0},0,0,0,0,0,0,0,0,0,0,0,0]
[]
[]
[]
[]
[]
[]
[null,"type xp restant","score",null,"type xp dépensé","score",null,"XP à la création"]
[null,"naturel",{"$f":"O4-F14+IF(OR(info_perso!$B$15=\"Expérimenté\",info_perso!$B$16=\"Expérimenté\",info_perso!$B$17=\"Expérimenté\",info_perso!$B$18=\"Expérimenté\"),40,0)+I14","v":0},null,"naturel",{"$f":"((SUM(caractéritiques!C8:H8,))*caractéritiques!N7)+SUM(SUM(compétences!D4:D15)+SUM(compétences!D19:D26)+SUM(compétences!D30:D34)+SUM(compétences!D38:D49)+SUM(compétences!D53:D60)+compétences!D64+compétences!D65)*compétences!U7+SUM(info_perso!F5:F6)*info_perso!N10","v":0},null,"naturel"]
[null,"occulte",{"$f":"O5-F15+IF(OR(info_perso!$B$15=\"Entraînement occulte\",info_perso!$B$16=\"Entraînement occulte\",info_perso!$B$17=\"Entraînement occulte\",info_perso!$B$18=\"Entraînement occulte\"),40,0)+I15","v":0},null,"occulte",{"$f":"SUM(caractéritiques!C10:H10)*caractéritiques!N8+(SUM(compétences!H4:H15)+SUM(compétences!H19:H26)+SUM(compétences!H30:H34)+SUM(compétences!H38:H49)+SUM(compétences!H53:H60)+compétences!H64+compétences!H65)*compétences!U8+(SUM(info_perso!I5:I6)*info_perso!N11)+sorts!D3*sorts!J4+sorts!M3+sorts!O3+compétences!H65","v":0},null,"occulte",{"$f":"IF(OR(info_perso!D2=\"occultiste\",info_perso!D2=\"occultiste de l'Ordre de la dissidence\",info_perso!D2=\"nabéloki\",info_perso!D2=\"pirate de magi\"),300,IF(info_perso!D2=\"kubo\",800,IF(info_perso!D2=\"cultiste des docks\",400,0)))","v":0}]
[null,"parapsy",{"$f":"O6-F16+IF(OR(info_perso!$B$15=\"Abîmé\",info_perso!$B$16=\"Abîmé\",info_perso!$B$17=\"Abîmé\",info_perso!$B$18=\"Abîmé\"),40,0)+I16","v":0},null,"parapsy",{"$f":"SUM(caractéritiques!C11:H11)*caractéritiques!N9+(SUM(compétences!J4:J15)+SUM(compétences!J19:J26)+SUM(compétences!J30:J34)+SUM(compétences!J38:J49)+SUM(compétences!J53:J60)+compétences!J64+compétences!J65)*compétences!U9+(info_perso!K5+info_perso!K6)*info_perso!N12+(pouvoirs!E3*pouvoirs!J4)+(pouvoirs!D12+pouvoirs!D21+pouvoirs!D25+pouvoirs!D31+pouvoirs!D37+pouvoirs!D43+pouvoirs!D57+pouvoirs!Y57+pouvoirs!Y45+pouvoirs!Y37+pouvoirs!Y25+pouvoirs!Y21+pouvoirs!Y11+SUM(pouvoirs!D64:D79))*pouvoirs!J3+compétences!J65","v":0},null,"parapsy",{"$f":"IF(OR(info_perso!D2=\"humain augmenté\",info_perso!D2=\"orphelin de maman\",info_perso!D2=\"chien blanc de papa\",info_perso!D2=\"cobaye\"),150,0)","v":0}]
[]
[null,"XP Naturel","S1","S2","S3","S4","S5","S6","S7","S8","S9","S10","S11","S12"]
[null,"Rp du joueur"]
[null,"Déroulement du scénario"]
[null,"Valeur / utilité au combat"]
[null,"Actions d’éclat"]
[null,"Mise à disposition du MJ"]
[null,"Multiplicateur",{"$f":"IF(info_perso!$D$2=\"klobto\",4,IF(OR(LEFT(info_perso!$B$15,20)=\"Apprentissage rapide\",LEFT(info_perso!$B$16,20)=\"Apprentissage rapide\",LEFT(info_perso!$B$17,20)=\"Apprentissage rapide\",(LEFT(info_perso!$B$18,20)=\"Apprentissage rapide\")),2,1)*IF(IF(RIGHT(info_perso!$B$15,9)=\"(naturel)\",1,0)+IF(RIGHT(info_perso!$B$16,9)=\"(naturel)\",1,0)+IF(RIGHT(info_perso!$B$17,9)=\"(naturel)\",1,0)+IF(RIGHT(info_perso!$B$18,9)=\"(naturel)\",1,0)=2,0.25,IF(IF(RIGHT(info_perso!$B$15,9)=\"(naturel)\",1,0)+IF(RIGHT(info_perso!$B$16,9)=\"(naturel)\",1,0)+IF(RIGHT(info_perso!$B$17,9)=\"(naturel)\",1,0)+IF(RIGHT(info_perso!$B$18,9)=\"(naturel)\",1,0)=1,0.5,1)))","v":1},{"$f":"IF(info_perso!$D$2=\"klobto\",4,IF(OR(LEFT(info_perso!$B$15,20)=\"Apprentissage rapide\",LEFT(info_perso!$B$16,20)=\"Apprentissage rapide\",LEFT(info_perso!$B$17,20)=\"Apprentissage rapide\",(LEFT(info_perso!$B$18,20)=\"Apprentissage rapide\")),2,1)*IF(IF(RIGHT(info_perso!$B$15,9)=\"(naturel)\",1,0)+IF(RIGHT(info_perso!$B$16,9)=\"(naturel)\",1,0)+IF(RIGHT(info_perso!$B$17,9)=\"(naturel)\",1,0)+IF(RIGHT(info_perso!$B$18,9)=\"(naturel)\",1,0)=2,0.25,IF(IF(RIGHT(info_perso!$B$15,9)=\"(naturel)\",1,0)+IF(RIGHT(info_perso!$B$16,9)=\"(naturel)\",1,0)+IF(RIGHT(info_perso!$B$17,9)=\"(naturel)\",1,0)+IF(RIGHT(info_perso!$B$18,9)=\"(naturel)\",1,0)=1,0.5,1)))","v":1},{"$f":"IF(info_perso!$D$2=\"klobto\",4,IF(OR(LEFT(info_perso!$B$15,20)=\"Apprentissage rapide\",LEFT(info_perso!$B$16,20)=\"Apprentissage rapide\",LEFT(info_perso!$B$17,20)=\"Apprentissage rapide\",(LEFT(info_perso!$B$18,20)=\"Apprentissage rapide\")),2,1)*IF(IF(RIGHT(info_perso!$B$15,9)=\"(naturel)\",1,0)+IF(RIGHT(info_perso!$B$16,9)=\"(naturel)\",1,0)+IF(RIGHT(info_perso!$B$17,9)=\"(naturel)\",1,0)+IF(RIGHT(info_perso!$B$18,9)=\"(naturel)\",1,0)=2,0.25,IF(IF(RIGHT(info_perso!$B$15,9)=\"(naturel)\",1,0)+IF(RIGHT(info_perso!$B$16,9)=\"(naturel)\",1,0)+IF(RIGHT(info_perso!$B$17,9)=\"(naturel)\",1,0)+IF(RIGHT(info_perso!$B$18,9)=\"(naturel)\",1,0)=1,0.5,1)))","v":1},{"$f":"IF(info_perso!$D$2=\"klobto\",4,IF(OR(LEFT(info_perso!$B$15,20)=\"Apprentissage rapide\",LEFT(info_perso!$B$16,20)=\"Apprentissage rapide\",LEFT(info_perso!$B$17,20)=\"Apprentissage rapide\",(LEFT(info_perso!$B$18,20)=\"Apprentissage rapide\")),2,1)*IF(IF(RIGHT(info_perso!$B$15,9)=\"(naturel)\",1,0)+IF(RIGHT(info_perso!$B$16,9)=\"(naturel)\",1,0)+IF(RIGHT(info_perso!$B$17,9)=\"(naturel)\",1,0)+IF(RIGHT(info_perso!$B$18,9)=\"(naturel)\",1,0)=2,0.25,IF(IF(RIGHT(info_perso!$B$15,9)=\"(naturel)\",1,0)+IF(RIGHT(info_perso!$B$16,9)=\"(naturel)\",1,0)+IF(RIGHT(info_perso!$B$17,9)=\"(naturel)\",1,0)+IF(RIGHT(info_perso!$B$18,9)=\"(naturel)\",1,0)=1,0.5,1)))","v":1},{"$f":"IF(info_perso!$D$2=\"klobto\",4,IF(OR(LEFT(info_perso!$B$15,20)=\"Apprentissage rapide\",LEFT(info_perso!$B$16,20)=\"Apprentissage rapide\",LEFT(info_perso!$B$17,20)=\"Apprentissage rapide\",(LEFT(info_perso!$B$18,20)=\"Apprentissage rapide\")),2,1)*IF(IF(RIGHT(info_perso!$B$15,9)=\"(naturel)\",1,0)+IF(RIGHT(info_perso!$B$16,9)=\"(naturel)\",1,0)+IF(RIGHT(info_perso!$B$17,9)=\"(naturel)\",1,0)+IF(RIGHT(info_perso!$B$18,9)=\"(naturel)\",1,0)=2,0.25,IF(IF(RIGHT(info_perso!$B$15,9)=\"(naturel)\",1,0)+IF(RIGHT(info_perso!$B$16,9)=\"(naturel)\",1,0)+IF(RIGHT(info_perso!$B$17,9)=\"(naturel)\",1,0)+IF(RIGHT(info_perso!$B$18,9)=\"(naturel)\",1,0)=1,0.5,1)))","v":1},{"$f":"IF(info_perso!$D$2=\"klobto\",4,IF(OR(LEFT(info_perso!$B$15,20)=\"Apprentissage rapide\",LEFT(info_perso!$B$16,20)=\"Apprentissage rapide\",LEFT(info_perso!$B$17,20)=\"Apprentissage rapide\",(LEFT(info_perso!$B$18,20)=\"Apprentissage rapide\")),2,1)*IF(IF(RIGHT(info_perso!$B$15,9)=\"(naturel)\",1,0)+IF(RIGHT(info_perso!$B$16,9)=\"(naturel)\",1,0)+IF(RIGHT(info_perso!$B$17,9)=\"(naturel)\",1,0)+IF(RIGHT(info_perso!$B$18,9)=\"(naturel)\",1,0)=2,0.25,IF(IF(RIGHT(info_perso!$B$15,9)=\"(naturel)\",1,0)+IF(RIGHT(info_perso!$B$16,9)=\"(naturel)\",1,0)+IF(RIGHT(info_perso!$B$17,9)=\"(naturel)\",1,0)+IF(RIGHT(info_perso!$B$18,9)=\"(naturel)\",1,0)=1,0.5,1)))","v":1},{"$f":"IF(info_perso!$D$2=\"klobto\",4,IF(OR(LEFT(info_perso!$B$15,20)=\"Apprentissage rapide\",LEFT(info_perso!$B$16,20)=\"Apprentissage rapide\",LEFT(info_perso!$B$17,20)=\"Apprentissage rapide\",(LEFT(info_perso!$B$18,20)=\"Apprentissage rapide\")),2,1)*IF(IF(RIGHT(info_perso!$B$15,9)=\"(naturel)\",1,0)+IF(RIGHT(info_perso!$B$16,9)=\"(naturel)\",1,0)+IF(RIGHT(info_perso!$B$17,9)=\"(naturel)\",1,0)+IF(RIGHT(info_perso!$B$18,9)=\"(naturel)\",1,0)=2,0.25,IF(IF(RIGHT(info_perso!$B$15,9)=\"(naturel)\",1,0)+IF(RIGHT(info_perso!$B$16,9)=\"(naturel)\",1,0)+IF(RIGHT(info_perso!$B$17,9)=\"(naturel)\",1,0)+IF(RIGHT(info_perso!$B$18,9)=\"(naturel)\",1,0)=1,0.5,1)))","v":1},{"$f":"IF(info_perso!$D$2=\"klobto\",4,IF(OR(LEFT(info_perso!$B$15,20)=\"Apprentissage rapide\",LEFT(info_perso!$B$16,20)=\"Apprentissage rapide\",LEFT(info_perso!$B$17,20)=\"Apprentissage rapide\",(LEFT(info_perso!$B$18,20)=\"Apprentissage rapide\")),2,1)*IF(IF(RIGHT(info_perso!$B$15,9)=\"(naturel)\",1,0)+IF(RIGHT(info_perso!$B$16,9)=\"(naturel)\",1,0)+IF(RIGHT(info_perso!$B$17,9)=\"(naturel)\",1,0)+IF(RIGHT(info_perso!$B$18,9)=\"(naturel)\",1,0)=2,0.25,IF(IF(RIGHT(info_perso!$B$15,9)=\"(naturel)\",1,0)+IF(RIGHT(info_perso!$B$16,9)=\"(naturel)\",1,0)+IF(RIGHT(info_perso!$B$17,9)=\"(naturel)\",1,0)+IF(RIGHT(info_perso!$B$18,9)=\"(naturel)\",1,0)=1,0.5,1)))","v":1},{"$f":"IF(info_perso!$D$2=\"klobto\",4,IF(OR(LEFT(info_perso!$B$15,20)=\"Apprentissage rapide\",LEFT(info_perso!$B$16,20)=\"Apprentissage rapide\",LEFT(info_perso!$B$17,20)=\"Apprentissage rapide\",(LEFT(info_perso!$B$18,20)=\"Apprentissage rapide\")),2,1)*IF(IF(RIGHT(info_perso!$B$15,9)=\"(naturel)\",1,0)+IF(RIGHT(info_perso!$B$16,9)=\"(naturel)\",1,0)+IF(RIGHT(info_perso!$B$17,9)=\"(naturel)\",1,0)+IF(RIGHT(info_perso!$B$18,9)=\"(naturel)\",1,0)=2,0.25,IF(IF(RIGHT(info_perso!$B$15,9)=\"(naturel)\",1,0)+IF(RIGHT(info_perso!$B$16,9)=\"(naturel)\",1,0)+IF(RIGHT(info_perso!$B$17,9)=\"(naturel)\",1,0)+IF(RIGHT(info_perso!$B$18,9)=\"(naturel)\",1,0)=1,0.5,1)))","v":1},{"$f":"IF(info_perso!$D$2=\"klobto\",4,IF(OR(LEFT(info_perso!$B$15,20)=\"Apprentissage rapide\",LEFT(info_perso!$B$16,20)=\"Apprentissage rapide\",LEFT(info_perso!$B$17,20)=\"Apprentissage rapide\",(LEFT(info_perso!$B$18,20)=\"Apprentissage rapide\")),2,1)*IF(IF(RIGHT(info_perso!$B$15,9)=\"(naturel)\",1,0)+IF(RIGHT(info_perso!$B$16,9)=\"(naturel)\",1,0)+IF(RIGHT(info_perso!$B$17,9)=\"(naturel)\",1,0)+IF(RIGHT(info_perso!$B$18,9)=\"(naturel)\",1,0)=2,0.25,IF(IF(RIGHT(info_perso!$B$15,9)=\"(naturel)\",1,0)+IF(RIGHT(info_perso!$B$16,9)=\"(naturel)\",1,0)+IF(RIGHT(info_perso!$B$17,9)=\"(naturel)\",1,0)+IF(RIGHT(info_perso!$B$18,9)=\"(naturel)\",1,0)=1,0.5,1)))","v":1},{"$f":"IF(info_perso!$D$2=\"klobto\",4,IF(OR(LEFT(info_perso!$B$15,20)=\"Apprentissage rapide\",LEFT(info_perso!$B$16,20)=\"Apprentissage rapide\",LEFT(info_perso!$B$17,20)=\"Apprentissage rapide\",(LEFT(info_perso!$B$18,20)=\"Apprentissage rapide\")),2,1)*IF(IF(RIGHT(info_perso!$B$15,9)=\"(naturel)\",1,0)+IF(RIGHT(info_perso!$B$16,9)=\"(naturel)\",1,0)+IF(RIGHT(info_perso!$B$17,9)=\"(naturel)\",1,0)+IF(RIGHT(info_perso!$B$18,9)=\"(naturel)\",1,0)=2,0.25,IF(IF(RIGHT(info_perso!$B$15,9)=\"(naturel)\",1,0)+IF(RIGHT(info_perso!$B$16,9)=\"(naturel)\",1,0)+IF(RIGHT(info_perso!$B$17,9)=\"(naturel)\",1,0)+IF(RIGHT(info_perso!$B$18,9)=\"(naturel)\",1,0)=1,0.5,1)))","v":1},{"$f":"IF(info_perso!$D$2=\"klobto\",4,IF(OR(LEFT(info_perso!$B$15,20)=\"Apprentissage rapide\",LEFT(info_perso!$B$16,20)=\"Apprentissage rapide\",LEFT(info_perso!$B$17,20)=\"Apprentissage rapide\",(LEFT(info_perso!$B$18,20)=\"Apprentissage rapide\")),2,1)*IF(IF(RIGHT(info_perso!$B$15,9)=\"(naturel)\",1,0)+IF(RIGHT(info_perso!$B$16,9)=\"(naturel)\",1,0)+IF(RIGHT(info_perso!$B$17,9)=\"(naturel)\",1,0)+IF(RIGHT(info_perso!$B$18,9)=\"(naturel)\",1,0)=2,0.25,IF(IF(RIGHT(info_perso!$B$15,9)=\"(naturel)\",1,0)+IF(RIGHT(info_perso!$B$16,9)=\"(naturel)\",1,0)+IF(RIGHT(info_perso!$B$17,9)=\"(naturel)\",1,0)+IF(RIGHT(info_perso!$B$18,9)=\"(naturel)\",1,0)=1,0.5,1)))","v":1}]
[null,"Total",{"$f":"SUM(C19:C23)*C24","v":0},0,0,0,0,0,0,0,0,0,0,0]
[null,"XP Occulte","S1","S2","S3","S4","S5","S6","S7","S8","S9","S10","S11","S12"]
[null,"Rencontre d’une créature occulte"]
[null,"Rencontre avec l’Outremonde"]
[null,"Lancement de sort(s)"]
[null,"Apprentissage d’un sort"]
[null,"Observation de lancement de sort(s)"]
[null,"Combat avec des créatures occultes"]
[null,"Multiplicateur",{"$f":"IF(info_perso!$D$2=\"klobto\",0.25,IF(OR(LEFT(info_perso!$B$15,23)=\"Affinité avec l’occulte\",LEFT(info_perso!$B$16,23)=\"Affinité avec l’occulte\",LEFT(info_perso!$B$17,23)=\"Affinité avec l’occulte\",(LEFT(info_perso!$B$18,23)=\"Affinité avec l’occulte\")),2,1)*IF(IF(RIGHT(info_perso!$B$15,9)=\"(occulte)\",1,0)+IF(RIGHT(info_perso!$B$16,9)=\"(occulte)\",1,0)+IF(RIGHT(info_perso!$B$17,9)=\"(occulte)\",1,0)+IF(RIGHT(info_perso!$B$18,9)=\"(occulte)\",1,0)=2,0.25,IF(IF(RIGHT(info_perso!$B$15,9)=\"(occulte)\",1,0)+IF(RIGHT(info_perso!$B$16,9)=\"(occulte)\",1,0)+IF(RIGHT(info_perso!$B$17,9)=\"(occulte)\",1,0)+IF(RIGHT(info_perso!$B$18,9)=\"(occulte)\",1,0)=1,0.5,1)))","v":1},{"$f":"IF(info_perso!$D$2=\"klobto\",0.25,IF(OR(LEFT(info_perso!$B$15,23)=\"Affinité avec l’occulte\",LEFT(info_perso!$B$16,23)=\"Affinité avec l’occulte\",LEFT(info_perso!$B$17,23)=\"Affinité avec l’occulte\",(LEFT(info_perso!$B$18,23)=\"Affinité avec l’occulte\")),2,1)*IF(IF(RIGHT(info_perso!$B$15,9)=\"(occulte)\",1,0)+IF(RIGHT(info_perso!$B$16,9)=\"(occulte)\",1,0)+IF(RIGHT(info_perso!$B$17,9)=\"(occulte)\",1,0)+IF(RIGHT(info_perso!$B$18,9)=\"(occulte)\",1,0)=2,0.25,IF(IF(RIGHT(info_perso!$B$15,9)=\"(occulte)\",1,0)+IF(RIGHT(info_perso!$B$16,9)=\"(occulte)\",1,0)+IF(RIGHT(info_perso!$B$17,9)=\"(occulte)\",1,0)+IF(RIGHT(info_perso!$B$18,9)=\"(occulte)\",1,0)=1,0.5,1)))","v":1},{"$f":"IF(info_perso!$D$2=\"klobto\",0.25,IF(OR(LEFT(info_perso!$B$15,23)=\"Affinité avec l’occulte\",LEFT(info_perso!$B$16,23)=\"Affinité avec l’occulte\",LEFT(info_perso!$B$17,23)=\"Affinité avec l’occulte\",(LEFT(info_perso!$B$18,23)=\"Affinité avec l’occulte\")),2,1)*IF(IF(RIGHT(info_perso!$B$15,9)=\"(occulte)\",1,0)+IF(RIGHT(info_perso!$B$16,9)=\"(occulte)\",1,0)+IF(RIGHT(info_perso!$B$17,9)=\"(occulte)\",1,0)+IF(RIGHT(info_perso!$B$18,9)=\"(occulte)\",1,0)=2,0.25,IF(IF(RIGHT(info_perso!$B$15,9)=\"(occulte)\",1,0)+IF(RIGHT(info_perso!$B$16,9)=\"(occulte)\",1,0)+IF(RIGHT(info_perso!$B$17,9)=\"(occulte)\",1,0)+IF(RIGHT(info_perso!$B$18,9)=\"(occulte)\",1,0)=1,0.5,1)))","v":1},{"$f":"IF(info_perso!$D$2=\"klobto\",0.25,IF(OR(LEFT(info_perso!$B$15,23)=\"Affinité avec l’occulte\",LEFT(info_perso!$B$16,23)=\"Affinité avec l’occulte\",LEFT(info_perso!$B$17,23)=\"Affinité avec l’occulte\",(LEFT(info_perso!$B$18,23)=\"Affinité avec l’occulte\")),2,1)*IF(IF(RIGHT(info_perso!$B$15,9)=\"(occulte)\",1,0)+IF(RIGHT(info_perso!$B$16,9)=\"(occulte)\",1,0)+IF(RIGHT(info_perso!$B$17,9)=\"(occulte)\",1,0)+IF(RIGHT(info_perso!$B$18,9)=\"(occulte)\",1,0)=2,0.25,IF(IF(RIGHT(info_perso!$B$15,9)=\"(occulte)\",1,0)+IF(RIGHT(info_perso!$B$16,9)=\"(occulte)\",1,0)+IF(RIGHT(info_perso!$B$17,9)=\"(occulte)\",1,0)+IF(RIGHT(info_perso!$B$18,9)=\"(occulte)\",1,0)=1,0.5,1)))","v":1},{"$f":"IF(info_perso!$D$2=\"klobto\",0.25,IF(OR(LEFT(info_perso!$B$15,23)=\"Affinité avec l’occulte\",LEFT(info_perso!$B$16,23)=\"Affinité avec l’occulte\",LEFT(info_perso!$B$17,23)=\"Affinité avec l’occulte\",(LEFT(info_perso!$B$18,23)=\"Affinité avec l’occulte\")),2,1)*IF(IF(RIGHT(info_perso!$B$15,9)=\"(occulte)\",1,0)+IF(RIGHT(info_perso!$B$16,9)=\"(occulte)\",1,0)+IF(RIGHT(info_perso!$B$17,9)=\"(occulte)\",1,0)+IF(RIGHT(info_perso!$B$18,9)=\"(occulte)\",1,0)=2,0.25,IF(IF(RIGHT(info_perso!$B$15,9)=\"(occulte)\",1,0)+IF(RIGHT(info_perso!$B$16,9)=\"(occulte)\",1,0)+IF(RIGHT(info_perso!$B$17,9)=\"(occulte)\",1,0)+IF(RIGHT(info_perso!$B$18,9)=\"(occulte)\",1,0)=1,0.5,1)))","v":1},{"$f":"IF(info_perso!$D$2=\"klobto\",0.25,IF(OR(LEFT(info_perso!$B$15,23)=\"Affinité avec l’occulte\",LEFT(info_perso!$B$16,23)=\"Affinité avec l’occulte\",LEFT(info_perso!$B$17,23)=\"Affinité avec l’occulte\",(LEFT(info_perso!$B$18,23)=\"Affinité avec l’occulte\")),2,1)*IF(IF(RIGHT(info_perso!$B$15,9)=\"(occulte)\",1,0)+IF(RIGHT(info_perso!$B$16,9)=\"(occulte)\",1,0)+IF(RIGHT(info_perso!$B$17,9)=\"(occulte)\",1,0)+IF(RIGHT(info_perso!$B$18,9)=\"(occulte)\",1,0)=2,0.25,IF(IF(RIGHT(info_perso!$B$15,9)=\"(occulte)\",1,0)+IF(RIGHT(info_perso!$B$16,9)=\"(occulte)\",1,0)+IF(RIGHT(info_perso!$B$17,9)=\"(occulte)\",1,0)+IF(RIGHT(info_perso!$B$18,9)=\"(occulte)\",1,0)=1,0.5,1)))","v":1},{"$f":"IF(info_perso!$D$2=\"klobto\",0.25,IF(OR(LEFT(info_perso!$B$15,23)=\"Affinité avec l’occulte\",LEFT(info_perso!$B$16,23)=\"Affinité avec l’occulte\",LEFT(info_perso!$B$17,23)=\"Affinité avec l’occulte\",(LEFT(info_perso!$B$18,23)=\"Affinité avec l’occulte\")),2,1)*IF(IF(RIGHT(info_perso!$B$15,9)=\"(occulte)\",1,0)+IF(RIGHT(info_perso!$B$16,9)=\"(occulte)\",1,0)+IF(RIGHT(info_perso!$B$17,9)=\"(occulte)\",1,0)+IF(RIGHT(info_perso!$B$18,9)=\"(occulte)\",1,0)=2,0.25,IF(IF(RIGHT(info_perso!$B$15,9)=\"(occulte)\",1,0)+IF(RIGHT(info_perso!$B$16,9)=\"(occulte)\",1,0)+IF(RIGHT(info_perso!$B$17,9)=\"(occulte)\",1,0)+IF(RIGHT(info_perso!$B$18,9)=\"(occulte)\",1,0)=1,0.5,1)))","v":1},{"$f":"IF(info_perso!$D$2=\"klobto\",0.25,IF(OR(LEFT(info_perso!$B$15,23)=\"Affinité avec l’occulte\",LEFT(info_perso!$B$16,23)=\"Affinité avec l’occulte\",LEFT(info_perso!$B$17,23)=\"Affinité avec l’occulte\",(LEFT(info_perso!$B$18,23)=\"Affinité avec l’occulte\")),2,1)*IF(IF(RIGHT(info_perso!$B$15,9)=\"(occulte)\",1,0)+IF(RIGHT(info_perso!$B$16,9)=\"(occulte)\",1,0)+IF(RIGHT(info_perso!$B$17,9)=\"(occulte)\",1,0)+IF(RIGHT(info_perso!$B$18,9)=\"(occulte)\",1,0)=2,0.25,IF(IF(RIGHT(info_perso!$B$15,9)=\"(occulte)\",1,0)+IF(RIGHT(info_perso!$B$16,9)=\"(occulte)\",1,0)+IF(RIGHT(info_perso!$B$17,9)=\"(occulte)\",1,0)+IF(RIGHT(info_perso!$B$18,9)=\"(occulte)\",1,0)=1,0.5,1)))","v":1},{"$f":"IF(info_perso!$D$2=\"klobto\",0.25,IF(OR(LEFT(info_perso!$B$15,23)=\"Affinité avec l’occulte\",LEFT(info_perso!$B$16,23)=\"Affinité avec l’occulte\",LEFT(info_perso!$B$17,23)=\"Affinité avec l’occulte\",(LEFT(info_perso!$B$18,23)=\"Affinité avec l’occulte\")),2,1)*IF(IF(RIGHT(info_perso!$B$15,9)=\"(occulte)\",1,0)+IF(RIGHT(info_perso!$B$16,9)=\"(occulte)\",1,0)+IF(RIGHT(info_perso!$B$17,9)=\"(occulte)\",1,0)+IF(RIGHT(info_perso!$B$18,9)=\"(occulte)\",1,0)=2,0.25,IF(IF(RIGHT(info_perso!$B$15,9)=\"(occulte)\",1,0)+IF(RIGHT(info_perso!$B$16,9)=\"(occulte)\",1,0)+IF(RIGHT(info_perso!$B$17,9)=\"(occulte)\",1,0)+IF(RIGHT(info_perso!$B$18,9)=\"(occulte)\",1,0)=1,0.5,1)))","v":1},{"$f":"IF(info_perso!$D$2=\"klobto\",0.25,IF(OR(LEFT(info_perso!$B$15,23)=\"Affinité avec l’occulte\",LEFT(info_perso!$B$16,23)=\"Affinité avec l’occulte\",LEFT(info_perso!$B$17,23)=\"Affinité avec l’occulte\",(LEFT(info_perso!$B$18,23)=\"Affinité avec l’occulte\")),2,1)*IF(IF(RIGHT(info_perso!$B$15,9)=\"(occulte)\",1,0)+IF(RIGHT(info_perso!$B$16,9)=\"(occulte)\",1,0)+IF(RIGHT(info_perso!$B$17,9)=\"(occulte)\",1,0)+IF(RIGHT(info_perso!$B$18,9)=\"(occulte)\",1,0)=2,0.25,IF(IF(RIGHT(info_perso!$B$15,9)=\"(occulte)\",1,0)+IF(RIGHT(info_perso!$B$16,9)=\"(occulte)\",1,0)+IF(RIGHT(info_perso!$B$17,9)=\"(occulte)\",1,0)+IF(RIGHT(info_perso!$B$18,9)=\"(occulte)\",1,0)=1,0.5,1)))","v":1},{"$f":"IF(info_perso!$D$2=\"klobto\",0.25,IF(OR(LEFT(info_perso!$B$15,23)=\"Affinité avec l’occulte\",LEFT(info_perso!$B$16,23)=\"Affinité avec l’occulte\",LEFT(info_perso!$B$17,23)=\"Affinité avec l’occulte\",(LEFT(info_perso!$B$18,23)=\"Affinité avec l’occulte\")),2,1)*IF(IF(RIGHT(info_perso!$B$15,9)=\"(occulte)\",1,0)+IF(RIGHT(info_perso!$B$16,9)=\"(occulte)\",1,0)+IF(RIGHT(info_perso!$B$17,9)=\"(occulte)\",1,0)+IF(RIGHT(info_perso!$B$18,9)=\"(occulte)\",1,0)=2,0.25,IF(IF(RIGHT(info_perso!$B$15,9)=\"(occulte)\",1,0)+IF(RIGHT(info_perso!$B$16,9)=\"(occulte)\",1,0)+IF(RIGHT(info_perso!$B$17,9)=\"(occulte)\",1,0)+IF(RIGHT(info_perso!$B$18,9)=\"(occulte)\",1,0)=1,0.5,1)))","v":1},{"$f":"IF(info_perso!$D$2=\"klobto\",0.25,IF(OR(LEFT(info_perso!$B$15,23)=\"Affinité avec l’occulte\",LEFT(info_perso!$B$16,23)=\"Affinité avec l’occulte\",LEFT(info_perso!$B$17,23)=\"Affinité avec l’occulte\",(LEFT(info_perso!$B$18,23)=\"Affinité avec l’occulte\")),2,1)*IF(IF(RIGHT(info_perso!$B$15,9)=\"(occulte)\",1,0)+IF(RIGHT(info_perso!$B$16,9)=\"(occulte)\",1,0)+IF(RIGHT(info_perso!$B$17,9)=\"(occulte)\",1,0)+IF(RIGHT(info_perso!$B$18,9)=\"(occulte)\",1,0)=2,0.25,IF(IF(RIGHT(info_perso!$B$15,9)=\"(occulte)\",1,0)+IF(RIGHT(info_perso!$B$16,9)=\"(occulte)\",1,0)+IF(RIGHT(info_perso!$B$17,9)=\"(occulte)\",1,0)+IF(RIGHT(info_perso!$B$18,9)=\"(occulte)\",1,0)=1,0.5,1)))","v":1}]
[null,"Total",{"$f":"SUM(C27:C32)*C33","v":0},{"$f":"SUM(D27:D32)*D33","v":0},0,0,0,0,0,0,0,0,0,0]
[null,"XP Parapsy","S1","S2","S3","S4","S5","S6","S7","S8","S9","S10","S11","S12"]
[null,"Observation d’un pouvoir"]
[null,"Utilisation d’un pouvoir"]
[null,"Affrontement avec le possesseur d’un pouvoir"]
[null,"Apprentissage d’un pouvoir"]
[null,"Multiplicateur",{"$f":"IF(info_perso!$D$2=\"klobto\",0,IF(OR(LEFT(info_perso!$B$15,23)=\"A l’écoute de son corps\",LEFT(info_perso!$B$16,23)=\"A l’écoute de son corps\",LEFT(info_perso!$B$17,23)=\"A l’écoute de son corps\",(LEFT(info_perso!$B$18,23)=\"A l’écoute de son corps\")),2,1)*IF(IF(RIGHT(info_perso!$B$15,9)=\"(parapsy)\",1,0)+IF(RIGHT(info_perso!$B$16,9)=\"(parapsy)\",1,0)+IF(RIGHT(info_perso!$B$17,9)=\"(parapsy)\",1,0)+IF(RIGHT(info_perso!$B$18,9)=\"(parapsy)\",1,0)=2,0.25,IF(IF(RIGHT(info_perso!$B$15,9)=\"(parapsy)\",1,0)+IF(RIGHT(info_perso!$B$16,9)=\"(parapsy)\",1,0)+IF(RIGHT(info_perso!$B$17,9)=\"(parapsy)\",1,0)+IF(RIGHT(info_perso!$B$18,9)=\"(parapsy)\",1,0)=1,0.5,1)))","v":1},{"$f":"IF(info_perso!$D$2=\"klobto\",0,IF(OR(LEFT(info_perso!$B$15,23)=\"A l’écoute de son corps\",LEFT(info_perso!$B$16,23)=\"A l’écoute de son corps\",LEFT(info_perso!$B$17,23)=\"A l’écoute de son corps\",(LEFT(info_perso!$B$18,23)=\"A l’écoute de son corps\")),2,1)*IF(IF(RIGHT(info_perso!$B$15,9)=\"(parapsy)\",1,0)+IF(RIGHT(info_perso!$B$16,9)=\"(parapsy)\",1,0)+IF(RIGHT(info_perso!$B$17,9)=\"(parapsy)\",1,0)+IF(RIGHT(info_perso!$B$18,9)=\"(parapsy)\",1,0)=2,0.25,IF(IF(RIGHT(info_perso!$B$15,9)=\"(parapsy)\",1,0)+IF(RIGHT(info_perso!$B$16,9)=\"(parapsy)\",1,0)+IF(RIGHT(info_perso!$B$17,9)=\"(parapsy)\",1,0)+IF(RIGHT(info_perso!$B$18,9)=\"(parapsy)\",1,0)=1,0.5,1)))","v":1},{"$f":"IF(info_perso!$D$2=\"klobto\",0,IF(OR(LEFT(info_perso!$B$15,23)=\"A l’écoute de son corps\",LEFT(info_perso!$B$16,23)=\"A l’écoute de son corps\",LEFT(info_perso!$B$17,23)=\"A l’écoute de son corps\",(LEFT(info_perso!$B$18,23)=\"A l’écoute de son corps\")),2,1)*IF(IF(RIGHT(info_perso!$B$15,9)=\"(parapsy)\",1,0)+IF(RIGHT(info_perso!$B$16,9)=\"(parapsy)\",1,0)+IF(RIGHT(info_perso!$B$17,9)=\"(parapsy)\",1,0)+IF(RIGHT(info_perso!$B$18,9)=\"(parapsy)\",1,0)=2,0.25,IF(IF(RIGHT(info_perso!$B$15,9)=\"(parapsy)\",1,0)+IF(RIGHT(info_perso!$B$16,9)=\"(parapsy)\",1,0)+IF(RIGHT(info_perso!$B$17,9)=\"(parapsy)\",1,0)+IF(RIGHT(info_perso!$B$18,9)=\"(parapsy)\",1,0)=1,0.5,1)))","v":1},{"$f":"IF(info_perso!$D$2=\"klobto\",0,IF(OR(LEFT(info_perso!$B$15,23)=\"A l’écoute de son corps\",LEFT(info_perso!$B$16,23)=\"A l’écoute de son corps\",LEFT(info_perso!$B$17,23)=\"A l’écoute de son corps\",(LEFT(info_perso!$B$18,23)=\"A l’écoute de son corps\")),2,1)*IF(IF(RIGHT(info_perso!$B$15,9)=\"(parapsy)\",1,0)+IF(RIGHT(info_perso!$B$16,9)=\"(parapsy)\",1,0)+IF(RIGHT(info_perso!$B$17,9)=\"(parapsy)\",1,0)+IF(RIGHT(info_perso!$B$18,9)=\"(parapsy)\",1,0)=2,0.25,IF(IF(RIGHT(info_perso!$B$15,9)=\"(parapsy)\",1,0)+IF(RIGHT(info_perso!$B$16,9)=\"(parapsy)\",1,0)+IF(RIGHT(info_perso!$B$17,9)=\"(parapsy)\",1,0)+IF(RIGHT(info_perso!$B$18,9)=\"(parapsy)\",1,0)=1,0.5,1)))","v":1},{"$f":"IF(info_perso!$D$2=\"klobto\",0,IF(OR(LEFT(info_perso!$B$15,23)=\"A l’écoute de son corps\",LEFT(info_perso!$B$16,23)=\"A l’écoute de son corps\",LEFT(info_perso!$B$17,23)=\"A l’écoute de son corps\",(LEFT(info_perso!$B$18,23)=\"A l’écoute de son corps\")),2,1)*IF(IF(RIGHT(info_perso!$B$15,9)=\"(parapsy)\",1,0)+IF(RIGHT(info_perso!$B$16,9)=\"(parapsy)\",1,0)+IF(RIGHT(info_perso!$B$17,9)=\"(parapsy)\",1,0)+IF(RIGHT(info_perso!$B$18,9)=\"(parapsy)\",1,0)=2,0.25,IF(IF(RIGHT(info_perso!$B$15,9)=\"(parapsy)\",1,0)+IF(RIGHT(info_perso!$B$16,9)=\"(parapsy)\",1,0)+IF(RIGHT(info_perso!$B$17,9)=\"(parapsy)\",1,0)+IF(RIGHT(info_perso!$B$18,9)=\"(parapsy)\",1,0)=1,0.5,1)))","v":1},{"$f":"IF(info_perso!$D$2=\"klobto\",0,IF(OR(LEFT(info_perso!$B$15,23)=\"A l’écoute de son corps\",LEFT(info_perso!$B$16,23)=\"A l’écoute de son corps\",LEFT(info_perso!$B$17,23)=\"A l’écoute de son corps\",(LEFT(info_perso!$B$18,23)=\"A l’écoute de son corps\")),2,1)*IF(IF(RIGHT(info_perso!$B$15,9)=\"(parapsy)\",1,0)+IF(RIGHT(info_perso!$B$16,9)=\"(parapsy)\",1,0)+IF(RIGHT(info_perso!$B$17,9)=\"(parapsy)\",1,0)+IF(RIGHT(info_perso!$B$18,9)=\"(parapsy)\",1,0)=2,0.25,IF(IF(RIGHT(info_perso!$B$15,9)=\"(parapsy)\",1,0)+IF(RIGHT(info_perso!$B$16,9)=\"(parapsy)\",1,0)+IF(RIGHT(info_perso!$B$17,9)=\"(parapsy)\",1,0)+IF(RIGHT(info_perso!$B$18,9)=\"(parapsy)\",1,0)=1,0.5,1)))","v":1},{"$f":"IF(info_perso!$D$2=\"klobto\",0,IF(OR(LEFT(info_perso!$B$15,23)=\"A l’écoute de son corps\",LEFT(info_perso!$B$16,23)=\"A l’écoute de son corps\",LEFT(info_perso!$B$17,23)=\"A l’écoute de son corps\",(LEFT(info_perso!$B$18,23)=\"A l’écoute de son corps\")),2,1)*IF(IF(RIGHT(info_perso!$B$15,9)=\"(parapsy)\",1,0)+IF(RIGHT(info_perso!$B$16,9)=\"(parapsy)\",1,0)+IF(RIGHT(info_perso!$B$17,9)=\"(parapsy)\",1,0)+IF(RIGHT(info_perso!$B$18,9)=\"(parapsy)\",1,0)=2,0.25,IF(IF(RIGHT(info_perso!$B$15,9)=\"(parapsy)\",1,0)+IF(RIGHT(info_perso!$B$16,9)=\"(parapsy)\",1,0)+IF(RIGHT(info_perso!$B$17,9)=\"(parapsy)\",1,0)+IF(RIGHT(info_perso!$B$18,9)=\"(parapsy)\",1,0)=1,0.5,1)))","v":1},{"$f":"IF(info_perso!$D$2=\"klobto\",0,IF(OR(LEFT(info_perso!$B$15,23)=\"A l’écoute de son corps\",LEFT(info_perso!$B$16,23)=\"A l’écoute de son corps\",LEFT(info_perso!$B$17,23)=\"A l’écoute de son corps\",(LEFT(info_perso!$B$18,23)=\"A l’écoute de son corps\")),2,1)*IF(IF(RIGHT(info_perso!$B$15,9)=\"(parapsy)\",1,0)+IF(RIGHT(info_perso!$B$16,9)=\"(parapsy)\",1,0)+IF(RIGHT(info_perso!$B$17,9)=\"(parapsy)\",1,0)+IF(RIGHT(info_perso!$B$18,9)=\"(parapsy)\",1,0)=2,0.25,IF(IF(RIGHT(info_perso!$B$15,9)=\"(parapsy)\",1,0)+IF(RIGHT(info_perso!$B$16,9)=\"(parapsy)\",1,0)+IF(RIGHT(info_perso!$B$17,9)=\"(parapsy)\",1,0)+IF(RIGHT(info_perso!$B$18,9)=\"(parapsy)\",1,0)=1,0.5,1)))","v":1},{"$f":"IF(info_perso!$D$2=\"klobto\",0,IF(OR(LEFT(info_perso!$B$15,23)=\"A l’écoute de son corps\",LEFT(info_perso!$B$16,23)=\"A l’écoute de son corps\",LEFT(info_perso!$B$17,23)=\"A l’écoute de son corps\",(LEFT(info_perso!$B$18,23)=\"A l’écoute de son corps\")),2,1)*IF(IF(RIGHT(info_perso!$B$15,9)=\"(parapsy)\",1,0)+IF(RIGHT(info_perso!$B$16,9)=\"(parapsy)\",1,0)+IF(RIGHT(info_perso!$B$17,9)=\"(parapsy)\",1,0)+IF(RIGHT(info_perso!$B$18,9)=\"(parapsy)\",1,0)=2,0.25,IF(IF(RIGHT(info_perso!$B$15,9)=\"(parapsy)\",1,0)+IF(RIGHT(info_perso!$B$16,9)=\"(parapsy)\",1,0)+IF(RIGHT(info_perso!$B$17,9)=\"(parapsy)\",1,0)+IF(RIGHT(info_perso!$B$18,9)=\"(parapsy)\",1,0)=1,0.5,1)))","v":1},{"$f":"IF(info_perso!$D$2=\"klobto\",0,IF(OR(LEFT(info_perso!$B$15,23)=\"A l’écoute de son corps\",LEFT(info_perso!$B$16,23)=\"A l’écoute de son corps\",LEFT(info_perso!$B$17,23)=\"A l’écoute de son corps\",(LEFT(info_perso!$B$18,23)=\"A l’écoute de son corps\")),2,1)*IF(IF(RIGHT(info_perso!$B$15,9)=\"(parapsy)\",1,0)+IF(RIGHT(info_perso!$B$16,9)=\"(parapsy)\",1,0)+IF(RIGHT(info_perso!$B$17,9)=\"(parapsy)\",1,0)+IF(RIGHT(info_perso!$B$18,9)=\"(parapsy)\",1,0)=2,0.25,IF(IF(RIGHT(info_perso!$B$15,9)=\"(parapsy)\",1,0)+IF(RIGHT(info_perso!$B$16,9)=\"(parapsy)\",1,0)+IF(RIGHT(info_perso!$B$17,9)=\"(parapsy)\",1,0)+IF(RIGHT(info_perso!$B$18,9)=\"(parapsy)\",1,0)=1,0.5,1)))","v":1},{"$f":"IF(info_perso!$D$2=\"klobto\",0,IF(OR(LEFT(info_perso!$B$15,23)=\"A l’écoute de son corps\",LEFT(info_perso!$B$16,23)=\"A l’écoute de son corps\",LEFT(info_perso!$B$17,23)=\"A l’écoute de son corps\",(LEFT(info_perso!$B$18,23)=\"A l’écoute de son corps\")),2,1)*IF(IF(RIGHT(info_perso!$B$15,9)=\"(parapsy)\",1,0)+IF(RIGHT(info_perso!$B$16,9)=\"(parapsy)\",1,0)+IF(RIGHT(info_perso!$B$17,9)=\"(parapsy)\",1,0)+IF(RIGHT(info_perso!$B$18,9)=\"(parapsy)\",1,0)=2,0.25,IF(IF(RIGHT(info_perso!$B$15,9)=\"(parapsy)\",1,0)+IF(RIGHT(info_perso!$B$16,9)=\"(parapsy)\",1,0)+IF(RIGHT(info_perso!$B$17,9)=\"(parapsy)\",1,0)+IF(RIGHT(info_perso!$B$18,9)=\"(parapsy)\",1,0)=1,0.5,1)))","v":1},{"$f":"IF(info_perso!$D$2=\"klobto\",0,IF(OR(LEFT(info_perso!$B$15,23)=\"A l’écoute de son corps\",LEFT(info_perso!$B$16,23)=\"A l’écoute de son corps\",LEFT(info_perso!$B$17,23)=\"A l’écoute de son corps\",(LEFT(info_perso!$B$18,23)=\"A l’écoute de son corps\")),2,1)*IF(IF(RIGHT(info_perso!$B$15,9)=\"(parapsy)\",1,0)+IF(RIGHT(info_perso!$B$16,9)=\"(parapsy)\",1,0)+IF(RIGHT(info_perso!$B$17,9)=\"(parapsy)\",1,0)+IF(RIGHT(info_perso!$B$18,9)=\"(parapsy)\",1,0)=2,0.25,IF(IF(RIGHT(info_perso!$B$15,9)=\"(parapsy)\",1,0)+IF(RIGHT(info_perso!$B$16,9)=\"(parapsy)\",1,0)+IF(RIGHT(info_perso!$B$17,9)=\"(parapsy)\",1,0)+IF(RIGHT(info_perso!$B$18,9)=\"(parapsy)\",1,0)=1,0.5,1)))","v":1}]
[null,"Total",{"$f":"SUM(C36:C39)*C40","v":0},{"$f":"SUM(D36:D39)*D40","v":0},0,0,0,0,0,0,0,0,0,0]

{"sheet":"annexe Fétiches","index":13,"n_rows":103,"n_cols":8,"rows_kept":103,"cut":false,"hidden":true,"merged":[[98,7,98,20],[99,7,99,20],[100,7,100,20],[101,7,101,20],[102,7,102,20],[91,7,91,20],[92,7,92,20],[93,7,93,20],[94,7,94,20],[95,7,95,20],[96,7,96,20],[89,7,89,20],[90,7,90,20],[79,7,79,20],[80,7,80,20],[81,7,81,20],[82,7,82,20],[83,7,83,20],[84,7,84,20],[97,7,97,20],[68,7,68,20],[69,7,69,20],[70,7,70,20],[71,7,71,20],[72,7,72,20],[85,7,85,20],[86,7,86,20],[87,7,87,20],[88,7,88,20],[66,7,66,20],[100,5,100,6],[101,5,101,6],[102,5,102,6],[96,5,96,6],[97,5,97,6],[98,5,98,6],[99,5,99,6],[79,5,79,6],[80,5,80,6],[81,5,81,6],[70,5,70,6],[71,5,71,6],[72,5,72,6],[73,5,73,6],[74,5,74,6],[75,5,75,6],[73,7,73,20],[74,7,74,20],[75,7,75,20],[76,7,76,20],[77,7,77,20],[78,7,78,20],[67,7,67,20],[59,7,59,20],[60,7,60,20],[94,5,94,6],[95,5,95,6],[88,5,88,6],[89,5,89,6],[90,5,90,6],[91,5,91,6],[92,5,92,6],[93,5,93,6],[82,5,82,6],[83,5,83,6],[84,5,84,6],[85,5,85,6],[86,5,86,6],[87,5,87,6],[76,5,76,6],[77,5,77,6],[78,5,78,6],[61,7,61,20],[62,7,62,20],[63,7,63,20],[64,7,64,20],[65,7,65,20],[66,5,66,6],[67,5,67,6],[68,5,68,6],[69,5,69,6],[58,5,58,6],[59,5,59,6],[60,5,60,6],[61,5,61,6],[62,5,62,6],[63,5,63,6],[64,5,64,6],[65,5,65,6],[97,1,97,2],[98,1,98,2],[99,1,99,2],[100,1,100,2],[101,1,101,2],[102,1,102,2],[91,1,91,2],[92,1,92,2],[93,1,93,2],[94,1,94,2],[95,1,95,2],[96,1,96,2],[85,1,85,2],[86,1,86,2],[87,1,87,2],[88,1,88,2],[89,1,89,2],[90,1,90,2],[79,1,79,2],[80,1,80,2],[81,1,81,2],[82,1,82,2],[83,1,83,2],[84,1,84,2],[73,1,73,2],[74,1,74,2],[75,1,75,2],[76,1,76,2],[77,1,77,2],[78,1,78,2],[67,1,67,2],[68,1,68,2],[69,1,69,2],[70,1,70,2],[71,1,71,2],[72,1,72,2],[85,3,85,4],[86,3,86,4],[87,3,87,4],[88,3,88,4],[89,3,89,4],[90,3,90,4],[79,3,79,4],[80,3,80,4],[81,3,81,4],[82,3,82,4],[83,3,83,4],[84,3,84,4],[100,3,100,4],[101,3,101,4],[102,3,102,4],[91,3,91,4],[92,3,92,4],[93,3,93,4],[94,3,94,4],[95,3,95,4],[96,3,96,4],[97,3,97,4],[98,3,98,4],[99,3,99,4],[76,3,76,4],[77,3,77,4],[78,3,78,4],[67,3,67,4],[68,3,68,4],[69,3,69,4],[70,3,70,4],[71,3,71,4],[72,3,72,4],[73,3,73,4],[74,3,74,4],[75,3,75,4],[61,3,61,4],[62,3,62,4],[63,3,63,4],[64,3,64,4],[65,3,65,4],[66,3,66,4],[59,1,59,2],[60,1,60,2],[54,3,54,4],[55,3,55,4],[56,3,56,4],[57,3,57,4],[58,3,58,4],[59,3,59,4],[60,3,60,4],[61,1,61,2],[62,1,62,2],[63,1,63,2],[64,1,64,2],[65,1,65,2],[66,1,66,2],[53,1,53,20],[54,1,54,2],[55,1,55,2],[56,1,56,2],[57,1,57,2],[58,1,58,2],[54,5,54,6],[55,5,55,6],[56,5,56,6],[57,5,57,6],[54,7,54,20],[55,7,55,20],[56,7,56,20],[57,7,57,20],[58,7,58,20],[50,1,50,2],[50,3,50,4],[50,5,50,6],[50,7,50,20],[51,1,51,2],[51,3,51,4],[51,5,51,6],[51,7,51,20],[48,1,48,2],[48,3,48,4],[48,5,48,6],[48,7,48,20],[49,1,49,2],[49,3,49,4],[49,5,49,6],[49,7,49,20],[46,1,46,2],[46,3,46,4],[46,5,46,6],[46,7,46,20],[47,1,47,2],[47,3,47,4],[47,5,47,6],[47,7,47,20],[44,1,44,2],[44,3,44,4],[44,5,44,6],[44,7,44,20],[45,1,45,2],[45,3,45,4],[45,5,45,6],[45,7,45,20],[42,1,42,2],[42,3,42,4],[42,5,42,6],[42,7,42,20],[43,1,43,2],[43,3,43,4],[43,5,43,6],[43,7,43,20],[40,1,40,2],[40,3,40,4],[40,5,40,6],[40,7,40,20],[41,1,41,2],[41,3,41,4],[41,5,41,6],[41,7,41,20],[38,1,38,2],[38,3,38,4],[38,5,38,6],[38,7,38,20],[39,1,39,2],[39,3,39,4],[39,5,39,6],[39,7,39,20],[36,1,36,2],[36,3,36,4],[36,5,36,6],[36,7,36,20],[37,1,37,2],[37,3,37,4],[37,5,37,6],[37,7,37,20],[34,1,34,2],[34,3,34,4],[34,5,34,6],[34,7,34,20],[35,1,35,2],[35,3,35,4],[35,5,35,6],[35,7,35,20],[32,1,32,2],[32,3,32,4],[32,5,32,6],[32,7,32,20],[33,1,33,2],[33,3,33,4],[33,5,33,6],[33,7,33,20],[30,1,30,2],[30,3,30,4],[30,5,30,6],[30,7,30,20],[31,1,31,2],[31,3,31,4],[31,5,31,6],[31,7,31,20],[28,1,28,2],[28,3,28,4],[28,5,28,6],[28,7,28,20],[29,1,29,2],[29,3,29,4],[29,5,29,6],[29,7,29,20],[26,1,26,2],[26,3,26,4],[26,5,26,6],[26,7,26,20],[27,1,27,2],[27,3,27,4],[27,5,27,6],[27,7,27,20],[24,1,24,2],[24,3,24,4],[24,5,24,6],[24,7,24,20],[25,1,25,2],[25,3,25,4],[25,5,25,6],[25,7,25,20],[22,1,22,2],[22,3,22,4],[22,5,22,6],[22,7,22,20],[23,1,23,2],[23,3,23,4],[23,5,23,6],[23,7,23,20],[20,1,20,2],[20,3,20,4],[20,5,20,6],[20,7,20,20],[21,1,21,2],[21,3,21,4],[21,5,21,6],[21,7,21,20],[18,1,18,2],[18,3,18,4],[18,5,18,6],[18,7,18,20],[19,1,19,2],[19,3,19,4],[19,5,19,6],[19,7,19,20],[16,1,16,2],[16,3,16,4],[16,5,16,6],[16,7,16,20],[17,1,17,2],[17,3,17,4],[17,5,17,6],[17,7,17,20],[14,1,14,2],[14,3,14,4],[14,5,14,6],[14,7,14,20],[15,1,15,2],[15,3,15,4],[15,5,15,6],[15,7,15,20],[12,1,12,2],[12,3,12,4],[12,5,12,6],[12,7,12,20],[13,1,13,2],[13,3,13,4],[13,5,13,6],[13,7,13,20],[10,1,10,2],[10,3,10,4],[10,5,10,6],[10,7,10,20],[11,1,11,2],[11,3,11,4],[11,5,11,6],[11,7,11,20],[8,1,8,2],[8,3,8,4],[8,5,8,6],[8,7,8,20],[9,1,9,2],[9,3,9,4],[9,5,9,6],[9,7,9,20],[7,1,7,2],[7,3,7,4],[7,5,7,6],[7,7,7,20],[4,1,4,2],[4,3,4,4],[4,5,4,6],[4,7,4,20],[5,1,5,2],[5,3,5,4],[5,5,5,6],[5,7,5,20],[3,1,3,2],[3,3,3,4],[3,5,3,6],[3,7,3,20],[2,1,2,20],[0,1,1,20],[6,1,6,2],[6,3,6,4],[6,5,6,6],[6,7,6,20]]}
[null,"Les Fétiches"]
[]
[null,"Vie"]
[null,"Vie",null,"Vie",null,"Vie",null,"ajouter le score de prière au max PV (ce gain s'ajoute aux PV en cours)"]
[null,"Vie",null,"Vie",null,"Terre",null,"soigne et donne une immunité aux poisons"]
[null,"Vie",null,"Vie",null,"Feu",null,"soigne et donne une immunité aux effets de brûlure / acide / "]
[null,"Vie",null,"Vie",null,"Air",null,"les plaies se referment immédiatement & possibilité de raccrocher des membres fraîchement coupés"]
[null,"Vie",null,"Vie",null,"Eau",null,"permets de regagner autant de PV que le score de prière à chaque fois que le personnage bois de l'eau"]
[null,"Vie",null,"Vie",null,"Lumière",null,"régène autant de PV que le score de prière tous les 3 tours ou (toutes les heures hors combat)."]
[null,"Vie",null,"Vie",null,"Néant",null,"permet au contact d'une cible de réduire les PV max d'autant de points que le score de prière (la victime ne récupèrera jamais ces points, à part en dépensant de l'XP)"]
[null,"Vie",null,"Terre",null,"Vie",null,"permet de créer un golem de terre qui obéhit au Klobto (70 carac et compétences, 150 PV)"]
[null,"Vie",null,"Terre",null,"Terre",null,"permet de d'ingugiter n'importe quel matériau et de s'en nourrir"]
[null,"Vie",null,"Terre",null,"Feu",null,"permet de faire fondre nimporte quel matériau dans la peaume de la main"]
[null,"Vie",null,"Terre",null,"Air",null,"permet de communiquer avec les mamifères terrestres"]
[null,"Vie",null,"Terre",null,"Eau",null,"double la pousse de plantes lors d'activités agricoles "]
[null,"Vie",null,"Terre",null,"Lumière",null,"double la récolte fruitière lors d'activités agricoles"]
[null,"Vie",null,"Terre",null,"Néant",null,"permet d'asècher un sol fertile et de diviser la récolte par deux. Nécessite de prier une semaine en continu dans ledit champ"]
[null,"Vie",null,"Feu",null,"Vie",null,"permet de créer un élémental de feu qui obéhit au Klobto (20 carac et compétences, 50 tir 50 dégâts, 20 PV) li est immatériel et donc n'est pas sensible qu'aux dégâts énergétique (feu, occulte, électricité, etc.)"]
[null,"Vie",null,"Feu",null,"Terre",null,"permet de doubler le minerai utilisable lors du rafinage "]
[null,"Vie",null,"Feu",null,"Feu",null,"permet de créer des flamme sur le corps de porteur provoquant des dégâts de brûlure à toute personne qui le touche "]
[null,"Vie",null,"Feu",null,"Air",null,"permet d'alumer des feu de camp à volonté"]
[null,"Vie",null,"Feu",null,"Eau",null,"permet de faire de la vapeur avec la bouche. La vapeur est abondante et opaque, mais pas assez pour apporter des malus. Par contre elle subsiste longtemps et est visible de loin."]
[null,"Vie",null,"Feu",null,"Lumière",null,"permet de comuniquer d'un feu de camp alumer à un autre feu de camp déjà visité alumé. Le visage du klobto se déssine dans les flammes"]
[null,"Vie",null,"Feu",null,"Néant",null,"tous les feux que le Klobto allume ne créent aucune chaleur. Les flammes sont bleutées et détruisent tout ce qu'elle touche "]
[null,"Vie",null,"Air",null,"Vie",null,"permet de créer un élémental d'air qui obéhit au klobto (20 carac et compétences, 20 PV). Il est immatériel et donc n'est pas sensible qu'aux dégâts énergétique (feu, occulte, électricité, etc.), est invisible sauf pour le klobto et ne produit aucun son lors de ses déplacement. "]
[null,"Vie",null,"Air",null,"Terre",null,"permet de communiquer avec les oiseaux"]
[null,"Vie",null,"Air",null,"Feu",null,"permet de doubler la taille et les dégâts de toute flamme que le klobto crée"]
[null,"Vie",null,"Air",null,"Air",null,"ajoute le score de prière à l'escalade"]
[null,"Vie",null,"Air",null,"Eau",null,"permet de communiquer avec les poissons"]
[null,"Vie",null,"Air",null,"Lumière",null,"permet d'obtenir l'avantage nyctalopie"]
[null,"Vie",null,"Air",null,"Néant",null,"donne une odeur fétide de mort (à s'y méprendre) au klobto"]
[null,"Vie",null,"Eau",null,"Vie",null,"permet de créer un élémental d'eau qui obéhit au klobto (20 carac et comp, 80PV). Il peut soigner au contact une cible d'autant de PV que le score de prière"]
[null,"Vie",null,"Eau",null,"Terre",null,"permet de communiquer avec les batracien"]
[null,"Vie",null,"Eau",null,"Feu",null,"permet d'utiliser l'eau comme combustible (dans la limite d'un décimètre cube)"]
[null,"Vie",null,"Eau",null,"Air",null,"permet de comuniquer d'un jet de vapeur à un autre ciblé. Le visage fantomatique du Klobto se déssine dans la vapeur."]
[null,"Vie",null,"Eau",null,"Eau",null,"permet de respirer sous l'eau "]
[null,"Vie",null,"Eau",null,"Lumière",null,"permet de créer du plancton bioluminescent dans un rayon de 2m"]
[null,"Vie",null,"Eau",null,"Néant",null,"permet de priver d'air une cible tant qu'elle est à contact"]
[null,"Vie",null,"Lumière",null,"Vie",null,"Permet de créer un élémental de lumière qui vole très vite et qui parle beaucoup. Il ne peut faire de dégâts ni être détruit. "]
[null,"Vie",null,"Lumière",null,"Terre",null,"permet de faire pousser des champignon bioluminescent en 1 minute dans un rayon d'1m"]
[null,"Vie",null,"Lumière",null,"Feu",null,"permets de créer à volonté une sphère de lumière autour du Klobto"]
[null,"Vie",null,"Lumière",null,"Air",null,"permet d'ajouter son score de prière à sa vigilance"]
[null,"Vie",null,"Lumière",null,"Eau",null,"permet de rendre les poissons luminescent au contact (éclaire sur rayon de 2m)"]
[null,"Vie",null,"Lumière",null,"Lumière",null,"permet de devenir bioluminescent (éclaire dans un rayon de 10m)"]
[null,"Vie",null,"Lumière",null,"Néant",null,"permet de créer une lumière noire sur la peaume de la main"]
[null,"Vie",null,"Néant",null,"Vie",null,"permet de faire revenir à la vie un personnage qui vient de mourir (- de 5min) "]
[null,"Vie",null,"Néant",null,"Terre",null,"permet de comuniquer avec les insectes"]
[null,"Vie",null,"Néant",null,"Feu",null,"permet d'éteindre les feux"]
[null,"Vie",null,"Néant",null,"Air",null,"permet de changer le sens du vent"]
[null,"Vie",null,"Néant",null,"Eau",null,"permet de communiquer avec les protozoaire"]
[null,"Vie",null,"Néant",null,"Lumière",null,"permet d'attirer les nuage au dessus du Klobto ou de les dissiper (le choix doit être pris lors de la prière et l'effet sera constant pour toute la journée)"]
[null,"Vie",null,"Néant",null,"Néant",null,"ajoute score de prière à sa volonté"]
[]
[null,"Terre"]
[null,"Terre",null,"Vie",null,"Vie",null,"permet de monter une fois un mur de 4m de haut pour une action rapide dans la journée"]
[null,"Terre",null,"Vie",null,"Terre",null,"permet de rendre un champ stérile cultivable (nécessite une semaine de présence tous les jours dans le champ)"]
[null,"Terre",null,"Vie",null,"Feu",null,"permet de transformer la terre en céramique (max 1m cube)"]
[null,"Terre",null,"Vie",null,"Air",null,"permet de transformer la terre et la pierre en poussière (max 1m cube)"]
[null,"Terre",null,"Vie",null,"Eau",null,"permet d'attirer l'eau dans un puit arride"]
[null,"Terre",null,"Vie",null,"Lumière",null,"permet d'illuminer les endroist clos à la présence du Klobto"]
[null,"Terre",null,"Vie",null,"Néant",null,"permet de faire disparaitre une fois jusqu'à 1m cube de matériaux solides non animé au contact du Klobto"]
[null,"Terre",null,"Terre",null,"Vie",null,"permet de communiquer avec les plantes et les champignons au contact du Klobto et à travers le réseau de micellium"]
[null,"Terre",null,"Terre",null,"Terre",null,"permet d'ajouter son score de prière à son IP"]
[null,"Terre",null,"Terre",null,"Feu",null,"permet d'ajouter son score de prière à sa résistence aux chocs"]
[null,"Terre",null,"Terre",null,"Air",null,"permet d'ajouter son score de prière à son esquive"]
[null,"Terre",null,"Terre",null,"Eau",null,"permet de nager dans la boue comme si c'était de l'eau"]
[null,"Terre",null,"Terre",null,"Lumière",null,"permet de créer trois grenades à fragmentation à partir de terre pedant la prière"]
[null,"Terre",null,"Terre",null,"Néant",null,"permet de créer une grenade à singularité à partir de terre pendant la prière "]
[null,"Terre",null,"Feu",null,"Vie",null,"fait flamboyer les yeux du prieur comme deux braises incandescentes et ajoute le score de prière à son intimmidation "]
[null,"Terre",null,"Feu",null,"Terre",null,"ajoute son score de prière à son artisanat "]
[null,"Terre",null,"Feu",null,"Feu",null,"ajoute sonscore de prière à ses dégâts "]
[null,"Terre",null,"Feu",null,"Air",null,"permet de faire un un atelier de tanneur fonctionnel à partir de terre"]
[null,"Terre",null,"Feu",null,"Eau",null,"parmet au contact de façonner la terre en terre cuite sans autre outil"]
[null,"Terre",null,"Feu",null,"Lumière",null,"permet d'augmenter la température de 1°. Chaque prière augmentera la température de la veille d'1° et la température baissera tous les jours sans prière de 1° jusqu'à rejoindre la température normale"]
[null,"Terre",null,"Feu",null,"Néant",null,"permet de donner l'avantage brûlure à toutes les armes fabriquées par le Klobto"]
[null,"Terre",null,"Air",null,"Vie",null,"permet d'ajouter son score de prière à sa résistence à la douleur"]
[null,"Terre",null,"Air",null,"Terre",null,"un épais nuage de poussière suit constemment le prieur ajoutant son score de prière à sa discrétion"]
[null,"Terre",null,"Air",null,"Feu",null,"permet au prieur d'enflemmer des nuages de poussière qu'il souffle depuis sa main. Cône de 16m, 45°, donnant brûlure et infligeant 50+1D20 dégâts"]
[null,"Terre",null,"Air",null,"Air",null,"permet d'ajouter son score prière à sa compétence d'athlétisme"]
[null,"Terre",null,"Air",null,"Eau",null,"permet d'apporter des graînes par le vent (assez pour ensemencer un champ)"]
[null,"Terre",null,"Air",null,"Lumière",null,"permet au Klobto de parler à ses ancêtres décédés "]
[null,"Terre",null,"Air",null,"Néant",null,"permet de dissiper les nuages de poussières autour du Klobto"]
[null,"Terre",null,"Eau",null,"Vie",null,"permet de créer. Une marre où la vie se créera à l'intérieur le lendemain."]
[null,"Terre",null,"Eau",null,"Terre",null,"permet de créer des outres pleine d'eau à partir de terre "]
[null,"Terre",null,"Eau",null,"Feu",null,"permet d'assecher une petite marre ou un champ"]
[null,"Terre",null,"Eau",null,"Air"]
[null,"Terre",null,"Eau",null,"Eau"]
[null,"Terre",null,"Eau",null,"Lumière"]
[null,"Terre",null,"Eau",null,"Néant",null,"permet de créer un camoufflage parfait à partir de boue pour le Klobto"]
[null,"Terre",null,"Lumière",null,"Vie"]
[null,"Terre",null,"Lumière",null,"Terre"]
[null,"Terre",null,"Lumière",null,"Feu"]
[null,"Terre",null,"Lumière",null,"Air"]
[null,"Terre",null,"Lumière",null,"Eau"]
[null,"Terre",null,"Lumière",null,"Lumière"]
[null,"Terre",null,"Lumière",null,"Néant"]
[null,"Terre",null,"Néant",null,"Vie"]
[null,"Terre",null,"Néant",null,"Terre"]
[null,"Terre",null,"Néant",null,"Feu"]
[null,"Terre",null,"Néant",null,"Air"]
[null,"Terre",null,"Néant",null,"Eau"]
[null,"Terre",null,"Néant",null,"Lumière"]
[null,"Terre",null,"Néant",null,"Néant"]

{"sheet":"récap perso","index":14,"n_rows":2,"n_cols":6,"rows_kept":2,"cut":false,"hidden":true,"merged":[]}
["Force","Agilité","Perception","Volonté","Intelligence","Influence"]
[{"$f":"AVERAGE(caractéritiques!C13,compétences!L30:L34)","v":0},{"$f":"AVERAGE(caractéritiques!D13,compétences!L19:L26)","v":0},{"$f":"AVERAGE(caractéritiques!E13,compétences!L53:L60)","v":0},{"$f":"AVERAGE(caractéritiques!F13,compétences!L64,)","v":0},{"$f":"AVERAGE(compétences!L38:L49,caractéritiques!G13)","v":0},{"$f":"AVERAGE(caractéritiques!H13,'récap perso'!K4:K15)","v":0}]